Workbook

Sheet FERC_IS1
A1: %,LACTUALS,SBAL | B1: %,ATF,FACCOUNT | C1: %,ATT,FDESCR,UDESCR | F1: %,LACTUALS,SPER | G1: %,LACTUALS,SPER-1YR | H1: %,C | I1: %,C | K1: %,LACTUALS,SYTD | L1: %,LACTUALS,SYTD-1YR | M1: %,C | N1: %,C | Q1: %,LACTUALS,SQTR | R1: %,LACTUALS,SQTR-1YR | S1: %,C | T1: %,C | V1: %,LACTUALS,SROLLING12 | W1: %,LACTUALS,SROLNG12-1Y | X1: %,C | Y1: %,C | AA1: %,LACTUALS,SPER12-2Y | AC1: %,LACTUALS,SPER1-1YR | AD1: %,LACTUALS,SPER2-1YR | AE1: %,LACTUALS,SPER3-1YR | AF1: %,LACTUALS,SPER4-1YR | AG1: %,LACTUALS,SPER5-1YR | AH1: %,LACTUALS,SPER6-1YR | AI1: %,LACTUALS,SPER7-1YR | AJ1: %,LACTUALS,SPER8-1YR | AK1: %,LACTUALS,SPER9-1YR | AL1: %,LACTUALS,SPER10-1YR | AM1: %,LACTUALS,SPER11-1YR | AN1: %,LACTUALS,SPER12-YR | AP1: %,LACTUALS,SPER1 | AQ1: %,LACTUALS,SPER2 | AR1: %,LACTUALS,SPER3 | AS1: %,LACTUALS,SPER4 | AT1: %,LACTUALS,SPER5 | AU1: %,LACTUALS,SPER6 | AV1: %,LACTUALS,SPER7 | AW1: %,LACTUALS,SPER8 | AX1: %,LACTUALS,SPER9 | AY1: %,LACTUALS,SPER10 | AZ1: %,LACTUALS,SPER11 | BA1: %,LACTUALS,SPER12
C2: =IF($C$710="Error",$C$715,IF($C$716="Error",$C$712&" - "&$C$711,IF($C$716 = $C$715, "BU"& $C$716&" -" & $C$710,$C$716&" - "&$C$715))) -> Kentucky Power Corp Consol | G2: =+C2 -> Kentucky Power Corp Consol | L2: =+G2 -> Kentucky Power Corp Consol | R2: =+L2 -> Kentucky Power Corp Consol | W2: =+R2 -> Kentucky Power Corp Consol | AA2: =+C2 -> Kentucky Power Corp Consol | AP2: =+C2 -> Kentucky Power Corp Consol
C3: =TEXT(+$C$700,"MMMM YYYY") -> August 2025 | G3: =+"As of: "& TEXT(+$C$700,"MMM YYYY") -> As of: Aug 2025 | L3: =+G3 -> As of: Aug 2025 | R3: =+L3 -> As of: Aug 2025 | W3: =+R3 -> As of: Aug 2025 | AA3: =+G3 -> As of: Aug 2025
B4: ="Run Date: "& TEXT(NvsEndTime,"MM/DD/YYYY hh:mm AM/PM;@") -> Run Date: 09/09/2025 05:35 AM | AP4: =+AA4 -> 0
B5: =IF(C713<>"Error",C713,"") -> GLR6283P | C5: ="Rpt ID: "& C708& " Layout: "&C709 -> Rpt ID: FERC_IS1 Layout: FERC_IS1 | F5: ONE MONTH ENDED | H5: Variance | K5: YEAR TO DATE | M5: Variance | Q5: THREE MONTHS ENDED | S5: Variance | V5: TWELVE MONTHS ENDED | X5: Variance
B6: =IF(C710="Error",""&C716,IF(C716= "Error","" & C712,"" &C716)) -> KYP_CORP_CONSOL | C6: =IF($C$710="Error",NvsTreeASD & " Acct: GL_FERC_ACCT BU: "&+$C$717,IF(C716="Error",NvsTreeASD & " Acct: GL_FERC_ACCT BU: "&+$C$712,NvsTreeASD & " Acct: GL_FERC_ACCT BU: "&+$C$716)) -> V2099-01-01 Acct: GL_FERC_ACCT BU: GL_PRPT_CONS | F6: =TEXT($C$700,"YYYY") -> 2025 | G6: =+F6-1 -> 2024 | H6: $ | I6: % | K6: =TEXT($C$700,"YYYY") -> 2025 | L6: =+K6-1 -> 2024 | M6: $ | N6: % | O6: Explanation | Q6: =TEXT($C$700,"YYYY") -> 2025 | R6: =+Q6-1 -> 2024 | S6: $ | T6: % | V6: =TEXT($C$700,"YYYY") -> 2025 | W6: =+V6-1 -> 2024 | X6: $ | Y6: % | AA6: ="Dec "&TEXT($C$700,"YYYY") - 2 -> Dec 2023 | AC6: ="Jan "&TEXT($C$700,"YYYY")-1 -> Jan 2024 | AD6: ="Feb "&TEXT($C$700,"YYYY") - 1 -> Feb 2024 | AE6: ="Mar "&TEXT($C$700,"YYYY") - 1 -> Mar 2024 | AF6: ="Apr "&TEXT($C$700,"YYYY") - 1 -> Apr 2024 | AG6: ="May "&TEXT($C$700,"YYYY") - 1 -> May 2024 | AH6: ="Jun "&TEXT($C$700,"YYYY") - 1 -> Jun 2024 | AI6: ="Jul "&TEXT($C$700,"YYYY") - 1 -> Jul 2024 | AJ6: ="Aug "&TEXT($C$700,"YYYY") - 1 -> Aug 2024 | AK6: ="Sep "&TEXT($C$700,"YYYY") - 1 -> Sep 2024 | AL6: ="Oct "&TEXT($C$700,"YYYY") - 1 -> Oct 2024 | AM6: ="Nov "&TEXT($C$700,"YYYY") - 1 -> Nov 2024 | AN6: ="Dec "&TEXT($C$700,"YYYY") - 1 -> Dec 2024 | AP6: ="Jan "&TEXT($C$700,"YYYY") -> Jan 2025 | AQ6: ="Feb "&TEXT($C$700,"YYYY") -> Feb 2025 | AR6: ="Mar "&TEXT($C$700,"YYYY") -> Mar 2025 | AS6: ="Apr "&TEXT($C$700,"YYYY") -> Apr 2025 | AT6: ="May "&TEXT($C$700,"YYYY") -> May 2025 | AU6: ="Jun "&TEXT($C$700,"YYYY") -> Jun 2025 | AV6: ="Jul "&TEXT($C$700,"YYYY") -> Jul 2025 | AW6: ="Aug "&TEXT($C$700,"YYYY") -> Aug 2025 | AX6: ="Sep "&TEXT($C$700,"YYYY") -> Sep 2025 | AY6: ="Oct "&TEXT($C$700,"YYYY") -> Oct 2025 | AZ6: ="Nov "&TEXT($C$700,"YYYY") -> Nov 2025 | BA6: ="Dec "&TEXT($C$700,"YYYY") -> Dec 2025
B7: FERC Form | C7: INCOME STATEMENT
B9: Line 1 | C9: Utility Operating Income
A11: %,V4400001 | B11: 4400001 | C11: Residential Sales-W/Space Htg | F11: 11599370.53 | G11: 12112246.53 | H11: =+F11-G11 -> -512875.996 | I11: =IF(G11<0,IF(H11=0,0,IF(OR(G11=0,F11=0),"N.M.",IF(ABS(H11/G11)>=10,"N.M.",H11/(-G11)))),IF(H11=0,0,IF(OR(G11=0,F11=0),"N.M.",IF(ABS(H11/G11)>=10,"N.M.",H11/G11)))) -> -0.04234358958 | K11: 106728220.4 | L11: 96698166.09 | Q11: 35023325.89 | R11: 34497330.07 | V11: 153783077.3 | W11: 136069196.3 | X11: =+V11-W11 -> 17713881.02 | Y11: =IF(W11<0,IF(X11=0,0,IF(OR(W11=0,V11=0),"N.M.",IF(ABS(X11/W11)>=10,"N.M.",X11/(-W11)))),IF(X11=0,0,IF(OR(W11=0,V11=0),"N.M.",IF(ABS(X11/W11)>=10,"N.M.",X11/W11)))) -> 0.1301828886 | AA11: 10161335.62 | AC11: 15558463.53 | AD11: 14616984.42 | AE11: 12136381.5 | AF11: 8855896.83 | AG11: 11033109.74 | AH11: 9725457.14 | AI11: 12659626.4 | AJ11: 12112246.53 | AK11: 8693074.26 | AL11: 8965160.08 | AM11: 10845452.17 | AN11: 18551170.45 | AP11: 21899121.56 | AQ11: 16684360.74 | AR11: 14995212.24 | AS11: 10394968.61 | AT11: 7731231.34 | AU11: 10518841.64 | AV11: 12905113.72 | AW11: 11599370.53 | AX11: -5863348.57 | AY11: 0 | AZ11: 0 | BA11: 0
A12: %,V4400002 | B12: 4400002 | C12: Residential Sales-W/O Space Ht | F12: 6607786.695 | G12: 6771128.45 | H12: =+F12-G12 -> -163341.755 | I12: =IF(G12<0,IF(H12=0,0,IF(OR(G12=0,F12=0),"N.M.",IF(ABS(H12/G12)>=10,"N.M.",H12/(-G12)))),IF(H12=0,0,IF(OR(G12=0,F12=0),"N.M.",IF(ABS(H12/G12)>=10,"N.M.",H12/G12)))) -> -0.02412326929 | K12: 48688886.22 | L12: 44594401.99 | Q12: 20386867.5 | R12: 19036881.52 | V12: 68784180.44 | W12: 63357166.26 | X12: =+V12-W12 -> 5427014.175 | Y12: =IF(W12<0,IF(X12=0,0,IF(OR(W12=0,V12=0),"N.M.",IF(ABS(X12/W12)>=10,"N.M.",X12/(-W12)))),IF(X12=0,0,IF(OR(W12=0,V12=0),"N.M.",IF(ABS(X12/W12)>=10,"N.M.",X12/W12)))) -> 0.08565746379 | AA12: 4043047.51 | AC12: 5953558.54 | AD12: 5143286.96 | AE12: 4912591.67 | AF12: 3963397.48 | AG12: 5584685.82 | AH12: 5084746.72 | AI12: 7181006.35 | AJ12: 6771128.45 | AK12: 4778144.21 | AL12: 4573201.22 | AM12: 4663728.72 | AN12: 6080220.07 | AP12: 7798813.73 | AQ12: 5861368.47 | AR12: 5866308.67 | AS12: 4806574.39 | AT12: 3968953.45 | AU12: 5838656.28 | AV12: 7940424.53 | AW12: 6607786.695 | AX12: -3379204.65 | AY12: 0 | AZ12: 0 | BA12: 0
A13: %,V4400005 | B13: 4400005 | C13: Residential Fuel Rev | F13: 7131606.14 | G13: 6610214.41 | H13: =+F13-G13 -> 521391.73 | I13: =IF(G13<0,IF(H13=0,0,IF(OR(G13=0,F13=0),"N.M.",IF(ABS(H13/G13)>=10,"N.M.",H13/(-G13)))),IF(H13=0,0,IF(OR(G13=0,F13=0),"N.M.",IF(ABS(H13/G13)>=10,"N.M.",H13/G13)))) -> 0.07887667444 | K13: 58329633.57 | L13: 49602016.02 | Q13: 27343128.61 | R13: 16554617.48 | V13: 80282855.11 | W13: 69684971.54 | X13: =+V13-W13 -> 10597883.57 | Y13: =IF(W13<0,IF(X13=0,0,IF(OR(W13=0,V13=0),"N.M.",IF(ABS(X13/W13)>=10,"N.M.",X13/(-W13)))),IF(X13=0,0,IF(OR(W13=0,V13=0),"N.M.",IF(ABS(X13/W13)>=10,"N.M.",X13/W13)))) -> 0.152082771 | AA13: 6848719.21 | AC13: 10126118.47 | AD13: 8152138.81 | AE13: 5903351.82 | AF13: 3913478.47 | AG13: 4952310.97 | AH13: 4053701.51 | AI13: 5890701.56 | AJ13: 6610214.41 | AK13: 4488932.83 | AL13: 4340407.15 | AM13: 5167578.14 | AN13: 7956303.42 | AP13: 11449951.72 | AQ13: 6075362.78 | AR13: 7122520.27 | AS13: 3185157.45 | AT13: 3153512.74 | AU13: 12113659.34 | AV13: 8097863.13 | AW13: 7131606.14 | AX13: -3152362.08 | AY13: 0 | AZ13: 0 | BA13: 0
A14: %,R,FACCOUNT,TGL_FERC_ACCT,XDYYNNY01,N4400 | C14: Residential Sales | F14: 25338763.37 | G14: 25493589.39 | H14: =+F14-G14 -> -154826.021 | I14: =IF(G14<0,IF(H14=0,0,IF(OR(G14=0,F14=0),"N.M.",IF(ABS(H14/G14)>=10,"N.M.",H14/(-G14)))),IF(H14=0,0,IF(OR(G14=0,F14=0),"N.M.",IF(ABS(H14/G14)>=10,"N.M.",H14/G14)))) -> -0.006073135431 | K14: 213746740.2 | L14: 190894584.1 | Q14: 82753322.01 | R14: 70088829.07 | V14: 302850112.9 | W14: 269111334.1 | X14: =+V14-W14 -> 33738778.77 | Y14: =IF(W14<0,IF(X14=0,0,IF(OR(W14=0,V14=0),"N.M.",IF(ABS(X14/W14)>=10,"N.M.",X14/(-W14)))),IF(X14=0,0,IF(OR(W14=0,V14=0),"N.M.",IF(ABS(X14/W14)>=10,"N.M.",X14/W14)))) -> 0.1253710806 | AA14: 21053102.34 | AC14: 31638140.54 | AD14: 27912410.19 | AE14: 22952324.99 | AF14: 16732772.78 | AG14: 21570106.53 | AH14: 18863905.37 | AI14: 25731334.31 | AJ14: 25493589.39 | AK14: 17960151.3 | AL14: 17878768.45 | AM14: 20676759.03 | AN14: 32587693.94 | AP14: 41147887.01 | AQ14: 28621091.99 | AR14: 27984041.18 | AS14: 18386700.45 | AT14: 14853697.53 | AU14: 28471157.26 | AV14: 28943401.38 | AW14: 25338763.37 | AX14: -12394915.3 | AY14: 0 | AZ14: 0 | BA14: 0
A16: %,V4420001 | B16: 4420001 | C16: Commercial Sales | F16: 8200358.925 | G16: 9172600.06 | H16: =+F16-G16 -> -972241.135 | I16: =IF(G16<0,IF(H16=0,0,IF(OR(G16=0,F16=0),"N.M.",IF(ABS(H16/G16)>=10,"N.M.",H16/(-G16)))),IF(H16=0,0,IF(OR(G16=0,F16=0),"N.M.",IF(ABS(H16/G16)>=10,"N.M.",H16/G16)))) -> -0.1059940615 | K16: 66833950.42 | L16: 66592654 | Q16: 25718712.23 | R16: 26359422.87 | V16: 100171794.1 | W16: 93750865.62 | X16: =+V16-W16 -> 6420928.495 | Y16: =IF(W16<0,IF(X16=0,0,IF(OR(W16=0,V16=0),"N.M.",IF(ABS(X16/W16)>=10,"N.M.",X16/(-W16)))),IF(X16=0,0,IF(OR(W16=0,V16=0),"N.M.",IF(ABS(X16/W16)>=10,"N.M.",X16/W16)))) -> 0.06848927157 | AA16: 6338635.57 | AC16: 8345851.1 | AD16: 7445757.95 | AE16: 8128778.73 | AF16: 6662662.03 | AG16: 9650181.32 | AH16: 7980896.62 | AI16: 9205926.19 | AJ16: 9172600.06 | AK16: 7402720.49 | AL16: 7680734.36 | AM16: 8271068.08 | AN16: 9983320.76 | AP16: 9756331.98 | AQ16: 8300398.38 | AR16: 8698149.74 | AS16: 7636183.85 | AT16: 6724174.25 | AU16: 8621358.89 | AV16: 8896994.41 | AW16: 8200358.925 | AX16: -4006688.63 | AY16: 0 | AZ16: 0 | BA16: 0
A17: %,V4420002 | B17: 4420002 | C17: Industrial Sales (Excl Mines) | F17: 5372986.274 | G17: 6382355.83 | H17: -1009369.556 | I17: -0.1581499971 | K17: 46491332.27 | L17: 48144298.63 | Q17: 13880952.05 | R17: 20537403.6 | V17: 72278312.94 | W17: 67548066.94 | X17: 4730246.004 | Y17: 0.07002785155 | AA17: 3979180.9 | AC17: 5743906.22 | AD17: 3684686.29 | AE17: 5718215.42 | AF17: 7313419.86 | AG17: 5146667.24 | AH17: 6615781.63 | AI17: 7539266.14 | AJ17: 6382355.83 | AK17: 6012759.49 | AL17: 6444061.67 | AM17: 6011075.42 | AN17: 7319084.09 | AP17: 5985417.87 | AQ17: 6026809.65 | AR17: 7316102.71 | AS17: 6439848.92 | AT17: 6842201.07 | AU17: 2312197.92 | AV17: 6195767.86 | AW17: 5372986.274 | AX17: -1222930.81 | AY17: 0 | AZ17: 0 | BA17: 0
A18: %,V4420004 | B18: 4420004 | C18: Ind Sales-NonAffil(Incl Mines) | F18: 1160625.513 | G18: 1489306.86 | H18: -328681.347 | I18: -0.2206941738 | K18: 10270398.92 | L18: 12155773.73 | Q18: 3312009.933 | R18: 4422563.12 | V18: 15719279.96 | W18: 17949553.49 | X18: -2230273.527 | Y18: -0.1242523124 | AA18: 1477857.36 | AC18: 1481484.38 | AD18: 1484204.84 | AE18: 1661825.57 | AF18: 1480652.1 | AG18: 1625043.72 | AH18: 1539571.93 | AI18: 1393684.33 | AJ18: 1489306.86 | AK18: 1325048.39 | AL18: 1413776.87 | AM18: 1378309.47 | AN18: 1331746.31 | AP18: 1548190.26 | AQ18: 1401376 | AR18: 1465250.36 | AS18: 1412047.01 | AT18: 1131525.36 | AU18: 1112011.19 | AV18: 1039373.23 | AW18: 1160625.513 | AX18: -363810.73 | AY18: 0 | AZ18: 0 | BA18: 0
A19: %,V4420006 | B19: 4420006 | C19: Sales to Pub Auth - Schools | F19: 1264744.116 | G19: 1379601.12 | H19: -114857.004 | I19: -0.083253777 | K19: 10739817.61 | L19: 10432771.81 | Q19: 3780893.556 | R19: 3693233.36 | V19: 16203941.13 | W19: 15069880.21 | X19: 1134060.916 | Y19: 0.07525347914 | AA19: 1092216.57 | AC19: 1348315.06 | AD19: 1304816.07 | AE19: 1389899.2 | AF19: 1111953.77 | AG19: 1584554.35 | AH19: 1184675.99 | AI19: 1128956.25 | AJ19: 1379601.12 | AK19: 1316027.6 | AL19: 1349260.9 | AM19: 1374729.87 | AN19: 1424105.15 | AP19: 1608928.86 | AQ19: 1407960.65 | AR19: 1507545.47 | AS19: 1297881.81 | AT19: 1136607.26 | AU19: 1463355.15 | AV19: 1052794.29 | AW19: 1264744.116 | AX19: -577721.47 | AY19: 0 | AZ19: 0 | BA19: 0
A20: %,V4420007 | B20: 4420007 | C20: Sales to Pub Auth - Ex Schools | F20: 1545420.074 | G20: 1742768.85 | H20: -197348.776 | I20: -0.1132386409 | K20: 13185730.57 | L20: 13170772.95 | Q20: 5034489.934 | R20: 5145373.33 | V20: 19984434.96 | W20: 18546767.59 | X20: 1437667.374 | Y20: 0.07751579174 | AA20: 1263523.93 | AC20: 1625209.84 | AD20: 1481640.32 | AE20: 1604444.33 | AF20: 1364747.74 | AG20: 1949357.39 | AH20: 1692556.86 | AI20: 1710047.62 | AJ20: 1742768.85 | AK20: 1413494.16 | AL20: 1606073.52 | AM20: 1691468.5 | AN20: 2087668.21 | AP20: 1955065.23 | AQ20: 1547060.4 | AR20: 1738135.35 | AS20: 1578642.63 | AT20: 1332337.03 | AU20: 1945278.57 | AV20: 1543791.29 | AW20: 1545420.074 | AX20: -791793.78 | AY20: 0 | AZ20: 0 | BA20: 0
A21: %,V4420013 | B21: 4420013 | C21: Commercial Fuel Rev | F21: 5382681.54 | G21: 5163497.42 | H21: 219184.12 | I21: 0.04244877109 | K21: 41827475.18 | L21: 36816518.16 | Q21: 20921188.31 | R21: 13139426.51 | V21: 60146987.13 | W21: 53022078.9 | X21: 7124908.23 | Y21: 0.1343762519 | AA21: 3939619.44 | AC21: 5358153.15 | AD21: 5017069.05 | AE21: 4533391.09 | AF21: 3734674.99 | AG21: 5033803.37 | AH21: 3804664.63 | AI21: 4171264.46 | AJ21: 5163497.42 | AK21: 4358019.2 | AL21: 4666589.91 | AM21: 4740589.8 | AN21: 4554313.04 | AP21: 5862942.98 | AQ21: 3298032.85 | AR21: 4842141.86 | AS21: 3232459.78 | AT21: 3670709.4 | AU21: 9559013.53 | AV21: 5979493.24 | AW21: 5382681.54 | AX21: -2037603.95 | AY21: 0 | AZ21: 0 | BA21: 0
A22: %,V4420016 | B22: 4420016 | C22: Industrial Fuel Rev | F22: 6975137.68 | G22: 6822963.93 | H22: 152173.75 | I22: 0.02230317375 | K22: 55709803.59 | L22: 50499195.14 | Q22: 26203252.42 | R22: 18058008.6 | V22: 81319261.38 | W22: 73984567.13 | X22: 7334694.25 | Y22: 0.09913816536 | AA22: 5647944.87 | AC22: 6390830.93 | AD22: 6078361.79 | AE22: 7046107.06 | AF22: 6443923.27 | AG22: 6481963.49 | AH22: 6040359.61 | AI22: 5194685.06 | AJ22: 6822963.93 | AK22: 6292137.08 | AL22: 6596663.46 | AM22: 6564621.03 | AN22: 6156036.22 | AP22: 6561407.22 | AQ22: 5302396.38 | AR22: 5793588.24 | AS22: 5314347.11 | AT22: 6534812.22 | AU22: 12406794.84 | AV22: 6821319.9 | AW22: 6975137.68 | AX22: -905730.97 | AY22: 0 | AZ22: 0 | BA22: 0
A23: %,R,FACCOUNT,TGL_FERC_ACCT,XDYYNNY01,N4420 | C23: Commercial Sales | F23: 29901954.12 | G23: 32153094.07 | H23: -2251139.948 | I23: -0.0700131671 | K23: 245058508.6 | L23: 237811984.4 | Q23: 98851498.43 | R23: 91355431.39 | V23: 365824011.6 | W23: 339871779.9 | X23: 25952231.74 | Y23: 0.07635888967 | AA23: 23738978.64 | AC23: 30293750.68 | AD23: 26496536.31 | AE23: 30082661.4 | AF23: 28112033.76 | AG23: 31471570.88 | AH23: 28858507.27 | AI23: 30343830.05 | AJ23: 32153094.07 | AK23: 28120206.41 | AL23: 29757160.69 | AM23: 30031862.17 | AN23: 32856273.78 | AP23: 33278284.4 | AQ23: 27284034.31 | AR23: 31360913.73 | AS23: 26911411.11 | AT23: 27372366.59 | AU23: 37420010.09 | AV23: 31529534.22 | AW23: 29901954.12 | AX23: -9906280.34 | AY23: 0 | AZ23: 0 | BA23: 0
A25: %,V4440000 | B25: 4440000 | C25: Public Street/Highway Lighting | F25: 151856.169 | G25: 150985.3 | H25: =+F25-G25 -> 870.869 | I25: =IF(G25<0,IF(H25=0,0,IF(OR(G25=0,F25=0),"N.M.",IF(ABS(H25/G25)>=10,"N.M.",H25/(-G25)))),IF(H25=0,0,IF(OR(G25=0,F25=0),"N.M.",IF(ABS(H25/G25)>=10,"N.M.",H25/G25)))) -> 0.005767905882 | K25: 1226008.999 | L25: 1197371.42 | Q25: 447156.959 | R25: 451278.86 | V25: 1829400.659 | W25: 1738092.43 | X25: =+V25-W25 -> 91308.229 | Y25: =IF(W25<0,IF(X25=0,0,IF(OR(W25=0,V25=0),"N.M.",IF(ABS(X25/W25)>=10,"N.M.",X25/(-W25)))),IF(X25=0,0,IF(OR(W25=0,V25=0),"N.M.",IF(ABS(X25/W25)>=10,"N.M.",X25/W25)))) -> 0.05253358649 | AA25: 133483.41 | AC25: 149348.45 | AD25: 143095.86 | AE25: 150018.58 | AF25: 146901.73 | AG25: 156727.94 | AH25: 151699.3 | AI25: 148594.26 | AJ25: 150985.3 | AK25: 146263.2 | AL25: 149276.38 | AM25: 154347.63 | AN25: 153504.45 | AP25: 158477.95 | AQ25: 161221.96 | AR25: 151538.38 | AS25: 156242.37 | AT25: 151371.38 | AU25: 144242.97 | AV25: 151057.82 | AW25: 151856.169 | AX25: -9591.15 | AY25: 0 | AZ25: 0 | BA25: 0
A26: %,V4440002 | B26: 4440002 | C26: Public St & Hwy Light Fuel Rev | F26: 28446.05 | G26: 25369.7 | H26: =+F26-G26 -> 3076.35 | I26: =IF(G26<0,IF(H26=0,0,IF(OR(G26=0,F26=0),"N.M.",IF(ABS(H26/G26)>=10,"N.M.",H26/(-G26)))),IF(H26=0,0,IF(OR(G26=0,F26=0),"N.M.",IF(ABS(H26/G26)>=10,"N.M.",H26/G26)))) -> 0.1212607954 | K26: 225114.68 | L26: 211378.78 | Q26: 95399.5 | R26: 60869.97 | V26: 353786.4 | W26: 333958.86 | X26: =+V26-W26 -> 19827.54 | Y26: =IF(W26<0,IF(X26=0,0,IF(OR(W26=0,V26=0),"N.M.",IF(ABS(X26/W26)>=10,"N.M.",X26/(-W26)))),IF(X26=0,0,IF(OR(W26=0,V26=0),"N.M.",IF(ABS(X26/W26)>=10,"N.M.",X26/W26)))) -> 0.05937120518 | AA26: 33330.37 | AC26: 35272.55 | AD26: 35259.92 | AE26: 32659.83 | AF26: 22829.01 | AG26: 24487.5 | AH26: 18668.99 | AI26: 16831.28 | AJ26: 25369.7 | AK26: 28272.89 | AL26: 30719.47 | AM26: 35187.55 | AN26: 34491.81 | AP26: 36592.55 | AQ26: 21359.11 | AR26: 31209.55 | AS26: 17960.67 | AT26: 22593.3 | AU26: 43292.14 | AV26: 23661.31 | AW26: 28446.05 | AX26: -1457.5 | AY26: 0 | AZ26: 0 | BA26: 0
A27: %,R,FACCOUNT,TGL_FERC_ACCT,XDYYNNY01,N4440,N4450,N4460,N4480 | C27: Public Streets and Highway Lighting | F27: 180302.219 | G27: 176355 | H27: =+F27-G27 -> 3947.219 | I27: =IF(G27<0,IF(H27=0,0,IF(OR(G27=0,F27=0),"N.M.",IF(ABS(H27/G27)>=10,"N.M.",H27/(-G27)))),IF(H27=0,0,IF(OR(G27=0,F27=0),"N.M.",IF(ABS(H27/G27)>=10,"N.M.",H27/G27)))) -> 0.0223822347 | K27: 1451123.679 | L27: 1408750.2 | Q27: 542556.459 | R27: 512148.83 | V27: 2183187.059 | W27: 2072051.29 | X27: =+V27-W27 -> 111135.769 | Y27: =IF(W27<0,IF(X27=0,0,IF(OR(W27=0,V27=0),"N.M.",IF(ABS(X27/W27)>=10,"N.M.",X27/(-W27)))),IF(X27=0,0,IF(OR(W27=0,V27=0),"N.M.",IF(ABS(X27/W27)>=10,"N.M.",X27/W27)))) -> 0.05363562646 | AA27: 166813.78 | AC27: 184621 | AD27: 178355.78 | AE27: 182678.41 | AF27: 169730.74 | AG27: 181215.44 | AH27: 170368.29 | AI27: 165425.54 | AJ27: 176355 | AK27: 174536.09 | AL27: 179995.85 | AM27: 189535.18 | AN27: 187996.26 | AP27: 195070.5 | AQ27: 182581.07 | AR27: 182747.93 | AS27: 174203.04 | AT27: 173964.68 | AU27: 187535.11 | AV27: 174719.13 | AW27: 180302.219 | AX27: -11048.65 | AY27: 0 | AZ27: 0 | BA27: 0
A29: %,V4470010 | B29: 4470010 | C29: Sales for Resale-Bookout Purch | F29: 0 | G29: 0 | H29: =+F29-G29 -> 0 | I29: =IF(G29<0,IF(H29=0,0,IF(OR(G29=0,F29=0),"N.M.",IF(ABS(H29/G29)>=10,"N.M.",H29/(-G29)))),IF(H29=0,0,IF(OR(G29=0,F29=0),"N.M.",IF(ABS(H29/G29)>=10,"N.M.",H29/G29)))) -> 0 | K29: 0 | L29: -18.93 | Q29: 0 | R29: 0 | V29: 0 | W29: -311.05 | X29: =+V29-W29 -> 311.05 | Y29: =IF(W29<0,IF(X29=0,0,IF(OR(W29=0,V29=0),"N.M.",IF(ABS(X29/W29)>=10,"N.M.",X29/(-W29)))),IF(X29=0,0,IF(OR(W29=0,V29=0),"N.M.",IF(ABS(X29/W29)>=10,"N.M.",X29/W29)))) -> N.M. | AA29: -313.5 | AC29: 0 | AD29: 2.11 | AE29: -28.4 | AF29: 0.52 | AG29: 6.84 | AH29: 0 | AI29: 0 | AJ29: 0 | AK29: 0 | AL29: 0 | AM29: 0 | AN29: 0 | AP29: 0 | AQ29: 0 | AR29: 0 | AS29: 0 | AT29: 0 | AU29: 0 | AV29: 0 | AW29: 0 | AX29: 0 | AY29: 0 | AZ29: 0 | BA29: 0
A30: %,V4470027 | B30: 4470027 | C30: Whsal/Muni/Pb Ath Fuel Rev | F30: 0 | G30: 200685.45 | H30: -200685.45 | I30: N.M. | K30: 1561568.66 | L30: 1708664.27 | Q30: 46457.23 | R30: 554538.19 | V30: 2448115.4 | W30: 2526280.53 | X30: -78165.13 | Y30: -0.0309407958 | AA30: 284739.77 | AC30: 325320.14 | AD30: 178237.76 | AE30: 214530.6 | AF30: 258699.92 | AG30: 177337.66 | AH30: 149156.43 | AI30: 204696.31 | AJ30: 200685.45 | AK30: 153711.57 | AL30: 205487.08 | AM30: 224672.77 | AN30: 302675.32 | AP30: 377771.11 | AQ30: 262886.07 | AR30: 281774.76 | AS30: 301957.53 | AT30: 290721.96 | AU30: 3490.5 | AV30: 42966.73 | AW30: 0 | AX30: 0 | AY30: 0 | AZ30: 0 | BA30: 0
A31: %,V4470033 | B31: 4470033 | C31: Whsal/Muni/Pub Auth Base Rev | F31: 0 | G31: 196902.49 | H31: -196902.49 | I31: N.M. | K31: 1325054.69 | L31: 1170078.26 | Q31: 132.43 | R31: 586585.42 | V31: 1983405.9 | W31: 1968121.67 | X31: 15284.23 | Y31: 0.007765896912 | AA31: -238971.46 | AC31: 267406.81 | AD31: 204126.43 | AE31: 191179.59 | AF31: 165612.21 | AG31: -244832.2 | AH31: 191012.26 | AI31: 198670.67 | AJ31: 196902.49 | AK31: 159775.08 | AL31: 137342.52 | AM31: 152721.97 | AN31: 208511.64 | AP31: 270507.72 | AQ31: 208315.58 | AR31: 176363.15 | AS31: 153614.26 | AT31: 516121.55 | AU31: 132.43 | AV31: 0 | AW31: 0 | AX31: 0 | AY31: 0 | AZ31: 0 | BA31: 0
A32: %,V4470074 | B32: 4470074 | C32: Sale for Resale-Aff-Trnf Price | F32: 0 | G32: 0 | H32: 0 | I32: 0 | K32: 0 | L32: 0 | Q32: 0 | R32: 0 | V32: 0 | W32: 0 | X32: 0 | Y32: 0 | AA32: 0 | AC32: 0 | AD32: 0 | AE32: 0 | AF32: 0 | AG32: 0 | AH32: 0 | AI32: 0 | AJ32: 0 | AK32: 0 | AL32: 0 | AM32: 0 | AN32: 0 | AP32: 0 | AQ32: 0 | AR32: 0 | AS32: 0 | AT32: 0 | AU32: 0 | AV32: 0 | AW32: 0 | AX32: 296413826.2 | AY32: 0 | AZ32: 0 | BA32: 0
A33: %,V4470082 | B33: 4470082 | C33: Financial Electric Realized | F33: -207.38 | G33: -323.53 | H33: 116.15 | I33: 0.3590084382 | K33: -2751.52 | L33: -3621.6 | Q33: -725.12 | R33: -821.17 | V33: -6001.56 | W33: -5502.63 | X33: -498.93 | Y33: -0.09067118814 | AA33: -465.8 | AC33: -179.98 | AD33: -153.66 | AE33: -453.16 | AF33: -840.05 | AG33: -1173.58 | AH33: -301.65 | AI33: -195.99 | AJ33: -323.53 | AK33: -1106.97 | AL33: -1020.55 | AM33: -783.53 | AN33: -338.99 | AP33: -200.53 | AQ33: -956.48 | AR33: -211.94 | AS33: -498.85 | AT33: -158.6 | AU33: -220.65 | AV33: -297.09 | AW33: -207.38 | AX33: 0 | AY33: 0 | AZ33: 0 | BA33: 0
A34: %,V4470089 | B34: 4470089 | C34: PJM Energy Sales Margin | F34: 260906.18 | G34: -278872.66 | H34: 539778.84 | I34: 1.93557461 | K34: 1152371.85 | L34: 455594.01 | Q34: 808537.48 | R34: 325781.33 | V34: 739715.8 | W34: 195371.21 | X34: 544344.59 | Y34: 2.78620678 | AA34: -321028.62 | AC34: 261613.8 | AD34: -31703.41 | AE34: -173736.1 | AF34: -28576.02 | AG34: 102214.41 | AH34: 689542.48 | AI34: -84888.49 | AJ34: -278872.66 | AK34: -87254.51 | AL34: -125157.4 | AM34: -36291.76 | AN34: -163952.38 | AP34: 215057.19 | AQ34: 177310.55 | AR34: -104566.51 | AS34: -25948.59 | AT34: 81981.73 | AU34: 1140661.57 | AV34: -593030.27 | AW34: 260906.18 | AX34: -306364.94 | AY34: 0 | AZ34: 0 | BA34: 0
A35: %,V4470098 | B35: 4470098 | C35: PJM Oper.Reserve Rev-OSS | F35: -14683.02 | G35: -4116.63 | H35: -10566.39 | I35: -2.566757275 | K35: -61912.62 | L35: -31184.78 | Q35: -27334.6 | R35: -30658.84 | V35: -75805.8 | W35: -43769.25 | X35: -32036.55 | Y35: -0.7319419455 | AA35: -1107.42 | AC35: -1195.89 | AD35: 1848.2 | AE35: -18.38 | AF35: -1215.64 | AG35: 55.77 | AH35: -13580.61 | AI35: -12961.6 | AJ35: -4116.63 | AK35: -4991.76 | AL35: -1774.44 | AM35: -1998.79 | AN35: -5128.19 | AP35: -6943.64 | AQ35: -8921.61 | AR35: -3947.07 | AS35: -6103.18 | AT35: -8662.52 | AU35: 1589.11 | AV35: -14240.69 | AW35: -14683.02 | AX35: -239.01 | AY35: 0 | AZ35: 0 | BA35: 0
A36: %,V4470099 | B36: 4470099 | C36: Capacity Cr. Net Sales | F36: 0 | G36: -10428.4 | H36: 10428.4 | I36: N.M. | K36: -50880.99 | L36: -30948.8 | Q36: 0 | R36: -30948.8 | V36: -91973.31 | W36: -30948.8 | X36: -61024.51 | Y36: -1.971789213 | AA36: 0 | AC36: 0 | AD36: 0 | AE36: 0 | AF36: 0 | AG36: 0 | AH36: 0 | AI36: -20520.4 | AJ36: -10428.4 | AK36: -10092 | AL36: -10092 | AM36: -10125.6 | AN36: -10782.72 | AP36: -10445.79 | AQ36: -9434.88 | AR36: -10445.76 | AS36: -10108.8 | AT36: -10445.76 | AU36: 0 | AV36: 0 | AW36: 0 | AX36: 0 | AY36: 0 | AZ36: 0 | BA36: 0
A37: %,V4470100 | B37: 4470100 | C37: PJM FTR Revenue-OSS | F37: -18991.87 | G37: 11874.73 | H37: -30866.6 | I37: -2.599351733 | K37: 36919.87 | L37: 151641.06 | Q37: -40806.15 | R37: 93427.13 | V37: 130852.8 | W37: 153407.83 | X37: -22555.03 | Y37: -0.1470265892 | AA37: 1473.86 | AC37: 9568.4 | AD37: 5843.46 | AE37: 10205.81 | AF37: 25297.65 | AG37: 7298.61 | AH37: 13245.3 | AI37: 68307.1 | AJ37: 11874.73 | AK37: 3877 | AL37: 40996.85 | AM37: 14337.35 | AN37: 34721.73 | AP37: 24879.79 | AQ37: 11932.16 | AR37: 202.03 | AS37: 10033.5 | AT37: 30678.54 | AU37: -26837.99 | AV37: 5023.71 | AW37: -18991.87 | AX37: 16632.78 | AY37: 0 | AZ37: 0 | BA37: 0
A38: %,V4470103 | B38: 4470103 | C38: PJM Energy Sales Cost | F38: 2304763.97 | G38: 1874172.77 | H38: 430591.2 | I38: 0.2297500033 | K38: 14866249.02 | L38: 9911467.45 | Q38: 9923510.38 | R38: 7630948.48 | V38: 19103972.93 | W38: 12889193.07 | X38: 6214779.86 | Y38: 0.4821698167 | AA38: 1199569.48 | AC38: -483429.14 | AD38: 887839.16 | AE38: 982515.39 | AF38: 114453.19 | AG38: 779140.37 | AH38: 2934629.29 | AI38: 2822146.42 | AJ38: 1874172.77 | AK38: 376802.18 | AL38: 1063464.61 | AM38: 1446841.16 | AN38: 1350615.96 | AP38: 1294412.92 | AQ38: 757948 | AR38: 928576.47 | AS38: 1081945.58 | AT38: 879855.67 | AU38: 4740913.12 | AV38: 2877833.29 | AW38: 2304763.97 | AX38: -2198451.22 | AY38: 0 | AZ38: 0 | BA38: 0
A39: %,V4470110 | B39: 4470110 | C39: PJM TO Admin. Exp.-NonAff. | F39: 0 | G39: 0 | H39: 0 | I39: 0 | K39: 0 | L39: 3.52 | Q39: 0 | R39: 0 | V39: 0 | W39: 3.52 | X39: -3.52 | Y39: N.M. | AA39: 0 | AC39: 0 | AD39: 3.52 | AE39: 0 | AF39: 0 | AG39: 0 | AH39: 0 | AI39: 0 | AJ39: 0 | AK39: 0 | AL39: 0 | AM39: 0 | AN39: 0 | AP39: 0 | AQ39: 0 | AR39: 0 | AS39: 0 | AT39: 0 | AU39: 0 | AV39: 0 | AW39: 0 | AX39: 0 | AY39: 0 | AZ39: 0 | BA39: 0
A40: %,V4470115 | B40: 4470115 | C40: PJM Meter Corrections-OSS | F40: 3102.43 | G40: 43986.91 | H40: -40884.48 | I40: -0.9294692444 | K40: -248704.57 | L40: 35198.13 | Q40: -238747.64 | R40: 42387.32 | V40: -243309.67 | W40: 31990.26 | X40: -275299.93 | Y40: -8.605742185 | AA40: -617.57 | AC40: 194.38 | AD40: -1804.36 | AE40: -1565.45 | AF40: -852.72 | AG40: -3161.04 | AH40: -1507.9 | AI40: -91.69 | AJ40: 43986.91 | AK40: 7010.38 | AL40: -356.2 | AM40: -725.32 | AN40: -533.96 | AP40: -925.65 | AQ40: 356.22 | AR40: -9292.75 | AS40: -107.51 | AT40: 12.76 | AU40: 6201.32 | AV40: -248051.39 | AW40: 3102.43 | AX40: -0.68 | AY40: 0 | AZ40: 0 | BA40: 0
A41: %,V4470116 | B41: 4470116 | C41: PJM Meter Corrections-LSE | F41: 834884.08 | G41: 399310.91 | H41: 435573.17 | I41: 1.090812094 | K41: -1343551.92 | L41: 202760.29 | Q41: -1177487.92 | R41: 387050.99 | V41: -1300005.04 | W41: -226614.45 | X41: -1073390.59 | Y41: -4.736637889 | AA41: -31033.97 | AC41: -34385.55 | AD41: -67395.81 | AE41: 1521.9 | AF41: -19674.54 | AG41: -64356.7 | AH41: -11537.66 | AI41: -722.26 | AJ41: 399310.91 | AK41: 81898.07 | AL41: -21483.88 | AM41: -4229.12 | AN41: -12638.19 | AP41: -17119.72 | AQ41: 21912.53 | AR41: -153176 | AS41: -17930.13 | AT41: 249.32 | AU41: -672953.05 | AV41: -1339418.95 | AW41: 834884.08 | AX41: -5.35 | AY41: 0 | AZ41: 0 | BA41: 0
A42: %,V4470126 | B42: 4470126 | C42: PJM Incremental Imp Cong-OSS | F42: -18041.02 | G42: -6600.35 | H42: -11440.67 | I42: -1.733342929 | K42: -389405.51 | L42: -296277.35 | Q42: -343089.7 | R42: -276564.64 | V42: -409314.36 | W42: -336062.13 | X42: -73252.23 | Y42: -0.2179722839 | AA42: -4286.13 | AC42: 1744.12 | AD42: -4755.18 | AE42: 2797.4 | AF42: -13394.92 | AG42: -6104.13 | AH42: -59111.36 | AI42: -210852.93 | AJ42: -6600.35 | AK42: -2555.51 | AL42: -63.63 | AM42: -1484.64 | AN42: -15805.07 | AP42: -13135.32 | AQ42: -22116.36 | AR42: -7024.68 | AS42: -228.34 | AT42: -3811.11 | AU42: -272561.5 | AV42: -52487.18 | AW42: -18041.02 | AX42: 16709.78 | AY42: 0 | AZ42: 0 | BA42: 0
A43: %,V4470131 | B43: 4470131 | C43: Non-Trading Bookout Purch-OSS | F43: 0 | G43: 0 | H43: 0 | I43: 0 | K43: 0 | L43: 0 | Q43: 0 | R43: 0 | V43: 0 | W43: 14.76 | X43: -14.76 | Y43: N.M. | AA43: 0 | AC43: 0 | AD43: 0 | AE43: 0 | AF43: 0 | AG43: 0 | AH43: 0 | AI43: 0 | AJ43: 0 | AK43: 0 | AL43: 0 | AM43: 0 | AN43: 0 | AP43: 0 | AQ43: 0 | AR43: 0 | AS43: 0 | AT43: 0 | AU43: 0 | AV43: 0 | AW43: 0 | AX43: 0 | AY43: 0 | AZ43: 0 | BA43: 0
A44: %,V4470150 | B44: 4470150 | C44: Transm. Rev.-Dedic. Whlsl/Muni | F44: -5429.75 | G44: 9496.05 | H44: -14925.8 | I44: -1.571790376 | K44: -23508.89 | L44: 116948.01 | Q44: -13368.61 | R44: 68666.94 | V44: 56784.74 | W44: 205094.11 | X44: -148309.37 | Y44: -0.7231283726 | AA44: 66081.01 | AC44: 3905.78 | AD44: 12733.6 | AE44: 12277.29 | AF44: 9479.62 | AG44: 9884.78 | AH44: 50357.68 | AI44: 8813.21 | AJ44: 9496.05 | AK44: 9796.08 | AL44: 10381.51 | AM44: 9594.71 | AN44: 50521.33 | AP44: -2477.4 | AQ44: -3440.73 | AR44: 110.89 | AS44: -1157.1 | AT44: -3175.94 | AU44: 390.14 | AV44: -8329 | AW44: -5429.75 | AX44: -2839 | AY44: 0 | AZ44: 0 | BA44: 0
A45: %,V4470151 | B45: 4470151 | C45: Trading Auction Sales Affil | F45: 0 | G45: 0 | H45: 0 | I45: 0 | K45: 0 | L45: 0 | Q45: 0 | R45: 0 | V45: 0 | W45: 0 | X45: 0 | Y45: 0 | AA45: 0 | AC45: 0 | AD45: 0 | AE45: 0 | AF45: 0 | AG45: 0 | AH45: 114212.59 | AI45: -114212.59 | AJ45: 0 | AK45: 0 | AL45: 0 | AM45: 0 | AN45: 0 | AP45: 0 | AQ45: 0 | AR45: 0 | AS45: 0 | AT45: 0 | AU45: 0 | AV45: 0 | AW45: 0 | AX45: 0 | AY45: 0 | AZ45: 0 | BA45: 0
A46: %,V4470175 | B46: 4470175 | C46: OSS Sharing Reclass - Retail | F46: 485975.18 | G46: 372252.49 | H46: 113722.69 | I46: 0.3054988027 | K46: 3583399.45 | L46: 3674463.75 | Q46: 910595.8 | R46: 1678562.99 | V46: 4700061.69 | W46: 3970514.04 | X46: 729547.65 | Y46: 0.1837413601 | AA46: -65555.47 | AC46: 598138.27 | AD46: 275014.33 | AE46: 387592.33 | AF46: 417611.14 | AG46: 317544.69 | AH46: 1148271.34 | AI46: 158039.16 | AJ46: 372252.49 | AK46: 81714.5 | AL46: 191423.2 | AM46: 638016.43 | AN46: 205508.11 | AP46: -599338.58 | AQ46: 1815828.59 | AR46: 395082.68 | AS46: 559141.1 | AT46: 502089.86 | AU46: 928453.77 | AV46: -503833.15 | AW46: 485975.18 | AX46: 0 | AY46: 0 | AZ46: 0 | BA46: 0
A47: %,V4470176 | B47: 4470176 | C47: OSS Sharing Reclass-Reduction | F47: -485975.18 | G47: -372252.49 | H47: -113722.69 | I47: -0.3054988027 | K47: -3583399.45 | L47: -3674463.75 | Q47: -910595.8 | R47: -1678562.99 | V47: -4700061.69 | W47: -3970514.04 | X47: -729547.65 | Y47: -0.1837413601 | AA47: 65555.47 | AC47: -598138.27 | AD47: -275014.33 | AE47: -387592.33 | AF47: -417611.14 | AG47: -317544.69 | AH47: -1148271.34 | AI47: -158039.16 | AJ47: -372252.49 | AK47: -81714.5 | AL47: -191423.2 | AM47: -638016.43 | AN47: -205508.11 | AP47: 599338.58 | AQ47: -1815828.59 | AR47: -395082.68 | AS47: -559141.1 | AT47: -502089.86 | AU47: -928453.77 | AV47: 503833.15 | AW47: -485975.18 | AX47: 0 | AY47: 0 | AZ47: 0 | BA47: 0
A48: %,V4470206 | B48: 4470206 | C48: PJM Trans loss credits-OSS | F48: 1483.34 | G48: 4848.83 | H48: -3365.49 | I48: -0.6940829025 | K48: 105992.63 | L48: 63975.13 | Q48: 57693.8 | R48: 47556.86 | V48: 127832.94 | W48: 66308.26 | X48: 61524.68 | Y48: 0.9278584599 | AA48: 456.34 | AC48: 2683.59 | AD48: 2224.94 | AE48: 5199.69 | AF48: 5402.58 | AG48: 907.47 | AH48: 10272.65 | AI48: 32435.38 | AJ48: 4848.83 | AK48: 3503.77 | AL48: 459.29 | AM48: 1422.84 | AN48: 16454.41 | AP48: 10543.07 | AQ48: 21824.75 | AR48: 10767.14 | AS48: 3139.08 | AT48: 2024.79 | AU48: 39713.92 | AV48: 16496.54 | AW48: 1483.34 | AX48: 0 | AY48: 0 | AZ48: 0 | BA48: 0
A49: %,V4470209 | B49: 4470209 | C49: PJM transm loss charges-OSS | F49: -3677.22 | G49: -20367.52 | H49: 16690.3 | I49: 0.8194566643 | K49: -226393.07 | L49: -164881.41 | Q49: -151460.4 | R49: -124030.57 | V49: -269881.75 | W49: -174621.44 | X49: -95260.31 | Y49: -0.5455247076 | AA49: -1720.43 | AC49: -6642.43 | AD49: -6516.43 | AE49: -13665.09 | AF49: -8388.59 | AG49: -5638.3 | AH49: -36227.81 | AI49: -67435.24 | AJ49: -20367.52 | AK49: -7653.67 | AL49: -1312.68 | AM49: -4869.69 | AN49: -29652.64 | AP49: -18613.39 | AQ49: -31490.14 | AR49: -16648.45 | AS49: -5500.54 | AT49: -2680.15 | AU49: -88606.82 | AV49: -59176.36 | AW49: -3677.22 | AX49: 0 | AY49: 0 | AZ49: 0 | BA49: 0
A50: %,V4470215 | B50: 4470215 | C50: PJM 30m Suppl Reserve CH OSS | F50: 0 | G50: 0 | H50: 0 | I50: 0 | K50: 0 | L50: 2730.93 | Q50: 0 | R50: 0 | V50: 0 | W50: 2730.93 | X50: -2730.93 | Y50: N.M. | AA50: 0 | AC50: 0 | AD50: 2550.43 | AE50: 180.5 | AF50: 0 | AG50: 0 | AH50: 0 | AI50: 0 | AJ50: 0 | AK50: 0 | AL50: 0 | AM50: 0 | AN50: 0 | AP50: 0 | AQ50: 0 | AR50: 0 | AS50: 0 | AT50: 0 | AU50: 0 | AV50: 0 | AW50: 0 | AX50: 0 | AY50: 0 | AZ50: 0 | BA50: 0
A51: %,V4470220 | B51: 4470220 | C51: PJM Regulation - OSS | F51: 273252.59 | G51: 623841.85 | H51: -350589.26 | I51: -0.5619841952 | K51: 3175092.89 | L51: 3489641.09 | Q51: 777401.66 | R51: 1631637.2 | V51: 4694134.47 | W51: 4104104.19 | X51: 590030.28 | Y51: 0.1437659116 | AA51: 254131.51 | AC51: 342235.67 | AD51: 306341.21 | AE51: 557469.28 | AF51: 442549.06 | AG51: 209408.67 | AH51: 444043.5 | AI51: 563751.85 | AJ51: 623841.85 | AK51: 183073.24 | AL51: 285996.47 | AM51: 677522.23 | AN51: 372449.64 | AP51: 627126.58 | AQ51: 232646.66 | AR51: 541674.88 | AS51: 586031.62 | AT51: 410211.49 | AU51: 114346.43 | AV51: 389802.64 | AW51: 273252.59 | AX51: -266135.04 | AY51: 0 | AZ51: 0 | BA51: 0
A52: %,V4470221 | B52: 4470221 | C52: PJM Spinning Reserve - OSS | F52: 3497.27 | G52: 13358.47 | H52: -9861.2 | I52: -0.7381983116 | K52: 119956.77 | L52: 46299.44 | Q52: 70608.62 | R52: 23803.87 | V52: 141836.2 | W52: 54065.68 | X52: 87770.52 | Y52: 1.623405458 | AA52: 7173.88 | AC52: -5814.89 | AD52: 4026.86 | AE52: 5223.67 | AF52: 1695.57 | AG52: 17364.36 | AH52: 1156.82 | AI52: 9288.58 | AJ52: 13358.47 | AK52: -1058.94 | AL52: 5831.73 | AM52: 7426.73 | AN52: 9679.91 | AP52: 8819.03 | AQ52: 21730.89 | AR52: -1858.28 | AS52: 13366.32 | AT52: 7290.19 | AU52: 15059.88 | AV52: 52051.47 | AW52: 3497.27 | AX52: -3808.15 | AY52: 0 | AZ52: 0 | BA52: 0
A53: %,R,FACCOUNT,TGL_FERC_ACCT,XDYYNNY01,N4470 | C53: Sales for Resale | F53: 3620859.6 | G53: 3057769.37 | H53: 563090.23 | I53: 0.1841506542 | K53: 19996097.29 | L53: 16828068.72 | Q53: 9691321.46 | R53: 10929359.71 | V53: 27030359.69 | W53: 21378856.27 | X53: 5651503.42 | Y53: 0.2643501293 | AA53: 1214080.95 | AC53: 683024.81 | AD53: 1493448.83 | AE53: 1793634.54 | AF53: 950247.84 | AG53: 978352.99 | AH53: 4475362.01 | AI53: 3396228.33 | AJ53: 3057769.37 | AK53: 864734.01 | AL53: 1588699.28 | AM53: 2474031.31 | AN53: 2106797.8 | AP53: 2759255.97 | AQ53: 1640503.21 | AR53: 1632297.88 | AS53: 2082504.85 | AT53: 2190213.92 | AU53: 5001318.41 | AV53: 1069143.45 | AW53: 3620859.6 | AX53: 293669325.3 | AY53: 0 | AZ53: 0 | BA53: 0
C54: Sales of Electricity | F54: =+F53+F27+#REF!+F23 ->  | G54: =+G53+G27+#REF!+G23 ->  | K54: =+K53+K27+#REF!+K23 ->  | L54: =+L53+L27+#REF!+L23 ->  | M54: =+K54-L54 ->  | N54: =IF(L54<0,IF(M54=0,0,IF(OR(L54=0,K54=0),"N.M.",IF(ABS(M54/L54)>=10,"N.M.",M54/(-L54)))),IF(M54=0,0,IF(OR(L54=0,K54=0),"N.M.",IF(ABS(M54/L54)>=10,"N.M.",M54/L54)))) ->  | Q54: =+Q53+Q27+#REF!+Q23 ->  | R54: =+R53+R27+#REF!+R23 ->  | S54: =+Q54-R54 ->  | T54: =IF(R54<0,IF(S54=0,0,IF(OR(R54=0,Q54=0),"N.M.",IF(ABS(S54/R54)>=10,"N.M.",S54/(-R54)))),IF(S54=0,0,IF(OR(R54=0,Q54=0),"N.M.",IF(ABS(S54/R54)>=10,"N.M.",S54/R54)))) ->  | V54: =+V53+V27+#REF!+V23 ->  | W54: =+W53+W27+#REF!+W23 ->  | AA54: =+AA53+AA27+#REF!+AA23 ->  | AC54: =+AC53+AC27+#REF!+AC23 ->  | AD54: =+AD53+AD27+#REF!+AD23 ->  | AE54: =+AE53+AE27+#REF!+AE23 ->  | AF54: =+AF53+AF27+#REF!+AF23 ->  | AG54: =+AG53+AG27+#REF!+AG23 ->  | AH54: =+AH53+AH27+#REF!+AH23 ->  | AI54: =+AI53+AI27+#REF!+AI23 ->  | AJ54: =+AJ53+AJ27+#REF!+AJ23 ->  | AK54: =+AK53+AK27+#REF!+AK23 ->  | AL54: =+AL53+AL27+#REF!+AL23 ->  | AM54: =+AM53+AM27+#REF!+AM23 ->  | AN54: =+AN53+AN27+#REF!+AN23 ->  | AP54: =+AP53+AP27+#REF!+AP23 ->  | AQ54: =+AQ53+AQ27+#REF!+AQ23 ->  | AR54: =+AR53+AR27+#REF!+AR23 ->  | AS54: =+AS53+AS27+#REF!+AS23 ->  | AT54: =+AT53+AT27+#REF!+AT23 ->  | AU54: =+AU53+AU27+#REF!+AU23 ->  | AV54: =+AV53+AV27+#REF!+AV23 ->  | AW54: =+AW53+AW27+#REF!+AW23 ->  | AX54: =+AX53+AX27+#REF!+AX23 ->  | AY54: =+AY53+AY27+#REF!+AY23 ->  | AZ54: =+AZ53+AZ27+#REF!+AZ23 ->  | BA54: =+BA53+BA27+#REF!+BA23 -> 
A55: %,V4491002 | B55: 4491002 | C55: Non-Tran Prov Rate Ref Whlsale | F55: 0 | G55: -16937 | H55: 16937 | I55: N.M. | K55: 0 | L55: -69020 | M55: 69020 | N55: N.M. | Q55: 0 | R55: 15271 | S55: -15271 | T55: N.M. | V55: -752038 | W55: 538610 | X55: -1290648 | Y55: -2.396257032 | AA55: 903607 | AC55: -66039 | AD55: -66039 | AE55: 94487 | AF55: -12703 | AG55: -33997 | AH55: -17060 | AI55: 49268 | AJ55: -16937 | AK55: -16879 | AL55: -17115 | AM55: -17050 | AN55: -700994 | AP55: -15607 | AQ55: -24369 | AR55: 39976 | AS55: 0 | AT55: 0 | AU55: 0 | AV55: 0 | AW55: 0 | AX55: 0 | AY55: 0 | AZ55: 0 | BA55: 0
A56: %,V4491003 | B56: 4491003 | C56: Non-Tran Prov Rate Ref Retail | F56: 0 | G56: -3848 | H56: 3848 | I56: N.M. | K56: 0 | L56: -15013 | M56: 15013 | N56: N.M. | Q56: 0 | R56: 4183 | S56: -4183 | T56: N.M. | V56: -166337 | W56: -141460 | X56: -24877 | Y56: -0.1758589 | AA56: -126447 | AC56: 0 | AD56: 0 | AE56: -8413 | AF56: -2843 | AG56: -7940 | AH56: -3883 | AI56: 11914 | AJ56: -3848 | AK56: -3836 | AL56: -3891 | AM56: -3877 | AN56: -154733 | AP56: -3541 | AQ56: -5497 | AR56: 9038 | AS56: 0 | AT56: 0 | AU56: 0 | AV56: 0 | AW56: 0 | AX56: 0 | AY56: 0 | AZ56: 0 | BA56: 0
A57: %,V4491004 | B57: 4491004 | C57: Prov Rate Refund - Affiliated | F57: 0 | G57: -113388 | H57: 113388 | I57: N.M. | K57: 0 | L57: -439535 | M57: 439535 | N57: N.M. | Q57: 0 | R57: 125617 | S57: -125617 | T57: N.M. | V57: -5004643 | W57: -4383365 | X57: -621278 | Y57: -0.1417354019 | AA57: -4060797 | AC57: 0 | AD57: 0 | AE57: -250484 | AF57: -84643 | AG57: -230025 | AH57: -114363 | AI57: 353368 | AJ57: -113388 | AK57: -112979 | AL57: -114580 | AM57: -114134 | AN57: -4662950 | AP57: -104520 | AQ57: -162857 | AR57: 267377 | AS57: 0 | AT57: 0 | AU57: 0 | AV57: 0 | AW57: 0 | AX57: 0 | AY57: 0 | AZ57: 0 | BA57: 0
A58: %,V4491005 | B58: 4491005 | C58: Tran Prov Trans Ref NonAffil | F58: -101 | G58: 0 | H58: -101 | I58: N.M. | K58: 524416 | L58: 0 | M58: 524416 | N58: N.M. | Q58: 625112 | R58: 0 | S58: 625112 | T58: N.M. | V58: 524416 | W58: 0 | X58: 524416 | Y58: N.M. | AA58: 0 | AC58: 0 | AD58: 0 | AE58: 0 | AF58: 0 | AG58: 0 | AH58: 0 | AI58: 0 | AJ58: 0 | AK58: 0 | AL58: 0 | AM58: 0 | AN58: 0 | AP58: 0 | AQ58: 0 | AR58: -60327 | AS58: -20067 | AT58: -20302 | AU58: 625314 | AV58: -101 | AW58: -101 | AX58: 16631 | AY58: 0 | AZ58: 0 | BA58: 0
A59: %,V4491006 | B59: 4491006 | C59: Tran Prov Trans Ref Frml Rate | F59: -25 | G59: 0 | H59: -25 | I59: N.M. | K59: 101245 | L59: 0 | M59: 101245 | N59: N.M. | Q59: 124012 | R59: 0 | S59: 124012 | T59: N.M. | V59: 101245 | W59: 0 | X59: 101245 | Y59: N.M. | AA59: 0 | AC59: 0 | AD59: 0 | AE59: 0 | AF59: 0 | AG59: 0 | AH59: 0 | AI59: 0 | AJ59: 0 | AK59: 0 | AL59: 0 | AM59: 0 | AN59: 0 | AP59: 0 | AQ59: 0 | AR59: -13643 | AS59: -4535 | AT59: -4589 | AU59: 124062 | AV59: -25 | AW59: -25 | AX59: 4204 | AY59: 0 | AZ59: 0 | BA59: 0
A60: %,V4491007 | B60: 4491007 | C60: Trans Prov Trans Refunds Affil | F60: -750 | G60: 0 | H60: -750 | I60: N.M. | K60: 2948445 | L60: 0 | M60: 2948445 | N60: N.M. | Q60: 3621931 | R60: 0 | S60: 3621931 | T60: N.M. | V60: 2948445 | W60: 0 | X60: 2948445 | Y60: N.M. | AA60: 0 | AC60: 0 | AD60: 0 | AE60: 0 | AF60: 0 | AG60: 0 | AH60: 0 | AI60: 0 | AJ60: 0 | AK60: 0 | AL60: 0 | AM60: 0 | AN60: 0 | AP60: 0 | AQ60: 0 | AR60: -403513 | AS60: -134198 | AT60: -135775 | AU60: 3623431 | AV60: -750 | AW60: -750 | AX60: 123752 | AY60: 0 | AZ60: 0 | BA60: 0
A61: %,R,FACCOUNT,TGL_FERC_ACCT,XDYYNNY01,N449 | C61: Less Rate Refund Provision | F61: -876 | G61: -134173 | H61: 133297 | I61: 0.9934711156 | K61: 3574106 | L61: -523568 | M61: 4097674 | N61: 7.826440883 | Q61: 4371055 | R61: 145071 | S61: 4225984 | T61: N.M. | V61: -2348912 | W61: -3986215 | X61: 1637303 | Y61: 0.4107412671 | AA61: -3283637 | AC61: -66039 | AD61: -66039 | AE61: -164410 | AF61: -100189 | AG61: -271962 | AH61: -135306 | AI61: 414550 | AJ61: -134173 | AK61: -133694 | AL61: -135586 | AM61: -135061 | AN61: -5518677 | AP61: -123668 | AQ61: -192723 | AR61: -161092 | AS61: -158800 | AT61: -160666 | AU61: 4372807 | AV61: -876 | AW61: -876 | AX61: 144587 | AY61: 0 | AZ61: 0 | BA61: 0
A63: %,V4500000 | B63: 4500000 | C63: Forfeited Discounts | F63: 149009.76 | G63: 64870.57 | H63: =+F63-G63 -> 84139.19 | I63: =IF(G63<0,IF(H63=0,0,IF(OR(G63=0,F63=0),"N.M.",IF(ABS(H63/G63)>=10,"N.M.",H63/(-G63)))),IF(H63=0,0,IF(OR(G63=0,F63=0),"N.M.",IF(ABS(H63/G63)>=10,"N.M.",H63/G63)))) -> 1.297031766 | K63: 961270.45 | L63: 553000.4 | M63: =+K63-L63 -> 408270.05 | N63: =IF(L63<0,IF(M63=0,0,IF(OR(L63=0,K63=0),"N.M.",IF(ABS(M63/L63)>=10,"N.M.",M63/(-L63)))),IF(M63=0,0,IF(OR(L63=0,K63=0),"N.M.",IF(ABS(M63/L63)>=10,"N.M.",M63/L63)))) -> 0.738281654 | Q63: 404930.82 | R63: 165294.31 | S63: =+Q63-R63 -> 239636.51 | T63: =IF(R63<0,IF(S63=0,0,IF(OR(R63=0,Q63=0),"N.M.",IF(ABS(S63/R63)>=10,"N.M.",S63/(-R63)))),IF(S63=0,0,IF(OR(R63=0,Q63=0),"N.M.",IF(ABS(S63/R63)>=10,"N.M.",S63/R63)))) -> 1.449756558 | V63: 1274738.24 | W63: 1019369.79 | X63: =+V63-W63 -> 255368.45 | Y63: =IF(W63<0,IF(X63=0,0,IF(OR(W63=0,V63=0),"N.M.",IF(ABS(X63/W63)>=10,"N.M.",X63/(-W63)))),IF(X63=0,0,IF(OR(W63=0,V63=0),"N.M.",IF(ABS(X63/W63)>=10,"N.M.",X63/W63)))) -> 0.2505160075 | AA63: 119734.01 | AC63: 64391.66 | AD63: 85640.83 | AE63: 88713.73 | AF63: 51134.82 | AG63: 97825.05 | AH63: 24866.65 | AI63: 75557.09 | AJ63: 64870.57 | AK63: 103986.56 | AL63: 50006.93 | AM63: 82071.97 | AN63: 77402.33 | AP63: 118690.44 | AQ63: 105048.23 | AR63: 110399.91 | AS63: 102579.11 | AT63: 119621.94 | AU63: 124423.59 | AV63: 131497.47 | AW63: 149009.76 | AX63: 0 | AY63: 0 | AZ63: 0 | BA63: 0
A64: %,V4510001 | B64: 4510001 | C64: Misc Service Rev - Nonaffil | F64: 10697.33 | G64: 7478.07 | H64: 3219.26 | I64: 0.4304934295 | K64: 71792.58 | L64: 94498.81 | M64: -22706.23 | N64: -0.2402805919 | Q64: 32923.97 | R64: 30617.12 | S64: 2306.85 | T64: 0.07534510104 | V64: 100547.01 | W64: 130746.74 | X64: -30199.73 | Y64: -0.2309788374 | AA64: 8611.03 | AC64: 8519.01 | AD64: 9567.91 | AE64: 14438.34 | AF64: 20513.65 | AG64: 10842.78 | AH64: 10471.69 | AI64: 12667.36 | AJ64: 7478.07 | AK64: 5817.44 | AL64: 8459.74 | AM64: 5247.81 | AN64: 9229.44 | AP64: 6667.37 | AQ64: 2008.69 | AR64: 13707.79 | AS64: 4911.74 | AT64: 11573.02 | AU64: 9475.14 | AV64: 12751.5 | AW64: 10697.33 | AX64: 0 | AY64: 0 | AZ64: 0 | BA64: 0
A65: %,V4540001 | B65: 4540001 | C65: Rent From Elect Property - Af | F65: 226451.425 | G65: 93248.605 | H65: 133202.82 | I65: 1.428469841 | K65: 1246716.2 | L65: 767682.23 | M65: 479033.97 | N65: 0.6240003367 | Q65: 464778.645 | R65: 280025.435 | S65: 184753.21 | T65: 0.6597729596 | V65: 1707910.22 | W65: 1133897.47 | X65: 574012.75 | Y65: 0.5062298534 | AA65: 86328.65 | AC65: 93243.085 | AD65: 93066.075 | AE65: 93123.915 | AF65: 115143.785 | AG65: 93079.935 | AH65: 93424.855 | AI65: 93351.975 | AJ65: 93248.605 | AK65: 98809.595 | AL65: 130536.815 | AM65: 102060.935 | AN65: 129786.675 | AP65: 186737.245 | AQ65: 148899.075 | AR65: 148812.865 | AS65: 148739.795 | AT65: 148748.575 | AU65: 121231.235 | AV65: 117095.985 | AW65: 226451.425 | AX65: 272028.84 | AY65: 0 | AZ65: 0 | BA65: 0
A66: %,V4540002 | B66: 4540002 | C66: Rent From Elect Property-NAC | F66: 375839.37 | G66: 216051.21 | H66: 159788.16 | I66: 0.7395846568 | K66: 1641480.59 | L66: 2411028.15 | M66: -769547.56 | N66: -0.319178173 | Q66: 637138.64 | R66: 709268.81 | S66: -72130.17 | T66: -0.1016965204 | V66: 2439910.1 | W66: 3650663.86 | X66: -1210753.76 | Y66: -0.331653038 | AA66: 369707.88 | AC66: 321742.5 | AD66: 360075.31 | AE66: 354251.31 | AF66: 412664.58 | AG66: 253025.64 | AH66: 255401.04 | AI66: 237816.56 | AJ66: 216051.21 | AK66: 199889.42 | AL66: 216239.5 | AM66: 196054.2 | AN66: 186246.39 | AP66: 211328.39 | AQ66: 175 | AR66: 493669.1 | AS66: 298994.46 | AT66: 175 | AU66: 261124.27 | AV66: 175 | AW66: 375839.37 | AX66: 0 | AY66: 0 | AZ66: 0 | BA66: 0
A67: %,V4540004 | B67: 4540004 | C67: Rent From Elect Prop-ABD-Nonaf | F67: 0 | G67: 0 | H67: 0 | I67: 0 | K67: -8941.71 | L67: 1674.35 | M67: -10616.06 | N67: -6.340406725 | Q67: -8941.71 | R67: 18000 | S67: -26941.71 | T67: -1.496761667 | V67: -8941.71 | W67: 51351.02 | X67: -60292.73 | Y67: -1.17412916 | AA67: 3498.01 | AC67: -16325.65 | AD67: 3498.01 | AE67: -3498.01 | AF67: 0 | AG67: 0 | AH67: 0 | AI67: 18000 | AJ67: 0 | AK67: 0 | AL67: 0 | AM67: 0 | AN67: 0 | AP67: 0 | AQ67: 0 | AR67: 0 | AS67: 0 | AT67: 0 | AU67: 0 | AV67: -8941.71 | AW67: 0 | AX67: 0 | AY67: 0 | AZ67: 0 | BA67: 0
A68: %,V4540005 | B68: 4540005 | C68: Rent from Elec Prop-Pole Attch | F68: 473759.75 | G68: 418284.48 | H68: 55475.27 | I68: 0.1326256953 | K68: 3741365.57 | L68: 3335145.43 | M68: 406220.14 | N68: 0.1217998281 | Q68: 1767452.2 | R68: 1501158 | S68: 266294.2 | T68: 0.1773925196 | V68: 5413916.6 | W68: 4813965.02 | X68: 599951.58 | Y68: 0.1246273244 | AA68: 370929.48 | AC68: 373468.78 | AD68: 374876.03 | AE68: 337547.54 | AF68: 374047.54 | AG68: 374047.54 | AH68: 664589.04 | AI68: 418284.48 | AJ68: 418284.48 | AK68: 418284.48 | AL68: 417697.63 | AM68: 418284.48 | AN68: 418284.44 | AP68: 395186.98 | AQ68: 393462.25 | AR68: 395095.5 | AS68: 395084.32 | AT68: 395084.32 | AU68: 819804.66 | AV68: 473887.79 | AW68: 473759.75 | AX68: 0 | AY68: 0 | AZ68: 0 | BA68: 0
A69: %,V4560001 | B69: 4560001 | C69: Oth Elect Rev - Affiliated | F69: 24072.88 | G69: 0 | H69: 24072.88 | I69: N.M. | K69: 62589.49 | L69: 0 | M69: 62589.49 | N69: N.M. | Q69: 62589.49 | R69: 0 | S69: 62589.49 | T69: N.M. | V69: 62589.49 | W69: 0 | X69: 62589.49 | Y69: N.M. | AA69: 0 | AC69: 0 | AD69: 0 | AE69: 0 | AF69: 0 | AG69: 0 | AH69: 0 | AI69: 0 | AJ69: 0 | AK69: 0 | AL69: 0 | AM69: 0 | AN69: 0 | AP69: 0 | AQ69: 0 | AR69: 0 | AS69: 0 | AT69: 0 | AU69: 14443.73 | AV69: 24072.88 | AW69: 24072.88 | AX69: 0 | AY69: 0 | AZ69: 0 | BA69: 0
A70: %,V4560007 | B70: 4560007 | C70: Oth Elect Rev - DSM Program | F70: 160297.7 | G70: 22012.24 | H70: 138285.46 | I70: 6.282207535 | K70: 872380.75 | L70: 340864.06 | M70: 531516.69 | N70: 1.559321596 | Q70: 442104.91 | R70: 67942.38 | S70: 374162.53 | T70: 5.507056568 | V70: 947755.31 | W70: 493875.2 | X70: 453880.11 | Y70: 0.9190178207 | AA70: 60030.4 | AC70: 188266.06 | AD70: 30016.02 | AE70: 22035.08 | AF70: 17976.27 | AG70: 14628.25 | AH70: 22901.15 | AI70: 23028.99 | AJ70: 22012.24 | AK70: 18849.33 | AL70: 15339.32 | AM70: 14966.96 | AN70: 26218.95 | AP70: 35556.09 | AQ70: 34155.5 | AR70: 119647.75 | AS70: 126267.94 | AT70: 114648.56 | AU70: 120168.05 | AV70: 161639.16 | AW70: 160297.7 | AX70: 0 | AY70: 0 | AZ70: 0 | BA70: 0
A71: %,V4560012 | B71: 4560012 | C71: Oth Elect Rev - Nonaffiliated | F71: 0 | G71: 0 | H71: 0 | I71: 0 | K71: 0 | L71: 0 | M71: 0 | N71: 0 | Q71: 0 | R71: 0 | S71: 0 | T71: 0 | V71: 0 | W71: 11200 | X71: -11200 | Y71: N.M. | AA71: 11200 | AC71: 0 | AD71: 0 | AE71: 0 | AF71: 0 | AG71: 0 | AH71: 0 | AI71: 0 | AJ71: 0 | AK71: 0 | AL71: 0 | AM71: 0 | AN71: 0 | AP71: 0 | AQ71: 0 | AR71: 0 | AS71: 0 | AT71: 0 | AU71: 0 | AV71: 0 | AW71: 0 | AX71: 0 | AY71: 0 | AZ71: 0 | BA71: 0
A72: %,V4560015 | B72: 4560015 | C72: Other Electric Revenues - ABD | F72: 88451.69 | G72: 151489.73 | H72: -63038.04 | I72: -0.4161208816 | K72: 318179.22 | L72: 499207.87 | M72: -181028.65 | N72: -0.3626318031 | Q72: 129315.34 | R72: 181960.23 | S72: -52644.89 | T72: -0.2893208587 | V72: 450616.25 | W72: 621845.6 | X72: -171229.35 | Y72: -0.2753566963 | AA72: 69677.86 | AC72: 174970.37 | AD72: 68630.45 | AE72: 24701.32 | AF72: 14980.79 | AG72: 33964.71 | AH72: 18726.05 | AI72: 11744.45 | AJ72: 151489.73 | AK72: 10618.07 | AL72: 20140.37 | AM72: 42898.57 | AN72: 58780.02 | AP72: 61700.75 | AQ72: 38014 | AR72: 42933.51 | AS72: 10196.64 | AT72: 36018.98 | AU72: 16488.22 | AV72: 24375.43 | AW72: 88451.69 | AX72: 0 | AY72: 0 | AZ72: 0 | BA72: 0
A73: %,V4560041 | B73: 4560041 | C73: Miscellaneous Revenue-NonAffil | F73: 0 | G73: 0 | H73: 0 | I73: 0 | K73: 2124.39 | L73: 0 | M73: 2124.39 | N73: N.M. | Q73: 2124.39 | R73: 0 | S73: 2124.39 | T73: N.M. | V73: 2124.39 | W73: 0 | X73: 2124.39 | Y73: N.M. | AA73: 0 | AC73: 0 | AD73: 0 | AE73: 0 | AF73: 0 | AG73: 0 | AH73: 0 | AI73: 0 | AJ73: 0 | AK73: 0 | AL73: 0 | AM73: 0 | AN73: 0 | AP73: 0 | AQ73: 0 | AR73: 0 | AS73: 0 | AT73: 0 | AU73: 1881.94 | AV73: 242.45 | AW73: 0 | AX73: 0 | AY73: 0 | AZ73: 0 | BA73: 0
A74: %,V4560043 | B74: 4560043 | C74: Oth Elec Rv-Trn-Aff-Trnf Price | F74: 0 | G74: 0 | H74: 0 | I74: 0 | K74: 0 | L74: 0 | M74: 0 | N74: 0 | Q74: 0 | R74: 0 | S74: 0 | T74: 0 | V74: 0 | W74: 0 | X74: 0 | Y74: 0 | AA74: 0 | AC74: 0 | AD74: 0 | AE74: 0 | AF74: 0 | AG74: 0 | AH74: 0 | AI74: 0 | AJ74: 0 | AK74: 0 | AL74: 0 | AM74: 0 | AN74: 0 | AP74: 0 | AQ74: 0 | AR74: 0 | AS74: 0 | AT74: 0 | AU74: 0 | AV74: 0 | AW74: 0 | AX74: 58232460.28 | AY74: 0 | AZ74: 0 | BA74: 0
A75: %,V4560180 | B75: 4560180 | C75: Amort of Defer Equity Inc | F75: 37933.99 | G75: 0 | H75: 37933.99 | I75: N.M. | K75: 75867.98 | L75: 0 | M75: 75867.98 | N75: N.M. | Q75: 75867.98 | R75: 0 | S75: 75867.98 | T75: N.M. | V75: 75867.98 | W75: 0 | X75: 75867.98 | Y75: N.M. | AA75: 0 | AC75: 0 | AD75: 0 | AE75: 0 | AF75: 0 | AG75: 0 | AH75: 0 | AI75: 0 | AJ75: 0 | AK75: 0 | AL75: 0 | AM75: 0 | AN75: 0 | AP75: 0 | AQ75: 0 | AR75: 0 | AS75: 0 | AT75: 0 | AU75: 0 | AV75: 37933.99 | AW75: 37933.99 | AX75: 0 | AY75: 0 | AZ75: 0 | BA75: 0
A76: %,V4561005 | B76: 4561005 | C76: PJM Point to Point Trans Svc | F76: 234203.96 | G76: 148955.77 | H76: 85248.19 | I76: 0.5723053897 | K76: 1756851.02 | L76: 1525431.56 | M76: 231419.46 | N76: 0.1517075338 | Q76: 699257.77 | R76: 507270.57 | S76: 191987.2 | T76: 0.3784710002 | V76: 2389335.47 | W76: 2010422.04 | X76: 378913.43 | Y76: 0.1884745702 | AA76: 193701.8 | AC76: 338660.56 | AD76: 106665.92 | AE76: 307667.74 | AF76: 137109.12 | AG76: 128057.65 | AH76: 154030.01 | AI76: 204284.79 | AJ76: 148955.77 | AK76: 122543.96 | AL76: 168119.25 | AM76: 151074.75 | AN76: 190746.49 | AP76: 338806.06 | AQ76: 190931.29 | AR76: 125614.5 | AS76: 225133.31 | AT76: 177108.09 | AU76: -22977.47 | AV76: 488031.28 | AW76: 234203.96 | AX76: -266669.8 | AY76: 0 | AZ76: 0 | BA76: 0
A77: %,V4561006 | B77: 4561006 | C77: PJM Trans Owner Admin Rev | F77: 10925.78 | G77: 8431.43 | H77: 2494.35 | I77: 0.2958394958 | K77: 66620.31 | L77: 61006.2 | M77: 5614.11 | N77: 0.09202523678 | Q77: 27438.14 | R77: 24573.96 | S77: 2864.18 | T77: 0.1165534574 | V77: 93487.14 | W77: 95872.87 | X77: -2385.73 | Y77: -0.02488430773 | AA77: 10220.61 | AC77: 9078.15 | AD77: 7497.43 | AE77: 7432.48 | AF77: 6372.21 | AG77: 6051.97 | AH77: 8657.67 | AI77: 7484.86 | AJ77: 8431.43 | AK77: 7116.69 | AL77: 5823.35 | AM77: 6109.77 | AN77: 7817.02 | AP77: 9761.51 | AQ77: 8208.91 | AR77: 7694.76 | AS77: 6471.39 | AT77: 7045.6 | AU77: 8103.53 | AV77: 8408.83 | AW77: 10925.78 | AX77: -9936.97 | AY77: 0 | AZ77: 0 | BA77: 0
A78: %,V4561007 | B78: 4561007 | C78: PJM Network Integ Trans Svc | F78: 1024058.98 | G78: 938244.16 | H78: 85814.82 | I78: 0.09146320719 | K78: 7974863.94 | L78: 7382067.69 | M78: 592796.25 | N78: 0.08030219647 | Q78: 3039073.04 | R78: 2784276.27 | S78: 254796.77 | T78: 0.09151274705 | V78: 11651478.71 | W78: 10860097.32 | X78: 791381.39 | Y78: 0.07287056153 | AA78: 883900.28 | AC78: 937668.24 | AD78: 876312.31 | AE78: 937764.69 | AF78: 907773.72 | AG78: 938272.46 | AH78: 907773.79 | AI78: 938258.32 | AJ78: 938244.16 | AK78: 907759.61 | AL78: 938258.3 | AM78: 907759.6 | AN78: 922837.26 | AP78: 1016242.7 | AQ78: 916971.66 | AR78: 1008675.17 | AS78: 980820.86 | AT78: 1013080.51 | AU78: 990773.91 | AV78: 1024240.15 | AW78: 1024058.98 | AX78: -1024137.65 | AY78: 0 | AZ78: 0 | BA78: 0
A79: %,V4561019 | B79: 4561019 | C79: Oth Elec Rev Trans Non Affil | F79: 4468.5 | G79: 4545 | H79: -76.5 | I79: -0.01683168317 | K79: 38010 | L79: 35923.5 | M79: 2086.5 | N79: 0.05808175707 | Q79: 14160 | R79: 13837.5 | S79: 322.5 | T79: 0.02330623306 | V79: 54715.5 | W79: 52461 | X79: 2254.5 | Y79: 0.04297478127 | AA79: 4980 | AC79: 6219 | AD79: 4581 | AE79: 4059 | AF79: 3429 | AG79: 3798 | AH79: 4449 | AI79: 4843.5 | AJ79: 4545 | AK79: 3703.5 | AL79: 3613.5 | AM79: 3888 | AN79: 5500.5 | AP79: 7192.5 | AQ79: 5176.5 | AR79: 4389 | AS79: 3643.5 | AT79: 3448.5 | AU79: 4519.5 | AV79: 5172 | AW79: 4468.5 | AX79: 0 | AY79: 0 | AZ79: 0 | BA79: 0
A80: %,V4561027 | B80: 4561027 | C80: PJM Transm Dist/Meter - NonAff | F80: 12984 | G80: 0 | H80: 12984 | I80: N.M. | K80: 19476 | L80: 0 | M80: 19476 | N80: N.M. | Q80: 19476 | R80: 0 | S80: 19476 | T80: N.M. | V80: 19476 | W80: 0 | X80: 19476 | Y80: N.M. | AA80: 0 | AC80: 0 | AD80: 0 | AE80: 0 | AF80: 0 | AG80: 0 | AH80: 0 | AI80: 0 | AJ80: 0 | AK80: 0 | AL80: 0 | AM80: 0 | AN80: 0 | AP80: 0 | AQ80: 0 | AR80: 0 | AS80: 0 | AT80: 0 | AU80: 0 | AV80: 6492 | AW80: 12984 | AX80: -6492 | AY80: 0 | AZ80: 0 | BA80: 0
A81: %,V4561028 | B81: 4561028 | C81: PJM Pow Fac Cre Rev Whsl Cu-NA | F81: 0 | G81: 426.84 | H81: -426.84 | I81: N.M. | K81: 955.69 | L81: 2961.97 | M81: -2006.28 | N81: -0.6773464957 | Q81: 111.83 | R81: 2219.7 | S81: -2107.87 | T81: -0.9496193179 | V81: 2380.82 | W81: 4384.87 | X81: -2004.05 | Y81: -0.4570374948 | AA81: 375.62 | AC81: -494.22 | AD81: 12.69 | AE81: 154.61 | AF81: 558.05 | AG81: 511.14 | AH81: 639.41 | AI81: 1153.45 | AJ81: 426.84 | AK81: 878.96 | AL81: 316.24 | AM81: 112.67 | AN81: 117.26 | AP81: 21.93 | AQ81: 31.26 | AR81: -18.3 | AS81: 409.02 | AT81: 399.95 | AU81: 111.83 | AV81: 0 | AW81: 0 | AX81: 0 | AY81: 0 | AZ81: 0 | BA81: 0
A82: %,V4561029 | B82: 4561029 | C82: PJM NITS Revenue Whsl Cus-NAff | F82: 245238.46 | G82: 209789.87 | H82: 35448.59 | I82: 0.168971886 | K82: 1975063.25 | L82: 1651080.22 | M82: 323983.03 | N82: 0.1962248872 | Q82: 727714.27 | R82: 622559.13 | S82: 105155.14 | T82: 0.1689078755 | V82: 2800326.48 | W82: 2479367.91 | X82: 320958.57 | Y82: 0.1294517722 | AA82: 210499.84 | AC82: 209769.72 | AD82: 196182.75 | AE82: 209796.19 | AF82: 202976.24 | AG82: 209796.19 | AH82: 202976.24 | AI82: 209793.02 | AJ82: 209789.87 | AK82: 202973.07 | AL82: 209793.03 | AM82: 202973.07 | AN82: 209524.06 | AP82: 256640.43 | AQ82: 231590.6 | AR82: 254888 | AS82: 247940 | AT82: 256289.95 | AU82: 237243.05 | AV82: 245232.76 | AW82: 245238.46 | AX82: -245232.76 | AY82: 0 | AZ82: 0 | BA82: 0
A83: %,V4561030 | B83: 4561030 | C83: PJM TO Serv Rev Whls Cus-NAff | F83: 592.44 | G83: 821.14 | H83: -228.7 | I83: -0.2785152349 | K83: 4650.25 | L83: 6257.23 | M83: -1606.98 | N83: -0.256819711 | Q83: 1816.96 | R83: 2459.35 | S83: -642.39 | T83: -0.2612031634 | V83: 7680.98 | W83: 8373.73 | X83: -692.75 | Y83: -0.08272896308 | AA83: 552.32 | AC83: 861.92 | AD83: 755.47 | AE83: 743.3 | AF83: 689.38 | AG83: 747.81 | AH83: 811.32 | AI83: 826.89 | AJ83: 821.14 | AK83: 745.97 | AL83: 733.94 | AM83: 743.51 | AN83: 807.31 | AP83: 647.03 | AQ83: 557.63 | AR83: 563.34 | AS83: 533.61 | AT83: 531.68 | AU83: 570.03 | AV83: 654.49 | AW83: 592.44 | AX83: -587.95 | AY83: 0 | AZ83: 0 | BA83: 0
A84: %,V4561033 | B84: 4561033 | C84: PJM NITS Revenue - Affiliated | F84: 7544261.62 | G84: 6245240.51 | H84: 1299021.11 | I84: 0.2080017748 | K84: 59098123.57 | L84: 49153129.6 | M84: 9944993.97 | N84: 0.2023267705 | Q84: 22386647.05 | R84: 18532980.71 | S84: 3853666.34 | T84: 0.2079355933 | V84: 83665408.56 | W84: 73674029.25 | X84: 9991379.31 | Y84: 0.1356160293 | AA84: 6231706.12 | AC84: 6245126.63 | AD84: 5841251.23 | AE84: 6245936.64 | AF84: 6042405.48 | AG84: 6245428.91 | AH84: 6042405.48 | AI84: 6245334.72 | AJ84: 6245240.51 | AK84: 6042311.29 | AL84: 6245334.71 | AM84: 6042311.29 | AN84: 6237327.7 | AP84: 7552626.05 | AQ84: 6815525.85 | AR84: 7501683.07 | AS84: 7297555.39 | AT84: 7544086.16 | AU84: 7298299.27 | AV84: 7544086.16 | AW84: 7544261.62 | AX84: -7544086.16 | AY84: 0 | AZ84: 0 | BA84: 0
A85: %,V4561034 | B85: 4561034 | C85: PJM TO Adm. Serv Rev - Aff | F85: 18120.42 | G85: 22795.87 | H85: -4675.45 | I85: -0.2051007485 | K85: 134450.06 | L85: 170498.59 | M85: -36048.53 | N85: -0.2114300769 | Q85: 54507.51 | R85: 67860.1 | S85: -13352.59 | T85: -0.1967664357 | V85: 215751.68 | W85: 226121.94 | X85: -10370.26 | Y85: -0.04586136135 | AA85: 15207.71 | AC85: 24124.23 | AD85: 20167.31 | AE85: 20103.6 | AF85: 18280.52 | AG85: 19962.83 | AH85: 22068.42 | AI85: 22995.81 | AJ85: 22795.87 | AK85: 20043.65 | AL85: 18970.34 | AM85: 19367.79 | AN85: 22919.84 | AP85: 19433.2 | AQ85: 16031.13 | AR85: 15576.67 | AS85: 14333.09 | AT85: 14568.46 | AU85: 17174.5 | AV85: 19212.59 | AW85: 18120.42 | AX85: -18141.23 | AY85: 0 | AZ85: 0 | BA85: 0
A86: %,V4561035 | B86: 4561035 | C86: PJM Affiliated Trans NITS Cost | F86: -4909837.02 | G86: -5147873.64 | H86: 238036.62 | I86: 0.04623979465 | K86: -38464672.71 | L86: -40514599.89 | M86: 2049927.18 | N86: 0.05059724607 | Q86: -14569323.54 | R86: -15276504.2 | S86: 707180.66 | T86: 0.04629204763 | V86: -58715178.45 | W86: -60034082.16 | X86: 1318903.71 | Y86: 0.02196924918 | AA86: -4960653.11 | AC86: -5147379.34 | AD86: -4813979.2 | AE86: -5148028.94 | AF86: -4980679.27 | AG86: -5148028.94 | AH86: -4980679.27 | AI86: -5147951.29 | AJ86: -5147873.64 | AK86: -4980601.62 | AL86: -5147951.29 | AM86: -4980601.62 | AN86: -5141351.21 | AP86: -4916437.05 | AQ86: -4436559.62 | AR86: -4882865.98 | AS86: -4749763.69 | AT86: -4909722.83 | AU86: -4749763.69 | AV86: -4909722.83 | AW86: -4909837.02 | AX86: 4909722.83 | AY86: 0 | AZ86: 0 | BA86: 0
A87: %,V4561036 | B87: 4561036 | C87: PJM Affiliated Trans TO Cost | F87: -8058.55 | G87: -14229.96 | H87: 6171.41 | I87: 0.4336913104 | K87: -66635.73 | L87: -112522.31 | M87: 45886.58 | N87: 0.4077998399 | Q87: -25099.77 | R87: -42999.5 | S87: 17899.73 | T87: 0.4162776311 | V87: -119236.09 | W87: -137054.63 | X87: 17818.54 | Y87: 0.1300104929 | AA87: -7066.78 | AC87: -17823.75 | AD87: -13933.93 | AE87: -13518.48 | AF87: -11693.99 | AG87: -12552.66 | AH87: -13679.29 | AI87: -15090.25 | AJ87: -14229.96 | AK87: -12357.87 | AL87: -12207.23 | AM87: -12253.89 | AN87: -15781.37 | AP87: -11216.7 | AQ87: -8542.78 | AR87: -7998.52 | AS87: -7031.69 | AT87: -6746.27 | AU87: -7968.23 | AV87: -9072.99 | AW87: -8058.55 | AX87: 8059.01 | AY87: 0 | AZ87: 0 | BA87: 0
A88: %,V4561045 | B88: 4561045 | C88: PJM Non-Aff Gen IPP Rev | F88: 1728 | G88: 2077 | H88: -349 | I88: -0.1680308137 | K88: 15420 | L88: 3988 | M88: 11432 | N88: 2.866599799 | Q88: 5450 | R88: 3988 | S88: 1462 | T88: 0.3665997994 | V88: 23396 | W88: 3988 | X88: 19408 | Y88: 4.866599799 | AA88: 0 | AC88: 0 | AD88: 0 | AE88: 0 | AF88: 0 | AG88: 0 | AH88: 0 | AI88: 1911 | AJ88: 2077 | AK88: 1994 | AL88: 1994 | AM88: 1994 | AN88: 1994 | AP88: 1994 | AQ88: 1994 | AR88: 1994 | AS88: 1994 | AT88: 1994 | AU88: 1994 | AV88: 1728 | AW88: 1728 | AX88: -1728 | AY88: 0 | AZ88: 0 | BA88: 0
A89: %,V4561058 | B89: 4561058 | C89: NonAffil PJM Trans Enhncmt Rev | F89: 157873.97 | G89: 143179.57 | H89: 14694.4 | I89: 0.102629167 | K89: 1262082.74 | L89: 1145392.31 | M89: 116690.43 | N89: 0.1018781329 | Q89: 473621.91 | R89: 429538.71 | S89: 44083.2 | T89: 0.102629167 | V89: 1834801.02 | W89: 1749145.87 | X89: 85655.15 | Y89: 0.04896970085 | AA89: 150938.39 | AC89: 143169.56 | AD89: 143155.93 | AE89: 143168.97 | AF89: 143179.57 | AG89: 143179.57 | AH89: 143179.57 | AI89: 143179.57 | AJ89: 143179.57 | AK89: 143179.57 | AL89: 143179.57 | AM89: 143179.57 | AN89: 143179.57 | AP89: 157704.9 | AQ89: 157703.19 | AR89: 157693.48 | AS89: 157686.63 | AT89: 157672.63 | AU89: 157873.97 | AV89: 157873.97 | AW89: 157873.97 | AX89: -157873.93 | AY89: 0 | AZ89: 0 | BA89: 0
A90: %,V4561059 | B90: 4561059 | C90: Affil PJM Trans Enhancmnt Rev | F90: 137371.08 | G90: 130246.52 | H90: 7124.56 | I90: 0.05470057856 | K90: 1098870.92 | L90: 1042016.53 | M90: 56854.39 | N90: 0.05456188876 | Q90: 412113.24 | R90: 390739.56 | S90: 21373.68 | T90: 0.05470057856 | V90: 1619857 | W90: 1527833.89 | X90: 92023.11 | Y90: 0.0602310962 | AA90: 121454.34 | AC90: 130256.66 | AD90: 130270.16 | AE90: 130257.11 | AF90: 130246.52 | AG90: 130246.52 | AH90: 130246.52 | AI90: 130246.52 | AJ90: 130246.52 | AK90: 130246.52 | AL90: 130246.52 | AM90: 130246.52 | AN90: 130246.52 | AP90: 137338.77 | AQ90: 137340.52 | AR90: 137350.23 | AS90: 137357.08 | AT90: 137371.08 | AU90: 137371.08 | AV90: 137371.08 | AW90: 137371.08 | AX90: -137371.08 | AY90: 0 | AZ90: 0 | BA90: 0
A91: %,V4561060 | B91: 4561060 | C91: Affil PJM Trans Enhancmnt Cost | F91: -89401.67 | G91: -107360.58 | H91: 17958.91 | I91: 0.167276574 | K91: -715213.36 | L91: -858884.64 | M91: 143671.28 | N91: 0.167276574 | Q91: -268205.01 | R91: -322081.74 | S91: 53876.73 | T91: 0.167276574 | V91: -1144655.68 | W91: -1245612 | X91: 100956.32 | Y91: 0.08104957242 | AA91: -96681.84 | AC91: -107360.58 | AD91: -107360.58 | AE91: -107360.58 | AF91: -107360.58 | AG91: -107360.58 | AH91: -107360.58 | AI91: -107360.58 | AJ91: -107360.58 | AK91: -107360.58 | AL91: -107360.58 | AM91: -107360.58 | AN91: -107360.58 | AP91: -89401.67 | AQ91: -89401.67 | AR91: -89401.67 | AS91: -89401.67 | AT91: -89401.67 | AU91: -89401.67 | AV91: -89401.67 | AW91: -89401.67 | AX91: 89401.67 | AY91: 0 | AZ91: 0 | BA91: 0
A92: %,V4561061 | B92: 4561061 | C92: NAff PJM RTEP Rev for Whsl-FR | F92: 4465.47 | G92: 4375.23 | H92: 90.24 | I92: 0.02062520142 | K92: 36730.46 | L92: 35001.91 | M92: 1728.55 | N92: 0.04938444788 | Q92: 13396.41 | R92: 13125.7 | S92: 270.71 | T92: 0.02062442384 | V92: 54231.42 | W92: 51412.31 | X92: 2819.11 | Y92: 0.05483336578 | AA92: 4102.61 | AC92: 4375.22 | AD92: 4375.25 | AE92: 4375.23 | AF92: 4375.26 | AG92: 4375.25 | AH92: 4375.23 | AI92: 4375.24 | AJ92: 4375.23 | AK92: 4375.24 | AL92: 4375.24 | AM92: 4375.24 | AN92: 4375.24 | AP92: 4666.81 | AQ92: 4666.81 | AR92: 4666.81 | AS92: 4666.81 | AT92: 4666.81 | AU92: 4465.47 | AV92: 4465.47 | AW92: 4465.47 | AX92: -4465.47 | AY92: 0 | AZ92: 0 | BA92: 0
A93: %,V4561062 | B93: 4561062 | C93: PROVISION RTO Tran Cost Affi | F93: 95918 | G93: 144940 | H93: -49022 | I93: -0.3382227128 | K93: -675797 | L93: 510796 | M93: -1186593 | N93: -2.323027197 | Q93: -1341377 | R93: -205757 | S93: -1135620 | T93: -5.519228993 | V93: 825297 | W93: 1360064 | X93: -534767 | Y93: -0.3931925262 | AA93: 414811 | AC93: 101879 | AD93: 101879 | AE93: 198080 | AF93: 134388 | AG93: 180327 | AH93: -538175 | AI93: 187478 | AJ93: 144940 | AK93: 144800 | AL93: 145399 | AM93: 145243 | AN93: 1065652 | AP93: 138615 | AQ93: 129352 | AR93: 131320 | AS93: 132925 | AT93: 133368 | AU93: -1469769 | AV93: 32474 | AW93: 95918 | AX93: 304017 | AY93: 0 | AZ93: 0 | BA93: 0
A94: %,V4561063 | B94: 4561063 | C94: PROVISION RTO Tran Rev Aff | F94: -21015 | G94: 226375 | H94: -247390 | I94: -1.092832689 | K94: 510244 | L94: 2493024 | M94: -1982780 | N94: -0.7953312924 | Q94: 647189 | R94: 1361149 | S94: -713960 | T94: -0.5245274397 | V94: 1415744 | W94: 1616081 | X94: -200337 | Y94: -0.1239647023 | AA94: 533297 | AC94: 226375 | AD94: 226375 | AE94: 226375 | AF94: 226375 | AG94: 226375 | AH94: 908399 | AI94: 226375 | AJ94: 226375 | AK94: 226375 | AL94: 226375 | AM94: 226375 | AN94: 226375 | AP94: -27389 | AQ94: -27389 | AR94: -27389 | AS94: -27389 | AT94: -27389 | AU94: 689219 | AV94: -21015 | AW94: -21015 | AX94: -955478 | AY94: 0 | AZ94: 0 | BA94: 0
A95: %,V4561064 | B95: 4561064 | C95: PROVISION RTO Tran Rv Frml Rts | F95: -660 | G95: 7641 | H95: -8301 | I95: -1.086376129 | K95: 17507 | L95: 83850 | M95: -66343 | N95: -0.7912104949 | Q95: 22107 | R95: 45645 | S95: -23538 | T95: -0.5156753204 | V95: 48072 | W95: 48320 | X95: -248 | Y95: -0.005132450331 | AA95: 16538 | AC95: 7641 | AD95: 7641 | AE95: 7641 | AF95: 7641 | AG95: 7641 | AH95: 30363 | AI95: 7641 | AJ95: 7641 | AK95: 7641 | AL95: 7641 | AM95: 7641 | AN95: 7642 | AP95: -920 | AQ95: -920 | AR95: -920 | AS95: -920 | AT95: -920 | AU95: 23428 | AV95: -661 | AW95: -660 | AX95: -32463 | AY95: 0 | AZ95: 0 | BA95: 0
A96: %,V4561065 | B96: 4561065 | C96: PROVISION RTO Tran Rev NonAff | F96: -5049 | G96: 31916 | H96: -36965 | I96: -1.158196516 | K96: 61518 | L96: 366202 | M96: -304684 | N96: -0.8320107482 | Q96: 82093 | R96: 206627 | S96: -124534 | T96: -0.6026995504 | V96: 189184 | W96: 226980 | X96: -37796 | Y96: -0.1665168737 | AA96: 71924 | AC96: 31911 | AD96: 31916 | AE96: 31916 | AF96: 31916 | AG96: 31916 | AH96: 142795 | AI96: 31916 | AJ96: 31916 | AK96: 31916 | AL96: 31916 | AM96: 31916 | AN96: 31918 | AP96: -4115 | AQ96: -4115 | AR96: -4115 | AS96: -4115 | AT96: -4115 | AU96: 92190 | AV96: -5048 | AW96: -5049 | AX96: -128406 | AY96: 0 | AZ96: 0 | BA96: 0
A97: %,V4561075 | B97: 4561075 | C97: PJM-Nonaff Power Factor Credit | F97: 620.05 | G97: 0 | H97: 620.05 | I97: N.M. | K97: 2434.79 | L97: 0 | M97: 2434.79 | N97: N.M. | Q97: 2434.79 | R97: 0 | S97: 2434.79 | T97: N.M. | V97: 2434.79 | W97: 0 | X97: 2434.79 | Y97: N.M. | AA97: 0 | AC97: 0 | AD97: 0 | AE97: 0 | AF97: 0 | AG97: 0 | AH97: 0 | AI97: 0 | AJ97: 0 | AK97: 0 | AL97: 0 | AM97: 0 | AN97: 0 | AP97: 0 | AQ97: 0 | AR97: 0 | AS97: 0 | AT97: 0 | AU97: 421.26 | AV97: 1393.48 | AW97: 620.05 | AX97: -763.71 | AY97: 0 | AZ97: 0 | BA97: 0
A98: %,R,FACCOUNT,TGL_FERC_ACCT,XDYYNNY01,NOTHER_OPER_REVENUES | C98: Other Operating Revenues | F98: 6005323.385 | G98: 3973971.635 | H98: 2031351.75 | I98: 0.5111641291 | K98: 43136378.71 | L98: 32185721.77 | M98: 10950656.94 | N98: 0.3402333811 | Q98: 16434887.27 | R98: 12115774.11 | S98: 4319113.17 | T98: 0.3564867694 | V98: 59401022.23 | W98: 46505121.91 | X98: 12895900.32 | Y98: 0.2773006454 | AA98: 4899525.23 | AC98: 4352333.815 | AD98: 3789135.375 | AE98: 4137876.785 | AF98: 3904442.665 | AG98: 3886159.025 | AH98: 4153655.995 | AI98: 3988146.475 | AJ98: 3973971.635 | AK98: 3754538.855 | AL98: 3872990.195 | AM98: 3786679.615 | AN98: 4850434.855 | AP98: 5608078.735 | AQ98: 4770916.025 | AR98: 5663666.985 | AS98: 5419622.645 | AT98: 5239207.045 | AU98: 4812919.175 | AV98: 5616644.715 | AW98: 6005323.385 | AX98: 53281855.92 | AY98: 0 | AZ98: 0 | BA98: 0
B99: Line 2 | C99: Operating Revenues (400) | F99: =+F14+F23+F27+F53+F61+F98 -> 65046326.7 | G99: =+G14+G23+G27+G53+G61+G98 -> 64720606.46 | H99: 325720.23 | I99: 0.005032712884 | K99: =+K14+K23+K27+K53+K61+K98 -> 526962954.4 | L99: =+L14+L23+L27+L53+L61+L98 -> 478605541.2 | M99: 48357413.21 | N99: 0.101038139 | Q99: =+Q14+Q23+Q27+Q53+Q61+Q98 -> 212644640.6 | R99: =+R14+R23+R27+R53+R61+R98 -> 185146614.1 | S99: 27498026.53 | T99: 0.1485202776 | V99: =+V14+V23+V27+V53+V61+V98 -> 754939781.5 | W99: =+W14+W23+W27+W53+W61+W98 -> 674952928.5 | X99: 79986853.02 | Y99: 0.1185073057 | AA99: =+AA14+AA23+AA27+AA53+AA61+AA98 -> 47788863.94 | AC99: =+AC14+AC23+AC27+AC53+AC61+AC98 -> 67085831.84 | AD99: 59803847.48 | AE99: 58984766.12 | AF99: 49769038.79 | AG99: 57815442.87 | AH99: 56386492.93 | AI99: 64039514.7 | AJ99: 64720606.46 | AK99: 50740472.67 | AL99: 53142028.47 | AM99: 57023806.31 | AN99: 67070519.64 | AP99: =+AP14+AP23+AP27+AP53+AP61+AP98 -> 82864908.61 | AQ99: 62306403.6 | AR99: 66662575.7 | AS99: 52815642.09 | AT99: 49668783.77 | AU99: 80265747.05 | AV99: 67332566.89 | AW99: 65046326.7 | AX99: 324783524 | AY99: 0 | AZ99: 0 | BA99: 0
B100: Line 3 | C100: Operating Expenses
A102: %,V5010000 | B102: 5010000 | C102: Fuel | F102: 615530.47 | G102: 941381.32 | H102: =+F102-G102 -> -325850.85 | I102: =IF(G102<0,IF(H102=0,0,IF(OR(G102=0,F102=0),"N.M.",IF(ABS(H102/G102)>=10,"N.M.",H102/(-G102)))),IF(H102=0,0,IF(OR(G102=0,F102=0),"N.M.",IF(ABS(H102/G102)>=10,"N.M.",H102/G102)))) -> -0.3461411896 | K102: 5386334.68 | L102: 4490594.37 | M102: =+K102-L102 -> 895740.31 | N102: =IF(L102<0,IF(M102=0,0,IF(OR(L102=0,K102=0),"N.M.",IF(ABS(M102/L102)>=10,"N.M.",M102/(-L102)))),IF(M102=0,0,IF(OR(L102=0,K102=0),"N.M.",IF(ABS(M102/L102)>=10,"N.M.",M102/L102)))) -> 0.1994703231 | Q102: 1725491.37 | R102: 1877015.23 | S102: =+Q102-R102 -> -151523.86 | T102: =IF(R102<0,IF(S102=0,0,IF(OR(R102=0,Q102=0),"N.M.",IF(ABS(S102/R102)>=10,"N.M.",S102/(-R102)))),IF(S102=0,0,IF(OR(R102=0,Q102=0),"N.M.",IF(ABS(S102/R102)>=10,"N.M.",S102/R102)))) -> -0.08072596193 | V102: 7244580.32 | W102: 7572756.71 | X102: =+V102-W102 -> -328176.39 | Y102: =IF(W102<0,IF(X102=0,0,IF(OR(W102=0,V102=0),"N.M.",IF(ABS(X102/W102)>=10,"N.M.",X102/(-W102)))),IF(X102=0,0,IF(OR(W102=0,V102=0),"N.M.",IF(ABS(X102/W102)>=10,"N.M.",X102/W102)))) -> -0.04333644967 | AA102: 1035031.41 | AC102: 872626.16 | AD102: 542641.95 | AE102: -196190.17 | AF102: 971461.29 | AG102: 423039.91 | AH102: 461656.61 | AI102: 473977.3 | AJ102: 941381.32 | AK102: 791733.48 | AL102: 208202.56 | AM102: 390265.39 | AN102: 468044.21 | AP102: 618298.26 | AQ102: 692259.2 | AR102: 1391713.84 | AS102: 422235.9 | AT102: 536336.11 | AU102: 438840.56 | AV102: 671120.34 | AW102: 615530.47 | AX102: 0 | AY102: 0 | AZ102: 0 | BA102: 0
A103: %,V5010001 | B103: 5010001 | C103: Fuel Consumed | F103: 7211243.8 | G103: 8665987.11 | H103: -1454743.31 | I103: -0.1678681599 | K103: 45839900.71 | L103: 57352208.02 | M103: -11512307.31 | N103: -0.2007299755 | Q103: 22316113.86 | R103: 29668020.19 | S103: -7351906.33 | T103: -0.2478057613 | V103: 70684616.99 | W103: 68355431.7 | X103: 2329185.29 | Y103: 0.03407461897 | AA103: 5926775.22 | AC103: 6815301.18 | AD103: 8255204.4 | AE103: 8366721.76 | AF103: 2942490.98 | AG103: 1304469.51 | AH103: 10602993.08 | AI103: 10399040 | AJ103: 8665987.11 | AK103: 1065990.32 | AL103: 5748105.71 | AM103: 8015514.63 | AN103: 10015105.62 | AP103: 12290393.29 | AQ103: 3464421.5 | AR103: 1240119.13 | AS103: 5166295.41 | AT103: 1362557.52 | AU103: 5465171.12 | AV103: 9639698.94 | AW103: 7211243.8 | AX103: 0 | AY103: 0 | AZ103: 0 | BA103: 0
A104: %,V5010003 | B104: 5010003 | C104: Fuel - Procure Unload & Handle | F104: 387404.5 | G104: 395660.87 | H104: -8256.37 | I104: -0.02086728971 | K104: 2656521.99 | L104: 2339355.55 | M104: 317166.44 | N104: 0.1355785528 | Q104: 1408240.41 | R104: 1312417.17 | S104: 95823.24 | T104: 0.07301279059 | V104: 3867956.52 | W104: 2712359.66 | X104: 1155596.86 | Y104: 0.4260485352 | AA104: 206879.68 | AC104: 251776.31 | AD104: 241917.34 | AE104: 330129.3 | AF104: 119005.12 | AG104: 84110.31 | AH104: 468389.37 | AI104: 448366.93 | AJ104: 395660.87 | AK104: 50727.28 | AL104: 279714.02 | AM104: 398927.76 | AN104: 482065.47 | AP104: 617385.32 | AQ104: 176267.9 | AR104: 64924.42 | AS104: 309300.95 | AT104: 80402.99 | AU104: 500918.55 | AV104: 519917.36 | AW104: 387404.5 | AX104: 0 | AY104: 0 | AZ104: 0 | BA104: 0
A105: %,V5010005 | B105: 5010005 | C105: Fuel - Deferred | F105: 6623129 | G105: 1180481 | H105: 5442648 | I105: 4.610534181 | K105: 6862548.24 | L105: 1655699.31 | M105: 5206848.93 | N105: 3.144803467 | Q105: 1966611.02 | R105: -6359877 | S105: 8326488.02 | T105: 1.309221549 | V105: 7260073 | W105: -1652975 | X105: 8913048 | Y105: 5.392125108 | AA105: -5130859.31 | AC105: -2906738.69 | AD105: 3050820 | AE105: 2532334.04 | AF105: 776544.96 | AG105: 4562616 | AH105: -4139638.98 | AI105: -3400719.02 | AJ105: 1180481 | AK105: 769849.84 | AL105: 765316.16 | AM105: 536171 | AN105: -1673812.24 | AP105: -5123318.9 | AQ105: 2751467.731 | AR105: 1805156.56 | AS105: 1044760.324 | AT105: 4417871.505 | AU105: -3340582.92 | AV105: -1315935.06 | AW105: 6623129 | AX105: 3655819 | AY105: -1883787 | AZ105: 0 | BA105: 0
A106: %,V5010012 | B106: 5010012 | C106: Ash Sales Proceeds | F106: 489.78 | G106: 1997.07 | H106: -1507.29 | I106: -0.7547507098 | K106: 3509.33 | L106: 12670.91 | M106: -9161.58 | N106: -0.723040413 | Q106: -245.89 | R106: 6192.74 | S106: -6438.63 | T106: -1.039706172 | V106: 9692.47 | W106: 12670.91 | X106: -2978.44 | Y106: -0.2350612545 | AA106: 0 | AC106: 0 | AD106: 0 | AE106: 0 | AF106: 2495.48 | AG106: 3982.69 | AH106: 2065.77 | AI106: 2129.9 | AJ106: 1997.07 | AK106: 2418.11 | AL106: 584.27 | AM106: 1944.45 | AN106: 1236.31 | AP106: 992.95 | AQ106: 2082.52 | AR106: 259.49 | AS106: -1356.98 | AT106: 1777.24 | AU106: -1796.76 | AV106: 1061.09 | AW106: 489.78 | AX106: 0 | AY106: 0 | AZ106: 0 | BA106: 0
A107: %,V5010013 | B107: 5010013 | C107: Fuel Survey Activity | F107: 0 | G107: 0 | H107: 0 | I107: 0 | K107: 4136038.43 | L107: 49281.13 | M107: 4086757.3 | N107: N.M. | Q107: 4136038.43 | R107: 0 | S107: 4136038.43 | T107: N.M. | V107: 4136038.43 | W107: 49281.13 | X107: 4086757.3 | Y107: N.M. | AA107: 0 | AC107: 0 | AD107: 0 | AE107: 0 | AF107: 0 | AG107: 49281.13 | AH107: 0 | AI107: 0 | AJ107: 0 | AK107: 0 | AL107: 0 | AM107: 0 | AN107: 0 | AP107: 0 | AQ107: 0 | AR107: 0 | AS107: 0 | AT107: 0 | AU107: 4136038.43 | AV107: 0 | AW107: 0 | AX107: 0 | AY107: 0 | AZ107: 0 | BA107: 0
A108: %,V5010019 | B108: 5010019 | C108: Fuel Oil Consumed | F108: 229206.49 | G108: 213404.01 | H108: 15802.48 | I108: 0.0740495926 | K108: 2929358.79 | L108: 2374791.64 | M108: 554567.15 | N108: 0.2335224449 | Q108: 1566060.65 | R108: 904377.35 | S108: 661683.3 | T108: 0.7316451479 | V108: 4283898.47 | W108: 3198361.45 | X108: 1085537.02 | Y108: 0.3394041096 | AA108: 445710.76 | AC108: 209165.03 | AD108: 532032.34 | AE108: 328573.79 | AF108: 52688.09 | AG108: 347955.04 | AH108: 342039.11 | AI108: 348934.23 | AJ108: 213404.01 | AK108: 339748.07 | AL108: 712070.8 | AM108: 142901.44 | AN108: 159819.37 | AP108: 170057.37 | AQ108: 269009.72 | AR108: 666930.93 | AS108: 96647.53 | AT108: 160652.59 | AU108: 1026257.44 | AV108: 310596.72 | AW108: 229206.49 | AX108: 0 | AY108: 0 | AZ108: 0 | BA108: 0
A109: %,V5010020 | B109: 5010020 | C109: Nat Gas Consumed Steam | F109: 3920242.98 | G109: 3547914.08 | H109: 372328.9 | I109: 0.104943043 | K109: 29337017.6 | L109: 23811687.18 | M109: 5525330.42 | N109: 0.2320427939 | Q109: 12013675.66 | R109: 9287663.67 | S109: 2726011.99 | T109: 0.2935089046 | V109: 33290457.19 | W109: 30404309.67 | X109: 2886147.52 | Y109: 0.09492560599 | AA109: 2253817.05 | AC109: 3036479.56 | AD109: 3605427.52 | AE109: 2852729.58 | AF109: 2538606.5 | AG109: 2490780.35 | AH109: 2607257.08 | AI109: 3132492.51 | AJ109: 3547914.08 | AK109: 776359.38 | AL109: -20.64 | AM109: 49.17 | AN109: 3177051.68 | AP109: 4815547.63 | AQ109: 5005197.61 | AR109: 3092259.22 | AS109: 1956384.15 | AT109: 2453953.33 | AU109: 3625585.34 | AV109: 4467847.34 | AW109: 3920242.98 | AX109: -3920242.98 | AY109: 0 | AZ109: 0 | BA109: 0
A110: %,V5010021 | B110: 5010021 | C110: Transp Gas Consumed Steam | F110: 55139.12 | G110: 16573.64 | H110: 38565.48 | I110: 2.326916718 | K110: 370272.06 | L110: 591651.71 | M110: -221379.65 | N110: -0.3741722474 | Q110: 176238.71 | R110: 95351.74 | S110: 80886.97 | T110: 0.8483009329 | V110: 403116.26 | W110: 665556.25 | X110: -262439.99 | Y110: -0.3943167689 | AA110: 10442.07 | AC110: 43110.1 | AD110: 380679.99 | AE110: 35985.78 | AF110: 30861.41 | AG110: 5662.69 | AH110: 20964.58 | AI110: 57813.52 | AJ110: 16573.64 | AK110: 9645.21 | AL110: 65739.41 | AM110: -2183.55 | AN110: -40356.87 | AP110: 27014.1 | AQ110: 40059.22 | AR110: 41972.07 | AS110: 44452.54 | AT110: 40535.42 | AU110: 86157.96 | AV110: 34941.63 | AW110: 55139.12 | AX110: -65011.73 | AY110: 0 | AZ110: 0 | BA110: 0
A111: %,V5010027 | B111: 5010027 | C111: Gypsum handling/disposal costs | F111: 175772.97 | G111: 170292.64 | H111: 5480.33 | I111: 0.0321818371 | K111: 945375.87 | L111: 963248.3 | M111: -17872.43 | N111: -0.01855433329 | Q111: 419023.83 | R111: 493008.95 | S111: -73985.12 | T111: -0.150068513 | V111: 1372399.25 | W111: 1520487.77 | X111: -148088.52 | Y111: -0.09739540358 | AA111: 184449.12 | AC111: 70654.37 | AD111: 106802.58 | AE111: 49508 | AF111: 74964.81 | AG111: 168309.59 | AH111: 210826.82 | AI111: 111889.49 | AJ111: 170292.64 | AK111: 51232.41 | AL111: 122197.09 | AM111: 125888.53 | AN111: 127705.35 | AP111: 65968.69 | AQ111: 149021.03 | AR111: 152673.25 | AS111: 106262.46 | AT111: 52426.61 | AU111: 119621.95 | AV111: 123628.91 | AW111: 175772.97 | AX111: 0 | AY111: 0 | AZ111: 0 | BA111: 0
A112: %,V5010028 | B112: 5010028 | C112: Gypsum Sales Proceeds | F112: -126577.74 | G112: -152093.33 | H112: 25515.59 | I112: 0.1677627152 | K112: -826323.99 | L112: -942159.14 | M112: 115835.15 | N112: 0.1229464801 | Q112: -274660.03 | R112: -343897.51 | S112: 69237.48 | T112: 0.2013317282 | V112: -1169842.36 | W112: -1302229.4 | X112: 132387.04 | Y112: 0.1016618424 | AA112: -80002.25 | AC112: 0 | AD112: -327903.21 | AE112: -115514.48 | AF112: -96854.21 | AG112: -57989.73 | AH112: -71261.65 | AI112: -120542.53 | AJ112: -152093.33 | AK112: -108505.54 | AL112: -59705.71 | AM112: -85231.73 | AN112: -90075.39 | AP112: -242087.17 | AQ112: -120703.2 | AR112: -36655.22 | AS112: -55250.53 | AT112: -96967.84 | AU112: -57542.76 | AV112: -90539.53 | AW112: -126577.74 | AX112: 0 | AY112: 0 | AZ112: 0 | BA112: 0
A113: %,V5010034 | B113: 5010034 | C113: Gas Transp Res Fees-Steam | F113: 503204.39 | G113: 549936 | H113: -46731.61 | I113: -0.08497645181 | K113: 4103660.87 | L113: 4246703.28 | M113: -143042.41 | N113: -0.03368316564 | Q113: 1494352.79 | R113: 1635408 | S113: -141055.21 | T113: -0.08625077656 | V113: 6095116.99 | W113: 6288038.64 | X113: -192921.65 | Y113: -0.03068073545 | AA113: 517533.84 | AC113: 517533.84 | AD113: 487573.2 | AE113: 515244.24 | AF113: 501989.04 | AG113: 588954.96 | AH113: 538272 | AI113: 547200 | AJ113: 549936 | AK113: 535536 | AL113: 549928.84 | AM113: 444712.48 | AN113: 461278.8 | AP113: 554413.68 | AQ113: 508975.2 | AR113: 552175.2 | AS113: 537775.2 | AT113: 455968.8 | AU113: 487940.4 | AV113: 503208 | AW113: 503204.39 | AX113: -503208 | AY113: 0 | AZ113: 0 | BA113: 0
A114: %,V5010040 | B114: 5010040 | C114: Gas Procuremnt Sales Net | F114: -0.11 | G114: 999.98 | H114: -1000.09 | I114: -1.000110002 | K114: 237983.64 | L114: 1141696.84 | M114: -903713.2 | N114: -0.7915526857 | Q114: -0.08 | R114: 76986.76 | S114: -76986.84 | T114: -1.000001039 | V114: 1795089.5 | W114: 1227591.62 | X114: 567497.88 | Y114: 0.4622855604 | AA114: 91095.42 | AC114: 238539.78 | AD114: 463132.93 | AE114: 357814.79 | AF114: -177.83 | AG114: 5400.41 | AH114: 75987 | AI114: -0.22 | AJ114: 999.98 | AK114: -0.092 | AL114: 638344.962 | AM114: 918760.78 | AN114: 0.21 | AP114: 122978.916 | AQ114: 172291.543 | AR114: 158017.731 | AS114: -219487.01 | AT114: 4182.54 | AU114: -0.045 | AV114: 0.075 | AW114: -0.11 | AX114: 0.13 | AY114: 0 | AZ114: 0 | BA114: 0
A115: %,FACCOUNT,TGL_FERC_ACCT,XDYYNNY01,N5010 | C115: Fuel Expense | F115: 19594785.65 | G115: 15532534.39 | H115: 4062251.26 | I115: 0.2615317731 | K115: 101982198.2 | L115: 98087429.1 | M115: 3894769.12 | N115: 0.03970711798 | Q115: 46946940.73 | R115: 38652667.29 | S115: 8294273.44 | T115: 0.2145847627 | V115: 139273193 | W115: 119051641.1 | X115: 20221551.92 | Y115: 0.1698552975 | AA115: 5460873.01 | AC115: 9148447.64 | AD115: 17338329.04 | AE115: 15057336.63 | AF115: 7914075.64 | AG115: 9976572.86 | AH115: 11119550.79 | AI115: 12000582.11 | AJ115: 15532534.39 | AK115: 4284734.468 | AL115: 9030477.472 | AM115: 10887720.35 | AN115: 13088062.52 | AP115: 13917644.14 | AQ115: 13110349.97 | AR115: 9129546.621 | AS115: 9408019.944 | AT115: 9469696.815 | AU115: 12486609.27 | AV115: 14865545.81 | AW115: 19594785.65 | AX115: -832643.58 | AY115: -1883787 | AZ115: 0 | BA115: 0
A117: %,V5000000 | B117: 5000000 | C117: Oper Supervision & Engineering | F117: 405316.32 | G117: 427027.19 | H117: =+F117-G117 -> -21710.87 | I117: =IF(G117<0,IF(H117=0,0,IF(OR(G117=0,F117=0),"N.M.",IF(ABS(H117/G117)>=10,"N.M.",H117/(-G117)))),IF(H117=0,0,IF(OR(G117=0,F117=0),"N.M.",IF(ABS(H117/G117)>=10,"N.M.",H117/G117)))) -> -0.05084189136 | K117: 2798103.73 | L117: 3168229.93 | M117: =+K117-L117 -> -370126.2 | N117: =IF(L117<0,IF(M117=0,0,IF(OR(L117=0,K117=0),"N.M.",IF(ABS(M117/L117)>=10,"N.M.",M117/(-L117)))),IF(M117=0,0,IF(OR(L117=0,K117=0),"N.M.",IF(ABS(M117/L117)>=10,"N.M.",M117/L117)))) -> -0.1168242862 | Q117: 1186864.84 | R117: 1205315.73 | S117: =+Q117-R117 -> -18450.89 | T117: =IF(R117<0,IF(S117=0,0,IF(OR(R117=0,Q117=0),"N.M.",IF(ABS(S117/R117)>=10,"N.M.",S117/(-R117)))),IF(S117=0,0,IF(OR(R117=0,Q117=0),"N.M.",IF(ABS(S117/R117)>=10,"N.M.",S117/R117)))) -> -0.01530793098 | V117: 4056798.52 | W117: 4931057.16 | X117: =+V117-W117 -> -874258.64 | Y117: =IF(W117<0,IF(X117=0,0,IF(OR(W117=0,V117=0),"N.M.",IF(ABS(X117/W117)>=10,"N.M.",X117/(-W117)))),IF(X117=0,0,IF(OR(W117=0,V117=0),"N.M.",IF(ABS(X117/W117)>=10,"N.M.",X117/W117)))) -> -0.1772963913 | AA117: 421795.31 | AC117: 372031.84 | AD117: 391866.57 | AE117: 426000.98 | AF117: 352953.66 | AG117: 420061.15 | AH117: 374170.73 | AI117: 404117.81 | AJ117: 427027.19 | AK117: 363249 | AL117: 248673.26 | AM117: 319519.15 | AN117: 327253.38 | AP117: 336540.33 | AQ117: 344075.13 | AR117: 306873.26 | AS117: 318921.29 | AT117: 304828.88 | AU117: 340471.02 | AV117: 441077.5 | AW117: 405316.32 | AX117: 4123.65 | AY117: 0 | AZ117: 0 | BA117: 0
A118: %,V5000003 | B118: 5000003 | C118: Cnstr Srchrge Op Sup & Eng Exp | F118: 64.34 | G118: 0 | H118: 64.34 | I118: N.M. | K118: 64.34 | L118: 0 | M118: 64.34 | N118: N.M. | Q118: 64.34 | R118: 0 | S118: 64.34 | T118: N.M. | V118: 64.34 | W118: 0 | X118: 64.34 | Y118: N.M. | AA118: 0 | AC118: 0 | AD118: 0 | AE118: 0 | AF118: 0 | AG118: 0 | AH118: 0 | AI118: 0 | AJ118: 0 | AK118: 0 | AL118: 0 | AM118: 0 | AN118: 0 | AP118: 0 | AQ118: 0 | AR118: 0 | AS118: 0 | AT118: 0 | AU118: 0 | AV118: 0 | AW118: 64.34 | AX118: 0 | AY118: 0 | AZ118: 0 | BA118: 0
A119: %,V5000005 | B119: 5000005 | C119: Deferred OM - 20% Non FMR | F119: 0 | G119: 0 | H119: 0 | I119: 0 | K119: 0 | L119: 0 | M119: 0 | N119: 0 | Q119: 0 | R119: 0 | S119: 0 | T119: 0 | V119: 0 | W119: 0 | X119: 0 | Y119: 0 | AA119: 0 | AC119: 0 | AD119: 0 | AE119: 0 | AF119: 17.08 | AG119: -17.08 | AH119: 0 | AI119: 0 | AJ119: 0 | AK119: 0 | AL119: 0 | AM119: 0 | AN119: 0 | AP119: 0 | AQ119: 0 | AR119: 0 | AS119: 0 | AT119: 0 | AU119: 0 | AV119: 0 | AW119: 0 | AX119: 0 | AY119: 0 | AZ119: 0 | BA119: 0
A120: %,V5020000 | B120: 5020000 | C120: Steam Expenses | F120: 163552.9 | G120: 133384.15 | H120: 30168.75 | I120: 0.2261794224 | K120: 1353820.25 | L120: 1039615.4 | M120: 314204.85 | N120: 0.3022318157 | Q120: 527316.25 | R120: 375032.52 | S120: 152283.73 | T120: 0.4060547336 | V120: 1813936.5 | W120: 1471516.75 | X120: 342419.75 | Y120: 0.2326985065 | AA120: 122911.96 | AC120: 115485.12 | AD120: 108492.7 | AE120: 134855.71 | AF120: 134616.76 | AG120: 171132.59 | AH120: 125604.92 | AI120: 116043.45 | AJ120: 133384.15 | AK120: 110678.66 | AL120: 109282.58 | AM120: 137591.82 | AN120: 102563.19 | AP120: 263752.04 | AQ120: 99111.26 | AR120: 132712.56 | AS120: 183480.07 | AT120: 147448.07 | AU120: 161081.79 | AV120: 202681.56 | AW120: 163552.9 | AX120: -53.3 | AY120: 0 | AZ120: 0 | BA120: 0
A121: %,V5020002 | B121: 5020002 | C121: Urea Expense | F121: 88624.99 | G121: 122742.36 | H121: -34117.37 | I121: -0.2779592147 | K121: 569252.08 | L121: 896348.94 | M121: -327096.86 | N121: -0.3649213441 | Q121: 261173.61 | R121: 390749.28 | S121: -129575.67 | T121: -0.3316082118 | V121: 950697.69 | W121: 1259773.14 | X121: -309075.45 | Y121: -0.2453421495 | AA121: 188912.43 | AC121: 162136.21 | AD121: 154546.36 | AE121: 83655.59 | AF121: 46219.23 | AG121: 59042.27 | AH121: 160407.34 | AI121: 107599.58 | AJ121: 122742.36 | AK121: 12802.71 | AL121: 95424.8 | AM121: 115114.25 | AN121: 158103.85 | AP121: 178812.53 | AQ121: 40869.72 | AR121: 13553.71 | AS121: 73029.31 | AT121: 1813.2 | AU121: 82902.21 | AV121: 89646.41 | AW121: 88624.99 | AX121: 0 | AY121: 0 | AZ121: 0 | BA121: 0
A122: %,V5020004 | B122: 5020004 | C122: Lime-Related Expenses | F122: 285011.39 | G122: 260968.33 | H122: 24043.06 | I122: 0.092130183 | K122: 1445071.87 | L122: 1442669.32 | M122: 2402.55 | N122: 0.001665350449 | Q122: 756770.94 | R122: 864850.54 | S122: -108079.6 | T122: -0.1249691074 | V122: 2278119.44 | W122: 1813348.04 | X122: 464771.4 | Y122: 0.2563056786 | AA122: 198194.17 | AC122: 171562.82 | AD122: 113800.15 | AE122: 192909.48 | AF122: 73195.99 | AG122: 26350.34 | AH122: 297633.69 | AI122: 306248.52 | AJ122: 260968.33 | AK122: 47978.45 | AL122: 187378.03 | AM122: 277619.22 | AN122: 320071.87 | AP122: 293674.01 | AQ122: 108042.89 | AR122: 28337.16 | AS122: 201531.73 | AT122: 56715.14 | AU122: 92368.08 | AV122: 379391.47 | AW122: 285011.39 | AX122: 0 | AY122: 0 | AZ122: 0 | BA122: 0
A123: %,V5020005 | B123: 5020005 | C123: Polymer expense | F123: 0 | G123: 0 | H123: 0 | I123: 0 | K123: 0 | L123: 0 | M123: 0 | N123: 0 | Q123: 0 | R123: 0 | S123: 0 | T123: 0 | V123: 0 | W123: -55971.28 | X123: 55971.28 | Y123: N.M. | AA123: -19725.08 | AC123: 0 | AD123: 0 | AE123: 0 | AF123: 0 | AG123: 0 | AH123: 0 | AI123: 0 | AJ123: 0 | AK123: 0 | AL123: 0 | AM123: 0 | AN123: 0 | AP123: 0 | AQ123: 0 | AR123: 0 | AS123: 0 | AT123: 0 | AU123: 0 | AV123: 0 | AW123: 0 | AX123: 0 | AY123: 0 | AZ123: 0 | BA123: 0
A124: %,V5050000 | B124: 5050000 | C124: Electric Expenses | F124: 12544.92 | G124: 2315.26 | H124: 10229.66 | I124: 4.41836338 | K124: 58983.33 | L124: 27278.99 | M124: 31704.34 | N124: 1.162225581 | Q124: 33054.58 | R124: 15028.25 | S124: 18026.33 | T124: 1.199496282 | V124: 76124.55 | W124: 34112.66 | X124: 42011.89 | Y124: 1.231563003 | AA124: 4333.17 | AC124: 5801.35 | AD124: 857.08 | AE124: 4719.11 | AF124: 618.24 | AG124: 254.96 | AH124: 6030.3 | AI124: 6682.69 | AJ124: 2315.26 | AK124: 2943.89 | AL124: 5479.62 | AM124: 9491.08 | AN124: -773.37 | AP124: 1444.38 | AQ124: -433.93 | AR124: 1801.63 | AS124: 16578.74 | AT124: 6537.93 | AU124: 13658.29 | AV124: 6851.37 | AW124: 12544.92 | AX124: 0 | AY124: 0 | AZ124: 0 | BA124: 0
A125: %,V5060000 | B125: 5060000 | C125: Misc Steam Power Expenses | F125: 264385.36 | G125: 658988.77 | H125: -394603.41 | I125: -0.5988014181 | K125: 3106220.856 | L125: 4646422.97 | M125: -1540202.114 | N125: -0.3314812543 | Q125: 1125190.16 | R125: 2486666.79 | S125: -1361476.63 | T125: -0.547510682 | V125: 4663161.716 | W125: 6781372.84 | X125: -2118211.124 | Y125: -0.3123572725 | AA125: 387516.82 | AC125: 535082.45 | AD125: 391184.84 | AE125: 504702.22 | AF125: 393753.88 | AG125: 335032.79 | AH125: 1478949.49 | AI125: 348728.53 | AJ125: 658988.77 | AK125: 383201.15 | AL125: 355781.25 | AM125: 373319.78 | AN125: 444638.68 | AP125: 417841.51 | AQ125: 352355.376 | AR125: 381726.44 | AS125: 374041.75 | AT125: 455065.62 | AU125: 412492.9 | AV125: 448311.9 | AW125: 264385.36 | AX125: 9159.52 | AY125: 0 | AZ125: 0 | BA125: 0
A126: %,V5060002 | B126: 5060002 | C126: Misc Steam Power Exp-Assoc | F126: 3702.6 | G126: 4268.49 | H126: -565.89 | I126: -0.1325738142 | K126: 33328.47 | L126: 35147.82 | M126: -1819.35 | N126: -0.05176281203 | Q126: 10809.84 | R126: 13644.33 | S126: -2834.49 | T126: -0.2077412376 | V126: 50174 | W126: 47915.61 | X126: 2258.39 | Y126: 0.04713265677 | AA126: 4552.96 | AC126: 4014 | AD126: 4692.68 | AE126: 4482.46 | AF126: 4342 | AG126: 3972.35 | AH126: 5250.72 | AI126: 4125.12 | AJ126: 4268.49 | AK126: 3753.34 | AL126: 3617.8 | AM126: 4441.55 | AN126: 5032.84 | AP126: 4967.41 | AQ126: 5161.98 | AR126: 4254.84 | AS126: 4662.2 | AT126: 3472.2 | AU126: 3074.38 | AV126: 4032.86 | AW126: 3702.6 | AX126: 0 | AY126: 0 | AZ126: 0 | BA126: 0
A127: %,V5060004 | B127: 5060004 | C127: NSR Settlement Expense | F127: 0 | G127: 0 | H127: 0 | I127: 0 | K127: 0 | L127: 10130 | M127: -10130 | N127: N.M. | Q127: 0 | R127: 0 | S127: 0 | T127: 0 | V127: 0 | W127: 10130 | X127: -10130 | Y127: N.M. | AA127: 0 | AC127: 0 | AD127: 0 | AE127: 10130 | AF127: 0 | AG127: 0 | AH127: 0 | AI127: 0 | AJ127: 0 | AK127: 0 | AL127: 0 | AM127: 0 | AN127: 0 | AP127: 0 | AQ127: 0 | AR127: 0 | AS127: 0 | AT127: 0 | AU127: 0 | AV127: 0 | AW127: 0 | AX127: 0 | AY127: 0 | AZ127: 0 | BA127: 0
A128: %,V5060011 | B128: 5060011 | C128: BSRR O/U Recovery-Oper Costs | F128: 0 | G128: 0 | H128: 0 | I128: 0 | K128: 0 | L128: 367.46 | M128: -367.46 | N128: N.M. | Q128: 0 | R128: -1.1 | S128: 1.1 | T128: N.M. | V128: 0 | W128: 489.34 | X128: -489.34 | Y128: N.M. | AA128: 121.88 | AC128: -0.49 | AD128: 0 | AE128: 157.27 | AF128: -3.17 | AG128: 214.95 | AH128: -1.1 | AI128: 0 | AJ128: 0 | AK128: 0 | AL128: 0 | AM128: 0 | AN128: 0 | AP128: 0 | AQ128: 0 | AR128: 0 | AS128: 0 | AT128: 0 | AU128: 0 | AV128: 0 | AW128: 0 | AX128: 0 | AY128: 0 | AZ128: 0 | BA128: 0
A129: %,V5070006 | B129: 5070006 | C129: Rents - Associated | F129: 193.17 | G129: 0 | H129: 193.17 | I129: N.M. | K129: 1545.36 | L129: 0 | M129: 1545.36 | N129: N.M. | Q129: 579.51 | R129: 0 | S129: 579.51 | T129: N.M. | V129: 1545.36 | W129: 0 | X129: 1545.36 | Y129: N.M. | AA129: 0 | AC129: 0 | AD129: 0 | AE129: 0 | AF129: 0 | AG129: 0 | AH129: 0 | AI129: 0 | AJ129: 0 | AK129: 0 | AL129: 0 | AM129: 0 | AN129: 0 | AP129: 193.17 | AQ129: 193.17 | AR129: 193.17 | AS129: 193.17 | AT129: 193.17 | AU129: 193.17 | AV129: 193.17 | AW129: 193.17 | AX129: 0 | AY129: 0 | AZ129: 0 | BA129: 0
A130: %,V5080017 | B130: 5080017 | C130: IPP Oper - Training/Travel | F130: 0 | G130: 0 | H130: 0 | I130: 0 | K130: 0 | L130: 0 | M130: 0 | N130: 0 | Q130: 0 | R130: 0 | S130: 0 | T130: 0 | V130: 0 | W130: -0.02 | X130: 0.02 | Y130: N.M. | AA130: 0 | AC130: 0 | AD130: 0 | AE130: 0 | AF130: 0 | AG130: 0 | AH130: 0 | AI130: 0 | AJ130: 0 | AK130: 0 | AL130: 0 | AM130: 0 | AN130: 0 | AP130: 0 | AQ130: 0 | AR130: 0 | AS130: 0 | AT130: 0 | AU130: 0 | AV130: 0 | AW130: 0 | AX130: 0 | AY130: 0 | AZ130: 0 | BA130: 0
A131: %,V5090000 | B131: 5090000 | C131: Allow Consum Title IV SO2 | F131: 1548.45 | G131: 7083.39 | H131: -5534.94 | I131: -0.7813970429 | K131: 11675.4 | L131: 27013.39 | M131: -15337.99 | N131: -0.5677921209 | Q131: 5136.31 | R131: 19064.42 | S131: -13928.11 | T131: -0.7305813657 | V131: 22846.9 | W131: 30716.92 | X131: -7870.02 | Y131: -0.2562112347 | AA131: 1834.86 | AC131: 1756.06 | AD131: 1133.34 | AE131: 2590.5 | AF131: 1254.77 | AG131: 1214.3 | AH131: 5019.08 | AI131: 6961.95 | AJ131: 7083.39 | AK131: 485.72 | AL131: 4250.03 | AM131: 3238.11 | AN131: 3197.64 | AP131: 2913.47 | AQ131: 2114.95 | AR131: 226.6 | AS131: 944.17 | AT131: 339.9 | AU131: 1321.84 | AV131: 2266.02 | AW131: 1548.45 | AX131: 0 | AY131: 0 | AZ131: 0 | BA131: 0
A132: %,V5090001 | B132: 5090001 | C132: Allowance Consumption - NOx | F132: 0 | G132: 0 | H132: 0 | I132: 0 | K132: 0 | L132: 0 | M132: 0 | N132: 0 | Q132: 0 | R132: 0 | S132: 0 | T132: 0 | V132: 42857.15 | W132: 0 | X132: 42857.15 | Y132: N.M. | AA132: 0 | AC132: 0 | AD132: 0 | AE132: 0 | AF132: 0 | AG132: 0 | AH132: 0 | AI132: 0 | AJ132: 0 | AK132: 42857.15 | AL132: 0 | AM132: 0 | AN132: 0 | AP132: 0 | AQ132: 0 | AR132: 0 | AS132: 0 | AT132: 0 | AU132: 0 | AV132: 0 | AW132: 0 | AX132: 0 | AY132: 0 | AZ132: 0 | BA132: 0
A133: %,V5090009 | B133: 5090009 | C133: Allow Consumpt CSAPR SO2 | F133: 7.46 | G133: 33.95 | H133: -26.49 | I133: -0.7802650957 | K133: 56.79 | L133: 129.51 | M133: -72.72 | N133: -0.5615010424 | Q133: 24.85 | R133: 91.38 | S133: -66.53 | T133: -0.7280586562 | V133: 110.32 | W133: 149.76 | X133: -39.44 | Y133: -0.2633547009 | AA133: 9.36 | AC133: 8.46 | AD133: 5.43 | AE133: 12.41 | AF133: 6.01 | AG133: 5.82 | AH133: 24.05 | AI133: 33.38 | AJ133: 33.95 | AK133: 2.32 | AL133: 20.37 | AM133: 15.52 | AN133: 15.32 | AP133: 14.22 | AQ133: 10.33 | AR133: 1.11 | AS133: 4.62 | AT133: 1.66 | AU133: 6.46 | AV133: 10.93 | AW133: 7.46 | AX133: 0 | AY133: 0 | AZ133: 0 | BA133: 0
A134: %,FACCOUNT,TGL_FERC_ACCT,XDYYNNY01,N500-509_EXC_501 | C134: Steam Power Operations | F134: 1224951.9 | G134: 1616811.89 | H134: -391859.99 | I134: -0.2423658512 | K134: 9378122.476 | L134: 11293353.73 | M134: -1915231.254 | N134: -0.169589238 | Q134: 3906985.23 | R134: 5370442.14 | S134: -1463456.91 | T134: -0.2725021277 | V134: 13956436.49 | W134: 16324610.92 | X134: -2368174.434 | Y134: -0.1450677413 | AA134: 1310457.84 | AC134: 1367877.82 | AD134: 1166579.15 | AE134: 1364215.73 | AF134: 1006974.45 | AG134: 1017264.44 | AH134: 2453089.22 | AI134: 1300541.03 | AJ134: 1616811.89 | AK134: 967952.39 | AL134: 1009907.74 | AM134: 1240350.48 | AN134: 1360103.4 | AP134: 1500153.07 | AQ134: 951500.876 | AR134: 869680.48 | AS134: 1173387.05 | AT134: 976415.77 | AU134: 1107570.14 | AV134: 1574463.19 | AW134: 1224951.9 | AX134: 13229.87 | AY134: 0 | AZ134: 0 | BA134: 0
A136: %,FACCOUNT,TGL_FERC_ACCT,XDYYNNY01,N517-525 | C136: Nuclear Power Operations | F136: 0 | G136: 0 | H136: =+F136-G136 -> 0 | I136: =IF(G136<0,IF(H136=0,0,IF(OR(G136=0,F136=0),"N.M.",IF(ABS(H136/G136)>=10,"N.M.",H136/(-G136)))),IF(H136=0,0,IF(OR(G136=0,F136=0),"N.M.",IF(ABS(H136/G136)>=10,"N.M.",H136/G136)))) -> 0 | K136: 0 | L136: 0 | M136: =+K136-L136 -> 0 | N136: =IF(L136<0,IF(M136=0,0,IF(OR(L136=0,K136=0),"N.M.",IF(ABS(M136/L136)>=10,"N.M.",M136/(-L136)))),IF(M136=0,0,IF(OR(L136=0,K136=0),"N.M.",IF(ABS(M136/L136)>=10,"N.M.",M136/L136)))) -> 0 | Q136: 0 | R136: 0 | S136: =+Q136-R136 -> 0 | T136: =IF(R136<0,IF(S136=0,0,IF(OR(R136=0,Q136=0),"N.M.",IF(ABS(S136/R136)>=10,"N.M.",S136/(-R136)))),IF(S136=0,0,IF(OR(R136=0,Q136=0),"N.M.",IF(ABS(S136/R136)>=10,"N.M.",S136/R136)))) -> 0 | V136: 0 | W136: 0 | X136: =+V136-W136 -> 0 | Y136: =IF(W136<0,IF(X136=0,0,IF(OR(W136=0,V136=0),"N.M.",IF(ABS(X136/W136)>=10,"N.M.",X136/(-W136)))),IF(X136=0,0,IF(OR(W136=0,V136=0),"N.M.",IF(ABS(X136/W136)>=10,"N.M.",X136/W136)))) -> 0 | AA136: 0 | AC136: 0 | AD136: 0 | AE136: 0 | AF136: 0 | AG136: 0 | AH136: 0 | AI136: 0 | AJ136: 0 | AK136: 0 | AL136: 0 | AM136: 0 | AN136: 0 | AP136: 0 | AQ136: 0 | AR136: 0 | AS136: 0 | AT136: 0 | AU136: 0 | AV136: 0 | AW136: 0 | AX136: 0 | AY136: 0 | AZ136: 0 | BA136: 0
A138: %,FACCOUNT,TGL_FERC_ACCT,XDYYNNY01,N535-540 | C138: Hydraulic Power Operations | F138: 0 | G138: 0 | H138: =+F138-G138 -> 0 | I138: =IF(G138<0,IF(H138=0,0,IF(OR(G138=0,F138=0),"N.M.",IF(ABS(H138/G138)>=10,"N.M.",H138/(-G138)))),IF(H138=0,0,IF(OR(G138=0,F138=0),"N.M.",IF(ABS(H138/G138)>=10,"N.M.",H138/G138)))) -> 0 | K138: 0 | L138: 0 | M138: =+K138-L138 -> 0 | N138: =IF(L138<0,IF(M138=0,0,IF(OR(L138=0,K138=0),"N.M.",IF(ABS(M138/L138)>=10,"N.M.",M138/(-L138)))),IF(M138=0,0,IF(OR(L138=0,K138=0),"N.M.",IF(ABS(M138/L138)>=10,"N.M.",M138/L138)))) -> 0 | Q138: 0 | R138: 0 | S138: =+Q138-R138 -> 0 | T138: =IF(R138<0,IF(S138=0,0,IF(OR(R138=0,Q138=0),"N.M.",IF(ABS(S138/R138)>=10,"N.M.",S138/(-R138)))),IF(S138=0,0,IF(OR(R138=0,Q138=0),"N.M.",IF(ABS(S138/R138)>=10,"N.M.",S138/R138)))) -> 0 | V138: 0 | W138: 0 | X138: =+V138-W138 -> 0 | Y138: =IF(W138<0,IF(X138=0,0,IF(OR(W138=0,V138=0),"N.M.",IF(ABS(X138/W138)>=10,"N.M.",X138/(-W138)))),IF(X138=0,0,IF(OR(W138=0,V138=0),"N.M.",IF(ABS(X138/W138)>=10,"N.M.",X138/W138)))) -> 0 | AA138: 0 | AC138: 0 | AD138: 0 | AE138: 0 | AF138: 0 | AG138: 0 | AH138: 0 | AI138: 0 | AJ138: 0 | AK138: 0 | AL138: 0 | AM138: 0 | AN138: 0 | AP138: 0 | AQ138: 0 | AR138: 0 | AS138: 0 | AT138: 0 | AU138: 0 | AV138: 0 | AW138: 0 | AX138: 0 | AY138: 0 | AZ138: 0 | BA138: 0
A140: %,V5490000 | B140: 5490000 | C140: Misc Other Pwer Generation Exp | F140: 0 | G140: 0 | H140: =+F140-G140 -> 0 | I140: =IF(G140<0,IF(H140=0,0,IF(OR(G140=0,F140=0),"N.M.",IF(ABS(H140/G140)>=10,"N.M.",H140/(-G140)))),IF(H140=0,0,IF(OR(G140=0,F140=0),"N.M.",IF(ABS(H140/G140)>=10,"N.M.",H140/G140)))) -> 0 | K140: 0 | L140: 0 | M140: =+K140-L140 -> 0 | N140: =IF(L140<0,IF(M140=0,0,IF(OR(L140=0,K140=0),"N.M.",IF(ABS(M140/L140)>=10,"N.M.",M140/(-L140)))),IF(M140=0,0,IF(OR(L140=0,K140=0),"N.M.",IF(ABS(M140/L140)>=10,"N.M.",M140/L140)))) -> 0 | Q140: 0 | R140: 0 | S140: =+Q140-R140 -> 0 | T140: =IF(R140<0,IF(S140=0,0,IF(OR(R140=0,Q140=0),"N.M.",IF(ABS(S140/R140)>=10,"N.M.",S140/(-R140)))),IF(S140=0,0,IF(OR(R140=0,Q140=0),"N.M.",IF(ABS(S140/R140)>=10,"N.M.",S140/R140)))) -> 0 | V140: 0 | W140: -420846.12 | X140: =+V140-W140 -> 420846.12 | Y140: =IF(W140<0,IF(X140=0,0,IF(OR(W140=0,V140=0),"N.M.",IF(ABS(X140/W140)>=10,"N.M.",X140/(-W140)))),IF(X140=0,0,IF(OR(W140=0,V140=0),"N.M.",IF(ABS(X140/W140)>=10,"N.M.",X140/W140)))) -> N.M. | AA140: 0 | AC140: 0 | AD140: 0 | AE140: 0 | AF140: 0 | AG140: 0 | AH140: 0 | AI140: 0 | AJ140: 0 | AK140: 0 | AL140: 0 | AM140: 0 | AN140: 0 | AP140: 0 | AQ140: 0 | AR140: 0 | AS140: 0 | AT140: 0 | AU140: 0 | AV140: 0 | AW140: 0 | AX140: 0 | AY140: 0 | AZ140: 0 | BA140: 0
A141: %,V8140000 | B141: 8140000 | C141: Underground Storage Expenses | F141: 0 | G141: 0 | H141: =+F141-G141 -> 0 | I141: =IF(G141<0,IF(H141=0,0,IF(OR(G141=0,F141=0),"N.M.",IF(ABS(H141/G141)>=10,"N.M.",H141/(-G141)))),IF(H141=0,0,IF(OR(G141=0,F141=0),"N.M.",IF(ABS(H141/G141)>=10,"N.M.",H141/G141)))) -> 0 | K141: 0 | L141: 1637.46 | M141: =+K141-L141 -> -1637.46 | N141: =IF(L141<0,IF(M141=0,0,IF(OR(L141=0,K141=0),"N.M.",IF(ABS(M141/L141)>=10,"N.M.",M141/(-L141)))),IF(M141=0,0,IF(OR(L141=0,K141=0),"N.M.",IF(ABS(M141/L141)>=10,"N.M.",M141/L141)))) -> N.M. | Q141: 0 | R141: 1637.46 | S141: =+Q141-R141 -> -1637.46 | T141: =IF(R141<0,IF(S141=0,0,IF(OR(R141=0,Q141=0),"N.M.",IF(ABS(S141/R141)>=10,"N.M.",S141/(-R141)))),IF(S141=0,0,IF(OR(R141=0,Q141=0),"N.M.",IF(ABS(S141/R141)>=10,"N.M.",S141/R141)))) -> N.M. | V141: -1637.46 | W141: 1637.46 | X141: =+V141-W141 -> -3274.92 | Y141: =IF(W141<0,IF(X141=0,0,IF(OR(W141=0,V141=0),"N.M.",IF(ABS(X141/W141)>=10,"N.M.",X141/(-W141)))),IF(X141=0,0,IF(OR(W141=0,V141=0),"N.M.",IF(ABS(X141/W141)>=10,"N.M.",X141/W141)))) -> -2 | AA141: 0 | AC141: 0 | AD141: 0 | AE141: 0 | AF141: 0 | AG141: 0 | AH141: 0 | AI141: 1637.46 | AJ141: 0 | AK141: 0 | AL141: 0 | AM141: 0 | AN141: -1637.46 | AP141: 0 | AQ141: 0 | AR141: 0 | AS141: 0 | AT141: 0 | AU141: 0 | AV141: 0 | AW141: 0 | AX141: 0 | AY141: 0 | AZ141: 0 | BA141: 0
A142: %,FACCOUNT,TGL_FERC_ACCT,XDYYNNY01,N546-550 | C142: Other Power Operations | F142: 0 | G142: 0 | H142: =+F142-G142 -> 0 | I142: =IF(G142<0,IF(H142=0,0,IF(OR(G142=0,F142=0),"N.M.",IF(ABS(H142/G142)>=10,"N.M.",H142/(-G142)))),IF(H142=0,0,IF(OR(G142=0,F142=0),"N.M.",IF(ABS(H142/G142)>=10,"N.M.",H142/G142)))) -> 0 | K142: 0 | L142: 1637.46 | M142: =+K142-L142 -> -1637.46 | N142: =IF(L142<0,IF(M142=0,0,IF(OR(L142=0,K142=0),"N.M.",IF(ABS(M142/L142)>=10,"N.M.",M142/(-L142)))),IF(M142=0,0,IF(OR(L142=0,K142=0),"N.M.",IF(ABS(M142/L142)>=10,"N.M.",M142/L142)))) -> N.M. | Q142: 0 | R142: 1637.46 | S142: =+Q142-R142 -> -1637.46 | T142: =IF(R142<0,IF(S142=0,0,IF(OR(R142=0,Q142=0),"N.M.",IF(ABS(S142/R142)>=10,"N.M.",S142/(-R142)))),IF(S142=0,0,IF(OR(R142=0,Q142=0),"N.M.",IF(ABS(S142/R142)>=10,"N.M.",S142/R142)))) -> N.M. | V142: -1637.46 | W142: -419208.66 | X142: =+V142-W142 -> 417571.2 | Y142: =IF(W142<0,IF(X142=0,0,IF(OR(W142=0,V142=0),"N.M.",IF(ABS(X142/W142)>=10,"N.M.",X142/(-W142)))),IF(X142=0,0,IF(OR(W142=0,V142=0),"N.M.",IF(ABS(X142/W142)>=10,"N.M.",X142/W142)))) -> 0.9960939261 | AA142: 0 | AC142: 0 | AD142: 0 | AE142: 0 | AF142: 0 | AG142: 0 | AH142: 0 | AI142: 1637.46 | AJ142: 0 | AK142: 0 | AL142: 0 | AM142: 0 | AN142: -1637.46 | AP142: 0 | AQ142: 0 | AR142: 0 | AS142: 0 | AT142: 0 | AU142: 0 | AV142: 0 | AW142: 0 | AX142: 0 | AY142: 0 | AZ142: 0 | BA142: 0
A144: %,V5550001 | B144: 5550001 | C144: Purch Pwr-NonTrading-Nonassoc | F144: 3967199.65 | G144: 4704623.14 | H144: =+F144-G144 -> -737423.49 | I144: =IF(G144<0,IF(H144=0,0,IF(OR(G144=0,F144=0),"N.M.",IF(ABS(H144/G144)>=10,"N.M.",H144/(-G144)))),IF(H144=0,0,IF(OR(G144=0,F144=0),"N.M.",IF(ABS(H144/G144)>=10,"N.M.",H144/G144)))) -> -0.1567444337 | K144: 80363043.57 | L144: 53425038.87 | M144: =+K144-L144 -> 26938004.7 | N144: =IF(L144<0,IF(M144=0,0,IF(OR(L144=0,K144=0),"N.M.",IF(ABS(M144/L144)>=10,"N.M.",M144/(-L144)))),IF(M144=0,0,IF(OR(L144=0,K144=0),"N.M.",IF(ABS(M144/L144)>=10,"N.M.",M144/L144)))) -> 0.5042205915 | Q144: 18400605.23 | R144: 11294277.07 | S144: =+Q144-R144 -> 7106328.16 | T144: =IF(R144<0,IF(S144=0,0,IF(OR(R144=0,Q144=0),"N.M.",IF(ABS(S144/R144)>=10,"N.M.",S144/(-R144)))),IF(S144=0,0,IF(OR(R144=0,Q144=0),"N.M.",IF(ABS(S144/R144)>=10,"N.M.",S144/R144)))) -> 0.6291972577 | V144: 115945720.6 | W144: 90885341.92 | X144: =+V144-W144 -> 25060378.64 | Y144: =IF(W144<0,IF(X144=0,0,IF(OR(W144=0,V144=0),"N.M.",IF(ABS(X144/W144)>=10,"N.M.",X144/(-W144)))),IF(X144=0,0,IF(OR(W144=0,V144=0),"N.M.",IF(ABS(X144/W144)>=10,"N.M.",X144/W144)))) -> 0.2757361981 | AA144: 10107771.3 | AC144: 17773264.03 | AD144: 5535959.61 | AE144: 3448491.5 | AF144: 7214323.63 | AG144: 8158723.03 | AH144: 3209524.98 | AI144: 3380128.95 | AJ144: 4704623.14 | AK144: 12738783.19 | AL144: 8938031.02 | AM144: 6995636.33 | AN144: 6910226.45 | AP144: 15205502.66 | AQ144: 14508733.28 | AR144: 14301194.83 | AS144: 7405117.81 | AT144: 10541889.76 | AU144: 6715935.28 | AV144: 7717470.3 | AW144: 3967199.65 | AX144: -4142895.9 | AY144: 0 | AZ144: 0 | BA144: 0
A145: %,V5550004 | B145: 5550004 | C145: Purchased Power-Pool Capacity | F145: 32587.75 | G145: 0 | H145: 32587.75 | I145: N.M. | K145: 96712.04 | L145: 373078.23 | M145: -276366.19 | N145: -0.7407727596 | Q145: 96712.04 | R145: 0 | S145: 96712.04 | T145: N.M. | V145: 96712.04 | W145: 672522.59 | X145: -575810.55 | Y145: -0.8561951057 | AA145: 76088.32 | AC145: 76088.32 | AD145: 71179.39 | AE145: 76088.32 | AF145: 73633.86 | AG145: 76088.34 | AH145: 0 | AI145: 0 | AJ145: 0 | AK145: 0 | AL145: 0 | AM145: 0 | AN145: 0 | AP145: 0 | AQ145: 0 | AR145: 0 | AS145: 0 | AT145: 0 | AU145: 0 | AV145: 64124.29 | AW145: 32587.75 | AX145: 0 | AY145: 0 | AZ145: 0 | BA145: 0
A146: %,V5550023 | B146: 5550023 | C146: Purch Power Capacity -NA | F146: -448262.49 | G146: 201548.44 | H146: -649810.93 | I146: -3.224093077 | K146: 1884279.51 | L146: 613063.13 | M146: 1271216.38 | N146: 2.073548902 | Q146: 34756.06 | R146: 613063.13 | S146: -578307.07 | T146: -0.9433075351 | V146: 2690473.27 | W146: 613063.13 | X146: 2077410.14 | Y146: 3.388574583 | AA146: 0 | AC146: 0 | AD146: 0 | AE146: 0 | AF146: 0 | AG146: 0 | AH146: 220058.25 | AI146: 191456.44 | AJ146: 201548.44 | AK146: 201548.44 | AL146: 201548.44 | AM146: 201548.44 | AN146: 201548.44 | AP146: 201548.44 | AQ146: 201548.44 | AR146: 201548.44 | AS146: 201548.44 | AT146: 1043329.69 | AU146: 483018.55 | AV146: 0 | AW146: -448262.49 | AX146: 448262.49 | AY146: 0 | AZ146: 0 | BA146: 0
A147: %,V5550029 | B147: 5550029 | C147: Purch Power-Assoc-Trnsfr Price | F147: 0 | G147: 0 | H147: 0 | I147: 0 | K147: 0 | L147: 0 | M147: 0 | N147: 0 | Q147: 0 | R147: 0 | S147: 0 | T147: 0 | V147: 0 | W147: 0 | X147: 0 | Y147: 0 | AA147: 0 | AC147: 0 | AD147: 0 | AE147: 0 | AF147: 0 | AG147: 0 | AH147: 0 | AI147: 0 | AJ147: 0 | AK147: 0 | AL147: 0 | AM147: 0 | AN147: 0 | AP147: 0 | AQ147: 0 | AR147: 0 | AS147: 0 | AT147: 0 | AU147: 0 | AV147: 0 | AW147: 0 | AX147: 296413826.2 | AY147: 0 | AZ147: 0 | BA147: 0
A148: %,V5550039 | B148: 5550039 | C148: PJM Inadvertent Mtr Res-OSS | F148: 666.12 | G148: 835.77 | H148: -169.65 | I148: -0.2029864676 | K148: -940.59 | L148: 5183.15 | M148: -6123.74 | N148: -1.181470727 | Q148: 1482.15 | R148: 4970.1 | S148: -3487.95 | T148: -0.7017866844 | V148: -1211.45 | W148: 5644.69 | X148: -6856.14 | Y148: -1.214617632 | AA148: -17.54 | AC148: 21.15 | AD148: -113.36 | AE148: -64.02 | AF148: -71.12 | AG148: 440.4 | AH148: 1324.51 | AI148: 2809.82 | AJ148: 835.77 | AK148: 196.7 | AL148: 224.95 | AM148: -52.28 | AN148: -640.23 | AP148: -507.21 | AQ148: -183.3 | AR148: -448.96 | AS148: -477.24 | AT148: -806.03 | AU148: 891.5 | AV148: -75.47 | AW148: 666.12 | AX148: -647.55 | AY148: 0 | AZ148: 0 | BA148: 0
A149: %,V5550040 | B149: 5550040 | C149: PJM Inadvertent Mtr Res-LSE | F149: 3370.29 | G149: 9290.45 | H149: -5920.16 | I149: -0.6372307046 | K149: -37332.61 | L149: 52983.15 | M149: -90315.76 | N149: -1.704612882 | Q149: -3081.62 | R149: 38773.07 | S149: -41854.69 | T149: -1.07947836 | V149: -34249.76 | W149: 66111.76 | X149: -100361.52 | Y149: -1.518058512 | AA149: 2096.95 | AC149: 5866.19 | AD149: -103.19 | AE149: -592.6 | AF149: 2261.93 | AG149: 6777.75 | AH149: 8576.02 | AI149: 20906.6 | AJ149: 9290.45 | AK149: 4686.16 | AL149: 2240.5 | AM149: 327 | AN149: -4170.81 | AP149: -3524.71 | AQ149: -5794.71 | AR149: -7222.49 | AS149: -8456.78 | AT149: -9252.3 | AU149: -4019.14 | AV149: -2432.77 | AW149: 3370.29 | AX149: -3663.44 | AY149: 0 | AZ149: 0 | BA149: 0
A150: %,V5550074 | B150: 5550074 | C150: PJM Reactive-Charge | F150: 268149.33 | G150: 290583.41 | H150: -22434.08 | I150: -0.07720358158 | K150: 2184055.26 | L150: 2416213.24 | M150: -232157.98 | N150: -0.09608339867 | Q150: 805853.6 | R150: 869901.78 | S150: -64048.18 | T150: -0.07362690993 | V150: 3355313.5 | W150: 3364240.97 | X150: -8927.47 | Y150: -0.002653635717 | AA150: 221082.71 | AC150: 343952.17 | AD150: 295559.1 | AE150: 297206.9 | AF150: 286920.78 | AG150: 322672.51 | AH150: 301057.2 | AI150: 278261.17 | AJ150: 290583.41 | AK150: 292377.58 | AL150: 282186.28 | AM150: 306532.84 | AN150: 290161.54 | AP150: 286667.43 | AQ150: 273119.37 | AR150: 271025.49 | AS150: 273005.67 | AT150: 274383.7 | AU150: 271549.29 | AV150: 266154.98 | AW150: 268149.33 | AX150: -269438.12 | AY150: 0 | AZ150: 0 | BA150: 0
A151: %,V5550075 | B151: 5550075 | C151: PJM Reactive-Credit | F151: -119573 | G151: -119573 | H151: 0 | I151: 0 | K151: -956584 | L151: -956584 | M151: 0 | N151: 0 | Q151: -358719 | R151: -358719 | S151: 0 | T151: 0 | V151: -1434876 | W151: -1434876 | X151: 0 | Y151: 0 | AA151: -119573 | AC151: -119573 | AD151: -119573 | AE151: -119573 | AF151: -119573 | AG151: -119573 | AH151: -119573 | AI151: -119573 | AJ151: -119573 | AK151: -119573 | AL151: -119573 | AM151: -119573 | AN151: -119573 | AP151: -119573 | AQ151: -119573 | AR151: -119573 | AS151: -119573 | AT151: -119573 | AU151: -119573 | AV151: -119573 | AW151: -119573 | AX151: 119573 | AY151: 0 | AZ151: 0 | BA151: 0
A152: %,V5550076 | B152: 5550076 | C152: PJM Black Start-Charge | F152: 58868.57 | G152: 95302.24 | H152: -36433.67 | I152: -0.382296051 | K152: 294367.3 | L152: 715549.99 | M152: -421182.69 | N152: -0.5886139276 | Q152: 112594.88 | R152: 285401.17 | S152: -172806.29 | T152: -0.6054855697 | V152: 677632.58 | W152: 1004567.52 | X152: -326934.94 | Y152: -0.3254484477 | AA152: 70955.91 | AC152: 91879.98 | AD152: 77452.86 | AE152: 86439.48 | AF152: 87197.85 | AG152: 87178.65 | AH152: 95135.13 | AI152: 94963.8 | AJ152: 95302.24 | AK152: 95899.94 | AL152: 95438.39 | AM152: 96936.35 | AN152: 94990.6 | AP152: 3383.75 | AQ152: 46795.03 | AR152: 47260.05 | AS152: 46811.54 | AT152: 37522.05 | AU152: 26888.6 | AV152: 26837.71 | AW152: 58868.57 | AX152: -37116.05 | AY152: 0 | AZ152: 0 | BA152: 0
A153: %,V5550078 | B153: 5550078 | C153: PJM Regulation-Charge | F153: 49743.75 | G153: 41150.63 | H153: 8593.12 | I153: 0.2088211043 | K153: 629736.81 | L153: 410010.88 | M153: 219725.93 | N153: 0.5359026814 | Q153: 232471.85 | R153: 142089.74 | S153: 90382.11 | T153: 0.6360917403 | V153: 818249.02 | W153: 650266.65 | X153: 167982.37 | Y153: 0.2583284411 | AA153: 48878.97 | AC153: 75534.5 | AD153: 45628.26 | AE153: 33935.97 | AF153: 45967.59 | AG153: 66854.82 | AH153: 36486.33 | AI153: 64452.78 | AJ153: 41150.63 | AK153: 51718.21 | AL153: 67924.42 | AM153: 25831.31 | AN153: 43038.27 | AP153: 127637.02 | AQ153: 72549.02 | AR153: 76947.6 | AS153: 72784.06 | AT153: 47347.26 | AU153: 108302.07 | AV153: 74426.03 | AW153: 49743.75 | AX153: -33871.11 | AY153: 0 | AZ153: 0 | BA153: 0
A154: %,V5550079 | B154: 5550079 | C154: PJM Regulation-Credit | F154: -2761.37 | G154: -915.66 | H154: -1845.71 | I154: -2.01571544 | K154: 205138.48 | L154: -11759.71 | M154: 216898.19 | N154: N.M. | Q154: -6919.15 | R154: -2713.29 | S154: -4205.86 | T154: -1.550096009 | V154: -22740.81 | W154: -14116.13 | X154: -8624.68 | Y154: -0.6109804883 | AA154: -1088.77 | AC154: -12297.58 | AD154: 6922.12 | AE154: -1249.72 | AF154: -1151.67 | AG154: -1269.57 | AH154: -368.62 | AI154: -1429.01 | AJ154: -915.66 | AK154: -415.46 | AL154: -838.15 | AM154: -415.21 | AN154: -226210.47 | AP154: 215934.81 | AQ154: -1993.79 | AR154: -1023.06 | AS154: -274.49 | AT154: -585.84 | AU154: -961.09 | AV154: -3196.69 | AW154: -2761.37 | AX154: 2709.66 | AY154: 0 | AZ154: 0 | BA154: 0
A155: %,V5550080 | B155: 5550080 | C155: PJM Hourly Net Purch.-FERC | F155: 1322426.52 | G155: 1355816.86 | H155: -33390.34 | I155: -0.0246274707 | K155: 9659905.4 | L155: 5709106.46 | M155: 3950798.94 | N155: 0.6920170376 | Q155: 6780961.44 | R155: 5096345.39 | S155: 1684616.05 | T155: 0.3305537441 | V155: 12563246.01 | W155: 8330214.31 | X155: 4233031.7 | Y155: 0.5081539973 | AA155: 1126033.59 | AC155: -668644.78 | AD155: 623788.69 | AE155: 417183.27 | AF155: -238954.63 | AG155: 479388.52 | AH155: 1941715.06 | AI155: 1798813.47 | AJ155: 1355816.86 | AK155: 118406.53 | AL155: 892702.72 | AM155: 1176708.82 | AN155: 715522.54 | AP155: 783482.6 | AQ155: 147910.84 | AR155: 407887.99 | AS155: 784752.9 | AT155: 754909.63 | AU155: 3619595.03 | AV155: 1838939.89 | AW155: 1322426.52 | AX155: -1351987.94 | AY155: 0 | AZ155: 0 | BA155: 0
A156: %,V5550083 | B156: 5550083 | C156: PJM Sync & Non Sync-Charge | F156: 107907.97 | G156: 39734.11 | H156: 68173.86 | I156: 1.715751529 | K156: 793226 | L156: 308992.78 | M156: 484233.22 | N156: 1.567134417 | Q156: 344065.99 | R156: 143531.81 | S156: 200534.18 | T156: 1.397141024 | V156: 954209.25 | W156: 563256.31 | X156: 390952.94 | Y156: 0.6940942038 | AA156: -16570.76 | AC156: 22601.9 | AD156: 15333.01 | AE156: 20764.8 | AF156: 48655.67 | AG156: 58105.59 | AH156: 53689.01 | AI156: 50108.69 | AJ156: 39734.11 | AK156: 49916.25 | AL156: 70002.99 | AM156: 18994.22 | AN156: 22069.79 | AP156: 102438.71 | AQ156: 38724.19 | AR156: 133141.66 | AS156: 111429.76 | AT156: 63425.69 | AU156: 95618.73 | AV156: 140539.29 | AW156: 107907.97 | AX156: -69793.95 | AY156: 0 | AZ156: 0 | BA156: 0
A157: %,V5550084 | B157: 5550084 | C157: PJM Sync & Non Sync-Credit | F157: -9614.59 | G157: 1800.21 | H157: -11414.8 | I157: -6.340815794 | K157: -121529.75 | L157: -25729.01 | M157: -95800.74 | N157: -3.723452243 | Q157: -28140.36 | R157: -37014.55 | S157: 8874.19 | T157: 0.2397486934 | V157: -131685.9 | W157: -25698.74 | X157: -105987.16 | Y157: -4.124216207 | AA157: 8057.24 | AC157: -4050.03 | AD157: 2871.71 | AE157: 9214.36 | AF157: 4580.64 | AG157: -1331.14 | AH157: -25283.12 | AI157: -13531.64 | AJ157: 1800.21 | AK157: -7120.51 | AL157: -9647.17 | AM157: 3151.53 | AN157: 3460 | AP157: -8869.23 | AQ157: 786.63 | AR157: -34856.53 | AS157: -28724.06 | AT157: -21726.2 | AU157: -5237.44 | AV157: -13288.33 | AW157: -9614.59 | AX157: 12961.45 | AY157: 0 | AZ157: 0 | BA157: 0
A158: %,V5550094 | B158: 5550094 | C158: Purchased Power - Fuel | F158: 0 | G158: 0 | H158: 0 | I158: 0 | K158: 0 | L158: 0 | M158: 0 | N158: 0 | Q158: 0 | R158: 0 | S158: 0 | T158: 0 | V158: 0 | W158: 0 | X158: 0 | Y158: 0 | AA158: 0 | AC158: 0 | AD158: 0 | AE158: 0 | AF158: 0 | AG158: 0 | AH158: 0 | AI158: 0 | AJ158: 0 | AK158: 0 | AL158: 0 | AM158: 0 | AN158: 0 | AP158: 0 | AQ158: 0 | AR158: 0 | AS158: 0 | AT158: 0 | AU158: 0 | AV158: 0 | AW158: 0 | AX158: 0 | AY158: 0 | AZ158: 0 | BA158: 0
A159: %,V5550123 | B159: 5550123 | C159: PJM OpRes-LSE-Charge | F159: 79512.82 | G159: 79936.1 | H159: -423.28 | I159: -0.005295229565 | K159: 3999807.3 | L159: 972923.31 | M159: 3026883.99 | N159: 3.1111229 | Q159: 360314.56 | R159: 317171.35 | S159: 43143.21 | T159: 0.1360249279 | V159: 4317281.38 | W159: 1252833.62 | X159: 3064447.76 | Y159: 2.44601335 | AA159: 86031 | AC159: 376439.96 | AD159: 14457.05 | AE159: 27749.86 | AF159: 103994.7 | AG159: 133110.39 | AH159: 165939.33 | AI159: 71295.92 | AJ159: 79936.1 | AK159: 49779.31 | AL159: 73840.56 | AM159: 71136.07 | AN159: 122718.14 | AP159: 2956748.73 | AQ159: 184745.69 | AR159: 171586 | AS159: 195018.63 | AT159: 131393.69 | AU159: 115041.68 | AV159: 165760.06 | AW159: 79512.82 | AX159: -73023.53 | AY159: 0 | AZ159: 0 | BA159: 0
A160: %,V5550124 | B160: 5550124 | C160: PJM Implicit Congestion-LSE | F160: 176273.08 | G160: 403971.15 | H160: -227698.07 | I160: -0.5636493349 | K160: 2936441.91 | L160: 4546457.87 | M160: -1610015.96 | N160: -0.3541253446 | Q160: 189517.1 | R160: 2885598.08 | S160: -2696080.98 | T160: -0.9343231127 | V160: 5333727.4 | W160: 6981772.97 | X160: -1648045.57 | Y160: -0.2360497222 | AA160: 441828.95 | AC160: 180862.84 | AD160: 268807.24 | AE160: 407981.07 | AF160: 481032.21 | AG160: 322176.43 | AH160: 814272.95 | AI160: 1667353.98 | AJ160: 403971.15 | AK160: 383976.19 | AL160: 853123.14 | AM160: 322603.07 | AN160: 837583.09 | AP160: 1254434.87 | AQ160: 539257.41 | AR160: 671542.15 | AS160: 638168.13 | AT160: -356477.75 | AU160: 652934.32 | AV160: -639690.3 | AW160: 176273.08 | AX160: -176787.37 | AY160: 0 | AZ160: 0 | BA160: 0
A161: %,V5550132 | B161: 5550132 | C161: PJM FTR Revenue-LSE | F161: 96096.39 | G161: -379914.83 | H161: 476011.22 | I161: 1.252941929 | K161: -6253075.78 | L161: -4888442.32 | M161: -1364633.46 | N161: -0.2791550704 | Q161: -210460.66 | R161: -1473833.59 | S161: 1263372.93 | T161: 0.857201884 | V161: -8919759.78 | W161: -5576640.76 | X161: -3343119.02 | Y161: -0.5994861717 | AA161: -249040.19 | AC161: -982881.57 | AD161: -196844.43 | AE161: -664425.31 | AF161: -509625.93 | AG161: -1060831.49 | AH161: -356099.49 | AI161: -737819.27 | AJ161: -379914.83 | AK161: -471510.29 | AL161: -1162769.67 | AM161: -468053.3 | AN161: -564350.74 | AP161: -4080094.46 | AQ161: -461599.88 | AR161: -236460.55 | AS161: -617167.97 | AT161: -647292.26 | AU161: -77097.56 | AV161: -229459.49 | AW161: 96096.39 | AX161: -120168.27 | AY161: 0 | AZ161: 0 | BA161: 0
A162: %,V5550137 | B162: 5550137 | C162: PJM OpRes-LSE-Credit | F162: -9779.79 | G162: -13543.07 | H162: 3763.28 | I162: 0.2778749575 | K162: -59636.32 | L162: -49612.11 | M162: -10024.21 | N162: -0.2020516765 | Q162: -22865.58 | R162: -21635.01 | S162: -1230.57 | T162: -0.05687864253 | V162: -74298.53 | W162: -52495.77 | X162: -21802.76 | Y162: -0.4153241299 | AA162: 11679.2 | AC162: -12245.48 | AD162: -43.87 | AE162: 1.53 | AF162: -204.5 | AG162: -15484.78 | AH162: -8086.54 | AI162: -5.4 | AJ162: -13543.07 | AK162: -6653.5 | AL162: -5.95 | AM162: -3826.88 | AN162: -4175.88 | AP162: -11216.43 | AQ162: -2505.76 | AR162: -2365.08 | AS162: -2498.53 | AT162: -18184.94 | AU162: -356.27 | AV162: -12729.52 | AW162: -9779.79 | AX162: 6600.59 | AY162: 0 | AZ162: 0 | BA162: 0
A163: %,V5550139 | B163: 5550139 | C163: Generation Deactivation expens | F163: 0 | G163: 0 | H163: 0 | I163: 0 | K163: -285.27 | L163: 0 | M163: -285.27 | N163: N.M. | Q163: -285.27 | R163: 0 | S163: -285.27 | T163: N.M. | V163: -285.27 | W163: 0 | X163: -285.27 | Y163: N.M. | AA163: 0 | AC163: 0 | AD163: 0 | AE163: 0 | AF163: 0 | AG163: 0 | AH163: 0 | AI163: 0 | AJ163: 0 | AK163: 0 | AL163: 0 | AM163: 0 | AN163: 0 | AP163: 0 | AQ163: 0 | AR163: 0 | AS163: 0 | AT163: 0 | AU163: 0 | AV163: -285.27 | AW163: 0 | AX163: 0 | AY163: 0 | AZ163: 0 | BA163: 0
A164: %,V5550153 | B164: 5550153 | C164: PurchPower-Rockport Def-NonAff | F164: 0 | G164: 0 | H164: 0 | I164: 0 | K164: 0 | L164: 152679.92 | M164: -152679.92 | N164: N.M. | Q164: 0 | R164: 0 | S164: 0 | T164: 0 | V164: 0 | W164: 3094705.26 | X164: -3094705.26 | Y164: N.M. | AA164: 741125.62 | AC164: 162567.01 | AD164: 738834.34 | AE164: -748721.43 | AF164: 0 | AG164: 0 | AH164: 0 | AI164: 0 | AJ164: 0 | AK164: 0 | AL164: 0 | AM164: 0 | AN164: 0 | AP164: 0 | AQ164: 0 | AR164: 0 | AS164: 0 | AT164: 0 | AU164: 0 | AV164: 0 | AW164: 0 | AX164: 0 | AY164: 0 | AZ164: 0 | BA164: 0
A165: %,V5550326 | B165: 5550326 | C165: PJM Transm Loss Charges - LSE | F165: 794704.73 | G165: 495765.16 | H165: 298939.57 | I165: 0.6029862405 | K165: 5425605.7 | L165: 3948228.54 | M165: 1477377.16 | N165: 0.3741873463 | Q165: 2449589.42 | R165: 1698450.07 | S165: 751139.35 | T165: 0.4422498861 | V165: 7128818.81 | W165: 5618206.5 | X165: 1510612.31 | Y165: 0.2688780325 | AA165: 390342.23 | AC165: 1086234.28 | AD165: 337365.55 | AE165: 311775.13 | AF165: 253246.82 | AG165: 261156.69 | AH165: 514991.33 | AI165: 687693.58 | AJ165: 495765.16 | AK165: 267426.59 | AL165: 399474.89 | AM165: 446469.41 | AN165: 589842.22 | AP165: 1575293.84 | AQ165: 603005.29 | AR165: 166161.61 | AS165: 428411.6 | AT165: 203143.94 | AU165: 547423.21 | AV165: 1107461.48 | AW165: 794704.73 | AX165: -799749.76 | AY165: 0 | AZ165: 0 | BA165: 0
A166: %,V5550327 | B166: 5550327 | C166: PJM Transm Loss Credits-LSE | F166: -239304.5 | G166: -252490.44 | H166: 13185.94 | I166: 0.05222352181 | K166: -2554302.45 | L166: -1616654.88 | M166: -937647.57 | N166: -0.5799924162 | Q166: -944339.74 | R166: -756230.9 | S166: -188108.84 | T166: -0.2487452443 | V166: -3272222.33 | W166: -2270707.97 | X166: -1001514.36 | Y166: -0.4410581956 | AA166: -178377.94 | AC166: -348522.83 | AD166: -119399.23 | AE166: -99483 | AF166: -103147.88 | AG166: -189871.04 | AH166: -184463.02 | AI166: -319277.44 | AJ166: -252490.44 | AK166: -133839.98 | AL166: -174055.51 | AM166: -115998.35 | AN166: -294026.04 | AP166: -720312.77 | AQ166: -267904.83 | AR166: -230131.31 | AS166: -212977.36 | AT166: -178636.44 | AU166: -279161.09 | AV166: -425874.15 | AW166: -239304.5 | AX166: 226889.7 | AY166: 0 | AZ166: 0 | BA166: 0
A167: %,V5550328 | B167: 5550328 | C167: PJM FC Penalty Credit | F167: 0 | G167: -395.26 | H167: 395.26 | I167: N.M. | K167: -2256.95 | L167: -2848.35 | M167: 591.4 | N167: 0.2076289782 | Q167: -288.03 | R167: -377.41 | S167: 89.38 | T167: 0.2368246734 | V167: -2326.38 | W167: -3531.09 | X167: 1204.71 | Y167: 0.3411722726 | AA167: -96.46 | AC167: 0 | AD167: -8.8 | AE167: -1514.08 | AF167: -428.93 | AG167: -519.13 | AH167: 75.58 | AI167: -57.73 | AJ167: -395.26 | AK167: -29.86 | AL167: -5.06 | AM167: -21.7 | AN167: -12.81 | AP167: -934.65 | AQ167: -419.65 | AR167: -242.85 | AS167: -371.77 | AT167: 0 | AU167: -288.03 | AV167: 0 | AW167: 0 | AX167: 0 | AY167: 0 | AZ167: 0 | BA167: 0
A168: %,V5560000 | B168: 5560000 | C168: Sys Control & Load Dispatching | F168: 3313.8 | G168: 6203.04 | H168: -2889.24 | I168: -0.4657780701 | K168: 32633.68 | L168: 42874.56 | M168: -10240.88 | N168: -0.2388567953 | Q168: 12655.16 | R168: 16281.87 | S168: -3626.71 | T168: -0.2227452989 | V168: 59634.39 | W168: 69752.54 | X168: -10118.15 | Y168: -0.1450578 | AA168: 4177.21 | AC168: 5548.93 | AD168: 5216.77 | AE168: 5759.68 | AF168: 5316.04 | AG168: 4751.27 | AH168: 4278.08 | AI168: 5800.75 | AJ168: 6203.04 | AK168: 6428.24 | AL168: 7474.29 | AM168: 6743.02 | AN168: 6355.16 | AP168: 5359.34 | AQ168: 4293.06 | AR168: 3576.8 | AS168: 3967.26 | AT168: 2782.06 | AU168: 3584.03 | AV168: 5757.33 | AW168: 3313.8 | AX168: 0 | AY168: 0 | AZ168: 0 | BA168: 0
A169: %,V5570000 | B169: 5570000 | C169: Other Expenses | F169: 64405.17 | G169: 63735.52 | H169: 669.65 | I169: 0.01050670019 | K169: 523692.75 | L169: 577415.66 | M169: -53722.91 | N169: -0.09304027189 | Q169: 208366.61 | R169: 257140.07 | S169: -48773.46 | T169: -0.1896766226 | V169: 744586.64 | W169: 805106.72 | X169: -60520.08 | Y169: -0.07517025817 | AA169: 45218.71 | AC169: 63905.75 | AD169: 67993.4 | AE169: 59577.44 | AF169: 62928.36 | AG169: 65870.64 | AH169: 137783.09 | AI169: 55621.46 | AJ169: 63735.52 | AK169: 57654.02 | AL169: 58441.39 | AM169: 53459.02 | AN169: 51339.46 | AP169: 65627.83 | AQ169: 64770.11 | AR169: 62054.19 | AS169: 59972.58 | AT169: 62901.43 | AU169: 61090.1 | AV169: 82871.34 | AW169: 64405.17 | AX169: 0 | AY169: 0 | AZ169: 0 | BA169: 0
A170: %,V5570007 | B170: 5570007 | C170: Other Pwr Exp - Wholesale RECs | F170: 0 | G170: 0 | H170: 0 | I170: 0 | K170: 243.15 | L170: 245.05 | M170: -1.9 | N170: -0.00775351969 | Q170: 0 | R170: 0 | S170: 0 | T170: 0 | V170: 243.15 | W170: 245.05 | X170: -1.9 | Y170: -0.00775351969 | AA170: 0 | AC170: 245.05 | AD170: 0 | AE170: 0 | AF170: 0 | AG170: 0 | AH170: 0 | AI170: 0 | AJ170: 0 | AK170: 0 | AL170: 0 | AM170: 0 | AN170: 0 | AP170: 243.15 | AQ170: 0 | AR170: 0 | AS170: 0 | AT170: 0 | AU170: 0 | AV170: 0 | AW170: 0 | AX170: 0 | AY170: 0 | AZ170: 0 | BA170: 0
A171: %,V5570009 | B171: 5570009 | C171: Other Pwr Exp- REC's - RETAIL | F171: 0 | G171: 0 | H171: 0 | I171: 0 | K171: 0 | L171: 446.4 | M171: -446.4 | N171: N.M. | Q171: 0 | R171: 0 | S171: 0 | T171: 0 | V171: 0 | W171: 446.4 | X171: -446.4 | Y171: N.M. | AA171: 0 | AC171: 0 | AD171: 0 | AE171: 0 | AF171: 0 | AG171: 446.4 | AH171: 0 | AI171: 0 | AJ171: 0 | AK171: 0 | AL171: 0 | AM171: 0 | AN171: 0 | AP171: 0 | AQ171: 0 | AR171: 0 | AS171: 0 | AT171: 0 | AU171: 0 | AV171: 0 | AW171: 0 | AX171: 0 | AY171: 0 | AZ171: 0 | BA171: 0
A172: %,V5570010 | B172: 5570010 | C172: OH Auction Exp - Incremental | F172: 0 | G172: 0 | H172: 0 | I172: 0 | K172: 0 | L172: 5.79 | M172: -5.79 | N172: N.M. | Q172: 0 | R172: 5.68 | S172: -5.68 | T172: N.M. | V172: 0 | W172: 5.94 | X172: -5.94 | Y172: N.M. | AA172: 0.15 | AC172: 0 | AD172: 0 | AE172: 0 | AF172: 0 | AG172: 0.11 | AH172: 5.68 | AI172: 0 | AJ172: 0 | AK172: 0 | AL172: 0 | AM172: 0 | AN172: 0 | AP172: 0 | AQ172: 0 | AR172: 0 | AS172: 0 | AT172: 0 | AU172: 0 | AV172: 0 | AW172: 0 | AX172: 0 | AY172: 0 | AZ172: 0 | BA172: 0
A173: %,V5570025 | B173: 5570025 | C173: MATL-SAFETY | F173: 0 | G173: 0 | H173: 0 | I173: 0 | K173: 0.93 | L173: 0 | M173: 0.93 | N173: N.M. | Q173: 0 | R173: 0 | S173: 0 | T173: 0 | V173: 0.93 | W173: 0 | X173: 0.93 | Y173: N.M. | AA173: 0 | AC173: 0 | AD173: 0 | AE173: 0 | AF173: 0 | AG173: 0 | AH173: 0 | AI173: 0 | AJ173: 0 | AK173: 0 | AL173: 0 | AM173: 0 | AN173: 0 | AP173: 0 | AQ173: 0 | AR173: 0 | AS173: 0.93 | AT173: 0 | AU173: 0 | AV173: 0 | AW173: 0 | AX173: 0 | AY173: 0 | AZ173: 0 | BA173: 0
A174: %,FACCOUNT,TGL_FERC_ACCT,XDYYNNY01,N555-557 | C174: Purchased Power | F174: 6195930.2 | G174: 7023463.97 | H174: -827533.77 | I174: -0.1178241639 | K174: 99042946.07 | L174: 66718866.6 | M174: 32324079.47 | N174: 0.4844818433 | Q174: 28454846.68 | R174: 21012476.63 | S174: 7442370.05 | T174: 0.3541881417 | V174: 140792192.7 | W174: 114600238.4 | X174: 26191954.33 | Y174: 0.2285506095 | AA174: 12816603.4 | AC174: 18116796.79 | AD174: 7671283.22 | AE174: 3566546.15 | AF174: 7696902.42 | AG174: 8654861.39 | AH174: 6811038.74 | AI174: 7177973.92 | AJ174: 7023463.97 | AK174: 13579654.75 | AL174: 10475759.47 | AM174: 9018136.71 | AN174: 8675695.72 | AP174: 17839270.72 | AQ174: 15826263.44 | AR174: 15881602.98 | AS174: 9230468.11 | AT174: 11810494.14 | AU174: 12215178.77 | AV174: 10043737.71 | AW174: 6195930.2 | AX174: 290151680.1 | AY174: 0 | AZ174: 0 | BA174: 0
A176: %,V5581000 | B176: 5581000 | C176: Oper Supervision & Engineering | F176: 249.48 | G176: 0 | H176: =+F176-G176 -> 249.48 | I176: =IF(G176<0,IF(H176=0,0,IF(OR(G176=0,F176=0),"N.M.",IF(ABS(H176/G176)>=10,"N.M.",H176/(-G176)))),IF(H176=0,0,IF(OR(G176=0,F176=0),"N.M.",IF(ABS(H176/G176)>=10,"N.M.",H176/G176)))) -> N.M. | K176: 717.48 | L176: 0 | M176: =+K176-L176 -> 717.48 | N176: =IF(L176<0,IF(M176=0,0,IF(OR(L176=0,K176=0),"N.M.",IF(ABS(M176/L176)>=10,"N.M.",M176/(-L176)))),IF(M176=0,0,IF(OR(L176=0,K176=0),"N.M.",IF(ABS(M176/L176)>=10,"N.M.",M176/L176)))) -> N.M. | Q176: 571.19 | R176: 0 | S176: =+Q176-R176 -> 571.19 | V176: 717.48 | W176: 0 | X176: =+V176-W176 -> 717.48 | Y176: =IF(W176<0,IF(X176=0,0,IF(OR(W176=0,V176=0),"N.M.",IF(ABS(X176/W176)>=10,"N.M.",X176/(-W176)))),IF(X176=0,0,IF(OR(W176=0,V176=0),"N.M.",IF(ABS(X176/W176)>=10,"N.M.",X176/W176)))) -> N.M. | AA176: 0 | AC176: 0 | AD176: 0 | AE176: 0 | AF176: 0 | AG176: 0 | AH176: 0 | AI176: 0 | AJ176: 0 | AK176: 0 | AL176: 0 | AM176: 0 | AN176: 0 | AP176: 0 | AQ176: 0 | AR176: 0 | AS176: 25.32 | AT176: 120.97 | AU176: 78.59 | AV176: 243.12 | AW176: 249.48 | AX176: 0 | AY176: 0 | AZ176: 0 | BA176: 0
A177: %,V5581300 | B177: 5581300 | C177: Oper Supervision & Engineering | F177: 616.48 | G177: 0 | H177: 616.48 | I177: N.M. | K177: 5363.59 | L177: 0 | M177: 5363.59 | N177: N.M. | Q177: 3028.54 | R177: 0 | S177: 3028.54 | V177: 5363.59 | W177: 0 | X177: 5363.59 | Y177: N.M. | AA177: 0 | AC177: 0 | AD177: 0 | AE177: 0 | AF177: 0 | AG177: 0 | AH177: 0 | AI177: 0 | AJ177: 0 | AK177: 0 | AL177: 0 | AM177: 0 | AN177: 0 | AP177: 0 | AQ177: 154.41 | AR177: 217.33 | AS177: -136.13 | AT177: 2099.44 | AU177: 1636.25 | AV177: 775.81 | AW177: 616.48 | AX177: 0 | AY177: 0 | AZ177: 0 | BA177: 0
A178: %,V5581400 | B178: 5581400 | C178: Wind Turb Gen&Oth Plnt Op-Mjr | F178: 171.49 | G178: 0 | H178: 171.49 | I178: N.M. | K178: 767.51 | L178: 0 | M178: 767.51 | N178: N.M. | Q178: 356.73 | R178: 0 | S178: 356.73 | V178: 767.51 | W178: 0 | X178: 767.51 | Y178: N.M. | AA178: 0 | AC178: 0 | AD178: 0 | AE178: 0 | AF178: 0 | AG178: 0 | AH178: 0 | AI178: 0 | AJ178: 0 | AK178: 0 | AL178: 0 | AM178: 0 | AN178: 0 | AP178: 412.87 | AQ178: -14.26 | AR178: 633.47 | AS178: 167.23 | AT178: -788.53 | AU178: 103.28 | AV178: 81.96 | AW178: 171.49 | AX178: 0 | AY178: 0 | AZ178: 0 | BA178: 0
A179: %,V5581601 | B179: 5581601 | C179: Wind - Variable Production Exp | F179: -9.42 | G179: 0 | H179: -9.42 | I179: N.M. | K179: 97.26 | L179: 0 | M179: 97.26 | N179: N.M. | Q179: 97.26 | R179: 0 | S179: 97.26 | V179: 97.26 | W179: 0 | X179: 97.26 | Y179: N.M. | AA179: 0 | AC179: 0 | AD179: 0 | AE179: 0 | AF179: 0 | AG179: 0 | AH179: 0 | AI179: 0 | AJ179: 0 | AK179: 0 | AL179: 0 | AM179: 0 | AN179: 0 | AP179: 0 | AQ179: 0 | AR179: 0 | AS179: 0 | AT179: 0 | AU179: 53.61 | AV179: 53.07 | AW179: -9.42 | AX179: 0 | AY179: 0 | AZ179: 0 | BA179: 0
A180: %,V5582000 | B180: 5582000 | C180: Solar Panel Gen&Oth Plt Op-Mjr | F180: 0 | G180: 0 | H180: 0 | I180: 0 | K180: 2.07 | L180: 0 | M180: 2.07 | N180: N.M. | Q180: 0 | R180: 0 | S180: 0 | V180: 2.07 | W180: 0 | X180: 2.07 | Y180: N.M. | AA180: 0 | AC180: 0 | AD180: 0 | AE180: 0 | AF180: 0 | AG180: 0 | AH180: 0 | AI180: 0 | AJ180: 0 | AK180: 0 | AL180: 0 | AM180: 0 | AN180: 0 | AP180: 0 | AQ180: 2.07 | AR180: 8.32 | AS180: -8.32 | AT180: 0 | AU180: 0 | AV180: 0 | AW180: 0 | AX180: 0 | AY180: 0 | AZ180: 0 | BA180: 0
A181: %,FACCOUNT,TGL_FERC_ACCT,XDYYNNY01,N5580 | C181: Solar and Wind Operations Expenses | F181: 1028.03 | G181: 0 | H181: 1028.03 | I181: N.M. | K181: 6947.91 | L181: 0 | M181: 6947.91 | N181: N.M. | Q181: 4053.72 | R181: 0 | S181: 4053.72 | V181: 6947.91 | W181: 0 | X181: 6947.91 | Y181: N.M. | AA181: 0 | AC181: 0 | AD181: 0 | AE181: 0 | AF181: 0 | AG181: 0 | AH181: 0 | AI181: 0 | AJ181: 0 | AK181: 0 | AL181: 0 | AM181: 0 | AN181: 0 | AP181: 412.87 | AQ181: 142.22 | AR181: 859.12 | AS181: 48.1 | AT181: 1431.88 | AU181: 1871.73 | AV181: 1153.96 | AW181: 1028.03 | AX181: 0 | AY181: 0 | AZ181: 0 | BA181: 0
A183: %,FACCOUNT,TGL_FERC_ACCT,XDYYNNY01,N5590 | C183: Other Renewables Operations Expense | F183: 0 | G183: 0 | H183: =+F183-G183 -> 0 | I183: =IF(G183<0,IF(H183=0,0,IF(OR(G183=0,F183=0),"N.M.",IF(ABS(H183/G183)>=10,"N.M.",H183/(-G183)))),IF(H183=0,0,IF(OR(G183=0,F183=0),"N.M.",IF(ABS(H183/G183)>=10,"N.M.",H183/G183)))) -> 0 | K183: 0 | L183: 0 | M183: =+K183-L183 -> 0 | N183: =IF(L183<0,IF(M183=0,0,IF(OR(L183=0,K183=0),"N.M.",IF(ABS(M183/L183)>=10,"N.M.",M183/(-L183)))),IF(M183=0,0,IF(OR(L183=0,K183=0),"N.M.",IF(ABS(M183/L183)>=10,"N.M.",M183/L183)))) -> 0 | Q183: 0 | R183: 0 | S183: =+Q183-R183 -> 0 | V183: 0 | W183: 0 | X183: =+V183-W183 -> 0 | Y183: =IF(W183<0,IF(X183=0,0,IF(OR(W183=0,V183=0),"N.M.",IF(ABS(X183/W183)>=10,"N.M.",X183/(-W183)))),IF(X183=0,0,IF(OR(W183=0,V183=0),"N.M.",IF(ABS(X183/W183)>=10,"N.M.",X183/W183)))) -> 0 | AA183: 0 | AC183: 0 | AD183: 0 | AE183: 0 | AF183: 0 | AG183: 0 | AH183: 0 | AI183: 0 | AJ183: 0 | AK183: 0 | AL183: 0 | AM183: 0 | AN183: 0 | AP183: 0 | AQ183: 0 | AR183: 0 | AS183: 0 | AT183: 0 | AU183: 0 | AV183: 0 | AW183: 0 | AX183: 0 | AY183: 0 | AZ183: 0 | BA183: 0
A185: %,FACCOUNT,TGL_FERC_ACCT,XDYYNNY01,N401_OPERATION | C185: 401 Operation Expense | F185: 0 | G185: 0 | H185: =+F185-G185 -> 0 | I185: =IF(G185<0,IF(H185=0,0,IF(OR(G185=0,F185=0),"N.M.",IF(ABS(H185/G185)>=10,"N.M.",H185/(-G185)))),IF(H185=0,0,IF(OR(G185=0,F185=0),"N.M.",IF(ABS(H185/G185)>=10,"N.M.",H185/G185)))) -> 0 | K185: 0 | L185: 0 | M185: =+K185-L185 -> 0 | N185: =IF(L185<0,IF(M185=0,0,IF(OR(L185=0,K185=0),"N.M.",IF(ABS(M185/L185)>=10,"N.M.",M185/(-L185)))),IF(M185=0,0,IF(OR(L185=0,K185=0),"N.M.",IF(ABS(M185/L185)>=10,"N.M.",M185/L185)))) -> 0 | Q185: 0 | R185: 0 | S185: =+Q185-R185 -> 0 | T185: =IF(R185<0,IF(S185=0,0,IF(OR(R185=0,Q185=0),"N.M.",IF(ABS(S185/R185)>=10,"N.M.",S185/(-R185)))),IF(S185=0,0,IF(OR(R185=0,Q185=0),"N.M.",IF(ABS(S185/R185)>=10,"N.M.",S185/R185)))) -> 0 | V185: 0 | W185: 0 | X185: =+V185-W185 -> 0 | Y185: =IF(W185<0,IF(X185=0,0,IF(OR(W185=0,V185=0),"N.M.",IF(ABS(X185/W185)>=10,"N.M.",X185/(-W185)))),IF(X185=0,0,IF(OR(W185=0,V185=0),"N.M.",IF(ABS(X185/W185)>=10,"N.M.",X185/W185)))) -> 0 | AA185: 0 | AC185: 0 | AD185: 0 | AE185: 0 | AF185: 0 | AG185: 0 | AH185: 0 | AI185: 0 | AJ185: 0 | AK185: 0 | AL185: 0 | AM185: 0 | AN185: 0 | AP185: 0 | AQ185: 0 | AR185: 0 | AS185: 0 | AT185: 0 | AU185: 0 | AV185: 0 | AW185: 0 | AX185: 0 | AY185: 0 | AZ185: 0 | BA185: 0
A187: %,V5600000 | B187: 5600000 | C187: Oper Supervision & Engineering | F187: 189783.07 | G187: 212445.31 | H187: =+F187-G187 -> -22662.24 | I187: =IF(G187<0,IF(H187=0,0,IF(OR(G187=0,F187=0),"N.M.",IF(ABS(H187/G187)>=10,"N.M.",H187/(-G187)))),IF(H187=0,0,IF(OR(G187=0,F187=0),"N.M.",IF(ABS(H187/G187)>=10,"N.M.",H187/G187)))) -> -0.1066732892 | K187: 1567228.31 | L187: 1481724.62 | M187: =+K187-L187 -> 85503.69 | N187: =IF(L187<0,IF(M187=0,0,IF(OR(L187=0,K187=0),"N.M.",IF(ABS(M187/L187)>=10,"N.M.",M187/(-L187)))),IF(M187=0,0,IF(OR(L187=0,K187=0),"N.M.",IF(ABS(M187/L187)>=10,"N.M.",M187/L187)))) -> 0.05770552021 | Q187: 660604.93 | R187: 527884.17 | S187: =+Q187-R187 -> 132720.76 | T187: =IF(R187<0,IF(S187=0,0,IF(OR(R187=0,Q187=0),"N.M.",IF(ABS(S187/R187)>=10,"N.M.",S187/(-R187)))),IF(S187=0,0,IF(OR(R187=0,Q187=0),"N.M.",IF(ABS(S187/R187)>=10,"N.M.",S187/R187)))) -> 0.2514202311 | V187: 2150275.82 | W187: 2114108.03 | X187: =+V187-W187 -> 36167.79 | Y187: =IF(W187<0,IF(X187=0,0,IF(OR(W187=0,V187=0),"N.M.",IF(ABS(X187/W187)>=10,"N.M.",X187/(-W187)))),IF(X187=0,0,IF(OR(W187=0,V187=0),"N.M.",IF(ABS(X187/W187)>=10,"N.M.",X187/W187)))) -> 0.0171078249 | AA187: 168995.85 | AC187: 226312.48 | AD187: 177789.39 | AE187: 192333.2 | AF187: 173195.5 | AG187: 184209.88 | AH187: 137056.33 | AI187: 178382.53 | AJ187: 212445.31 | AK187: 214648.84 | AL187: 147084.64 | AM187: 125215.99 | AN187: 96098.04 | AP187: 228555.82 | AQ187: 190482.01 | AR187: 174554.21 | AS187: 185380.88 | AT187: 127650.46 | AU187: 212175.87 | AV187: 258645.99 | AW187: 189783.07 | AX187: 447.41 | AY187: 0 | AZ187: 0 | BA187: 0
A188: %,V5612000 | B188: 5612000 | C188: Load Dispatch-Mntr&Op TransSys | F188: 55995.37 | G188: 36512.02 | H188: 19483.35 | I188: 0.5336146836 | K188: 434929.6 | L188: 259556.73 | M188: 175372.87 | N188: 0.6756629659 | Q188: 174724.1 | R188: 100794.17 | S188: 73929.93 | T188: 0.7334742674 | V188: 561458.12 | W188: 353554.76 | X188: 207903.36 | Y188: 0.5880372251 | AA188: 18683.85 | AC188: 33127.11 | AD188: 33085.61 | AE188: 31198.84 | AF188: 30760.07 | AG188: 30590.93 | AH188: 30121.74 | AI188: 34160.41 | AJ188: 36512.02 | AK188: 33511.41 | AL188: 32035.74 | AM188: 28185.56 | AN188: 32795.81 | AP188: 39358.12 | AQ188: 35577.94 | AR188: 33249.93 | AS188: 103888.42 | AT188: 48131.09 | AU188: 54208.05 | AV188: 64520.68 | AW188: 55995.37 | AX188: 0 | AY188: 0 | AZ188: 0 | BA188: 0
A189: %,V5613000 | B189: 5613000 | C189: Load Dispatch-Trans Srvc&Sched | F189: 60.99 | G189: 0 | H189: 60.99 | I189: N.M. | K189: 165.68 | L189: 0 | M189: 165.68 | N189: N.M. | Q189: 220.64 | R189: 0 | S189: 220.64 | T189: N.M. | V189: 295.73 | W189: 0 | X189: 295.73 | Y189: N.M. | AA189: 0 | AC189: 0 | AD189: 0 | AE189: 0 | AF189: 0 | AG189: 0 | AH189: 0 | AI189: 0 | AJ189: 0 | AK189: 0 | AL189: 0 | AM189: 0 | AN189: 130.05 | AP189: 192.28 | AQ189: 52.16 | AR189: -70.1 | AS189: -66.9 | AT189: -162.4 | AU189: 80.16 | AV189: 79.49 | AW189: 60.99 | AX189: 0 | AY189: 0 | AZ189: 0 | BA189: 0
A190: %,V5614000 | B190: 5614000 | C190: PJM Admin-SSC&DS-OSS | F190: 12482.78 | G190: 9127.24 | H190: 3355.54 | I190: 0.3676401629 | K190: 65310.26 | L190: 55122.72 | M190: 10187.54 | N190: 0.1848156259 | Q190: 33120.01 | R190: 29125.22 | S190: 3994.79 | T190: 0.1371591356 | V190: 87448.04 | W190: 68760.02 | X190: 18688.02 | Y190: 0.2717861339 | AA190: 2485.27 | AC190: 714.26 | AD190: 9941.76 | AE190: 2472.86 | AF190: 8597.01 | AG190: 4271.61 | AH190: 13322.58 | AI190: 6675.4 | AJ190: 9127.24 | AK190: 3221.78 | AL190: 4624.46 | AM190: 4952.04 | AN190: 9339.5 | AP190: 6581.16 | AQ190: 7185.07 | AR190: 3995.46 | AS190: 7351.26 | AT190: 7077.3 | AU190: 12356.26 | AV190: 8280.97 | AW190: 12482.78 | AX190: -11546.85 | AY190: 0 | AZ190: 0 | BA190: 0
A191: %,V5614001 | B191: 5614001 | C191: PJM Admin-SSC&DS-Internal | F191: 101237.23 | G191: 98323.12 | H191: 2914.11 | I191: 0.02963809529 | K191: 907608.8 | L191: 895251.9 | M191: 12356.9 | N191: 0.01380270737 | Q191: 276936.01 | R191: 275275.58 | S191: 1660.43 | T191: 0.006031882668 | V191: 1328458.76 | W191: 1307795.57 | X191: 20663.19 | Y191: 0.01580001529 | AA191: 114824.86 | AC191: 177950.44 | AD191: 98439.81 | AE191: 94710.36 | AF191: 145525.28 | AG191: 103350.43 | AH191: 110596.15 | AI191: 66356.31 | AJ191: 98323.12 | AK191: 87421.78 | AL191: 105296.06 | AM191: 117890.6 | AN191: 110241.52 | AP191: 144999.86 | AQ191: 133517.82 | AR191: 101289.53 | AS191: 146971.6 | AT191: 103893.98 | AU191: 101015.23 | AV191: 74683.55 | AW191: 101237.23 | AX191: -91796.72 | AY191: 0 | AZ191: 0 | BA191: 0
A192: %,V5614008 | B192: 5614008 | C192: PJM Admin Defaults OSS | F192: 0 | G192: 0 | H192: 0 | I192: 0 | K192: 0 | L192: 0 | M192: 0 | N192: 0 | Q192: 0 | R192: 0 | S192: 0 | T192: 0 | V192: 0 | W192: 8225.5 | X192: -8225.5 | Y192: N.M. | AA192: 4112.75 | AC192: 0 | AD192: 0 | AE192: 0 | AF192: 0 | AG192: 0 | AH192: 0 | AI192: 0 | AJ192: 0 | AK192: 0 | AL192: 0 | AM192: 0 | AN192: 0 | AP192: 0 | AQ192: 0 | AR192: 0 | AS192: 0 | AT192: 0 | AU192: 0 | AV192: 0 | AW192: 0 | AX192: 0 | AY192: 0 | AZ192: 0 | BA192: 0
A193: %,V5614009 | B193: 5614009 | C193: GreenHat Settlement | F193: 0 | G193: 0 | H193: 0 | I193: 0 | K193: 0 | L193: 3534.97 | M193: -3534.97 | N193: N.M. | Q193: 0 | R193: 0 | S193: 0 | T193: 0 | V193: 0 | W193: 37252.49 | X193: -37252.49 | Y193: N.M. | AA193: 8429.38 | AC193: 3534.97 | AD193: 0 | AE193: 0 | AF193: 0 | AG193: 0 | AH193: 0 | AI193: 0 | AJ193: 0 | AK193: 0 | AL193: 0 | AM193: 0 | AN193: 0 | AP193: 0 | AQ193: 0 | AR193: 0 | AS193: 0 | AT193: 0 | AU193: 0 | AV193: 0 | AW193: 0 | AX193: 0 | AY193: 0 | AZ193: 0 | BA193: 0
A194: %,V5615000 | B194: 5615000 | C194: Reliability,Plng&Stds Develop | F194: 2540.7 | G194: 6422.07 | H194: -3881.37 | I194: -0.6043798962 | K194: 56888.34 | L194: 46143.51 | M194: 10744.83 | N194: 0.2328567983 | Q194: 8618.28 | R194: 16405.66 | S194: -7787.38 | T194: -0.4746764226 | V194: 88826.15 | W194: 69118.14 | X194: 19708.01 | Y194: 0.2851351324 | AA194: 3003.27 | AC194: 6337.15 | AD194: 7074.21 | AE194: 6579.44 | AF194: 5501.97 | AG194: 4245.08 | AH194: 4827.24 | AI194: 5156.35 | AJ194: 6422.07 | AK194: 6692.7 | AL194: 13046.32 | AM194: 7626.03 | AN194: 4572.76 | AP194: 5237.07 | AQ194: 5257.11 | AR194: 3852.76 | AS194: 17798.1 | AT194: 16125.02 | AU194: 2751.74 | AV194: 3325.84 | AW194: 2540.7 | AX194: 0 | AY194: 0 | AZ194: 0 | BA194: 0
A195: %,V5618000 | B195: 5618000 | C195: PJM Admin-RP&SDS-OSS | F195: 6494.27 | G195: 3185 | H195: 3309.27 | I195: 1.039017268 | K195: 20276.14 | L195: 17885.49 | M195: 2390.65 | N195: 0.1336642161 | Q195: 10830.22 | R195: 9834.63 | S195: 995.59 | T195: 0.1012330916 | V195: 26718.82 | W195: 21347.85 | X195: 5370.97 | Y195: 0.2515930176 | AA195: 535.55 | AC195: 1549.07 | AD195: 2765.6 | AE195: 573 | AF195: 2070.15 | AG195: 1093.04 | AH195: 3350.43 | AI195: 3299.2 | AJ195: 3185 | AK195: 1096.96 | AL195: 1328.13 | AM195: 1379.39 | AN195: 2638.2 | AP195: 3336.66 | AQ195: 2383.17 | AR195: 887.63 | AS195: 1730.27 | AT195: 1108.19 | AU195: 3382.46 | AV195: 953.49 | AW195: 6494.27 | AX195: -3590.07 | AY195: 0 | AZ195: 0 | BA195: 0
A196: %,V5618001 | B196: 5618001 | C196: PJM Admin-RP&SDS- Internal | F196: 55073.63 | G196: 34253.88 | H196: 20819.75 | I196: 0.6078070572 | K196: 270713.21 | L196: 304222.38 | M196: -33509.17 | N196: -0.1101469589 | Q196: 93913.71 | R196: 92736.02 | S196: 1177.69 | T196: 0.01269938046 | V196: 394373.28 | W196: 407473.19 | X196: -13099.91 | Y196: -0.03214913354 | AA196: 25909.65 | AC196: 68948.57 | AD196: 55784.36 | AE196: 22683.59 | AF196: 37449.89 | AG196: 26619.95 | AH196: 27992.28 | AI196: 30489.86 | AJ196: 34253.88 | AK196: 29931.97 | AL196: 30039.13 | AM196: 32919.86 | AN196: 30769.11 | AP196: 59349.11 | AQ196: 44773.07 | AR196: 24292.17 | AS196: 34095.87 | AT196: 14289.28 | AU196: 31652.36 | AV196: 7187.72 | AW196: 55073.63 | AX196: -28821.12 | AY196: 0 | AZ196: 0 | BA196: 0
A197: %,V5620001 | B197: 5620001 | C197: Station Expenses - Nonassoc | F197: 25540.66 | G197: 15004.95 | H197: 10535.71 | I197: 0.7021489575 | K197: 214964.11 | L197: 143822.95 | M197: 71141.16 | N197: 0.494644005 | Q197: 83822.98 | R197: 53679.96 | S197: 30143.02 | T197: 0.5615320876 | V197: 274637.78 | W197: 240392.84 | X197: 34244.94 | Y197: 0.1424540764 | AA197: 14956.52 | AC197: 15476.45 | AD197: 18953.3 | AE197: 11834.38 | AF197: 20186.86 | AG197: 23692 | AH197: 19668.21 | AI197: 19006.8 | AJ197: 15004.95 | AK197: 29973.27 | AL197: 861.3 | AM197: 28697.55 | AN197: 141.55 | AP197: 25544.2 | AQ197: 17002.71 | AR197: 28419.13 | AS197: 31279.02 | AT197: 28896.07 | AU197: 28263.51 | AV197: 30018.81 | AW197: 25540.66 | AX197: 80.9 | AY197: 0 | AZ197: 0 | BA197: 0
A198: %,V5630000 | B198: 5630000 | C198: Overhead Line Expenses | F198: 1857.34 | G198: 785.94 | H198: 1071.4 | I198: 1.363208387 | K198: 14908.42 | L198: 15031.48 | M198: -123.06 | N198: -0.008186818597 | Q198: 8445.29 | R198: 3253.2 | S198: 5192.09 | T198: 1.595994713 | V198: 27060.08 | W198: 19658.92 | X198: 7401.16 | Y198: 0.3764784637 | AA198: 807.6 | AC198: 1068.23 | AD198: 2437 | AE198: 1918.73 | AF198: 790.76 | AG198: 5563.56 | AH198: 1827.21 | AI198: 640.05 | AJ198: 785.94 | AK198: 13400.01 | AL198: -2652.06 | AM198: 722.81 | AN198: 680.9 | AP198: 864.88 | AQ198: 732.27 | AR198: 1692.62 | AS198: 904.92 | AT198: 2268.44 | AU198: 3344.88 | AV198: 3243.07 | AW198: 1857.34 | AX198: 0 | AY198: 0 | AZ198: 0 | BA198: 0
A199: %,V5640000 | B199: 5640000 | C199: Underground Line Expenses | F199: 0 | G199: 0 | H199: 0 | I199: 0 | K199: 0 | L199: 15.85 | M199: -15.85 | N199: N.M. | Q199: 0 | R199: 15.85 | S199: -15.85 | T199: N.M. | V199: 0 | W199: 15.85 | X199: -15.85 | Y199: N.M. | AA199: 0 | AC199: 0 | AD199: 0 | AE199: 0 | AF199: 0 | AG199: 0 | AH199: 0 | AI199: 15.85 | AJ199: 0 | AK199: 0 | AL199: 0 | AM199: 0 | AN199: 0 | AP199: 0 | AQ199: 0 | AR199: 0 | AS199: 0 | AT199: 0 | AU199: 0 | AV199: 0 | AW199: 0 | AX199: 0 | AY199: 0 | AZ199: 0 | BA199: 0
A200: %,V5650002 | B200: 5650002 | C200: Transmssn Elec by Others-NAC | F200: 8422.5 | G200: 8433 | H200: -10.5 | I200: -0.001245108502 | K200: 70432.5 | L200: 64753.5 | M200: 5679 | N200: 0.08770182307 | Q200: 25785 | R200: 25396.5 | S200: 388.5 | T200: 0.0152973835 | V200: 98968.5 | W200: 99684 | X200: -715.5 | Y200: -0.007177681473 | AA200: 8842.5 | AC200: 11478 | AD200: 8179.5 | AE200: 6891 | AF200: 6115.5 | AG200: 6693 | AH200: 8349 | AI200: 8614.5 | AJ200: 8433 | AK200: 6781.5 | AL200: 6175.5 | AM200: 6622.5 | AN200: 8956.5 | AP200: 15075 | AQ200: 9775.5 | AR200: 7228.5 | AS200: 6552 | AT200: 6016.5 | AU200: 7993.5 | AV200: 9369 | AW200: 8422.5 | AX200: 0 | AY200: 0 | AZ200: 0 | BA200: 0
A201: %,V5650007 | B201: 5650007 | C201: Tran Elec by Oth-Aff-Trn Price | F201: 0 | G201: 0 | H201: 0 | I201: 0 | K201: 0 | L201: 0 | M201: 0 | N201: 0 | Q201: 0 | R201: 0 | S201: 0 | T201: 0 | V201: 0 | W201: 0 | X201: 0 | Y201: 0 | AA201: 0 | AC201: 0 | AD201: 0 | AE201: 0 | AF201: 0 | AG201: 0 | AH201: 0 | AI201: 0 | AJ201: 0 | AK201: 0 | AL201: 0 | AM201: 0 | AN201: 0 | AP201: 0 | AQ201: 0 | AR201: 0 | AS201: 0 | AT201: 0 | AU201: 0 | AV201: 0 | AW201: 0 | AX201: 58232460.28 | AY201: 0 | AZ201: 0 | BA201: 0
A202: %,V5650012 | B202: 5650012 | C202: PJM Trans Enhancement Charge | F202: 168427.8 | G202: 170519.23 | H202: -2091.43 | I202: -0.01226506829 | K202: 1377502.13 | L202: 1379318.22 | M202: -1816.09 | N202: -0.001316657733 | Q202: 514279.54 | R202: 511515.53 | S202: 2764.01 | T202: 0.005403570054 | V202: 2059712.85 | W202: 1937490.25 | X202: 122222.6 | Y202: 0.06308294971 | AA202: 108405.78 | AC202: 173455.56 | AD202: 173773.47 | AE202: 173081.5 | AF202: 173766.3 | AG202: 173725.86 | AH202: 170484.08 | AI202: 170512.22 | AJ202: 170519.23 | AK202: 170593.13 | AL202: 170512.23 | AM202: 170667.06 | AN202: 170438.3 | AP202: 167900.46 | AQ202: 178658.29 | AR202: 169087.17 | AS202: 173806.15 | AT202: 173770.52 | AU202: 173337.14 | AV202: 172514.6 | AW202: 168427.8 | AX202: -172514.61 | AY202: 0 | AZ202: 0 | BA202: 0
A203: %,V5650015 | B203: 5650015 | C203: PJM TO Serv Exp - Aff | F203: 13760.82 | G203: 14278.87 | H203: -518.05 | I203: -0.03628088217 | K203: 114000.54 | L203: 113002.43 | M203: 998.11 | N203: 0.008832641918 | Q203: 42907.97 | R203: 43167 | S203: -259.03 | T203: -0.006000648644 | V203: 167045.14 | W203: 97257.81 | X203: 69787.33 | Y203: 0.7175498811 | AA203: -4535.4 | AC203: 17805.91 | AD203: 14028.62 | AE203: 13616.74 | AF203: 11770.97 | AG203: 12613.19 | AH203: 13746.02 | AI203: 15142.11 | AJ203: 14278.87 | AK203: 12454.03 | AL203: 12289.3 | AM203: 12384.13 | AN203: 15917.14 | AP203: 19216.27 | AQ203: 14587.66 | AR203: 13698.22 | AS203: 12070.45 | AT203: 11519.97 | AU203: 13654.09 | AV203: 15493.06 | AW203: 13760.82 | AX203: -13761.59 | AY203: 0 | AZ203: 0 | BA203: 0
A204: %,V5650016 | B204: 5650016 | C204: PJM NITS Expense - Affiliated | F204: 6501533.21 | G204: 6323263.11 | H204: 178270.1 | I204: 0.02819273797 | K204: 50958746.32 | L204: 49766402.09 | M204: 1192344.23 | N204: 0.0239588192 | Q204: 19293895.76 | R204: 18764863.63 | S204: 529032.13 | T204: 0.02819269782 | V204: 75841947.36 | W204: 73238843.97 | X204: 2603103.39 | Y204: 0.03554266082 | AA204: 5964609.13 | AC204: 6323262.77 | AD204: 5913412.06 | AE204: 6323263.11 | AF204: 6118337.41 | AG204: 6323263.11 | AH204: 6118337.41 | AI204: 6323263.11 | AJ204: 6323263.11 | AK204: 6118337.41 | AL204: 6323263.11 | AM204: 6118337.41 | AN204: 6323263.11 | AP204: 6501533.21 | AQ204: 5869421.59 | AR204: 6501533.21 | AS204: 6290829.34 | AT204: 6501533.21 | AU204: 6290829.34 | AV204: 6501533.21 | AW204: 6501533.21 | AX204: -6501533.21 | AY204: 0 | AZ204: 0 | BA204: 0
A205: %,V5650019 | B205: 5650019 | C205: Affil PJM Trans Enhncement Exp | F205: 398850.65 | G205: 458249.11 | H205: -59398.46 | I205: -0.1296204591 | K205: 3190805.2 | L205: 3665992.92 | M205: -475187.72 | N205: -0.1296204686 | Q205: 1196551.95 | R205: 1374747.35 | S205: -178195.4 | T205: -0.1296204717 | V205: 5023801.67 | W205: 5476637.31 | X205: -452835.64 | Y205: -0.08268497882 | AA205: 452661.1 | AC205: 458249.12 | AD205: 458249.11 | AE205: 458249.12 | AF205: 458249.11 | AG205: 458249.11 | AH205: 458249.12 | AI205: 458249.12 | AJ205: 458249.11 | AK205: 458249.1 | AL205: 458249.14 | AM205: 458249.11 | AN205: 458249.12 | AP205: 398850.65 | AQ205: 398850.64 | AR205: 398850.66 | AS205: 398850.65 | AT205: 398850.65 | AU205: 398850.65 | AV205: 398850.65 | AW205: 398850.65 | AX205: -398850.65 | AY205: 0 | AZ205: 0 | BA205: 0
A206: %,V5650020 | B206: 5650020 | C206: PROVISION RTO Affl Tran Expnse | F206: 235247 | G206: -146912 | H206: 382159 | I206: 2.601278316 | K206: 7989054 | L206: -3212010 | M206: 11201064 | N206: 3.487244436 | Q206: 8577564 | R206: -2490602 | S206: 11068166 | T206: 4.44397218 | V206: 6377634 | W206: -13211307 | X206: 19588941 | Y206: 1.48274058 | AA206: -9994705 | AC206: -5210 | AD206: 1688 | AE206: -298648 | AF206: -102991 | AG206: -316247 | AH206: -2216889 | AI206: -126801 | AJ206: -146912 | AK206: -148698 | AL206: -150865 | AM206: -147355 | AN206: -1164502 | AP206: -147629 | AQ206: -86875 | AR206: -119381 | AS206: -117156 | AT206: -117469 | AU206: 8170676 | AV206: 171641 | AW206: 235247 | AX206: -1778578 | AY206: 0 | AZ206: 0 | BA206: 0
A207: %,V5650021 | B207: 5650021 | C207: PJM NITS Expense - Non-Affilia | F207: 91143.26 | G207: 72425.39 | H207: 18717.87 | I207: 0.2584434823 | K207: 741444.76 | L207: 578002.85 | M207: 163441.91 | N207: 0.2827700763 | Q207: 273272.37 | R207: 216945.62 | S207: 56326.75 | T207: 0.2596353409 | V207: 1037240.43 | W207: 820780.13 | X207: 216460.3 | Y207: 0.2637250734 | AA207: 60604.54 | AC207: 72919.29 | AD207: 71425.54 | AE207: 72269.99 | AF207: 72172.4 | AG207: 72270.01 | AH207: 72172.46 | AI207: 72347.77 | AJ207: 72425.39 | AK207: 72250.12 | AL207: 72347.68 | AM207: 72250.11 | AN207: 78947.76 | AP207: 84543.12 | AQ207: 74451.6 | AR207: 127048.53 | AS207: 90871.65 | AT207: 91257.49 | AU207: 90871.66 | AV207: 91257.45 | AW207: 91143.26 | AX207: -91257.31 | AY207: 0 | AZ207: 0 | BA207: 0
A208: %,V5650023 | B208: 5650023 | C208: Amort of PROVISION RTO Expense | F208: 586515 | G208: 4567.51 | H208: 581947.49 | I208: N.M. | K208: 5936742 | L208: 36540.08 | M208: 5900201.92 | N208: N.M. | Q208: 1966982 | R208: 13702.53 | S208: 1953279.47 | T208: N.M. | V208: 5955010.04 | W208: -516930.32 | X208: 6471940.36 | Y208: N.M. | AA208: -875762.35 | AC208: 4567.51 | AD208: 4567.51 | AE208: 4567.51 | AF208: 4567.51 | AG208: 4567.51 | AH208: 4567.51 | AI208: 4567.51 | AJ208: 4567.51 | AK208: 4567.51 | AL208: 4567.51 | AM208: 4567.51 | AN208: 4565.51 | AP208: 793952 | AQ208: 793952 | AR208: 793952 | AS208: 793952 | AT208: 793952 | AU208: 793952 | AV208: 586515 | AW208: 586515 | AX208: 0 | AY208: 0 | AZ208: 0 | BA208: 0
A209: %,V5660000 | B209: 5660000 | C209: Misc Transmission Expenses | F209: 104293.39 | G209: 73885.69 | H209: 30407.7 | I209: 0.4115505993 | K209: 593990.26 | L209: 924390.24 | M209: -330399.98 | N209: -0.357424782 | Q209: 302500.38 | R209: 540482.56 | S209: -237982.18 | T209: -0.4403142629 | V209: 864654.32 | W209: 1015275.5 | X209: -150621.18 | Y209: -0.1483549835 | AA209: -78573.25 | AC209: 174796.82 | AD209: 56092.65 | AE209: 51714.34 | AF209: 49411.67 | AG209: 51892.2 | AH209: 423275.98 | AI209: 43320.89 | AJ209: 73885.69 | AK209: 46027.31 | AL209: 65165.32 | AM209: 46055.69 | AN209: 113415.74 | AP209: 43287.71 | AQ209: 68253.07 | AR209: 58513.68 | AS209: 76585.19 | AT209: 44850.23 | AU209: 250785.13 | AV209: -52578.14 | AW209: 104293.39 | AX209: -47.7 | AY209: 0 | AZ209: 0 | BA209: 0
A210: %,V5660009 | B210: 5660009 | C210: PJM OATT LSE Over-Under Adjust | F210: 0 | G210: 0 | H210: 0 | I210: 0 | K210: 0 | L210: 1248885.15 | M210: -1248885.15 | N210: N.M. | Q210: 0 | R210: 0 | S210: 0 | T210: 0 | V210: 0 | W210: -3257551.63 | X210: 3257551.63 | Y210: N.M. | AA210: 436193.52 | AC210: 1248885.15 | AD210: -1897846.05 | AE210: 1897846.05 | AF210: 0 | AG210: 0 | AH210: 0 | AI210: 0 | AJ210: 0 | AK210: 0 | AL210: 0 | AM210: 0 | AN210: 0 | AP210: 0 | AQ210: 0 | AR210: 0 | AS210: 0 | AT210: 0 | AU210: 0 | AV210: 0 | AW210: 0 | AX210: 0 | AY210: 0 | AZ210: 0 | BA210: 0
A211: %,V5660011 | B211: 5660011 | C211: Misc Transm Exp - Affiliate | F211: 257.31 | G211: 262.8 | H211: -5.49 | I211: -0.02089041096 | K211: 2329.33 | L211: 2372.2 | M211: -42.87 | N211: -0.01807183205 | Q211: 864.81 | R211: 787.22 | S211: 77.59 | T211: 0.0985620284 | V211: 3493.84 | W211: 3626.97 | X211: -133.13 | Y211: -0.03670556966 | AA211: 313.49 | AC211: 277.68 | AD211: 358.63 | AE211: 334.24 | AF211: 321.63 | AG211: 292.8 | AH211: 239.28 | AI211: 285.14 | AJ211: 262.8 | AK211: 244.95 | AL211: 258.13 | AM211: 255.81 | AN211: 405.62 | AP211: 268.33 | AQ211: 363.53 | AR211: 278.08 | AS211: 277.29 | AT211: 277.29 | AU211: 355.43 | AV211: 252.07 | AW211: 257.31 | AX211: 0 | AY211: 0 | AZ211: 0 | BA211: 0
A212: %,V5670001 | B212: 5670001 | C212: Rents - Nonassociated | F212: 0 | G212: 0 | H212: 0 | I212: 0 | K212: 250 | L212: 0 | M212: 250 | N212: N.M. | Q212: 0 | R212: 0 | S212: 0 | T212: 0 | V212: 250 | W212: 0 | X212: 250 | Y212: N.M. | AA212: 0 | AC212: 0 | AD212: 0 | AE212: 0 | AF212: 0 | AG212: 0 | AH212: 0 | AI212: 0 | AJ212: 0 | AK212: 0 | AL212: 0 | AM212: 0 | AN212: 0 | AP212: 0 | AQ212: 0 | AR212: 250 | AS212: 0 | AT212: 0 | AU212: 0 | AV212: 0 | AW212: 0 | AX212: 0 | AY212: 0 | AZ212: 0 | BA212: 0
A213: %,V5670002 | B213: 5670002 | C213: Rents - Associated | F213: 0 | G213: 0 | H213: 0 | I213: 0 | K213: 0 | L213: 0 | M213: 0 | N213: 0 | Q213: 0 | R213: 0 | S213: 0 | T213: 0 | V213: 0 | W213: 0 | X213: 0 | Y213: 0 | AA213: 0 | AC213: 0 | AD213: 0 | AE213: 0 | AF213: 0 | AG213: 0 | AH213: 0 | AI213: 0 | AJ213: 0 | AK213: 0 | AL213: 0 | AM213: 0 | AN213: 0 | AP213: 0 | AQ213: 0 | AR213: 0 | AS213: 0 | AT213: 0 | AU213: 0 | AV213: 0 | AW213: 0 | AX213: 272028.84 | AY213: 0 | AZ213: 0 | BA213: 0
A214: %,FACCOUNT,TGL_FERC_ACCT,XDYYNNY01,N560-567 | C214: Transmission Operations | F214: 8559516.98 | G214: 7395032.24 | H214: 1164484.74 | I214: 0.1574685143 | K214: 74528289.91 | L214: 57789962.28 | M214: 16738327.63 | N214: 0.2896407433 | Q214: 33545839.95 | R214: 20110010.4 | S214: 13435829.55 | T214: 0.6681164894 | V214: 102369310.7 | W214: 70351510.15 | X214: 32017800.58 | Y214: 0.4551117739 | AA214: -3559201.39 | AC214: 9015506.54 | AD214: 5210200.08 | AE214: 9067490 | AF214: 7215798.99 | AG214: 7170956.27 | AH214: 5401294.03 | AI214: 7313684.13 | AJ214: 7395032.24 | AK214: 7160705.78 | AL214: 7293626.64 | AM214: 7089624.16 | AN214: 6297064.24 | AP214: 8391016.91 | AQ214: 7758402.21 | AR214: 8323222.39 | AS214: 8255972.16 | AT214: 8253836.29 | AU214: 16640535.46 | AV214: 8345787.51 | AW214: 8559516.98 | AX214: 49412719.6 | AY214: 0 | AZ214: 0 | BA214: 0
A216: %,V5757000 | B216: 5757000 | C216: PJM Admin-MAM&SC- OSS | F216: 18902.24 | G216: 10189.78 | H216: =+F216-G216 -> 8712.46 | I216: =IF(G216<0,IF(H216=0,0,IF(OR(G216=0,F216=0),"N.M.",IF(ABS(H216/G216)>=10,"N.M.",H216/(-G216)))),IF(H216=0,0,IF(OR(G216=0,F216=0),"N.M.",IF(ABS(H216/G216)>=10,"N.M.",H216/G216)))) -> 0.855019441 | K216: 57619.07 | L216: 54136.8 | M216: =+K216-L216 -> 3482.27 | N216: =IF(L216<0,IF(M216=0,0,IF(OR(L216=0,K216=0),"N.M.",IF(ABS(M216/L216)>=10,"N.M.",M216/(-L216)))),IF(M216=0,0,IF(OR(L216=0,K216=0),"N.M.",IF(ABS(M216/L216)>=10,"N.M.",M216/L216)))) -> 0.06432352854 | Q216: 31629.92 | R216: 31856.37 | S216: =+Q216-R216 -> -226.45 | T216: =IF(R216<0,IF(S216=0,0,IF(OR(R216=0,Q216=0),"N.M.",IF(ABS(S216/R216)>=10,"N.M.",S216/(-R216)))),IF(S216=0,0,IF(OR(R216=0,Q216=0),"N.M.",IF(ABS(S216/R216)>=10,"N.M.",S216/R216)))) -> -0.007108468416 | V216: 75297.47 | W216: 63753.45 | X216: =+V216-W216 -> 11544.02 | Y216: =IF(W216<0,IF(X216=0,0,IF(OR(W216=0,V216=0),"N.M.",IF(ABS(X216/W216)>=10,"N.M.",X216/(-W216)))),IF(X216=0,0,IF(OR(W216=0,V216=0),"N.M.",IF(ABS(X216/W216)>=10,"N.M.",X216/W216)))) -> 0.1810728674 | AA216: 774.26 | AC216: 3045.95 | AD216: 8122.23 | AE216: 1816.04 | AF216: 6544.22 | AG216: 2751.99 | AH216: 9983.37 | AI216: 11683.22 | AJ216: 10189.78 | AK216: 3291.59 | AL216: 2931.51 | AM216: 3642.67 | AN216: 7812.63 | AP216: 6761.19 | AQ216: 7074.43 | AR216: 2192.08 | AS216: 4530.45 | AT216: 5431 | AU216: 7744.23 | AV216: 4983.45 | AW216: 18902.24 | AX216: -11008.82 | AY216: 0 | AZ216: 0 | BA216: 0
A217: %,V5757001 | B217: 5757001 | C217: PJM Admin-MAM&SC- Internal | F217: 162453.75 | G217: 124874.94 | H217: =+F217-G217 -> 37578.81 | I217: =IF(G217<0,IF(H217=0,0,IF(OR(G217=0,F217=0),"N.M.",IF(ABS(H217/G217)>=10,"N.M.",H217/(-G217)))),IF(H217=0,0,IF(OR(G217=0,F217=0),"N.M.",IF(ABS(H217/G217)>=10,"N.M.",H217/G217)))) -> 0.300931556 | K217: 882988.89 | L217: 974515.48 | M217: =+K217-L217 -> -91526.59 | N217: =IF(L217<0,IF(M217=0,0,IF(OR(L217=0,K217=0),"N.M.",IF(ABS(M217/L217)>=10,"N.M.",M217/(-L217)))),IF(M217=0,0,IF(OR(L217=0,K217=0),"N.M.",IF(ABS(M217/L217)>=10,"N.M.",M217/L217)))) -> -0.09392009863 | Q217: 297856.78 | R217: 341745.87 | S217: =+Q217-R217 -> -43889.09 | T217: =IF(R217<0,IF(S217=0,0,IF(OR(R217=0,Q217=0),"N.M.",IF(ABS(S217/R217)>=10,"N.M.",S217/(-R217)))),IF(S217=0,0,IF(OR(R217=0,Q217=0),"N.M.",IF(ABS(S217/R217)>=10,"N.M.",S217/R217)))) -> -0.1284261021 | V217: 1279652.01 | W217: 1258234.03 | X217: =+V217-W217 -> 21417.98 | Y217: =IF(W217<0,IF(X217=0,0,IF(OR(W217=0,V217=0),"N.M.",IF(ABS(X217/W217)>=10,"N.M.",X217/(-W217)))),IF(X217=0,0,IF(OR(W217=0,V217=0),"N.M.",IF(ABS(X217/W217)>=10,"N.M.",X217/W217)))) -> 0.0170222546 | AA217: 52761.64 | AC217: 329649.67 | AD217: 3267.27 | AE217: 89771.62 | AF217: 126774.7 | AG217: 83306.35 | AH217: 99270.1 | AI217: 117600.83 | AJ217: 124874.94 | AK217: 105508.56 | AL217: 78792.97 | AM217: 103357.23 | AN217: 109004.36 | AP217: 158273.45 | AQ217: 149555.78 | AR217: 80954.13 | AS217: 101728.7 | AT217: 94620.05 | AU217: 81406.89 | AV217: 53996.14 | AW217: 162453.75 | AX217: -90085.25 | AY217: 0 | AZ217: 0 | BA217: 0
... 420 more rows

Sheet Modification History (hidden)
A2: BU_Name | C2: Scope-based
A3: Contact Person | C3: Neal Hartley
A4: Department Owner | C4: Financial Reporting
A5: Account Tree | C5: GL_FERC_ACCT
A6: Business Unit Tree | C6: Scope-based
A7: Sunset Date
A8: Report Statement Type | C8: Reporting Package
A9: Report Description | C9: IS, BS, O&M, and Trial Bal
A10: Title (Builtin) | C10: FERC Comparative Statements
A11: Author (Builtin) | C11: Financial Reporting / Neal Hartley
A12: Comments (Builtin) | C12: Acct: GL_FERC_ACCT BU: Scope-based
A13: Subject (Builtin)
A14: Category (Builtin)
A15: Keywords (Builtin)
A18: 2016-08-01 | C18: Neal Hartley | E18: Created this new report from GLR3000V
A19: 2018-09-05 | C19: Neal Hartley | E19: Change Effective tax rate on lines 93 & 166 from 35% to 21%

Sheet O&M
A1: %,LACTUALS,SBAL | B1: %,ATF,FACCOUNT | C1: %,ATT,FDESCR,UDESCR | F1: %,LACTUALS,SPER | G1: %,LACTUALS,SPER-1YR | H1: %,C | I1: %,C | K1: %,LACTUALS,SYTD | L1: %,LACTUALS,SYTD-1YR | M1: %,C | N1: %,C | Q1: %,LACTUALS,SQTR | R1: %,LACTUALS,SQTR-1YR | S1: %,C | T1: %,C | V1: %,LACTUALS,SROLLING12 | W1: %,LACTUALS,SROLNG12-1Y | X1: %,C | Y1: %,C
C2: Kentucky Power Corp Consol | G2: Kentucky Power Corp Consol | L2: Kentucky Power Corp Consol | R2: Kentucky Power Corp Consol | W2: Kentucky Power Corp Consol
C3: August 2025 | G3: As of: Aug 2025 | L3: As of: Aug 2025 | R3: As of: Aug 2025 | W3: As of: Aug 2025
B4: Run Date: 09/09/2025 05:35 AM
B5: GLR6283P | C5: Rpt ID: FERC_IS1 Layout: FERC_IS1 | F5: ONE MONTH ENDED | H5: Variance | K5: YEAR TO DATE | M5: Variance | Q5: THREE MONTHS ENDED | S5: Variance | V5: TWELVE MONTHS ENDED | X5: Variance
B6: KYP_CORP_CONSOL | C6: V2099-01-01 Acct: GL_FERC_ACCT BU: GL_PRPT_CONS | F6: 2025 | G6: 2024 | H6: $ | I6: % | K6: 2025 | L6: 2024 | M6: $ | N6: % | O6: Explanation | Q6: 2025 | R6: 2024 | S6: $ | T6: % | V6: 2025 | W6: 2024 | X6: $ | Y6: %
C8: OPERATING AND MAINTENANCE DETAIL
C9: FERC Page 320
B10: Line 1 | C10: 1. POWER PRODUCTION EXPENSES
B11: Line 2 | C11: A. STEAM POWER GENERATION
B12: Line 3 | C12: Operation
A13: %,V5000000 | B13: 5000000 | C13: Oper Supervision & Engineering | F13: 405316.32 | G13: 427027.19 | H13: =+F13-G13 -> -21710.87 | I13: =IF(G13<0,IF(H13=0,0,IF(OR(G13=0,F13=0),"N.M.",IF(ABS(H13/G13)>=10,"N.M.",H13/(-G13)))),IF(H13=0,0,IF(OR(G13=0,F13=0),"N.M.",IF(ABS(H13/G13)>=10,"N.M.",H13/G13)))) -> -0.05084189136 | K13: 2798103.73 | L13: 3168229.93 | M13: =+K13-L13 -> -370126.2 | N13: =IF(L13<0,IF(M13=0,0,IF(OR(L13=0,K13=0),"N.M.",IF(ABS(M13/L13)>=10,"N.M.",M13/(-L13)))),IF(M13=0,0,IF(OR(L13=0,K13=0),"N.M.",IF(ABS(M13/L13)>=10,"N.M.",M13/L13)))) -> -0.1168242862 | Q13: 1186864.84 | R13: 1205315.73 | S13: =+Q13-R13 -> -18450.89 | T13: =IF(R13<0,IF(S13=0,0,IF(OR(R13=0,Q13=0),"N.M.",IF(ABS(S13/R13)>=10,"N.M.",S13/(-R13)))),IF(S13=0,0,IF(OR(R13=0,Q13=0),"N.M.",IF(ABS(S13/R13)>=10,"N.M.",S13/R13)))) -> -0.01530793098 | V13: 4056798.52 | W13: 4931057.16 | X13: =+V13-W13 -> -874258.64 | Y13: =IF(W13<0,IF(X13=0,0,IF(OR(W13=0,V13=0),"N.M.",IF(ABS(X13/W13)>=10,"N.M.",X13/(-W13)))),IF(X13=0,0,IF(OR(W13=0,V13=0),"N.M.",IF(ABS(X13/W13)>=10,"N.M.",X13/W13)))) -> -0.1772963913
A14: %,V5000003 | B14: 5000003 | C14: Cnstr Srchrge Op Sup & Eng Exp | F14: 64.34 | G14: 0 | H14: 64.34 | I14: N.M. | K14: 64.34 | L14: 0 | M14: 64.34 | N14: N.M. | Q14: 64.34 | R14: 0 | S14: 64.34 | T14: N.M. | V14: 64.34 | W14: 0 | X14: 64.34 | Y14: N.M.
A15: %,V5000005 | B15: 5000005 | C15: Deferred OM - 20% Non FMR | F15: 0 | G15: 0 | H15: 0 | I15: 0 | K15: 0 | L15: 0 | M15: 0 | N15: 0 | Q15: 0 | R15: 0 | S15: 0 | T15: 0 | V15: 0 | W15: 0 | X15: 0 | Y15: 0
A16: %,FACCOUNT,X,TGL_FERC_ACCT,N5000 | B16: Line 4 | C16: (500) Operation Supervision and Engineering | F16: 405380.66 | G16: 427027.19 | H16: -21646.53 | I16: -0.05069122179 | K16: 2798168.07 | L16: 3168229.93 | M16: -370061.86 | N16: -0.1168039783 | Q16: 1186929.18 | R16: 1205315.73 | S16: -18386.55 | T16: -0.01525455077 | V16: 4056862.86 | W16: 4931057.16 | X16: -874194.3 | Y16: -0.1772833434
A17: %,V5010000 | B17: 5010000 | C17: Fuel | F17: 615530.47 | G17: 941381.32 | H17: -325850.85 | I17: -0.3461411896 | K17: 5386334.68 | L17: 4490594.37 | M17: 895740.31 | N17: 0.1994703231 | Q17: 1725491.37 | R17: 1877015.23 | S17: -151523.86 | T17: -0.08072596193 | V17: 7244580.32 | W17: 7572756.71 | X17: -328176.39 | Y17: -0.04333644967
A18: %,V5010001 | B18: 5010001 | C18: Fuel Consumed | F18: 7211243.8 | G18: 8665987.11 | H18: -1454743.31 | I18: -0.1678681599 | K18: 45839900.71 | L18: 57352208.02 | M18: -11512307.31 | N18: -0.2007299755 | Q18: 22316113.86 | R18: 29668020.19 | S18: -7351906.33 | T18: -0.2478057613 | V18: 70684616.99 | W18: 68355431.7 | X18: 2329185.29 | Y18: 0.03407461897
A19: %,V5010003 | B19: 5010003 | C19: Fuel - Procure Unload & Handle | F19: 387404.5 | G19: 395660.87 | H19: -8256.37 | I19: -0.02086728971 | K19: 2656521.99 | L19: 2339355.55 | M19: 317166.44 | N19: 0.1355785528 | Q19: 1408240.41 | R19: 1312417.17 | S19: 95823.24 | T19: 0.07301279059 | V19: 3867956.52 | W19: 2712359.66 | X19: 1155596.86 | Y19: 0.4260485352
A20: %,V5010005 | B20: 5010005 | C20: Fuel - Deferred | F20: 6623129 | G20: 1180481 | H20: 5442648 | I20: 4.610534181 | K20: 6862548.24 | L20: 1655699.31 | M20: 5206848.93 | N20: 3.144803467 | Q20: 1966611.02 | R20: -6359877 | S20: 8326488.02 | T20: 1.309221549 | V20: 7260073 | W20: -1652975 | X20: 8913048 | Y20: 5.392125108
A21: %,V5010012 | B21: 5010012 | C21: Ash Sales Proceeds | F21: 489.78 | G21: 1997.07 | H21: -1507.29 | I21: -0.7547507098 | K21: 3509.33 | L21: 12670.91 | M21: -9161.58 | N21: -0.723040413 | Q21: -245.89 | R21: 6192.74 | S21: -6438.63 | T21: -1.039706172 | V21: 9692.47 | W21: 12670.91 | X21: -2978.44 | Y21: -0.2350612545
A22: %,V5010013 | B22: 5010013 | C22: Fuel Survey Activity | F22: 0 | G22: 0 | H22: 0 | I22: 0 | K22: 4136038.43 | L22: 49281.13 | M22: 4086757.3 | N22: N.M. | Q22: 4136038.43 | R22: 0 | S22: 4136038.43 | T22: N.M. | V22: 4136038.43 | W22: 49281.13 | X22: 4086757.3 | Y22: N.M.
A23: %,V5010019 | B23: 5010019 | C23: Fuel Oil Consumed | F23: 229206.49 | G23: 213404.01 | H23: 15802.48 | I23: 0.0740495926 | K23: 2929358.79 | L23: 2374791.64 | M23: 554567.15 | N23: 0.2335224449 | Q23: 1566060.65 | R23: 904377.35 | S23: 661683.3 | T23: 0.7316451479 | V23: 4283898.47 | W23: 3198361.45 | X23: 1085537.02 | Y23: 0.3394041096
A24: %,V5010020 | B24: 5010020 | C24: Nat Gas Consumed Steam | F24: 3920242.98 | G24: 3547914.08 | H24: 372328.9 | I24: 0.104943043 | K24: 29337017.6 | L24: 23811687.18 | M24: 5525330.42 | N24: 0.2320427939 | Q24: 12013675.66 | R24: 9287663.67 | S24: 2726011.99 | T24: 0.2935089046 | V24: 33290457.19 | W24: 30404309.67 | X24: 2886147.52 | Y24: 0.09492560599
A25: %,V5010021 | B25: 5010021 | C25: Transp Gas Consumed Steam | F25: 55139.12 | G25: 16573.64 | H25: 38565.48 | I25: 2.326916718 | K25: 370272.06 | L25: 591651.71 | M25: -221379.65 | N25: -0.3741722474 | Q25: 176238.71 | R25: 95351.74 | S25: 80886.97 | T25: 0.8483009329 | V25: 403116.26 | W25: 665556.25 | X25: -262439.99 | Y25: -0.3943167689
A26: %,V5010027 | B26: 5010027 | C26: Gypsum handling/disposal costs | F26: 175772.97 | G26: 170292.64 | H26: 5480.33 | I26: 0.0321818371 | K26: 945375.87 | L26: 963248.3 | M26: -17872.43 | N26: -0.01855433329 | Q26: 419023.83 | R26: 493008.95 | S26: -73985.12 | T26: -0.150068513 | V26: 1372399.25 | W26: 1520487.77 | X26: -148088.52 | Y26: -0.09739540358
A27: %,V5010028 | B27: 5010028 | C27: Gypsum Sales Proceeds | F27: -126577.74 | G27: -152093.33 | H27: 25515.59 | I27: 0.1677627152 | K27: -826323.99 | L27: -942159.14 | M27: 115835.15 | N27: 0.1229464801 | Q27: -274660.03 | R27: -343897.51 | S27: 69237.48 | T27: 0.2013317282 | V27: -1169842.36 | W27: -1302229.4 | X27: 132387.04 | Y27: 0.1016618424
A28: %,V5010034 | B28: 5010034 | C28: Gas Transp Res Fees-Steam | F28: 503204.39 | G28: 549936 | H28: -46731.61 | I28: -0.08497645181 | K28: 4103660.87 | L28: 4246703.28 | M28: -143042.41 | N28: -0.03368316564 | Q28: 1494352.79 | R28: 1635408 | S28: -141055.21 | T28: -0.08625077656 | V28: 6095116.99 | W28: 6288038.64 | X28: -192921.65 | Y28: -0.03068073545
A29: %,V5010040 | B29: 5010040 | C29: Gas Procuremnt Sales Net | F29: -0.11 | G29: 999.98 | H29: -1000.09 | I29: -1.000110002 | K29: 237983.64 | L29: 1141696.84 | M29: -903713.2 | N29: -0.7915526857 | Q29: -0.08 | R29: 76986.76 | S29: -76986.84 | T29: -1.000001039 | V29: 1795089.5 | W29: 1227591.62 | X29: 567497.88 | Y29: 0.4622855604
A30: %,FACCOUNT,X,TGL_FERC_ACCT,N5010 | B30: Line 5 | C30: (501) Fuel | F30: 19594785.65 | G30: 15532534.39 | H30: 4062251.26 | I30: 0.2615317731 | K30: 101982198.2 | L30: 98087429.1 | M30: 3894769.12 | N30: 0.03970711798 | Q30: 46946940.73 | R30: 38652667.29 | S30: 8294273.44 | T30: 0.2145847627 | V30: 139273193 | W30: 119051641.1 | X30: 20221551.92 | Y30: 0.1698552975
A31: %,V5020000 | B31: 5020000 | C31: Steam Expenses | F31: 163552.9 | G31: 133384.15 | H31: 30168.75 | I31: 0.2261794224 | K31: 1353820.25 | L31: 1039615.4 | M31: 314204.85 | N31: 0.3022318157 | Q31: 527316.25 | R31: 375032.52 | S31: 152283.73 | T31: 0.4060547336 | V31: 1813936.5 | W31: 1471516.75 | X31: 342419.75 | Y31: 0.2326985065
A32: %,V5020002 | B32: 5020002 | C32: Urea Expense | F32: 88624.99 | G32: 122742.36 | H32: -34117.37 | I32: -0.2779592147 | K32: 569252.08 | L32: 896348.94 | M32: -327096.86 | N32: -0.3649213441 | Q32: 261173.61 | R32: 390749.28 | S32: -129575.67 | T32: -0.3316082118 | V32: 950697.69 | W32: 1259773.14 | X32: -309075.45 | Y32: -0.2453421495
A33: %,V5020004 | B33: 5020004 | C33: Lime-Related Expenses | F33: 285011.39 | G33: 260968.33 | H33: 24043.06 | I33: 0.092130183 | K33: 1445071.87 | L33: 1442669.32 | M33: 2402.55 | N33: 0.001665350449 | Q33: 756770.94 | R33: 864850.54 | S33: -108079.6 | T33: -0.1249691074 | V33: 2278119.44 | W33: 1813348.04 | X33: 464771.4 | Y33: 0.2563056786
A34: %,V5020005 | B34: 5020005 | C34: Polymer expense | F34: 0 | G34: 0 | H34: 0 | I34: 0 | K34: 0 | L34: 0 | M34: 0 | N34: 0 | Q34: 0 | R34: 0 | S34: 0 | T34: 0 | V34: 0 | W34: -55971.28 | X34: 55971.28 | Y34: N.M.
A35: %,FACCOUNT,X,TGL_FERC_ACCT,N5020 | B35: Line 6 | C35: (502) Steam Expenses | F35: 537189.28 | G35: 517094.84 | H35: 20094.44 | I35: 0.03886026014 | K35: 3368144.2 | L35: 3378633.66 | M35: -10489.46 | N35: -0.003104645563 | Q35: 1545260.8 | R35: 1630632.34 | S35: -85371.54 | T35: -0.05235486744 | V35: 5042753.63 | W35: 4488666.65 | X35: 554086.98 | Y35: 0.1234413297
A36: %,FACCOUNT,X,TGL_FERC_ACCT,N5030 | B36: Line 7 | C36: (503) Steam from Other Sources | F36: 0 | G36: 0 | H36: 0 | I36: 0 | K36: 0 | L36: 0 | M36: 0 | N36: 0 | Q36: 0 | R36: 0 | S36: 0 | T36: 0 | V36: 0 | W36: 0 | X36: 0 | Y36: 0
A37: %,R,FACCOUNT,X,TGL_FERC_ACCT,N5040 | B37: Line 8 | C37: (Less) (504) Steam Transferred-Cr. | F37: 0 | G37: 0 | H37: 0 | I37: 0 | K37: 0 | L37: 0 | M37: 0 | N37: 0 | Q37: 0 | R37: 0 | S37: 0 | T37: 0 | V37: 0 | W37: 0 | X37: 0 | Y37: 0
A38: %,V5050000 | B38: 5050000 | C38: Electric Expenses | F38: 12544.92 | G38: 2315.26 | H38: 10229.66 | I38: 4.41836338 | K38: 58983.33 | L38: 27278.99 | M38: 31704.34 | N38: 1.162225581 | Q38: 33054.58 | R38: 15028.25 | S38: 18026.33 | T38: 1.199496282 | V38: 76124.55 | W38: 34112.66 | X38: 42011.89 | Y38: 1.231563003
A39: %,FACCOUNT,X,TGL_FERC_ACCT,N5050 | B39: Line 9 | C39: (505) Electric Expenses | F39: 12544.92 | G39: 2315.26 | H39: 10229.66 | I39: 4.41836338 | K39: 58983.33 | L39: 27278.99 | M39: 31704.34 | N39: 1.162225581 | Q39: 33054.58 | R39: 15028.25 | S39: 18026.33 | T39: 1.199496282 | V39: 76124.55 | W39: 34112.66 | X39: 42011.89 | Y39: 1.231563003
A40: %,V5060000 | B40: 5060000 | C40: Misc Steam Power Expenses | F40: 264385.36 | G40: 658988.77 | H40: -394603.41 | I40: -0.5988014181 | K40: 3106220.856 | L40: 4646422.97 | M40: -1540202.114 | N40: -0.3314812543 | Q40: 1125190.16 | R40: 2486666.79 | S40: -1361476.63 | T40: -0.547510682 | V40: 4663161.716 | W40: 6781372.84 | X40: -2118211.124 | Y40: -0.3123572725
A41: %,V5060002 | B41: 5060002 | C41: Misc Steam Power Exp-Assoc | F41: 3702.6 | G41: 4268.49 | H41: -565.89 | I41: -0.1325738142 | K41: 33328.47 | L41: 35147.82 | M41: -1819.35 | N41: -0.05176281203 | Q41: 10809.84 | R41: 13644.33 | S41: -2834.49 | T41: -0.2077412376 | V41: 50174 | W41: 47915.61 | X41: 2258.39 | Y41: 0.04713265677
A42: %,V5060004 | B42: 5060004 | C42: NSR Settlement Expense | F42: 0 | G42: 0 | H42: 0 | I42: 0 | K42: 0 | L42: 10130 | M42: -10130 | N42: N.M. | Q42: 0 | R42: 0 | S42: 0 | T42: 0 | V42: 0 | W42: 10130 | X42: -10130 | Y42: N.M.
A43: %,V5060011 | B43: 5060011 | C43: BSRR O/U Recovery-Oper Costs | F43: 0 | G43: 0 | H43: 0 | I43: 0 | K43: 0 | L43: 367.46 | M43: -367.46 | N43: N.M. | Q43: 0 | R43: -1.1 | S43: 1.1 | T43: N.M. | V43: 0 | W43: 489.34 | X43: -489.34 | Y43: N.M.
A44: %,V5080017 | B44: 5080017 | C44: IPP Oper - Training/Travel | F44: 0 | G44: 0 | H44: 0 | I44: 0 | K44: 0 | L44: 0 | M44: 0 | N44: 0 | Q44: 0 | R44: 0 | S44: 0 | T44: 0 | V44: 0 | W44: -0.02 | X44: 0.02 | Y44: N.M.
A45: %,FACCOUNT,X,TGL_FERC_ACCT,N5060,N5080 | B45: Line 10 | C45: (506) Miscellaneous Steam Power Expenses | F45: 268087.96 | G45: 663257.26 | H45: =+F45-G45 -> -395169.3 | I45: =IF(G45<0,IF(H45=0,0,IF(OR(G45=0,F45=0),"N.M.",IF(ABS(H45/G45)>=10,"N.M.",H45/(-G45)))),IF(H45=0,0,IF(OR(G45=0,F45=0),"N.M.",IF(ABS(H45/G45)>=10,"N.M.",H45/G45)))) -> -0.5958009416 | K45: 3139549.326 | L45: 4692068.25 | M45: =+K45-L45 -> -1552518.924 | N45: =IF(L45<0,IF(M45=0,0,IF(OR(L45=0,K45=0),"N.M.",IF(ABS(M45/L45)>=10,"N.M.",M45/(-L45)))),IF(M45=0,0,IF(OR(L45=0,K45=0),"N.M.",IF(ABS(M45/L45)>=10,"N.M.",M45/L45)))) -> -0.3308815732 | Q45: 1136000 | R45: 2500310.02 | S45: =+Q45-R45 -> -1364310.02 | T45: =IF(R45<0,IF(S45=0,0,IF(OR(R45=0,Q45=0),"N.M.",IF(ABS(S45/R45)>=10,"N.M.",S45/(-R45)))),IF(S45=0,0,IF(OR(R45=0,Q45=0),"N.M.",IF(ABS(S45/R45)>=10,"N.M.",S45/R45)))) -> -0.5456563422 | V45: 4713335.716 | W45: 6839907.77 | X45: =+V45-W45 -> -2126572.054 | Y45: =IF(W45<0,IF(X45=0,0,IF(OR(W45=0,V45=0),"N.M.",IF(ABS(X45/W45)>=10,"N.M.",X45/(-W45)))),IF(X45=0,0,IF(OR(W45=0,V45=0),"N.M.",IF(ABS(X45/W45)>=10,"N.M.",X45/W45)))) -> -0.3109065393
A46: %,V5070006 | B46: 5070006 | C46: Rents - Associated | F46: 193.17 | G46: 0 | H46: 193.17 | I46: N.M. | K46: 1545.36 | L46: 0 | M46: 1545.36 | N46: N.M. | Q46: 579.51 | R46: 0 | S46: 579.51 | T46: N.M. | V46: 1545.36 | W46: 0 | X46: 1545.36 | Y46: N.M.
A47: %,FACCOUNT,X,TGL_FERC_ACCT,N5070 | B47: Line 11 | C47: (507) Rents | F47: 193.17 | G47: 0 | H47: 193.17 | I47: N.M. | K47: 1545.36 | L47: 0 | M47: 1545.36 | N47: N.M. | Q47: 579.51 | R47: 0 | S47: 579.51 | T47: N.M. | V47: 1545.36 | W47: 0 | X47: 1545.36 | Y47: N.M.
A48: %,V5090000 | B48: 5090000 | C48: Allow Consum Title IV SO2 | F48: 1548.45 | G48: 7083.39 | H48: -5534.94 | I48: -0.7813970429 | K48: 11675.4 | L48: 27013.39 | M48: -15337.99 | N48: -0.5677921209 | Q48: 5136.31 | R48: 19064.42 | S48: -13928.11 | T48: -0.7305813657 | V48: 22846.9 | W48: 30716.92 | X48: -7870.02 | Y48: -0.2562112347
A49: %,V5090001 | B49: 5090001 | C49: Allowance Consumption - NOx | F49: 0 | G49: 0 | H49: 0 | I49: 0 | K49: 0 | L49: 0 | M49: 0 | N49: 0 | Q49: 0 | R49: 0 | S49: 0 | T49: 0 | V49: 42857.15 | W49: 0 | X49: 42857.15 | Y49: N.M.
A50: %,V5090009 | B50: 5090009 | C50: Allow Consumpt CSAPR SO2 | F50: 7.46 | G50: 33.95 | H50: -26.49 | I50: -0.7802650957 | K50: 56.79 | L50: 129.51 | M50: -72.72 | N50: -0.5615010424 | Q50: 24.85 | R50: 91.38 | S50: -66.53 | T50: -0.7280586562 | V50: 110.32 | W50: 149.76 | X50: -39.44 | Y50: -0.2633547009
A51: %,FACCOUNT,X,TGL_FERC_ACCT,N5090 | B51: Line 12 | C51: (509) Allowances | F51: 1555.91 | G51: 7117.34 | H51: -5561.43 | I51: -0.7813916435 | K51: 11732.19 | L51: 27142.9 | M51: -15410.71 | N51: -0.5677621035 | Q51: 5161.16 | R51: 19155.8 | S51: -13994.64 | T51: -0.7305693315 | V51: 65814.37 | W51: 30866.68 | X51: 34947.69 | Y51: 1.13221409
A52: %,V5000000 | B52: 5000000 | C52: Oper Supervision & Engineering | F52: 405316.32 | G52: 427027.19 | H52: -21710.87 | I52: -0.05084189136 | K52: 2798103.73 | L52: 3168229.93 | M52: -370126.2 | N52: -0.1168242862 | Q52: 1186864.84 | R52: 1205315.73 | S52: -18450.89 | T52: -0.01530793098 | V52: 4056798.52 | W52: 4931057.16 | X52: -874258.64 | Y52: -0.1772963913
A53: %,V5000003 | B53: 5000003 | C53: Cnstr Srchrge Op Sup & Eng Exp | F53: 64.34 | G53: 0 | H53: 64.34 | I53: N.M. | K53: 64.34 | L53: 0 | M53: 64.34 | N53: N.M. | Q53: 64.34 | R53: 0 | S53: 64.34 | T53: N.M. | V53: 64.34 | W53: 0 | X53: 64.34 | Y53: N.M.
A54: %,V5000005 | B54: 5000005 | C54: Deferred OM - 20% Non FMR | F54: 0 | G54: 0 | H54: 0 | I54: 0 | K54: 0 | L54: 0 | M54: 0 | N54: 0 | Q54: 0 | R54: 0 | S54: 0 | T54: 0 | V54: 0 | W54: 0 | X54: 0 | Y54: 0
A55: %,V5010000 | B55: 5010000 | C55: Fuel | F55: 615530.47 | G55: 941381.32 | H55: -325850.85 | I55: -0.3461411896 | K55: 5386334.68 | L55: 4490594.37 | M55: 895740.31 | N55: 0.1994703231 | Q55: 1725491.37 | R55: 1877015.23 | S55: -151523.86 | T55: -0.08072596193 | V55: 7244580.32 | W55: 7572756.71 | X55: -328176.39 | Y55: -0.04333644967
A56: %,V5010001 | B56: 5010001 | C56: Fuel Consumed | F56: 7211243.8 | G56: 8665987.11 | H56: -1454743.31 | I56: -0.1678681599 | K56: 45839900.71 | L56: 57352208.02 | M56: -11512307.31 | N56: -0.2007299755 | Q56: 22316113.86 | R56: 29668020.19 | S56: -7351906.33 | T56: -0.2478057613 | V56: 70684616.99 | W56: 68355431.7 | X56: 2329185.29 | Y56: 0.03407461897
A57: %,V5010003 | B57: 5010003 | C57: Fuel - Procure Unload & Handle | F57: 387404.5 | G57: 395660.87 | H57: -8256.37 | I57: -0.02086728971 | K57: 2656521.99 | L57: 2339355.55 | M57: 317166.44 | N57: 0.1355785528 | Q57: 1408240.41 | R57: 1312417.17 | S57: 95823.24 | T57: 0.07301279059 | V57: 3867956.52 | W57: 2712359.66 | X57: 1155596.86 | Y57: 0.4260485352
A58: %,V5010005 | B58: 5010005 | C58: Fuel - Deferred | F58: 6623129 | G58: 1180481 | H58: 5442648 | I58: 4.610534181 | K58: 6862548.24 | L58: 1655699.31 | M58: 5206848.93 | N58: 3.144803467 | Q58: 1966611.02 | R58: -6359877 | S58: 8326488.02 | T58: 1.309221549 | V58: 7260073 | W58: -1652975 | X58: 8913048 | Y58: 5.392125108
A59: %,V5010012 | B59: 5010012 | C59: Ash Sales Proceeds | F59: 489.78 | G59: 1997.07 | H59: -1507.29 | I59: -0.7547507098 | K59: 3509.33 | L59: 12670.91 | M59: -9161.58 | N59: -0.723040413 | Q59: -245.89 | R59: 6192.74 | S59: -6438.63 | T59: -1.039706172 | V59: 9692.47 | W59: 12670.91 | X59: -2978.44 | Y59: -0.2350612545
A60: %,V5010013 | B60: 5010013 | C60: Fuel Survey Activity | F60: 0 | G60: 0 | H60: 0 | I60: 0 | K60: 4136038.43 | L60: 49281.13 | M60: 4086757.3 | N60: N.M. | Q60: 4136038.43 | R60: 0 | S60: 4136038.43 | T60: N.M. | V60: 4136038.43 | W60: 49281.13 | X60: 4086757.3 | Y60: N.M.
A61: %,V5010019 | B61: 5010019 | C61: Fuel Oil Consumed | F61: 229206.49 | G61: 213404.01 | H61: 15802.48 | I61: 0.0740495926 | K61: 2929358.79 | L61: 2374791.64 | M61: 554567.15 | N61: 0.2335224449 | Q61: 1566060.65 | R61: 904377.35 | S61: 661683.3 | T61: 0.7316451479 | V61: 4283898.47 | W61: 3198361.45 | X61: 1085537.02 | Y61: 0.3394041096
A62: %,V5010020 | B62: 5010020 | C62: Nat Gas Consumed Steam | F62: 3920242.98 | G62: 3547914.08 | H62: 372328.9 | I62: 0.104943043 | K62: 29337017.6 | L62: 23811687.18 | M62: 5525330.42 | N62: 0.2320427939 | Q62: 12013675.66 | R62: 9287663.67 | S62: 2726011.99 | T62: 0.2935089046 | V62: 33290457.19 | W62: 30404309.67 | X62: 2886147.52 | Y62: 0.09492560599
A63: %,V5010021 | B63: 5010021 | C63: Transp Gas Consumed Steam | F63: 55139.12 | G63: 16573.64 | H63: 38565.48 | I63: 2.326916718 | K63: 370272.06 | L63: 591651.71 | M63: -221379.65 | N63: -0.3741722474 | Q63: 176238.71 | R63: 95351.74 | S63: 80886.97 | T63: 0.8483009329 | V63: 403116.26 | W63: 665556.25 | X63: -262439.99 | Y63: -0.3943167689
A64: %,V5010027 | B64: 5010027 | C64: Gypsum handling/disposal costs | F64: 175772.97 | G64: 170292.64 | H64: 5480.33 | I64: 0.0321818371 | K64: 945375.87 | L64: 963248.3 | M64: -17872.43 | N64: -0.01855433329 | Q64: 419023.83 | R64: 493008.95 | S64: -73985.12 | T64: -0.150068513 | V64: 1372399.25 | W64: 1520487.77 | X64: -148088.52 | Y64: -0.09739540358
A65: %,V5010028 | B65: 5010028 | C65: Gypsum Sales Proceeds | F65: -126577.74 | G65: -152093.33 | H65: 25515.59 | I65: 0.1677627152 | K65: -826323.99 | L65: -942159.14 | M65: 115835.15 | N65: 0.1229464801 | Q65: -274660.03 | R65: -343897.51 | S65: 69237.48 | T65: 0.2013317282 | V65: -1169842.36 | W65: -1302229.4 | X65: 132387.04 | Y65: 0.1016618424
A66: %,V5010034 | B66: 5010034 | C66: Gas Transp Res Fees-Steam | F66: 503204.39 | G66: 549936 | H66: -46731.61 | I66: -0.08497645181 | K66: 4103660.87 | L66: 4246703.28 | M66: -143042.41 | N66: -0.03368316564 | Q66: 1494352.79 | R66: 1635408 | S66: -141055.21 | T66: -0.08625077656 | V66: 6095116.99 | W66: 6288038.64 | X66: -192921.65 | Y66: -0.03068073545
A67: %,V5010040 | B67: 5010040 | C67: Gas Procuremnt Sales Net | F67: -0.11 | G67: 999.98 | H67: -1000.09 | I67: -1.000110002 | K67: 237983.64 | L67: 1141696.84 | M67: -903713.2 | N67: -0.7915526857 | Q67: -0.08 | R67: 76986.76 | S67: -76986.84 | T67: -1.000001039 | V67: 1795089.5 | W67: 1227591.62 | X67: 567497.88 | Y67: 0.4622855604
A68: %,V5020000 | B68: 5020000 | C68: Steam Expenses | F68: 163552.9 | G68: 133384.15 | H68: 30168.75 | I68: 0.2261794224 | K68: 1353820.25 | L68: 1039615.4 | M68: 314204.85 | N68: 0.3022318157 | Q68: 527316.25 | R68: 375032.52 | S68: 152283.73 | T68: 0.4060547336 | V68: 1813936.5 | W68: 1471516.75 | X68: 342419.75 | Y68: 0.2326985065
A69: %,V5020002 | B69: 5020002 | C69: Urea Expense | F69: 88624.99 | G69: 122742.36 | H69: -34117.37 | I69: -0.2779592147 | K69: 569252.08 | L69: 896348.94 | M69: -327096.86 | N69: -0.3649213441 | Q69: 261173.61 | R69: 390749.28 | S69: -129575.67 | T69: -0.3316082118 | V69: 950697.69 | W69: 1259773.14 | X69: -309075.45 | Y69: -0.2453421495
A70: %,V5020004 | B70: 5020004 | C70: Lime-Related Expenses | F70: 285011.39 | G70: 260968.33 | H70: 24043.06 | I70: 0.092130183 | K70: 1445071.87 | L70: 1442669.32 | M70: 2402.55 | N70: 0.001665350449 | Q70: 756770.94 | R70: 864850.54 | S70: -108079.6 | T70: -0.1249691074 | V70: 2278119.44 | W70: 1813348.04 | X70: 464771.4 | Y70: 0.2563056786
A71: %,V5020005 | B71: 5020005 | C71: Polymer expense | F71: 0 | G71: 0 | H71: 0 | I71: 0 | K71: 0 | L71: 0 | M71: 0 | N71: 0 | Q71: 0 | R71: 0 | S71: 0 | T71: 0 | V71: 0 | W71: -55971.28 | X71: 55971.28 | Y71: N.M.
A72: %,V5050000 | B72: 5050000 | C72: Electric Expenses | F72: 12544.92 | G72: 2315.26 | H72: 10229.66 | I72: 4.41836338 | K72: 58983.33 | L72: 27278.99 | M72: 31704.34 | N72: 1.162225581 | Q72: 33054.58 | R72: 15028.25 | S72: 18026.33 | T72: 1.199496282 | V72: 76124.55 | W72: 34112.66 | X72: 42011.89 | Y72: 1.231563003
A73: %,V5060000 | B73: 5060000 | C73: Misc Steam Power Expenses | F73: 264385.36 | G73: 658988.77 | H73: -394603.41 | I73: -0.5988014181 | K73: 3106220.856 | L73: 4646422.97 | M73: -1540202.114 | N73: -0.3314812543 | Q73: 1125190.16 | R73: 2486666.79 | S73: -1361476.63 | T73: -0.547510682 | V73: 4663161.716 | W73: 6781372.84 | X73: -2118211.124 | Y73: -0.3123572725
A74: %,V5060002 | B74: 5060002 | C74: Misc Steam Power Exp-Assoc | F74: 3702.6 | G74: 4268.49 | H74: -565.89 | I74: -0.1325738142 | K74: 33328.47 | L74: 35147.82 | M74: -1819.35 | N74: -0.05176281203 | Q74: 10809.84 | R74: 13644.33 | S74: -2834.49 | T74: -0.2077412376 | V74: 50174 | W74: 47915.61 | X74: 2258.39 | Y74: 0.04713265677
A75: %,V5060004 | B75: 5060004 | C75: NSR Settlement Expense | F75: 0 | G75: 0 | H75: 0 | I75: 0 | K75: 0 | L75: 10130 | M75: -10130 | N75: N.M. | Q75: 0 | R75: 0 | S75: 0 | T75: 0 | V75: 0 | W75: 10130 | X75: -10130 | Y75: N.M.
A76: %,V5060011 | B76: 5060011 | C76: BSRR O/U Recovery-Oper Costs | F76: 0 | G76: 0 | H76: 0 | I76: 0 | K76: 0 | L76: 367.46 | M76: -367.46 | N76: N.M. | Q76: 0 | R76: -1.1 | S76: 1.1 | T76: N.M. | V76: 0 | W76: 489.34 | X76: -489.34 | Y76: N.M.
A77: %,V5070006 | B77: 5070006 | C77: Rents - Associated | F77: 193.17 | G77: 0 | H77: =+F77-G77 -> 193.17 | I77: =IF(G77<0,IF(H77=0,0,IF(OR(G77=0,F77=0),"N.M.",IF(ABS(H77/G77)>=10,"N.M.",H77/(-G77)))),IF(H77=0,0,IF(OR(G77=0,F77=0),"N.M.",IF(ABS(H77/G77)>=10,"N.M.",H77/G77)))) -> N.M. | K77: 1545.36 | L77: 0 | M77: =+K77-L77 -> 1545.36 | N77: =IF(L77<0,IF(M77=0,0,IF(OR(L77=0,K77=0),"N.M.",IF(ABS(M77/L77)>=10,"N.M.",M77/(-L77)))),IF(M77=0,0,IF(OR(L77=0,K77=0),"N.M.",IF(ABS(M77/L77)>=10,"N.M.",M77/L77)))) -> N.M. | Q77: 579.51 | R77: 0 | S77: =+Q77-R77 -> 579.51 | T77: =IF(R77<0,IF(S77=0,0,IF(OR(R77=0,Q77=0),"N.M.",IF(ABS(S77/R77)>=10,"N.M.",S77/(-R77)))),IF(S77=0,0,IF(OR(R77=0,Q77=0),"N.M.",IF(ABS(S77/R77)>=10,"N.M.",S77/R77)))) -> N.M. | V77: 1545.36 | W77: 0 | X77: =+V77-W77 -> 1545.36 | Y77: =IF(W77<0,IF(X77=0,0,IF(OR(W77=0,V77=0),"N.M.",IF(ABS(X77/W77)>=10,"N.M.",X77/(-W77)))),IF(X77=0,0,IF(OR(W77=0,V77=0),"N.M.",IF(ABS(X77/W77)>=10,"N.M.",X77/W77)))) -> N.M.
A78: %,V5080017 | B78: 5080017 | C78: IPP Oper - Training/Travel | F78: 0 | G78: 0 | H78: 0 | I78: 0 | K78: 0 | L78: 0 | M78: 0 | N78: 0 | Q78: 0 | R78: 0 | S78: 0 | T78: 0 | V78: 0 | W78: -0.02 | X78: 0.02 | Y78: N.M.
A79: %,V5090000 | B79: 5090000 | C79: Allow Consum Title IV SO2 | F79: 1548.45 | G79: 7083.39 | H79: -5534.94 | I79: -0.7813970429 | K79: 11675.4 | L79: 27013.39 | M79: -15337.99 | N79: -0.5677921209 | Q79: 5136.31 | R79: 19064.42 | S79: -13928.11 | T79: -0.7305813657 | V79: 22846.9 | W79: 30716.92 | X79: -7870.02 | Y79: -0.2562112347
A80: %,V5090001 | B80: 5090001 | C80: Allowance Consumption - NOx | F80: 0 | G80: 0 | H80: 0 | I80: 0 | K80: 0 | L80: 0 | M80: 0 | N80: 0 | Q80: 0 | R80: 0 | S80: 0 | T80: 0 | V80: 42857.15 | W80: 0 | X80: 42857.15 | Y80: N.M.
A81: %,V5090009 | B81: 5090009 | C81: Allow Consumpt CSAPR SO2 | F81: 7.46 | G81: 33.95 | H81: -26.49 | I81: -0.7802650957 | K81: 56.79 | L81: 129.51 | M81: -72.72 | N81: -0.5615010424 | Q81: 24.85 | R81: 91.38 | S81: -66.53 | T81: -0.7280586562 | V81: 110.32 | W81: 149.76 | X81: -39.44 | Y81: -0.2633547009
A82: %,FACCOUNT,X,TGL_FERC_ACCT,N500-509 | B82: Line 13 | C82: TOTAL Operation (Enter Total of Lines 4 thru 12) | D82: o | F82: 20819737.55 | G82: 17149346.28 | H82: 3670391.27 | I82: 0.2140251418 | K82: 111360320.7 | L82: 109380782.8 | M82: 1979537.866 | N82: 0.01809767506 | Q82: 50853925.96 | R82: 44023109.43 | S82: 6830816.53 | T82: 0.1551643357 | V82: 153229629.5 | W82: 135376252 | X82: 17853377.49 | Y82: 0.1318796851
B83: Line 14 | C83: Maintenance
A84: %,V5100000 | B84: 5100000 | C84: Maint Supv & Engineering | F84: 64888.49 | G84: 167134.35 | H84: =+F84-G84 -> -102245.86 | I84: =IF(G84<0,IF(H84=0,0,IF(OR(G84=0,F84=0),"N.M.",IF(ABS(H84/G84)>=10,"N.M.",H84/(-G84)))),IF(H84=0,0,IF(OR(G84=0,F84=0),"N.M.",IF(ABS(H84/G84)>=10,"N.M.",H84/G84)))) -> -0.6117585045 | K84: 671030.85 | L84: 1214300.84 | M84: =+K84-L84 -> -543269.99 | N84: =IF(L84<0,IF(M84=0,0,IF(OR(L84=0,K84=0),"N.M.",IF(ABS(M84/L84)>=10,"N.M.",M84/(-L84)))),IF(M84=0,0,IF(OR(L84=0,K84=0),"N.M.",IF(ABS(M84/L84)>=10,"N.M.",M84/L84)))) -> -0.4473932424 | Q84: 212212.56 | R84: 430925.53 | S84: =+Q84-R84 -> -218712.97 | T84: =IF(R84<0,IF(S84=0,0,IF(OR(R84=0,Q84=0),"N.M.",IF(ABS(S84/R84)>=10,"N.M.",S84/(-R84)))),IF(S84=0,0,IF(OR(R84=0,Q84=0),"N.M.",IF(ABS(S84/R84)>=10,"N.M.",S84/R84)))) -> -0.5075423821 | V84: 1134160.22 | W84: 1687437.43 | X84: =+V84-W84 -> -553277.21 | Y84: =IF(W84<0,IF(X84=0,0,IF(OR(W84=0,V84=0),"N.M.",IF(ABS(X84/W84)>=10,"N.M.",X84/(-W84)))),IF(X84=0,0,IF(OR(W84=0,V84=0),"N.M.",IF(ABS(X84/W84)>=10,"N.M.",X84/W84)))) -> -0.3278801336
A85: %,FACCOUNT,X,TGL_FERC_ACCT,N5100 | B85: Line 15 | C85: (510) Maintenance Supervision and Engineering | F85: 64888.49 | G85: 167134.35 | H85: -102245.86 | I85: -0.6117585045 | K85: 671030.85 | L85: 1214300.84 | M85: -543269.99 | N85: -0.4473932424 | Q85: 212212.56 | R85: 430925.53 | S85: -218712.97 | T85: -0.5075423821 | V85: 1134160.22 | W85: 1687437.43 | X85: -553277.21 | Y85: -0.3278801336
A86: %,V5110000 | B86: 5110000 | C86: Maintenance of Structures | F86: 50468.3 | G86: 250410.78 | H86: -199942.48 | I86: -0.7984579578 | K86: 1107171.11 | L86: 1115447.54 | M86: -8276.43 | N86: -0.007419828995 | Q86: 373544.67 | R86: 576734.72 | S86: -203190.05 | T86: -0.3523111111 | V86: 1786187.36 | W86: 1540553.52 | X86: 245633.84 | Y86: 0.1594451844
A87: %,FACCOUNT,X,TGL_FERC_ACCT,N5110 | B87: Line 16 | C87: (511) Maintenance of Structures | F87: 50468.3 | G87: 250410.78 | H87: -199942.48 | I87: -0.7984579578 | K87: 1107171.11 | L87: 1115447.54 | M87: -8276.43 | N87: -0.007419828995 | Q87: 373544.67 | R87: 576734.72 | S87: -203190.05 | T87: -0.3523111111 | V87: 1786187.36 | W87: 1540553.52 | X87: 245633.84 | Y87: 0.1594451844
A88: %,V5120000 | B88: 5120000 | C88: Maintenance of Boiler Plant | F88: 553224.63 | G88: 945535.53 | H88: -392310.9 | I88: -0.4149086814 | K88: 8908857.85 | L88: 8213992.27 | M88: 694865.58 | N88: 0.08459535353 | Q88: 1631164.9 | R88: 2355281.65 | S88: -724116.75 | T88: -0.307443804 | V88: 14849786.73 | W88: 13230439.54 | X88: 1619347.19 | Y88: 0.1223955701
A89: %,V5120025 | B89: 5120025 | C89: Maint of Blr Plt Environmental | F89: 0 | G89: 1.41 | H89: -1.41 | I89: N.M. | K89: 0 | L89: 1.41 | M89: -1.41 | N89: N.M. | Q89: 0 | R89: 1.41 | S89: -1.41 | T89: N.M. | V89: -1.41 | W89: 1.41 | X89: -2.82 | Y89: -2
A90: %,V5120034 | B90: 5120034 | C90: BSDR O/U Recovery - Maint Cost | F90: 0 | G90: -817.8 | H90: 817.8 | I90: N.M. | K90: -3413.61 | L90: -7167.12 | M90: 3753.51 | N90: 0.5237124535 | Q90: -732.15 | R90: -1662 | S90: 929.85 | T90: 0.5594765343 | V90: -6741.24 | W90: -10425.6 | X90: 3684.36 | Y90: 0.353395488
A91: %,V5120037 | B91: 5120037 | C91: KY Steam Maint O/U | F91: -58271.11 | G91: -58271.11 | H91: 0 | I91: 0 | K91: -466168.88 | L91: -429863.2 | M91: -36305.68 | N91: -0.0844586836 | Q91: -174813.33 | R91: -174813.33 | S91: 0 | T91: 0 | V91: -699253.32 | W91: -352508.32 | X91: -346745 | Y91: -0.9836505419
A92: %,FACCOUNT,X,TGL_FERC_ACCT,N5120 | B92: Line 17 | C92: (512) Maintenance of Boiler Plant | F92: 494953.52 | G92: 886448.03 | H92: -391494.51 | I92: -0.4416440634 | K92: 8439275.36 | L92: 7776963.36 | M92: 662312 | N92: 0.08516331752 | Q92: 1455619.42 | R92: 2178807.73 | S92: -723188.31 | T92: -0.3319192878 | V92: 14143790.76 | W92: 12867507.03 | X92: 1276283.73 | Y92: 0.09918655782
A93: %,V5130000 | B93: 5130000 | C93: Maintenance of Electric Plant | F93: 284033.88 | G93: 112146.36 | H93: 171887.52 | I93: 1.53270708 | K93: 3289169.46 | L93: 2377964.09 | M93: 911205.37 | N93: 0.3831871868 | Q93: 913168.41 | R93: 405544.42 | S93: 507623.99 | T93: 1.251709961 | V93: 4860357.85 | W93: 4521076.12 | X93: 339281.73 | Y93: 0.07504446309
A94: %,FACCOUNT,X,TGL_FERC_ACCT,N5130 | B94: Line 18 | C94: (513) Maintenance of Electric Plant | F94: 284033.88 | G94: 112146.36 | H94: 171887.52 | I94: 1.53270708 | K94: 3289169.46 | L94: 2377964.09 | M94: 911205.37 | N94: 0.3831871868 | Q94: 913168.41 | R94: 405544.42 | S94: 507623.99 | T94: 1.251709961 | V94: 4860357.85 | W94: 4521076.12 | X94: 339281.73 | Y94: 0.07504446309
A95: %,FACCOUNT,X,TGL_FERC_ACCT,N5131 | B95: Line 18.1 | C95: (513.1) Maintenance of Computer Hardware | D95: m | F95: 0 | G95: 0 | H95: 0 | I95: 0 | K95: 0 | L95: 0 | M95: 0 | Q95: 0 | R95: 0 | S95: 0 | V95: 0 | W95: 0 | X95: 0 | Y95: 0
A96: %,V5132000 | B96: 5132000 | C96: Maint of Computer Software-Mjr | F96: -2152.45 | G96: 0 | H96: -2152.45 | I96: N.M. | K96: 33143.05 | L96: 0 | M96: 33143.05 | Q96: 6073.1 | R96: 0 | S96: 6073.1 | V96: 33143.05 | W96: 0 | X96: 33143.05 | Y96: N.M.
A97: %,FACCOUNT,X,TGL_FERC_ACCT,N5132 | B97: Line 18.2 | C97: (513.2) Maintenance of Computer Software | D97: m | F97: -2152.45 | G97: 0 | H97: -2152.45 | I97: N.M. | K97: 33143.05 | L97: 0 | M97: 33143.05 | Q97: 6073.1 | R97: 0 | S97: 6073.1 | V97: 33143.05 | W97: 0 | X97: 33143.05 | Y97: N.M.
A98: %,V5133000 | B98: 5133000 | C98: Maint of Comm Equipmt-Mjr | F98: 1107.09 | G98: 0 | H98: 1107.09 | I98: N.M. | K98: 2655.9 | L98: 0 | M98: 2655.9 | Q98: 1531.72 | R98: 0 | S98: 1531.72 | V98: 2655.9 | W98: 0 | X98: 2655.9 | Y98: N.M.
A99: %,FACCOUNT,X,TGL_FERC_ACCT,N5133 | B99: Line 18.3 | C99: (513.3) Maintenance of Communication Equipment | D99: m | F99: 1107.09 | G99: 0 | H99: 1107.09 | I99: N.M. | K99: 2655.9 | L99: 0 | M99: 2655.9 | Q99: 1531.72 | R99: 0 | S99: 1531.72 | V99: 2655.9 | W99: 0 | X99: 2655.9 | Y99: N.M.
A100: %,V5140000 | B100: 5140000 | C100: Maintenance of Misc Steam Plt | F100: 147040.29 | G100: 134458.42 | H100: 12581.87 | I100: 0.09357442992 | K100: 1004242.04 | L100: 1123162.88 | M100: -118920.84 | N100: =IF(L100<0,IF(M100=0,0,IF(OR(L100=0,K100=0),"N.M.",IF(ABS(M100/L100)>=10,"N.M.",M100/(-L100)))),IF(M100=0,0,IF(OR(L100=0,K100=0),"N.M.",IF(ABS(M100/L100)>=10,"N.M.",M100/L100)))) -> -0.1058803154 | Q100: 439647.1 | R100: 430019.64 | S100: 9627.46 | T100: =IF(R100<0,IF(S100=0,0,IF(OR(R100=0,Q100=0),"N.M.",IF(ABS(S100/R100)>=10,"N.M.",S100/(-R100)))),IF(S100=0,0,IF(OR(R100=0,Q100=0),"N.M.",IF(ABS(S100/R100)>=10,"N.M.",S100/R100)))) -> 0.02238841928 | V100: 1416563.69 | W100: 1869379.35 | X100: -452815.66 | Y100: -0.2422278068
A101: %,V5140025 | B101: 5140025 | C101: Maint MiscStmPlt Environmental | F101: 0 | G101: 0 | H101: 0 | I101: 0 | K101: 0 | L101: -13.57 | M101: 13.57 | N101: N.M. | Q101: 0 | R101: 0 | S101: 0 | T101: 0 | V101: 0 | W101: 0 | X101: 0 | Y101: 0
A102: %,FACCOUNT,X,TGL_FERC_ACCT,N5140 | B102: Line 19 | C102: (514) Maintenance of Miscellaneous Steam Plant | F102: 147040.29 | G102: 134458.42 | H102: 12581.87 | I102: 0.09357442992 | K102: 1004242.04 | L102: 1123149.31 | M102: -118907.27 | N102: -0.1058695126 | Q102: 439647.1 | R102: 430019.64 | S102: 9627.46 | T102: 0.02238841928 | V102: 1416563.69 | W102: 1869379.35 | X102: -452815.66 | Y102: -0.2422278068
A103: %,V5100000 | B103: 5100000 | C103: Maint Supv & Engineering | F103: 64888.49 | G103: 167134.35 | H103: -102245.86 | I103: -0.6117585045 | K103: 671030.85 | L103: 1214300.84 | M103: -543269.99 | N103: -0.4473932424 | Q103: 212212.56 | R103: 430925.53 | S103: -218712.97 | T103: -0.5075423821 | V103: 1134160.22 | W103: 1687437.43 | X103: -553277.21 | Y103: -0.3278801336
A104: %,V5110000 | B104: 5110000 | C104: Maintenance of Structures | F104: 50468.3 | G104: 250410.78 | H104: -199942.48 | I104: -0.7984579578 | K104: 1107171.11 | L104: 1115447.54 | M104: -8276.43 | N104: -0.007419828995 | Q104: 373544.67 | R104: 576734.72 | S104: -203190.05 | T104: -0.3523111111 | V104: 1786187.36 | W104: 1540553.52 | X104: 245633.84 | Y104: 0.1594451844
A105: %,V5120000 | B105: 5120000 | C105: Maintenance of Boiler Plant | F105: 553224.63 | G105: 945535.53 | H105: -392310.9 | I105: -0.4149086814 | K105: 8908857.85 | L105: 8213992.27 | M105: 694865.58 | N105: 0.08459535353 | Q105: 1631164.9 | R105: 2355281.65 | S105: -724116.75 | T105: -0.307443804 | V105: 14849786.73 | W105: 13230439.54 | X105: 1619347.19 | Y105: 0.1223955701
A106: %,V5120025 | B106: 5120025 | C106: Maint of Blr Plt Environmental | F106: 0 | G106: 1.41 | H106: -1.41 | I106: N.M. | K106: 0 | L106: 1.41 | M106: -1.41 | N106: N.M. | Q106: 0 | R106: 1.41 | S106: -1.41 | T106: N.M. | V106: -1.41 | W106: 1.41 | X106: -2.82 | Y106: -2
A107: %,V5120034 | B107: 5120034 | C107: BSDR O/U Recovery - Maint Cost | F107: 0 | G107: -817.8 | H107: 817.8 | I107: N.M. | K107: -3413.61 | L107: -7167.12 | M107: 3753.51 | N107: 0.5237124535 | Q107: -732.15 | R107: -1662 | S107: 929.85 | T107: 0.5594765343 | V107: -6741.24 | W107: -10425.6 | X107: 3684.36 | Y107: 0.353395488
A108: %,V5120037 | B108: 5120037 | C108: KY Steam Maint O/U | F108: -58271.11 | G108: -58271.11 | H108: 0 | I108: 0 | K108: -466168.88 | L108: -429863.2 | M108: -36305.68 | N108: -0.0844586836 | Q108: -174813.33 | R108: -174813.33 | S108: 0 | T108: 0 | V108: -699253.32 | W108: -352508.32 | X108: -346745 | Y108: -0.9836505419
A109: %,V5130000 | B109: 5130000 | C109: Maintenance of Electric Plant | F109: 284033.88 | G109: 112146.36 | H109: 171887.52 | I109: 1.53270708 | K109: 3289169.46 | L109: 2377964.09 | M109: 911205.37 | N109: 0.3831871868 | Q109: 913168.41 | R109: 405544.42 | S109: 507623.99 | T109: 1.251709961 | V109: 4860357.85 | W109: 4521076.12 | X109: 339281.73 | Y109: 0.07504446309
A110: %,V5132000 | B110: 5132000 | C110: Maint of Computer Software-Mjr | F110: -2152.45 | G110: 0 | H110: -2152.45 | I110: N.M. | K110: 33143.05 | L110: 0 | M110: 33143.05 | N110: N.M. | Q110: 6073.1 | R110: 0 | S110: 6073.1 | T110: N.M. | V110: 33143.05 | W110: 0 | X110: 33143.05 | Y110: N.M.
A111: %,V5133000 | B111: 5133000 | C111: Maint of Comm Equipmt-Mjr | F111: 1107.09 | G111: 0 | H111: 1107.09 | I111: N.M. | K111: 2655.9 | L111: 0 | M111: 2655.9 | N111: N.M. | Q111: 1531.72 | R111: 0 | S111: 1531.72 | T111: N.M. | V111: 2655.9 | W111: 0 | X111: 2655.9 | Y111: N.M.
A112: %,V5140000 | B112: 5140000 | C112: Maintenance of Misc Steam Plt | F112: 147040.29 | G112: 134458.42 | H112: 12581.87 | I112: 0.09357442992 | K112: 1004242.04 | L112: 1123162.88 | M112: -118920.84 | N112: -0.1058803154 | Q112: 439647.1 | R112: 430019.64 | S112: 9627.46 | T112: 0.02238841928 | V112: 1416563.69 | W112: 1869379.35 | X112: -452815.66 | Y112: -0.2422278068
A113: %,V5140025 | B113: 5140025 | C113: Maint MiscStmPlt Environmental | F113: 0 | G113: 0 | H113: 0 | I113: 0 | K113: 0 | L113: -13.57 | M113: 13.57 | N113: N.M. | Q113: 0 | R113: 0 | S113: 0 | T113: 0 | V113: 0 | W113: 0 | X113: 0 | Y113: 0
A114: %,FACCOUNT,X,TGL_FERC_ACCT,N510-515 | B114: Line 20 | C114: TOTAL Maintenance (Enter Total of lines 15 thru 19) | D114: m | F114: 1040339.12 | G114: 1550597.94 | H114: -510258.82 | I114: -0.3290722932 | K114: 14546687.77 | L114: 13607825.14 | M114: 938862.63 | N114: 0.0689943191 | Q114: 3401796.98 | R114: 4022032.04 | S114: -620235.06 | T114: -0.1542093782 | V114: 23376858.83 | W114: 22485953.45 | X114: 890905.38 | Y114: 0.03962052941
A115: %,V5000000 | B115: 5000000 | C115: Oper Supervision & Engineering | F115: 405316.32 | G115: 427027.19 | H115: -21710.87 | I115: -0.05084189136 | K115: 2798103.73 | L115: 3168229.93 | M115: -370126.2 | N115: -0.1168242862 | Q115: 1186864.84 | R115: 1205315.73 | S115: -18450.89 | T115: -0.01530793098 | V115: 4056798.52 | W115: 4931057.16 | X115: -874258.64 | Y115: -0.1772963913
A116: %,V5000003 | B116: 5000003 | C116: Cnstr Srchrge Op Sup & Eng Exp | F116: 64.34 | G116: 0 | H116: 64.34 | I116: N.M. | K116: 64.34 | L116: 0 | M116: =+K116-L116 -> 64.34 | N116: N.M. | Q116: 64.34 | R116: 0 | S116: =+Q116-R116 -> 64.34 | T116: N.M. | V116: 64.34 | W116: 0 | X116: =+V116-W116 -> 64.34 | Y116: =IF(W116<0,IF(X116=0,0,IF(OR(W116=0,V116=0),"N.M.",IF(ABS(X116/W116)>=10,"N.M.",X116/(-W116)))),IF(X116=0,0,IF(OR(W116=0,V116=0),"N.M.",IF(ABS(X116/W116)>=10,"N.M.",X116/W116)))) -> N.M.
A117: %,V5000005 | B117: 5000005 | C117: Deferred OM - 20% Non FMR | F117: 0 | G117: 0 | H117: 0 | I117: 0 | K117: 0 | L117: 0 | M117: 0 | N117: 0 | Q117: 0 | R117: 0 | S117: 0 | T117: 0 | V117: 0 | W117: 0 | X117: 0 | Y117: 0
A118: %,V5010000 | B118: 5010000 | C118: Fuel | F118: 615530.47 | G118: 941381.32 | H118: -325850.85 | I118: -0.3461411896 | K118: 5386334.68 | L118: 4490594.37 | M118: 895740.31 | N118: 0.1994703231 | Q118: 1725491.37 | R118: 1877015.23 | S118: -151523.86 | T118: -0.08072596193 | V118: 7244580.32 | W118: 7572756.71 | X118: -328176.39 | Y118: -0.04333644967
A119: %,V5010001 | B119: 5010001 | C119: Fuel Consumed | F119: 7211243.8 | G119: 8665987.11 | H119: -1454743.31 | I119: -0.1678681599 | K119: 45839900.71 | L119: 57352208.02 | M119: -11512307.31 | N119: -0.2007299755 | Q119: 22316113.86 | R119: 29668020.19 | S119: -7351906.33 | T119: -0.2478057613 | V119: 70684616.99 | W119: 68355431.7 | X119: 2329185.29 | Y119: 0.03407461897
A120: %,V5010003 | B120: 5010003 | C120: Fuel - Procure Unload & Handle | F120: 387404.5 | G120: 395660.87 | H120: -8256.37 | I120: -0.02086728971 | K120: 2656521.99 | L120: 2339355.55 | M120: 317166.44 | N120: 0.1355785528 | Q120: 1408240.41 | R120: 1312417.17 | S120: 95823.24 | T120: 0.07301279059 | V120: 3867956.52 | W120: 2712359.66 | X120: 1155596.86 | Y120: 0.4260485352
A121: %,V5010005 | B121: 5010005 | C121: Fuel - Deferred | F121: 6623129 | G121: 1180481 | H121: 5442648 | I121: 4.610534181 | K121: 6862548.24 | L121: 1655699.31 | M121: 5206848.93 | N121: 3.144803467 | Q121: 1966611.02 | R121: -6359877 | S121: 8326488.02 | T121: 1.309221549 | V121: 7260073 | W121: -1652975 | X121: 8913048 | Y121: 5.392125108
A122: %,V5010012 | B122: 5010012 | C122: Ash Sales Proceeds | F122: 489.78 | G122: 1997.07 | H122: -1507.29 | I122: -0.7547507098 | K122: 3509.33 | L122: 12670.91 | M122: -9161.58 | N122: -0.723040413 | Q122: -245.89 | R122: 6192.74 | S122: -6438.63 | T122: -1.039706172 | V122: 9692.47 | W122: 12670.91 | X122: -2978.44 | Y122: -0.2350612545
A123: %,V5010013 | B123: 5010013 | C123: Fuel Survey Activity | F123: 0 | G123: 0 | H123: 0 | I123: 0 | K123: 4136038.43 | L123: 49281.13 | M123: 4086757.3 | N123: N.M. | Q123: 4136038.43 | R123: 0 | S123: 4136038.43 | T123: N.M. | V123: 4136038.43 | W123: 49281.13 | X123: 4086757.3 | Y123: N.M.
A124: %,V5010019 | B124: 5010019 | C124: Fuel Oil Consumed | F124: 229206.49 | G124: 213404.01 | H124: 15802.48 | I124: 0.0740495926 | K124: 2929358.79 | L124: 2374791.64 | M124: 554567.15 | N124: 0.2335224449 | Q124: 1566060.65 | R124: 904377.35 | S124: 661683.3 | T124: 0.7316451479 | V124: 4283898.47 | W124: 3198361.45 | X124: 1085537.02 | Y124: 0.3394041096
A125: %,V5010020 | B125: 5010020 | C125: Nat Gas Consumed Steam | F125: 3920242.98 | G125: 3547914.08 | H125: 372328.9 | I125: 0.104943043 | K125: 29337017.6 | L125: 23811687.18 | M125: 5525330.42 | N125: 0.2320427939 | Q125: 12013675.66 | R125: 9287663.67 | S125: 2726011.99 | T125: 0.2935089046 | V125: 33290457.19 | W125: 30404309.67 | X125: 2886147.52 | Y125: 0.09492560599
A126: %,V5010021 | B126: 5010021 | C126: Transp Gas Consumed Steam | F126: 55139.12 | G126: 16573.64 | H126: 38565.48 | I126: 2.326916718 | K126: 370272.06 | L126: 591651.71 | M126: -221379.65 | N126: -0.3741722474 | Q126: 176238.71 | R126: 95351.74 | S126: 80886.97 | T126: 0.8483009329 | V126: 403116.26 | W126: 665556.25 | X126: -262439.99 | Y126: -0.3943167689
A127: %,V5010027 | B127: 5010027 | C127: Gypsum handling/disposal costs | F127: 175772.97 | G127: 170292.64 | H127: 5480.33 | I127: 0.0321818371 | K127: 945375.87 | L127: 963248.3 | M127: -17872.43 | N127: -0.01855433329 | Q127: 419023.83 | R127: 493008.95 | S127: -73985.12 | T127: -0.150068513 | V127: 1372399.25 | W127: 1520487.77 | X127: -148088.52 | Y127: -0.09739540358
A128: %,V5010028 | B128: 5010028 | C128: Gypsum Sales Proceeds | F128: -126577.74 | G128: -152093.33 | H128: 25515.59 | I128: 0.1677627152 | K128: -826323.99 | L128: -942159.14 | M128: 115835.15 | N128: 0.1229464801 | Q128: -274660.03 | R128: -343897.51 | S128: 69237.48 | T128: 0.2013317282 | V128: -1169842.36 | W128: -1302229.4 | X128: 132387.04 | Y128: 0.1016618424
A129: %,V5010034 | B129: 5010034 | C129: Gas Transp Res Fees-Steam | F129: 503204.39 | G129: 549936 | H129: -46731.61 | I129: -0.08497645181 | K129: 4103660.87 | L129: 4246703.28 | M129: -143042.41 | N129: -0.03368316564 | Q129: 1494352.79 | R129: 1635408 | S129: -141055.21 | T129: -0.08625077656 | V129: 6095116.99 | W129: 6288038.64 | X129: -192921.65 | Y129: -0.03068073545
A130: %,V5010040 | B130: 5010040 | C130: Gas Procuremnt Sales Net | F130: -0.11 | G130: 999.98 | H130: -1000.09 | I130: -1.000110002 | K130: 237983.64 | L130: 1141696.84 | M130: -903713.2 | N130: -0.7915526857 | Q130: -0.08 | R130: 76986.76 | S130: -76986.84 | T130: -1.000001039 | V130: 1795089.5 | W130: 1227591.62 | X130: 567497.88 | Y130: 0.4622855604
A131: %,V5020000 | B131: 5020000 | C131: Steam Expenses | F131: 163552.9 | G131: 133384.15 | H131: 30168.75 | I131: 0.2261794224 | K131: 1353820.25 | L131: 1039615.4 | M131: 314204.85 | N131: 0.3022318157 | Q131: 527316.25 | R131: 375032.52 | S131: 152283.73 | T131: 0.4060547336 | V131: 1813936.5 | W131: 1471516.75 | X131: 342419.75 | Y131: 0.2326985065
A132: %,V5020002 | B132: 5020002 | C132: Urea Expense | F132: 88624.99 | G132: 122742.36 | H132: -34117.37 | I132: -0.2779592147 | K132: 569252.08 | L132: 896348.94 | M132: -327096.86 | N132: =IF(L132<0,IF(M132=0,0,IF(OR(L132=0,K132=0),"N.M.",IF(ABS(M132/L132)>=10,"N.M.",M132/(-L132)))),IF(M132=0,0,IF(OR(L132=0,K132=0),"N.M.",IF(ABS(M132/L132)>=10,"N.M.",M132/L132)))) -> -0.3649213441 | Q132: 261173.61 | R132: 390749.28 | S132: -129575.67 | T132: =IF(R132<0,IF(S132=0,0,IF(OR(R132=0,Q132=0),"N.M.",IF(ABS(S132/R132)>=10,"N.M.",S132/(-R132)))),IF(S132=0,0,IF(OR(R132=0,Q132=0),"N.M.",IF(ABS(S132/R132)>=10,"N.M.",S132/R132)))) -> -0.3316082118 | V132: 950697.69 | W132: 1259773.14 | X132: -309075.45 | Y132: -0.2453421495
A133: %,V5020004 | B133: 5020004 | C133: Lime-Related Expenses | F133: 285011.39 | G133: 260968.33 | H133: 24043.06 | I133: 0.092130183 | K133: 1445071.87 | L133: 1442669.32 | M133: 2402.55 | N133: 0.001665350449 | Q133: 756770.94 | R133: 864850.54 | S133: -108079.6 | T133: -0.1249691074 | V133: 2278119.44 | W133: 1813348.04 | X133: 464771.4 | Y133: 0.2563056786
A134: %,V5020005 | B134: 5020005 | C134: Polymer expense | F134: 0 | G134: 0 | H134: 0 | I134: 0 | K134: 0 | L134: 0 | M134: 0 | N134: 0 | Q134: 0 | R134: 0 | S134: 0 | T134: 0 | V134: 0 | W134: -55971.28 | X134: 55971.28 | Y134: N.M.
A135: %,V5050000 | B135: 5050000 | C135: Electric Expenses | F135: 12544.92 | G135: 2315.26 | H135: 10229.66 | I135: 4.41836338 | K135: 58983.33 | L135: 27278.99 | M135: 31704.34 | N135: 1.162225581 | Q135: 33054.58 | R135: 15028.25 | S135: 18026.33 | T135: 1.199496282 | V135: 76124.55 | W135: 34112.66 | X135: 42011.89 | Y135: 1.231563003
A136: %,V5060000 | B136: 5060000 | C136: Misc Steam Power Expenses | F136: 264385.36 | G136: 658988.77 | H136: -394603.41 | I136: -0.5988014181 | K136: 3106220.856 | L136: 4646422.97 | M136: -1540202.114 | N136: -0.3314812543 | Q136: 1125190.16 | R136: 2486666.79 | S136: -1361476.63 | T136: -0.547510682 | V136: 4663161.716 | W136: 6781372.84 | X136: -2118211.124 | Y136: -0.3123572725
A137: %,V5060002 | B137: 5060002 | C137: Misc Steam Power Exp-Assoc | F137: 3702.6 | G137: 4268.49 | H137: -565.89 | I137: -0.1325738142 | K137: 33328.47 | L137: 35147.82 | M137: -1819.35 | N137: -0.05176281203 | Q137: 10809.84 | R137: 13644.33 | S137: -2834.49 | T137: -0.2077412376 | V137: 50174 | W137: 47915.61 | X137: 2258.39 | Y137: 0.04713265677
A138: %,V5060004 | B138: 5060004 | C138: NSR Settlement Expense | F138: 0 | G138: 0 | H138: 0 | I138: 0 | K138: 0 | L138: 10130 | M138: -10130 | N138: N.M. | Q138: 0 | R138: 0 | S138: 0 | T138: 0 | V138: 0 | W138: 10130 | X138: -10130 | Y138: N.M.
A139: %,V5060011 | B139: 5060011 | C139: BSRR O/U Recovery-Oper Costs | F139: 0 | G139: 0 | H139: 0 | I139: 0 | K139: 0 | L139: 367.46 | M139: -367.46 | N139: N.M. | Q139: 0 | R139: -1.1 | S139: 1.1 | T139: N.M. | V139: 0 | W139: 489.34 | X139: -489.34 | Y139: N.M.
A140: %,V5070006 | B140: 5070006 | C140: Rents - Associated | F140: 193.17 | G140: 0 | H140: 193.17 | I140: N.M. | K140: 1545.36 | L140: 0 | M140: 1545.36 | N140: N.M. | Q140: 579.51 | R140: 0 | S140: 579.51 | T140: N.M. | V140: 1545.36 | W140: 0 | X140: 1545.36 | Y140: N.M.
A141: %,V5080017 | B141: 5080017 | C141: IPP Oper - Training/Travel | F141: 0 | G141: 0 | H141: 0 | I141: 0 | K141: 0 | L141: 0 | M141: 0 | N141: 0 | Q141: 0 | R141: 0 | S141: 0 | T141: 0 | V141: 0 | W141: -0.02 | X141: 0.02 | Y141: N.M.
A142: %,V5090000 | B142: 5090000 | C142: Allow Consum Title IV SO2 | F142: 1548.45 | G142: 7083.39 | H142: -5534.94 | I142: -0.7813970429 | K142: 11675.4 | L142: 27013.39 | M142: -15337.99 | N142: -0.5677921209 | Q142: 5136.31 | R142: 19064.42 | S142: -13928.11 | T142: -0.7305813657 | V142: 22846.9 | W142: 30716.92 | X142: -7870.02 | Y142: -0.2562112347
A143: %,V5090001 | B143: 5090001 | C143: Allowance Consumption - NOx | F143: 0 | G143: 0 | H143: 0 | I143: 0 | K143: 0 | L143: 0 | M143: 0 | N143: 0 | Q143: 0 | R143: 0 | S143: 0 | T143: 0 | V143: 42857.15 | W143: 0 | X143: 42857.15 | Y143: N.M.
A144: %,V5090009 | B144: 5090009 | C144: Allow Consumpt CSAPR SO2 | F144: 7.46 | G144: 33.95 | H144: -26.49 | I144: -0.7802650957 | K144: 56.79 | L144: 129.51 | M144: -72.72 | N144: -0.5615010424 | Q144: 24.85 | R144: 91.38 | S144: -66.53 | T144: -0.7280586562 | V144: 110.32 | W144: 149.76 | X144: -39.44 | Y144: -0.2633547009
A145: %,V5100000 | B145: 5100000 | C145: Maint Supv & Engineering | F145: 64888.49 | G145: 167134.35 | H145: -102245.86 | I145: -0.6117585045 | K145: 671030.85 | L145: 1214300.84 | M145: -543269.99 | N145: -0.4473932424 | Q145: 212212.56 | R145: 430925.53 | S145: -218712.97 | T145: -0.5075423821 | V145: 1134160.22 | W145: 1687437.43 | X145: -553277.21 | Y145: -0.3278801336
A146: %,V5110000 | B146: 5110000 | C146: Maintenance of Structures | F146: 50468.3 | G146: 250410.78 | H146: -199942.48 | I146: -0.7984579578 | K146: 1107171.11 | L146: 1115447.54 | M146: -8276.43 | N146: -0.007419828995 | Q146: 373544.67 | R146: 576734.72 | S146: -203190.05 | T146: -0.3523111111 | V146: 1786187.36 | W146: 1540553.52 | X146: 245633.84 | Y146: 0.1594451844
A147: %,V5120000 | B147: 5120000 | C147: Maintenance of Boiler Plant | F147: 553224.63 | G147: 945535.53 | H147: -392310.9 | I147: -0.4149086814 | K147: 8908857.85 | L147: 8213992.27 | M147: 694865.58 | N147: 0.08459535353 | Q147: 1631164.9 | R147: 2355281.65 | S147: -724116.75 | T147: -0.307443804 | V147: 14849786.73 | W147: 13230439.54 | X147: 1619347.19 | Y147: 0.1223955701
A148: %,V5120025 | B148: 5120025 | C148: Maint of Blr Plt Environmental | F148: 0 | G148: 1.41 | H148: =+F148-G148 -> -1.41 | I148: =IF(G148<0,IF(H148=0,0,IF(OR(G148=0,F148=0),"N.M.",IF(ABS(H148/G148)>=10,"N.M.",H148/(-G148)))),IF(H148=0,0,IF(OR(G148=0,F148=0),"N.M.",IF(ABS(H148/G148)>=10,"N.M.",H148/G148)))) -> N.M. | K148: 0 | L148: 1.41 | M148: =+K148-L148 -> -1.41 | N148: N.M. | Q148: 0 | R148: 1.41 | S148: =+Q148-R148 -> -1.41 | T148: N.M. | V148: -1.41 | W148: 1.41 | X148: =+V148-W148 -> -2.82 | Y148: =IF(W148<0,IF(X148=0,0,IF(OR(W148=0,V148=0),"N.M.",IF(ABS(X148/W148)>=10,"N.M.",X148/(-W148)))),IF(X148=0,0,IF(OR(W148=0,V148=0),"N.M.",IF(ABS(X148/W148)>=10,"N.M.",X148/W148)))) -> -2
A149: %,V5120034 | B149: 5120034 | C149: BSDR O/U Recovery - Maint Cost | F149: 0 | G149: -817.8 | H149: 817.8 | I149: N.M. | K149: -3413.61 | L149: -7167.12 | M149: 3753.51 | N149: 0.5237124535 | Q149: -732.15 | R149: -1662 | S149: 929.85 | T149: 0.5594765343 | V149: -6741.24 | W149: -10425.6 | X149: 3684.36 | Y149: 0.353395488
A150: %,V5120037 | B150: 5120037 | C150: KY Steam Maint O/U | F150: -58271.11 | G150: -58271.11 | H150: 0 | I150: 0 | K150: -466168.88 | L150: -429863.2 | M150: -36305.68 | N150: -0.0844586836 | Q150: -174813.33 | R150: -174813.33 | S150: 0 | T150: 0 | V150: -699253.32 | W150: -352508.32 | X150: -346745 | Y150: -0.9836505419
A151: %,V5130000 | B151: 5130000 | C151: Maintenance of Electric Plant | F151: 284033.88 | G151: 112146.36 | H151: 171887.52 | I151: 1.53270708 | K151: 3289169.46 | L151: 2377964.09 | M151: 911205.37 | N151: 0.3831871868 | Q151: 913168.41 | R151: 405544.42 | S151: 507623.99 | T151: 1.251709961 | V151: 4860357.85 | W151: 4521076.12 | X151: 339281.73 | Y151: 0.07504446309
A152: %,V5132000 | B152: 5132000 | C152: Maint of Computer Software-Mjr | F152: -2152.45 | G152: 0 | H152: -2152.45 | I152: N.M. | K152: 33143.05 | L152: 0 | M152: 33143.05 | N152: N.M. | Q152: 6073.1 | R152: 0 | S152: 6073.1 | T152: N.M. | V152: 33143.05 | W152: 0 | X152: 33143.05 | Y152: N.M.
A153: %,V5133000 | B153: 5133000 | C153: Maint of Comm Equipmt-Mjr | F153: 1107.09 | G153: 0 | H153: 1107.09 | I153: N.M. | K153: 2655.9 | L153: 0 | M153: 2655.9 | N153: N.M. | Q153: 1531.72 | R153: 0 | S153: 1531.72 | T153: N.M. | V153: 2655.9 | W153: 0 | X153: 2655.9 | Y153: N.M.
A154: %,V5140000 | B154: 5140000 | C154: Maintenance of Misc Steam Plt | F154: 147040.29 | G154: 134458.42 | H154: 12581.87 | I154: 0.09357442992 | K154: 1004242.04 | L154: 1123162.88 | M154: -118920.84 | N154: -0.1058803154 | Q154: 439647.1 | R154: 430019.64 | S154: 9627.46 | T154: 0.02238841928 | V154: 1416563.69 | W154: 1869379.35 | X154: -452815.66 | Y154: -0.2422278068
A155: %,V5140025 | B155: 5140025 | C155: Maint MiscStmPlt Environmental | F155: 0 | G155: 0 | H155: 0 | I155: 0 | K155: 0 | L155: -13.57 | M155: 13.57 | N155: N.M. | Q155: 0 | R155: 0 | S155: 0 | T155: 0 | V155: 0 | W155: 0 | X155: 0 | Y155: 0
A156: %,FACCOUNT,X,TGL_FERC_ACCT,N510-515,N500-509 | B156: Line 21 | C156: TOTAL Power Production Expenses-Steam Power (Entr Tot lines 13 & 20) | F156: 21860076.67 | G156: 18699944.22 | H156: 3160132.45 | I156: 0.1689915442 | K156: 125907008.5 | L156: 122988608 | M156: 2918400.496 | N156: 0.02372903104 | Q156: 54255722.94 | R156: 48045141.47 | S156: 6210581.47 | T156: 0.1292655465 | V156: 176606488.3 | W156: 157862205.5 | X156: 18744282.87 | Y156: 0.1187382554
B157: Line 22 | C157: B. Nuclear Power Generation | H157: 0 | I157: 0 | M157: 0 | N157: 0 | S157: 0 | T157: 0 | X157: 0 | Y157: 0
B158: Line 23 | C158: Operation | H158: 0 | I158: 0 | M158: 0 | N158: 0 | S158: 0 | T158: 0 | X158: 0 | Y158: 0
A159: %,FACCOUNT,X,TGL_FERC_ACCT,N5170 | B159: Line 24 | C159: (517) Operation Supervision and Engineering | F159: 0 | G159: 0 | H159: 0 | I159: 0 | K159: 0 | L159: 0 | M159: 0 | N159: 0 | Q159: 0 | R159: 0 | S159: 0 | T159: 0 | V159: 0 | W159: 0 | X159: 0 | Y159: 0
A160: %,FACCOUNT,X,TGL_FERC_ACCT,N5180 | B160: Line 25 | C160: (518) Fuel | F160: 0 | G160: 0 | H160: 0 | I160: 0 | K160: 0 | L160: 0 | M160: 0 | N160: 0 | Q160: 0 | R160: 0 | S160: 0 | T160: 0 | V160: 0 | W160: 0 | X160: 0 | Y160: 0
A161: %,FACCOUNT,X,TGL_FERC_ACCT,N5190 | B161: Line 26 | C161: (519) Coolants and Water | F161: 0 | G161: 0 | H161: 0 | I161: 0 | K161: 0 | L161: 0 | M161: 0 | N161: 0 | Q161: 0 | R161: 0 | S161: 0 | T161: 0 | V161: 0 | W161: 0 | X161: 0 | Y161: 0
A162: %,FACCOUNT,X,TGL_FERC_ACCT,N5200 | B162: Line 27 | C162: (520) Steam Expenses | F162: 0 | G162: 0 | H162: 0 | I162: 0 | K162: 0 | L162: 0 | M162: 0 | N162: 0 | Q162: 0 | R162: 0 | S162: 0 | T162: 0 | V162: 0 | W162: 0 | X162: 0 | Y162: 0
A163: %,FACCOUNT,X,TGL_FERC_ACCT,N5210 | B163: Line 28 | C163: (521) Steam from Other Sources | F163: 0 | G163: 0 | H163: 0 | I163: 0 | K163: 0 | L163: 0 | M163: 0 | N163: 0 | Q163: 0 | R163: 0 | S163: 0 | T163: 0 | V163: 0 | W163: 0 | X163: 0 | Y163: 0
B164: Line 29 | C164: (Less) (522) Steam Transferred-Cr. | H164: 0 | I164: 0 | M164: 0 | N164: =IF(L164<0,IF(M164=0,0,IF(OR(L164=0,K164=0),"N.M.",IF(ABS(M164/L164)>=10,"N.M.",M164/(-L164)))),IF(M164=0,0,IF(OR(L164=0,K164=0),"N.M.",IF(ABS(M164/L164)>=10,"N.M.",M164/L164)))) -> 0 | S164: 0 | T164: =IF(R164<0,IF(S164=0,0,IF(OR(R164=0,Q164=0),"N.M.",IF(ABS(S164/R164)>=10,"N.M.",S164/(-R164)))),IF(S164=0,0,IF(OR(R164=0,Q164=0),"N.M.",IF(ABS(S164/R164)>=10,"N.M.",S164/R164)))) -> 0 | X164: 0 | Y164: 0
A165: %,FACCOUNT,X,TGL_FERC_ACCT,N5230 | B165: Line 30 | C165: (523) Electric Expenses | F165: 0 | G165: 0 | H165: 0 | I165: 0 | K165: 0 | L165: 0 | M165: 0 | N165: 0 | Q165: 0 | R165: 0 | S165: 0 | T165: 0 | V165: 0 | W165: 0 | X165: 0 | Y165: 0
A166: %,FACCOUNT,X,TGL_FERC_ACCT,N5240 | B166: Line 31 | C166: (524) Miscellaneous Nuclear Power Expenses | F166: 0 | G166: 0 | H166: 0 | I166: 0 | K166: 0 | L166: 0 | M166: 0 | N166: 0 | Q166: 0 | R166: 0 | S166: 0 | T166: 0 | V166: 0 | W166: 0 | X166: 0 | Y166: 0
A167: %,FACCOUNT,X,TGL_FERC_ACCT,N5250 | B167: Line 32 | C167: (525) Rents | F167: 0 | G167: 0 | H167: 0 | I167: 0 | K167: 0 | L167: 0 | M167: 0 | N167: 0 | Q167: 0 | R167: 0 | S167: 0 | T167: 0 | V167: 0 | W167: 0 | X167: 0 | Y167: 0
A168: %,FACCOUNT,X,TGL_FERC_ACCT,N517-525 | B168: Line 33 | C168: TOTAL Operation (Enter Total of Lines 24 thru 32) | D168: o | F168: 0 | G168: 0 | H168: 0 | I168: 0 | K168: 0 | L168: 0 | M168: 0 | N168: 0 | Q168: 0 | R168: 0 | S168: 0 | T168: 0 | V168: 0 | W168: 0 | X168: 0 | Y168: 0
B169: Line 34 | C169: Maintenance | H169: 0 | I169: 0 | M169: 0 | N169: 0 | S169: 0 | T169: 0 | X169: 0 | Y169: 0
A170: %,FACCOUNT,X,TGL_FERC_ACCT,N5280 | B170: Line 35 | C170: (528) Maintenance Supervision and Engineering | F170: 0 | G170: 0 | H170: 0 | I170: 0 | K170: 0 | L170: 0 | M170: 0 | N170: 0 | Q170: 0 | R170: 0 | S170: 0 | T170: 0 | V170: 0 | W170: 0 | X170: 0 | Y170: 0
A171: %,FACCOUNT,X,TGL_FERC_ACCT,N5290 | B171: Line 36 | C171: (529) Maintenance of Structures | F171: 0 | G171: 0 | H171: 0 | I171: 0 | K171: 0 | L171: 0 | M171: 0 | N171: 0 | Q171: 0 | R171: 0 | S171: 0 | T171: 0 | V171: 0 | W171: 0 | X171: 0 | Y171: 0
A172: %,FACCOUNT,X,TGL_FERC_ACCT,N5300 | B172: Line 37 | C172: (530) Maintenance of Reactor Plant Equipment | F172: 0 | G172: 0 | H172: 0 | I172: 0 | K172: 0 | L172: 0 | M172: 0 | N172: 0 | Q172: 0 | R172: 0 | S172: 0 | T172: 0 | V172: 0 | W172: 0 | X172: 0 | Y172: 0
A173: %,FACCOUNT,X,TGL_FERC_ACCT,N5310 | B173: Line 38 | C173: (531) Maintenance of Electric Plant | F173: 0 | G173: 0 | H173: 0 | I173: 0 | K173: 0 | L173: 0 | M173: 0 | N173: 0 | Q173: 0 | R173: 0 | S173: 0 | T173: 0 | V173: 0 | W173: 0 | X173: 0 | Y173: 0
A174: %,FACCOUNT,X,TGL_FERC_ACCT,N5311 | B174: Line 38.1 | C174: (531.1) Maintenance of Computer Hardware | D174: m | F174: 0 | G174: 0 | H174: 0 | I174: 0 | K174: 0 | L174: 0 | Q174: 0 | R174: 0 | V174: 0 | W174: 0
A175: %,V5312000 | B175: 5312000 | C175: Maint of Computer Software | F175: 0 | G175: 0 | H175: 0 | I175: 0 | K175: 0.19 | L175: 0 | Q175: 0.19 | R175: 0 | V175: 0.19 | W175: 0
A176: %,FACCOUNT,X,TGL_FERC_ACCT,N5312 | B176: Line 38.2 | C176: (531.2) Maintenance of Computer Software | D176: m | F176: 0 | G176: 0 | H176: 0 | I176: 0 | K176: 0.19 | L176: 0 | Q176: 0.19 | R176: 0 | V176: 0.19 | W176: 0
A177: %,FACCOUNT,X,TGL_FERC_ACCT,N5313 | B177: Line 38.3 | C177: (531.3) Maintenance of Communication Equipment | D177: m | F177: 0 | G177: 0 | H177: 0 | I177: 0 | K177: 0 | L177: 0 | Q177: 0 | R177: 0 | V177: 0 | W177: 0
A178: %,FACCOUNT,X,TGL_FERC_ACCT,N5320 | B178: Line 39 | C178: (532) Maintenance of Miscellaneous Nuclear Plant | F178: 0 | G178: 0 | H178: 0 | I178: 0 | K178: 0 | L178: 0 | M178: =+K178-L178 -> 0 | N178: =IF(L178<0,IF(M178=0,0,IF(OR(L178=0,K178=0),"N.M.",IF(ABS(M178/L178)>=10,"N.M.",M178/(-L178)))),IF(M178=0,0,IF(OR(L178=0,K178=0),"N.M.",IF(ABS(M178/L178)>=10,"N.M.",M178/L178)))) -> 0 | Q178: 0 | R178: 0 | S178: =+Q178-R178 -> 0 | T178: =IF(R178<0,IF(S178=0,0,IF(OR(R178=0,Q178=0),"N.M.",IF(ABS(S178/R178)>=10,"N.M.",S178/(-R178)))),IF(S178=0,0,IF(OR(R178=0,Q178=0),"N.M.",IF(ABS(S178/R178)>=10,"N.M.",S178/R178)))) -> 0 | V178: 0 | W178: 0 | X178: =+V178-W178 -> 0 | Y178: =IF(W178<0,IF(X178=0,0,IF(OR(W178=0,V178=0),"N.M.",IF(ABS(X178/W178)>=10,"N.M.",X178/(-W178)))),IF(X178=0,0,IF(OR(W178=0,V178=0),"N.M.",IF(ABS(X178/W178)>=10,"N.M.",X178/W178)))) -> 0
A179: %,V5312000 | B179: 5312000 | C179: Maint of Computer Software | F179: 0 | G179: 0 | H179: 0 | I179: 0 | K179: 0.19 | L179: 0 | M179: 0.19 | N179: N.M. | Q179: 0.19 | R179: 0 | S179: 0.19 | T179: N.M. | V179: 0.19 | W179: 0 | X179: 0.19 | Y179: N.M.
A180: %,FACCOUNT,X,TGL_FERC_ACCT,N528-533 | B180: Line 40 | C180: TOTAL Maintenance (Enter Total of lines 35 thru 39) | D180: m | F180: 0 | G180: 0 | H180: 0 | I180: 0 | K180: 0.19 | L180: 0 | M180: 0.19 | N180: N.M. | Q180: 0.19 | R180: 0 | S180: 0.19 | T180: N.M. | V180: 0.19 | W180: 0 | X180: 0.19 | Y180: N.M.
A181: %,V5312000 | B181: 5312000 | C181: Maint of Computer Software | F181: 0 | G181: 0 | H181: 0 | I181: 0 | K181: 0.19 | L181: 0 | M181: 0.19 | N181: N.M. | Q181: 0.19 | R181: 0 | S181: 0.19 | T181: N.M. | V181: 0.19 | W181: 0 | X181: 0.19 | Y181: N.M.
A182: %,FACCOUNT,X,TGL_FERC_ACCT,N517-533 | B182: Line 41 | C182: TOTAL Power Production Expenses-Nuc Power (Entr Tot lines 33 & 40) | F182: 0 | G182: 0 | H182: 0 | I182: 0 | K182: 0.19 | L182: 0 | M182: 0.19 | N182: N.M. | Q182: 0.19 | R182: 0 | S182: 0.19 | T182: N.M. | V182: 0.19 | W182: 0 | X182: 0.19 | Y182: N.M.
B183: Line 42 | C183: C. Hydraulic Power Generation | H183: 0 | I183: 0 | M183: 0 | N183: 0 | S183: 0 | T183: 0 | X183: 0 | Y183: 0
B184: Line 43 | C184: Operation | H184: 0 | I184: 0 | M184: 0 | N184: 0 | S184: 0 | T184: 0 | X184: 0 | Y184: 0
A185: %,FACCOUNT,X,TGL_FERC_ACCT,N5350 | B185: Line 44 | C185: (535) Operation Supervision and Engineering | F185: 0 | G185: 0 | H185: 0 | I185: 0 | K185: 0 | L185: 0 | M185: 0 | N185: 0 | Q185: 0 | R185: 0 | S185: 0 | T185: 0 | V185: 0 | W185: 0 | X185: 0 | Y185: 0
A186: %,FACCOUNT,X,TGL_FERC_ACCT,N5360 | B186: Line 45 | C186: (536) Water for Power | F186: 0 | G186: 0 | H186: 0 | I186: 0 | K186: 0 | L186: 0 | M186: 0 | N186: 0 | Q186: 0 | R186: 0 | S186: 0 | T186: 0 | V186: 0 | W186: 0 | X186: 0 | Y186: 0
A187: %,FACCOUNT,X,TGL_FERC_ACCT,N5370 | B187: Line 46 | C187: (537) Hydraulic Expenses | F187: 0 | G187: 0 | H187: 0 | I187: 0 | K187: 0 | L187: 0 | M187: 0 | N187: 0 | Q187: 0 | R187: 0 | S187: 0 | T187: 0 | V187: 0 | W187: 0 | X187: 0 | Y187: 0
A188: %,FACCOUNT,X,TGL_FERC_ACCT,N5380 | B188: Line 47 | C188: (538) Electric Expenses | F188: 0 | G188: 0 | H188: 0 | I188: 0 | K188: 0 | L188: 0 | M188: 0 | N188: 0 | Q188: 0 | R188: 0 | S188: 0 | T188: 0 | V188: 0 | W188: 0 | X188: 0 | Y188: 0
A189: %,FACCOUNT,X,TGL_FERC_ACCT,N5390 | B189: Line 48 | C189: (539) Miscellaneous Hydraulic Power Generation Expenses | F189: 0 | G189: 0 | H189: 0 | I189: 0 | K189: 0 | L189: 0 | M189: 0 | N189: 0 | Q189: 0 | R189: 0 | S189: 0 | T189: 0 | V189: 0 | W189: 0 | X189: 0 | Y189: 0
A190: %,FACCOUNT,X,TGL_FERC_ACCT,N5400 | B190: Line 49 | C190: (540) Rents | F190: 0 | G190: 0 | H190: 0 | I190: 0 | K190: 0 | L190: 0 | M190: 0 | N190: 0 | Q190: 0 | R190: 0 | S190: 0 | T190: 0 | V190: 0 | W190: 0 | X190: 0 | Y190: 0
A191: %,FACCOUNT,X,TGL_FERC_ACCT,N535-540 | B191: Line 50 | C191: TOTAL Operation (Enter Total of Lines 44 thru 49) | D191: o | F191: 0 | G191: 0 | H191: 0 | I191: 0 | K191: 0 | L191: 0 | M191: 0 | N191: 0 | Q191: 0 | R191: 0 | S191: 0 | T191: 0 | V191: 0 | W191: 0 | X191: 0 | Y191: 0
B192: Line 51 | C192: C. Hydraulic Power Generation (Continued) | H192: 0 | I192: 0 | M192: 0 | N192: 0 | S192: 0 | T192: 0 | X192: 0 | Y192: 0
B193: Line 52 | C193: Maintenance | H193: 0 | I193: 0 | M193: 0 | N193: 0 | S193: 0 | T193: 0 | X193: 0 | Y193: 0
A194: %,FACCOUNT,X,TGL_FERC_ACCT,N5410 | B194: Line 53 | C194: (541) Maintenance Supervision and Engineering | F194: 0 | G194: 0 | H194: 0 | I194: 0 | K194: 0 | L194: 0 | M194: 0 | N194: 0 | Q194: 0 | R194: 0 | S194: 0 | T194: 0 | V194: 0 | W194: 0 | X194: 0 | Y194: 0
A195: %,FACCOUNT,X,TGL_FERC_ACCT,N5420 | B195: Line 54 | C195: (542) Maintenance of Structures | F195: 0 | G195: 0 | H195: 0 | I195: 0 | K195: 0 | L195: 0 | M195: 0 | N195: 0 | Q195: 0 | R195: 0 | S195: 0 | T195: 0 | V195: 0 | W195: 0 | X195: 0 | Y195: 0
A196: %,FACCOUNT,X,TGL_FERC_ACCT,N5430 | B196: Line 55 | C196: (543) Maintenance of Reservoirs, Dams, and Waterways | F196: 0 | G196: 0 | H196: 0 | I196: 0 | K196: 0 | L196: 0 | M196: 0 | N196: 0 | Q196: 0 | R196: 0 | S196: 0 | T196: 0 | V196: 0 | W196: 0 | X196: 0 | Y196: 0
A197: %,FACCOUNT,X,TGL_FERC_ACCT,N5440 | B197: Line 56 | C197: (544) Maintenance of Electric Plant | F197: 0 | G197: 0 | H197: 0 | I197: 0 | K197: 0 | L197: 0 | M197: 0 | N197: 0 | Q197: 0 | R197: 0 | S197: 0 | T197: 0 | V197: 0 | W197: 0 | X197: 0 | Y197: 0
A198: %,FACCOUNT,X,TGL_FERC_ACCT,N5441 | B198: Line 56.1 | C198: (544.1) Maintenance of Computer Hardware | D198: m | F198: 0 | G198: 0 | H198: 0 | I198: 0 | K198: 0 | L198: 0 | Q198: 0 | R198: 0 | V198: 0 | W198: 0
A199: %,FACCOUNT,X,TGL_FERC_ACCT,N5442 | B199: Line 56.2 | C199: (544.2) Maintenance of Computer Software | D199: m | F199: 0 | G199: 0 | H199: 0 | I199: 0 | K199: 0 | L199: 0 | Q199: 0 | R199: 0 | V199: 0 | W199: 0
A200: %,FACCOUNT,X,TGL_FERC_ACCT,N5443 | B200: Line 56.3 | C200: (544.3) Maintenance of Communication Equipment | D200: m | F200: 0 | G200: 0 | H200: 0 | I200: 0 | K200: 0 | L200: 0 | Q200: 0 | R200: 0 | V200: 0 | W200: 0
A201: %,FACCOUNT,X,TGL_FERC_ACCT,N5450 | B201: Line 57 | C201: (545) Maintenance of Miscellaneous Hydraulic Plant | F201: 0 | G201: 0 | H201: 0 | I201: 0 | K201: 0 | L201: 0 | M201: =+K201-L201 -> 0 | N201: =IF(L201<0,IF(M201=0,0,IF(OR(L201=0,K201=0),"N.M.",IF(ABS(M201/L201)>=10,"N.M.",M201/(-L201)))),IF(M201=0,0,IF(OR(L201=0,K201=0),"N.M.",IF(ABS(M201/L201)>=10,"N.M.",M201/L201)))) -> 0 | Q201: 0 | R201: 0 | S201: =+Q201-R201 -> 0 | T201: =IF(R201<0,IF(S201=0,0,IF(OR(R201=0,Q201=0),"N.M.",IF(ABS(S201/R201)>=10,"N.M.",S201/(-R201)))),IF(S201=0,0,IF(OR(R201=0,Q201=0),"N.M.",IF(ABS(S201/R201)>=10,"N.M.",S201/R201)))) -> 0 | V201: 0 | W201: 0 | X201: =+V201-W201 -> 0 | Y201: =IF(W201<0,IF(X201=0,0,IF(OR(W201=0,V201=0),"N.M.",IF(ABS(X201/W201)>=10,"N.M.",X201/(-W201)))),IF(X201=0,0,IF(OR(W201=0,V201=0),"N.M.",IF(ABS(X201/W201)>=10,"N.M.",X201/W201)))) -> 0
... 1488 more rows

Sheet O&M QRT
A1: %,LACTUALS,SBAL | B1: %,ATF,FACCOUNT | C1: %,ATT,FDESCR,UDESCR | F1: %,LACTUALS,SPER | G1: %,LACTUALS,SPER-1YR | H1: %,C | I1: %,C | K1: %,LACTUALS,SYTD | L1: %,LACTUALS,SYTD-1YR | M1: %,C | N1: %,C | Q1: %,LACTUALS,SQTR | R1: %,LACTUALS,SQTR-1YR | S1: %,C | T1: %,C | V1: %,LACTUALS,SROLLING12 | W1: %,LACTUALS,SROLNG12-1Y | X1: %,C | Y1: %,C
C2: Kentucky Power Corp Consol | G2: Kentucky Power Corp Consol | L2: Kentucky Power Corp Consol | R2: Kentucky Power Corp Consol | W2: Kentucky Power Corp Consol
C3: August 2025 | G3: As of: Aug 2025 | L3: As of: Aug 2025 | R3: As of: Aug 2025 | W3: As of: Aug 2025
B4: Run Date: 09/09/2025 05:35 AM
B5: GLR6283P | C5: Rpt ID: FERC_IS1 Layout: FERC_IS1 | F5: ONE MONTH ENDED | H5: Variance | K5: YEAR TO DATE | M5: Variance | Q5: THREE MONTHS ENDED | S5: Variance | V5: TWELVE MONTHS ENDED | X5: Variance
B6: KYP_CORP_CONSOL | C6: V2099-01-01 Acct: GL_FERC_ACCT BU: GL_PRPT_CONS | F6: 2025 | G6: 2024 | H6: $ | I6: % | K6: 2025 | L6: 2024 | M6: $ | N6: % | O6: Explanation | Q6: 2025 | R6: 2024 | S6: $ | T6: % | V6: 2025 | W6: 2024 | X6: $ | Y6: %
C8: OPERATING AND MAINTENANCE DETAIL
C9: FERC Page 320 QUARTERLY
B10: 1 | C10: 1. POWER PRODUCTION AND OTHER POWER SUPPLYEXPENSES
A11: %,V5000000 | B11: 5000000 | C11: Oper Supervision & Engineering | F11: 405316.32 | G11: 427027.19 | H11: =+F11-G11 -> -21710.87 | I11: =IF(AND(F11=0,G11=0),"",IF(OR(F11=0,G11=0),100%,(+H11/G11))) -> -0.05084189136 | K11: 2798103.73 | L11: 3168229.93 | M11: =+K11-L11 -> -370126.2 | N11: =IF(AND(K11=0,L11=0),"",IF(OR(K11=0,L11=0),100%,(+M11/L11))) -> -0.1168242862 | Q11: 1186864.84 | R11: 1205315.73 | S11: =+Q11-R11 -> -18450.89 | T11: =IF(AND(Q11=0,R11=0),"",IF(OR(Q11=0,R11=0),100%,(+S11/R11))) -> -0.01530793098 | V11: 4056798.52 | W11: 4931057.16 | X11: =+V11-W11 -> -874258.64 | Y11: =IF(AND(V11=0,W11=0),"",IF(OR(V11=0,W11=0),100%,(+X11/W11))) -> -0.1772963913
A12: %,V5000003 | B12: 5000003 | C12: Cnstr Srchrge Op Sup & Eng Exp | F12: 64.34 | G12: 0 | H12: 64.34 | I12: 1 | K12: 64.34 | L12: 0 | M12: 64.34 | N12: 1 | Q12: 64.34 | R12: 0 | S12: 64.34 | T12: 1 | V12: 64.34 | W12: 0 | X12: 64.34 | Y12: 1
A13: %,V5000005 | B13: 5000005 | C13: Deferred OM - 20% Non FMR | F13: 0 | G13: 0 | H13: 0 | K13: 0 | L13: 0 | M13: 0 | Q13: 0 | R13: 0 | S13: 0 | V13: 0 | W13: 0 | X13: 0
A14: %,V5010000 | B14: 5010000 | C14: Fuel | F14: 615530.47 | G14: 941381.32 | H14: -325850.85 | I14: -0.3461411896 | K14: 5386334.68 | L14: 4490594.37 | M14: 895740.31 | N14: 0.1994703231 | Q14: 1725491.37 | R14: 1877015.23 | S14: -151523.86 | T14: -0.08072596193 | V14: 7244580.32 | W14: 7572756.71 | X14: -328176.39 | Y14: -0.04333644967
A15: %,V5010001 | B15: 5010001 | C15: Fuel Consumed | F15: 7211243.8 | G15: 8665987.11 | H15: -1454743.31 | I15: -0.1678681599 | K15: 45839900.71 | L15: 57352208.02 | M15: -11512307.31 | N15: -0.2007299755 | Q15: 22316113.86 | R15: 29668020.19 | S15: -7351906.33 | T15: -0.2478057613 | V15: 70684616.99 | W15: 68355431.7 | X15: 2329185.29 | Y15: 0.03407461897
A16: %,V5010003 | B16: 5010003 | C16: Fuel - Procure Unload & Handle | F16: 387404.5 | G16: 395660.87 | H16: -8256.37 | I16: -0.02086728971 | K16: 2656521.99 | L16: 2339355.55 | M16: 317166.44 | N16: 0.1355785528 | Q16: 1408240.41 | R16: 1312417.17 | S16: 95823.24 | T16: 0.07301279059 | V16: 3867956.52 | W16: 2712359.66 | X16: 1155596.86 | Y16: 0.4260485352
A17: %,V5010005 | B17: 5010005 | C17: Fuel - Deferred | F17: 6623129 | G17: 1180481 | H17: 5442648 | I17: 4.610534181 | K17: 6862548.24 | L17: 1655699.31 | M17: 5206848.93 | N17: 3.144803467 | Q17: 1966611.02 | R17: -6359877 | S17: 8326488.02 | T17: -1.309221549 | V17: 7260073 | W17: -1652975 | X17: 8913048 | Y17: -5.392125108
A18: %,V5010012 | B18: 5010012 | C18: Ash Sales Proceeds | F18: 489.78 | G18: 1997.07 | H18: -1507.29 | I18: -0.7547507098 | K18: 3509.33 | L18: 12670.91 | M18: -9161.58 | N18: -0.723040413 | Q18: -245.89 | R18: 6192.74 | S18: -6438.63 | T18: -1.039706172 | V18: 9692.47 | W18: 12670.91 | X18: -2978.44 | Y18: -0.2350612545
A19: %,V5010013 | B19: 5010013 | C19: Fuel Survey Activity | F19: 0 | G19: 0 | H19: 0 | K19: 4136038.43 | L19: 49281.13 | M19: 4086757.3 | N19: 82.92742679 | Q19: 4136038.43 | R19: 0 | S19: 4136038.43 | T19: 1 | V19: 4136038.43 | W19: 49281.13 | X19: 4086757.3 | Y19: 82.92742679
A20: %,V5010019 | B20: 5010019 | C20: Fuel Oil Consumed | F20: 229206.49 | G20: 213404.01 | H20: 15802.48 | I20: 0.0740495926 | K20: 2929358.79 | L20: 2374791.64 | M20: 554567.15 | N20: 0.2335224449 | Q20: 1566060.65 | R20: 904377.35 | S20: 661683.3 | T20: 0.7316451479 | V20: 4283898.47 | W20: 3198361.45 | X20: 1085537.02 | Y20: 0.3394041096
A21: %,V5010020 | B21: 5010020 | C21: Nat Gas Consumed Steam | F21: 3920242.98 | G21: 3547914.08 | H21: 372328.9 | I21: 0.104943043 | K21: 29337017.6 | L21: 23811687.18 | M21: 5525330.42 | N21: 0.2320427939 | Q21: 12013675.66 | R21: 9287663.67 | S21: 2726011.99 | T21: 0.2935089046 | V21: 33290457.19 | W21: 30404309.67 | X21: 2886147.52 | Y21: 0.09492560599
A22: %,V5010021 | B22: 5010021 | C22: Transp Gas Consumed Steam | F22: 55139.12 | G22: 16573.64 | H22: 38565.48 | I22: 2.326916718 | K22: 370272.06 | L22: 591651.71 | M22: -221379.65 | N22: -0.3741722474 | Q22: 176238.71 | R22: 95351.74 | S22: 80886.97 | T22: 0.8483009329 | V22: 403116.26 | W22: 665556.25 | X22: -262439.99 | Y22: -0.3943167689
A23: %,V5010027 | B23: 5010027 | C23: Gypsum handling/disposal costs | F23: 175772.97 | G23: 170292.64 | H23: 5480.33 | I23: 0.0321818371 | K23: 945375.87 | L23: 963248.3 | M23: -17872.43 | N23: -0.01855433329 | Q23: 419023.83 | R23: 493008.95 | S23: -73985.12 | T23: -0.150068513 | V23: 1372399.25 | W23: 1520487.77 | X23: -148088.52 | Y23: -0.09739540358
A24: %,V5010028 | B24: 5010028 | C24: Gypsum Sales Proceeds | F24: -126577.74 | G24: -152093.33 | H24: 25515.59 | I24: -0.1677627152 | K24: -826323.99 | L24: -942159.14 | M24: 115835.15 | N24: -0.1229464801 | Q24: -274660.03 | R24: -343897.51 | S24: 69237.48 | T24: -0.2013317282 | V24: -1169842.36 | W24: -1302229.4 | X24: 132387.04 | Y24: -0.1016618424
A25: %,V5010034 | B25: 5010034 | C25: Gas Transp Res Fees-Steam | F25: 503204.39 | G25: 549936 | H25: -46731.61 | I25: -0.08497645181 | K25: 4103660.87 | L25: 4246703.28 | M25: -143042.41 | N25: -0.03368316564 | Q25: 1494352.79 | R25: 1635408 | S25: -141055.21 | T25: -0.08625077656 | V25: 6095116.99 | W25: 6288038.64 | X25: -192921.65 | Y25: -0.03068073545
A26: %,V5010040 | B26: 5010040 | C26: Gas Procuremnt Sales Net | F26: -0.11 | G26: 999.98 | H26: -1000.09 | I26: -1.000110002 | K26: 237983.64 | L26: 1141696.84 | M26: -903713.2 | N26: -0.7915526857 | Q26: -0.08 | R26: 76986.76 | S26: -76986.84 | T26: -1.000001039 | V26: 1795089.5 | W26: 1227591.62 | X26: 567497.88 | Y26: 0.4622855604
A27: %,V5020000 | B27: 5020000 | C27: Steam Expenses | F27: 163552.9 | G27: 133384.15 | H27: 30168.75 | I27: 0.2261794224 | K27: 1353820.25 | L27: 1039615.4 | M27: 314204.85 | N27: 0.3022318157 | Q27: 527316.25 | R27: 375032.52 | S27: 152283.73 | T27: 0.4060547336 | V27: 1813936.5 | W27: 1471516.75 | X27: 342419.75 | Y27: 0.2326985065
A28: %,V5020002 | B28: 5020002 | C28: Urea Expense | F28: 88624.99 | G28: 122742.36 | H28: -34117.37 | I28: -0.2779592147 | K28: 569252.08 | L28: 896348.94 | M28: -327096.86 | N28: -0.3649213441 | Q28: 261173.61 | R28: 390749.28 | S28: -129575.67 | T28: -0.3316082118 | V28: 950697.69 | W28: 1259773.14 | X28: -309075.45 | Y28: -0.2453421495
A29: %,V5020004 | B29: 5020004 | C29: Lime-Related Expenses | F29: 285011.39 | G29: 260968.33 | H29: 24043.06 | I29: 0.092130183 | K29: 1445071.87 | L29: 1442669.32 | M29: 2402.55 | N29: 0.001665350449 | Q29: 756770.94 | R29: 864850.54 | S29: -108079.6 | T29: -0.1249691074 | V29: 2278119.44 | W29: 1813348.04 | X29: 464771.4 | Y29: 0.2563056786
A30: %,V5020005 | B30: 5020005 | C30: Polymer expense | F30: 0 | G30: 0 | H30: 0 | K30: 0 | L30: 0 | M30: 0 | Q30: 0 | R30: 0 | S30: 0 | V30: 0 | W30: -55971.28 | X30: 55971.28 | Y30: 1
A31: %,V5050000 | B31: 5050000 | C31: Electric Expenses | F31: 12544.92 | G31: 2315.26 | H31: 10229.66 | I31: 4.41836338 | K31: 58983.33 | L31: 27278.99 | M31: 31704.34 | N31: 1.162225581 | Q31: 33054.58 | R31: 15028.25 | S31: 18026.33 | T31: 1.199496282 | V31: 76124.55 | W31: 34112.66 | X31: 42011.89 | Y31: 1.231563003
A32: %,V5060000 | B32: 5060000 | C32: Misc Steam Power Expenses | F32: 264385.36 | G32: 658988.77 | H32: -394603.41 | I32: -0.5988014181 | K32: 3106220.856 | L32: 4646422.97 | M32: -1540202.114 | N32: -0.3314812543 | Q32: 1125190.16 | R32: 2486666.79 | S32: -1361476.63 | T32: -0.547510682 | V32: 4663161.716 | W32: 6781372.84 | X32: -2118211.124 | Y32: -0.3123572725
A33: %,V5060002 | B33: 5060002 | C33: Misc Steam Power Exp-Assoc | F33: 3702.6 | G33: 4268.49 | H33: -565.89 | I33: -0.1325738142 | K33: 33328.47 | L33: 35147.82 | M33: -1819.35 | N33: -0.05176281203 | Q33: 10809.84 | R33: 13644.33 | S33: -2834.49 | T33: -0.2077412376 | V33: 50174 | W33: 47915.61 | X33: 2258.39 | Y33: 0.04713265677
A34: %,V5060004 | B34: 5060004 | C34: NSR Settlement Expense | F34: 0 | G34: 0 | H34: 0 | K34: 0 | L34: 10130 | M34: -10130 | N34: 1 | Q34: 0 | R34: 0 | S34: 0 | V34: 0 | W34: 10130 | X34: -10130 | Y34: 1
A35: %,V5060011 | B35: 5060011 | C35: BSRR O/U Recovery-Oper Costs | F35: 0 | G35: 0 | H35: 0 | K35: 0 | L35: 367.46 | M35: -367.46 | N35: 1 | Q35: 0 | R35: -1.1 | S35: 1.1 | T35: 1 | V35: 0 | W35: 489.34 | X35: -489.34 | Y35: 1
A36: %,V5070006 | B36: 5070006 | C36: Rents - Associated | F36: 193.17 | G36: 0 | H36: 193.17 | I36: 1 | K36: 1545.36 | L36: 0 | M36: 1545.36 | N36: 1 | Q36: 579.51 | R36: 0 | S36: 579.51 | T36: 1 | V36: 1545.36 | W36: 0 | X36: 1545.36 | Y36: 1
A37: %,V5080017 | B37: 5080017 | C37: IPP Oper - Training/Travel | F37: 0 | G37: 0 | H37: 0 | K37: 0 | L37: 0 | M37: 0 | Q37: 0 | R37: 0 | S37: 0 | V37: 0 | W37: -0.02 | X37: 0.02 | Y37: 1
A38: %,V5090000 | B38: 5090000 | C38: Allow Consum Title IV SO2 | F38: 1548.45 | G38: 7083.39 | H38: -5534.94 | I38: -0.7813970429 | K38: 11675.4 | L38: 27013.39 | M38: -15337.99 | N38: -0.5677921209 | Q38: 5136.31 | R38: 19064.42 | S38: -13928.11 | T38: -0.7305813657 | V38: 22846.9 | W38: 30716.92 | X38: -7870.02 | Y38: -0.2562112347
A39: %,V5090001 | B39: 5090001 | C39: Allowance Consumption - NOx | F39: 0 | G39: 0 | H39: 0 | K39: 0 | L39: 0 | M39: 0 | Q39: 0 | R39: 0 | S39: 0 | V39: 42857.15 | W39: 0 | X39: 42857.15 | Y39: 1
A40: %,V5090009 | B40: 5090009 | C40: Allow Consumpt CSAPR SO2 | F40: 7.46 | G40: 33.95 | H40: -26.49 | I40: -0.7802650957 | K40: 56.79 | L40: 129.51 | M40: -72.72 | N40: -0.5615010424 | Q40: 24.85 | R40: 91.38 | S40: -66.53 | T40: -0.7280586562 | V40: 110.32 | W40: 149.76 | X40: -39.44 | Y40: -0.2633547009
A41: %,FACCOUNT,X,TGL_FERC_ACCT,N500-509 | B41: 2 | C41: Steam Power Generation - Operation (500-509) | D41: o | F41: 20819737.55 | G41: 17149346.28 | H41: 3670391.27 | I41: 0.2140251418 | K41: 111360320.7 | L41: 109380782.8 | M41: 1979537.866 | N41: 0.01809767506 | Q41: 50853925.96 | R41: 44023109.43 | S41: 6830816.53 | T41: 0.1551643357 | V41: 153229629.5 | W41: 135376252 | X41: 17853377.49 | Y41: 0.1318796851
A42: %,V5100000 | B42: 5100000 | C42: Maint Supv & Engineering | F42: 64888.49 | G42: 167134.35 | H42: -102245.86 | I42: -0.6117585045 | K42: 671030.85 | L42: 1214300.84 | M42: -543269.99 | N42: -0.4473932424 | Q42: 212212.56 | R42: 430925.53 | S42: -218712.97 | T42: -0.5075423821 | V42: 1134160.22 | W42: 1687437.43 | X42: -553277.21 | Y42: -0.3278801336
A43: %,V5110000 | B43: 5110000 | C43: Maintenance of Structures | F43: 50468.3 | G43: 250410.78 | H43: =+F43-G43 -> -199942.48 | I43: =IF(AND(F43=0,G43=0),"",IF(OR(F43=0,G43=0),100%,(+H43/G43))) -> -0.7984579578 | K43: 1107171.11 | L43: 1115447.54 | M43: =+K43-L43 -> -8276.43 | N43: =IF(AND(K43=0,L43=0),"",IF(OR(K43=0,L43=0),100%,(+M43/L43))) -> -0.007419828995 | Q43: 373544.67 | R43: 576734.72 | S43: =+Q43-R43 -> -203190.05 | T43: =IF(AND(Q43=0,R43=0),"",IF(OR(Q43=0,R43=0),100%,(+S43/R43))) -> -0.3523111111 | V43: 1786187.36 | W43: 1540553.52 | X43: =+V43-W43 -> 245633.84 | Y43: =IF(AND(V43=0,W43=0),"",IF(OR(V43=0,W43=0),100%,(+X43/W43))) -> 0.1594451844
A44: %,V5120000 | B44: 5120000 | C44: Maintenance of Boiler Plant | F44: 553224.63 | G44: 945535.53 | H44: -392310.9 | I44: -0.4149086814 | K44: 8908857.85 | L44: 8213992.27 | M44: 694865.58 | N44: 0.08459535353 | Q44: 1631164.9 | R44: 2355281.65 | S44: -724116.75 | T44: -0.307443804 | V44: 14849786.73 | W44: 13230439.54 | X44: 1619347.19 | Y44: 0.1223955701
A45: %,V5120025 | B45: 5120025 | C45: Maint of Blr Plt Environmental | F45: 0 | G45: 1.41 | H45: -1.41 | I45: 1 | K45: 0 | L45: 1.41 | M45: -1.41 | N45: 1 | Q45: 0 | R45: 1.41 | S45: -1.41 | T45: 1 | V45: -1.41 | W45: 1.41 | X45: -2.82 | Y45: -2
A46: %,V5120034 | B46: 5120034 | C46: BSDR O/U Recovery - Maint Cost | F46: 0 | G46: -817.8 | H46: 817.8 | I46: 1 | K46: -3413.61 | L46: -7167.12 | M46: 3753.51 | N46: -0.5237124535 | Q46: -732.15 | R46: -1662 | S46: 929.85 | T46: -0.5594765343 | V46: -6741.24 | W46: -10425.6 | X46: 3684.36 | Y46: -0.353395488
A47: %,V5120037 | B47: 5120037 | C47: KY Steam Maint O/U | F47: -58271.11 | G47: -58271.11 | H47: 0 | I47: 0 | K47: -466168.88 | L47: -429863.2 | M47: -36305.68 | N47: 0.0844586836 | Q47: -174813.33 | R47: -174813.33 | S47: 0 | T47: 0 | V47: -699253.32 | W47: -352508.32 | X47: -346745 | Y47: 0.9836505419
A48: %,V5130000 | B48: 5130000 | C48: Maintenance of Electric Plant | F48: 284033.88 | G48: 112146.36 | H48: 171887.52 | I48: 1.53270708 | K48: 3289169.46 | L48: 2377964.09 | M48: 911205.37 | N48: 0.3831871868 | Q48: 913168.41 | R48: 405544.42 | S48: 507623.99 | T48: 1.251709961 | V48: 4860357.85 | W48: 4521076.12 | X48: 339281.73 | Y48: 0.07504446309
A49: %,V5132000 | B49: 5132000 | C49: Maint of Computer Software-Mjr | F49: -2152.45 | G49: 0 | H49: -2152.45 | I49: 1 | K49: 33143.05 | L49: 0 | M49: 33143.05 | N49: 1 | Q49: 6073.1 | R49: 0 | S49: 6073.1 | T49: 1 | V49: 33143.05 | W49: 0 | X49: 33143.05 | Y49: 1
A50: %,V5133000 | B50: 5133000 | C50: Maint of Comm Equipmt-Mjr | F50: 1107.09 | G50: 0 | H50: 1107.09 | I50: 1 | K50: 2655.9 | L50: 0 | M50: 2655.9 | N50: 1 | Q50: 1531.72 | R50: 0 | S50: 1531.72 | T50: 1 | V50: 2655.9 | W50: 0 | X50: 2655.9 | Y50: 1
A51: %,V5140000 | B51: 5140000 | C51: Maintenance of Misc Steam Plt | F51: 147040.29 | G51: 134458.42 | H51: 12581.87 | I51: 0.09357442992 | K51: 1004242.04 | L51: 1123162.88 | M51: -118920.84 | N51: -0.1058803154 | Q51: 439647.1 | R51: 430019.64 | S51: 9627.46 | T51: 0.02238841928 | V51: 1416563.69 | W51: 1869379.35 | X51: -452815.66 | Y51: -0.2422278068
A52: %,V5140025 | B52: 5140025 | C52: Maint MiscStmPlt Environmental | F52: 0 | G52: 0 | H52: 0 | K52: 0 | L52: -13.57 | M52: 13.57 | N52: 1 | Q52: 0 | R52: 0 | S52: 0 | V52: 0 | W52: 0 | X52: 0
A53: %,FACCOUNT,X,TGL_FERC_ACCT,N510-515 | B53: 3 | C53: Steam Power Generation - Maintenance (510-515) | D53: m | F53: 1040339.12 | G53: 1550597.94 | H53: -510258.82 | I53: -0.3290722932 | K53: 14546687.77 | L53: 13607825.14 | M53: 938862.63 | N53: 0.0689943191 | Q53: 3401796.98 | R53: 4022032.04 | S53: -620235.06 | T53: -0.1542093782 | V53: 23376858.83 | W53: 22485953.45 | X53: 890905.38 | Y53: 0.03962052941
A54: %,V5000000 | B54: 5000000 | C54: Oper Supervision & Engineering | F54: 405316.32 | G54: 427027.19 | H54: -21710.87 | I54: -0.05084189136 | K54: 2798103.73 | L54: 3168229.93 | M54: -370126.2 | N54: -0.1168242862 | Q54: 1186864.84 | R54: 1205315.73 | S54: -18450.89 | T54: -0.01530793098 | V54: 4056798.52 | W54: 4931057.16 | X54: -874258.64 | Y54: -0.1772963913
A55: %,V5000003 | B55: 5000003 | C55: Cnstr Srchrge Op Sup & Eng Exp | F55: 64.34 | G55: 0 | H55: 64.34 | I55: 1 | K55: 64.34 | L55: 0 | M55: 64.34 | N55: 1 | Q55: 64.34 | R55: 0 | S55: 64.34 | T55: 1 | V55: 64.34 | W55: 0 | X55: 64.34 | Y55: 1
A56: %,V5000005 | B56: 5000005 | C56: Deferred OM - 20% Non FMR | F56: 0 | G56: 0 | H56: 0 | K56: 0 | L56: 0 | M56: 0 | Q56: 0 | R56: 0 | S56: 0 | V56: 0 | W56: 0 | X56: 0
A57: %,V5010000 | B57: 5010000 | C57: Fuel | F57: 615530.47 | G57: 941381.32 | H57: -325850.85 | I57: -0.3461411896 | K57: 5386334.68 | L57: 4490594.37 | M57: 895740.31 | N57: 0.1994703231 | Q57: 1725491.37 | R57: 1877015.23 | S57: -151523.86 | T57: -0.08072596193 | V57: 7244580.32 | W57: 7572756.71 | X57: -328176.39 | Y57: -0.04333644967
A58: %,V5010001 | B58: 5010001 | C58: Fuel Consumed | F58: 7211243.8 | G58: 8665987.11 | H58: -1454743.31 | I58: -0.1678681599 | K58: 45839900.71 | L58: 57352208.02 | M58: -11512307.31 | N58: -0.2007299755 | Q58: 22316113.86 | R58: 29668020.19 | S58: -7351906.33 | T58: -0.2478057613 | V58: 70684616.99 | W58: 68355431.7 | X58: 2329185.29 | Y58: 0.03407461897
A59: %,V5010003 | B59: 5010003 | C59: Fuel - Procure Unload & Handle | F59: 387404.5 | G59: 395660.87 | H59: -8256.37 | I59: -0.02086728971 | K59: 2656521.99 | L59: 2339355.55 | M59: 317166.44 | N59: 0.1355785528 | Q59: 1408240.41 | R59: 1312417.17 | S59: 95823.24 | T59: 0.07301279059 | V59: 3867956.52 | W59: 2712359.66 | X59: 1155596.86 | Y59: 0.4260485352
A60: %,V5010005 | B60: 5010005 | C60: Fuel - Deferred | F60: 6623129 | G60: 1180481 | H60: 5442648 | I60: 4.610534181 | K60: 6862548.24 | L60: 1655699.31 | M60: 5206848.93 | N60: 3.144803467 | Q60: 1966611.02 | R60: -6359877 | S60: 8326488.02 | T60: -1.309221549 | V60: 7260073 | W60: -1652975 | X60: 8913048 | Y60: -5.392125108
A61: %,V5010012 | B61: 5010012 | C61: Ash Sales Proceeds | F61: 489.78 | G61: 1997.07 | H61: -1507.29 | I61: -0.7547507098 | K61: 3509.33 | L61: 12670.91 | M61: -9161.58 | N61: -0.723040413 | Q61: -245.89 | R61: 6192.74 | S61: -6438.63 | T61: -1.039706172 | V61: 9692.47 | W61: 12670.91 | X61: -2978.44 | Y61: -0.2350612545
A62: %,V5010013 | B62: 5010013 | C62: Fuel Survey Activity | F62: 0 | G62: 0 | H62: 0 | K62: 4136038.43 | L62: 49281.13 | M62: 4086757.3 | N62: 82.92742679 | Q62: 4136038.43 | R62: 0 | S62: 4136038.43 | T62: 1 | V62: 4136038.43 | W62: 49281.13 | X62: 4086757.3 | Y62: 82.92742679
A63: %,V5010019 | B63: 5010019 | C63: Fuel Oil Consumed | F63: 229206.49 | G63: 213404.01 | H63: 15802.48 | I63: 0.0740495926 | K63: 2929358.79 | L63: 2374791.64 | M63: 554567.15 | N63: 0.2335224449 | Q63: 1566060.65 | R63: 904377.35 | S63: 661683.3 | T63: 0.7316451479 | V63: 4283898.47 | W63: 3198361.45 | X63: 1085537.02 | Y63: 0.3394041096
A64: %,V5010020 | B64: 5010020 | C64: Nat Gas Consumed Steam | F64: 3920242.98 | G64: 3547914.08 | H64: 372328.9 | I64: 0.104943043 | K64: 29337017.6 | L64: 23811687.18 | M64: 5525330.42 | N64: 0.2320427939 | Q64: 12013675.66 | R64: 9287663.67 | S64: 2726011.99 | T64: 0.2935089046 | V64: 33290457.19 | W64: 30404309.67 | X64: 2886147.52 | Y64: 0.09492560599
A65: %,V5010021 | B65: 5010021 | C65: Transp Gas Consumed Steam | F65: 55139.12 | G65: 16573.64 | H65: 38565.48 | I65: 2.326916718 | K65: 370272.06 | L65: 591651.71 | M65: -221379.65 | N65: -0.3741722474 | Q65: 176238.71 | R65: 95351.74 | S65: 80886.97 | T65: 0.8483009329 | V65: 403116.26 | W65: 665556.25 | X65: -262439.99 | Y65: -0.3943167689
A66: %,V5010027 | B66: 5010027 | C66: Gypsum handling/disposal costs | F66: 175772.97 | G66: 170292.64 | H66: 5480.33 | I66: 0.0321818371 | K66: 945375.87 | L66: 963248.3 | M66: -17872.43 | N66: -0.01855433329 | Q66: 419023.83 | R66: 493008.95 | S66: -73985.12 | T66: -0.150068513 | V66: 1372399.25 | W66: 1520487.77 | X66: -148088.52 | Y66: -0.09739540358
A67: %,V5010028 | B67: 5010028 | C67: Gypsum Sales Proceeds | F67: -126577.74 | G67: -152093.33 | H67: 25515.59 | I67: -0.1677627152 | K67: -826323.99 | L67: -942159.14 | M67: 115835.15 | N67: -0.1229464801 | Q67: -274660.03 | R67: -343897.51 | S67: 69237.48 | T67: -0.2013317282 | V67: -1169842.36 | W67: -1302229.4 | X67: 132387.04 | Y67: -0.1016618424
A68: %,V5010034 | B68: 5010034 | C68: Gas Transp Res Fees-Steam | F68: 503204.39 | G68: 549936 | H68: -46731.61 | I68: -0.08497645181 | K68: 4103660.87 | L68: 4246703.28 | M68: -143042.41 | N68: -0.03368316564 | Q68: 1494352.79 | R68: 1635408 | S68: -141055.21 | T68: -0.08625077656 | V68: 6095116.99 | W68: 6288038.64 | X68: -192921.65 | Y68: -0.03068073545
A69: %,V5010040 | B69: 5010040 | C69: Gas Procuremnt Sales Net | F69: -0.11 | G69: 999.98 | H69: -1000.09 | I69: -1.000110002 | K69: 237983.64 | L69: 1141696.84 | M69: -903713.2 | N69: -0.7915526857 | Q69: -0.08 | R69: 76986.76 | S69: -76986.84 | T69: -1.000001039 | V69: 1795089.5 | W69: 1227591.62 | X69: 567497.88 | Y69: 0.4622855604
A70: %,V5020000 | B70: 5020000 | C70: Steam Expenses | F70: 163552.9 | G70: 133384.15 | H70: 30168.75 | I70: 0.2261794224 | K70: 1353820.25 | L70: 1039615.4 | M70: 314204.85 | N70: 0.3022318157 | Q70: 527316.25 | R70: 375032.52 | S70: 152283.73 | T70: 0.4060547336 | V70: 1813936.5 | W70: 1471516.75 | X70: 342419.75 | Y70: 0.2326985065
A71: %,V5020002 | B71: 5020002 | C71: Urea Expense | F71: 88624.99 | G71: 122742.36 | H71: -34117.37 | I71: -0.2779592147 | K71: 569252.08 | L71: 896348.94 | M71: -327096.86 | N71: -0.3649213441 | Q71: 261173.61 | R71: 390749.28 | S71: -129575.67 | T71: -0.3316082118 | V71: 950697.69 | W71: 1259773.14 | X71: -309075.45 | Y71: -0.2453421495
A72: %,V5020004 | B72: 5020004 | C72: Lime-Related Expenses | F72: 285011.39 | G72: 260968.33 | H72: 24043.06 | I72: 0.092130183 | K72: 1445071.87 | L72: 1442669.32 | M72: 2402.55 | N72: 0.001665350449 | Q72: 756770.94 | R72: 864850.54 | S72: -108079.6 | T72: -0.1249691074 | V72: 2278119.44 | W72: 1813348.04 | X72: 464771.4 | Y72: 0.2563056786
A73: %,V5020005 | B73: 5020005 | C73: Polymer expense | F73: 0 | G73: 0 | H73: 0 | K73: 0 | L73: 0 | M73: 0 | Q73: 0 | R73: 0 | S73: 0 | V73: 0 | W73: -55971.28 | X73: 55971.28 | Y73: 1
A74: %,V5050000 | B74: 5050000 | C74: Electric Expenses | F74: 12544.92 | G74: 2315.26 | H74: 10229.66 | I74: 4.41836338 | K74: 58983.33 | L74: 27278.99 | M74: 31704.34 | N74: 1.162225581 | Q74: 33054.58 | R74: 15028.25 | S74: 18026.33 | T74: 1.199496282 | V74: 76124.55 | W74: 34112.66 | X74: 42011.89 | Y74: 1.231563003
A75: %,V5060000 | B75: 5060000 | C75: Misc Steam Power Expenses | F75: 264385.36 | G75: 658988.77 | H75: =+F75-G75 -> -394603.41 | I75: =IF(AND(F75=0,G75=0),"",IF(OR(F75=0,G75=0),100%,(+H75/G75))) -> -0.5988014181 | K75: 3106220.856 | L75: 4646422.97 | M75: =+K75-L75 -> -1540202.114 | N75: =IF(AND(K75=0,L75=0),"",IF(OR(K75=0,L75=0),100%,(+M75/L75))) -> -0.3314812543 | Q75: 1125190.16 | R75: 2486666.79 | S75: =+Q75-R75 -> -1361476.63 | T75: =IF(AND(Q75=0,R75=0),"",IF(OR(Q75=0,R75=0),100%,(+S75/R75))) -> -0.547510682 | V75: 4663161.716 | W75: 6781372.84 | X75: =+V75-W75 -> -2118211.124 | Y75: =IF(AND(V75=0,W75=0),"",IF(OR(V75=0,W75=0),100%,(+X75/W75))) -> -0.3123572725
A76: %,V5060002 | B76: 5060002 | C76: Misc Steam Power Exp-Assoc | F76: 3702.6 | G76: 4268.49 | H76: -565.89 | I76: -0.1325738142 | K76: 33328.47 | L76: 35147.82 | M76: -1819.35 | N76: -0.05176281203 | Q76: 10809.84 | R76: 13644.33 | S76: -2834.49 | T76: -0.2077412376 | V76: 50174 | W76: 47915.61 | X76: 2258.39 | Y76: 0.04713265677
A77: %,V5060004 | B77: 5060004 | C77: NSR Settlement Expense | F77: 0 | G77: 0 | H77: 0 | K77: 0 | L77: 10130 | M77: -10130 | N77: 1 | Q77: 0 | R77: 0 | S77: 0 | V77: 0 | W77: 10130 | X77: -10130 | Y77: 1
A78: %,V5060011 | B78: 5060011 | C78: BSRR O/U Recovery-Oper Costs | F78: 0 | G78: 0 | H78: 0 | K78: 0 | L78: 367.46 | M78: -367.46 | N78: 1 | Q78: 0 | R78: -1.1 | S78: 1.1 | T78: 1 | V78: 0 | W78: 489.34 | X78: -489.34 | Y78: 1
A79: %,V5070006 | B79: 5070006 | C79: Rents - Associated | F79: 193.17 | G79: 0 | H79: 193.17 | I79: 1 | K79: 1545.36 | L79: 0 | M79: 1545.36 | N79: 1 | Q79: 579.51 | R79: 0 | S79: 579.51 | T79: 1 | V79: 1545.36 | W79: 0 | X79: 1545.36 | Y79: 1
A80: %,V5080017 | B80: 5080017 | C80: IPP Oper - Training/Travel | F80: 0 | G80: 0 | H80: 0 | K80: 0 | L80: 0 | M80: 0 | Q80: 0 | R80: 0 | S80: 0 | V80: 0 | W80: -0.02 | X80: 0.02 | Y80: 1
A81: %,V5090000 | B81: 5090000 | C81: Allow Consum Title IV SO2 | F81: 1548.45 | G81: 7083.39 | H81: -5534.94 | I81: -0.7813970429 | K81: 11675.4 | L81: 27013.39 | M81: -15337.99 | N81: -0.5677921209 | Q81: 5136.31 | R81: 19064.42 | S81: -13928.11 | T81: -0.7305813657 | V81: 22846.9 | W81: 30716.92 | X81: -7870.02 | Y81: -0.2562112347
A82: %,V5090001 | B82: 5090001 | C82: Allowance Consumption - NOx | F82: 0 | G82: 0 | H82: 0 | K82: 0 | L82: 0 | M82: 0 | Q82: 0 | R82: 0 | S82: 0 | V82: 42857.15 | W82: 0 | X82: 42857.15 | Y82: 1
A83: %,V5090009 | B83: 5090009 | C83: Allow Consumpt CSAPR SO2 | F83: 7.46 | G83: 33.95 | H83: -26.49 | I83: -0.7802650957 | K83: 56.79 | L83: 129.51 | M83: -72.72 | N83: -0.5615010424 | Q83: 24.85 | R83: 91.38 | S83: -66.53 | T83: -0.7280586562 | V83: 110.32 | W83: 149.76 | X83: -39.44 | Y83: -0.2633547009
A84: %,V5100000 | B84: 5100000 | C84: Maint Supv & Engineering | F84: 64888.49 | G84: 167134.35 | H84: -102245.86 | I84: -0.6117585045 | K84: 671030.85 | L84: 1214300.84 | M84: -543269.99 | N84: -0.4473932424 | Q84: 212212.56 | R84: 430925.53 | S84: -218712.97 | T84: -0.5075423821 | V84: 1134160.22 | W84: 1687437.43 | X84: -553277.21 | Y84: -0.3278801336
A85: %,V5110000 | B85: 5110000 | C85: Maintenance of Structures | F85: 50468.3 | G85: 250410.78 | H85: -199942.48 | I85: -0.7984579578 | K85: 1107171.11 | L85: 1115447.54 | M85: -8276.43 | N85: -0.007419828995 | Q85: 373544.67 | R85: 576734.72 | S85: -203190.05 | T85: -0.3523111111 | V85: 1786187.36 | W85: 1540553.52 | X85: 245633.84 | Y85: 0.1594451844
A86: %,V5120000 | B86: 5120000 | C86: Maintenance of Boiler Plant | F86: 553224.63 | G86: 945535.53 | H86: -392310.9 | I86: -0.4149086814 | K86: 8908857.85 | L86: 8213992.27 | M86: 694865.58 | N86: 0.08459535353 | Q86: 1631164.9 | R86: 2355281.65 | S86: -724116.75 | T86: -0.307443804 | V86: 14849786.73 | W86: 13230439.54 | X86: 1619347.19 | Y86: 0.1223955701
A87: %,V5120025 | B87: 5120025 | C87: Maint of Blr Plt Environmental | F87: 0 | G87: 1.41 | H87: -1.41 | I87: 1 | K87: 0 | L87: 1.41 | M87: -1.41 | N87: 1 | Q87: 0 | R87: 1.41 | S87: -1.41 | T87: 1 | V87: -1.41 | W87: 1.41 | X87: -2.82 | Y87: -2
A88: %,V5120034 | B88: 5120034 | C88: BSDR O/U Recovery - Maint Cost | F88: 0 | G88: -817.8 | H88: 817.8 | I88: 1 | K88: -3413.61 | L88: -7167.12 | M88: 3753.51 | N88: -0.5237124535 | Q88: -732.15 | R88: -1662 | S88: 929.85 | T88: -0.5594765343 | V88: -6741.24 | W88: -10425.6 | X88: 3684.36 | Y88: -0.353395488
A89: %,V5120037 | B89: 5120037 | C89: KY Steam Maint O/U | F89: -58271.11 | G89: -58271.11 | H89: 0 | I89: 0 | K89: -466168.88 | L89: -429863.2 | M89: -36305.68 | N89: 0.0844586836 | Q89: -174813.33 | R89: -174813.33 | S89: 0 | T89: 0 | V89: -699253.32 | W89: -352508.32 | X89: -346745 | Y89: 0.9836505419
A90: %,V5130000 | B90: 5130000 | C90: Maintenance of Electric Plant | F90: 284033.88 | G90: 112146.36 | H90: 171887.52 | I90: 1.53270708 | K90: 3289169.46 | L90: 2377964.09 | M90: 911205.37 | N90: 0.3831871868 | Q90: 913168.41 | R90: 405544.42 | S90: 507623.99 | T90: 1.251709961 | V90: 4860357.85 | W90: 4521076.12 | X90: 339281.73 | Y90: 0.07504446309
A91: %,V5132000 | B91: 5132000 | C91: Maint of Computer Software-Mjr | F91: -2152.45 | G91: 0 | H91: -2152.45 | I91: 1 | K91: 33143.05 | L91: 0 | M91: 33143.05 | N91: 1 | Q91: 6073.1 | R91: 0 | S91: 6073.1 | T91: 1 | V91: 33143.05 | W91: 0 | X91: 33143.05 | Y91: 1
A92: %,V5133000 | B92: 5133000 | C92: Maint of Comm Equipmt-Mjr | F92: 1107.09 | G92: 0 | H92: 1107.09 | I92: 1 | K92: 2655.9 | L92: 0 | M92: 2655.9 | N92: 1 | Q92: 1531.72 | R92: 0 | S92: 1531.72 | T92: 1 | V92: 2655.9 | W92: 0 | X92: 2655.9 | Y92: 1
A93: %,V5140000 | B93: 5140000 | C93: Maintenance of Misc Steam Plt | F93: 147040.29 | G93: 134458.42 | H93: 12581.87 | I93: 0.09357442992 | K93: 1004242.04 | L93: 1123162.88 | M93: -118920.84 | N93: -0.1058803154 | Q93: 439647.1 | R93: 430019.64 | S93: 9627.46 | T93: 0.02238841928 | V93: 1416563.69 | W93: 1869379.35 | X93: -452815.66 | Y93: -0.2422278068
A94: %,V5140025 | B94: 5140025 | C94: Maint MiscStmPlt Environmental | F94: 0 | G94: 0 | H94: 0 | K94: 0 | L94: -13.57 | M94: 13.57 | N94: 1 | Q94: 0 | R94: 0 | S94: 0 | V94: 0 | W94: 0 | X94: 0
A95: %,FACCOUNT,X,TGL_FERC_ACCT,N500-515 | B95: 4 | C95: Total Power Production Expenses - Steam Power | F95: 21860076.67 | G95: 18699944.22 | H95: 3160132.45 | I95: 0.1689915442 | K95: 125907008.5 | L95: 122988608 | M95: 2918400.496 | N95: 0.02372903104 | Q95: 54255722.94 | R95: 48045141.47 | S95: 6210581.47 | T95: 0.1292655465 | V95: 176606488.3 | W95: 157862205.5 | X95: 18744282.87 | Y95: 0.1187382554
A96: %,FACCOUNT,X,TGL_FERC_ACCT,N517-525 | B96: 5 | C96: Nuclear Power Generation - Operation (517-525) | D96: o | F96: 0 | G96: 0 | H96: 0 | K96: 0 | L96: 0 | M96: 0 | Q96: 0 | R96: 0 | S96: 0 | V96: 0 | W96: 0 | X96: 0
A97: %,V5312000 | B97: 5312000 | C97: Maint of Computer Software | F97: 0 | G97: 0 | H97: 0 | K97: 0.19 | L97: 0 | M97: 0.19 | N97: 1 | Q97: 0.19 | R97: 0 | S97: 0.19 | T97: 1 | V97: 0.19 | W97: 0 | X97: 0.19 | Y97: 1
A98: %,FACCOUNT,X,TGL_FERC_ACCT,N528-533 | B98: 6 | C98: Nuclear Power Generation - Maintenance (528-532) | D98: m | F98: 0 | G98: 0 | H98: 0 | K98: 0.19 | L98: 0 | M98: 0.19 | N98: 1 | Q98: 0.19 | R98: 0 | S98: 0.19 | T98: 1 | V98: 0.19 | W98: 0 | X98: 0.19 | Y98: 1
A99: %,V5312000 | B99: 5312000 | C99: Maint of Computer Software | F99: 0 | G99: 0 | H99: 0 | K99: 0.19 | L99: 0 | M99: 0.19 | N99: 1 | Q99: 0.19 | R99: 0 | S99: 0.19 | T99: 1 | V99: 0.19 | W99: 0 | X99: 0.19 | Y99: 1
A100: %,FACCOUNT,X,TGL_FERC_ACCT,N517-533 | B100: 7 | C100: Total Power Production Expenses - Nuclear Power | F100: 0 | G100: 0 | H100: 0 | K100: 0.19 | L100: 0 | M100: 0.19 | N100: 1 | Q100: 0.19 | R100: 0 | S100: 0.19 | T100: 1 | V100: 0.19 | W100: 0 | X100: 0.19 | Y100: 1
A101: %,FACCOUNT,X,TGL_FERC_ACCT,N535-540 | B101: 8 | C101: Hydraulic Power Generation - Operation (535-540.1) | D101: o | F101: 0 | G101: 0 | H101: 0 | K101: 0 | L101: 0 | M101: 0 | Q101: 0 | R101: 0 | S101: 0 | V101: 0 | W101: 0 | X101: 0
A102: %,FACCOUNT,X,TGL_FERC_ACCT,N541-545 | B102: 9 | C102: Hydraulic Power Generation - Maintenance (541-545.1) | D102: m | F102: 0 | G102: 0 | H102: 0 | K102: 0 | L102: 0 | M102: 0 | Q102: 0 | R102: 0 | S102: 0 | V102: 0 | W102: 0 | X102: 0
A103: %,FACCOUNT,X,TGL_FERC_ACCT,N535-545 | B103: 10 | C103: Total Power Production Expenses - Hydraulic Power | F103: 0 | G103: 0 | H103: 0 | K103: 0 | L103: 0 | M103: 0 | Q103: 0 | R103: 0 | S103: 0 | V103: 0 | W103: 0 | X103: 0
A104: %,V5581000 | B104: 5581000 | C104: Oper Supervision & Engineering | F104: 249.48 | G104: 0 | K104: 717.48 | L104: 0 | Q104: 571.19 | R104: 0 | V104: 717.48 | W104: 0
A105: %,V5582000 | B105: 5582000 | C105: Solar Panel Gen&Oth Plt Op-Mjr | F105: 0 | G105: 0 | K105: 2.07 | L105: 0 | Q105: 0 | R105: 0 | V105: 2.07 | W105: 0
A106: %,FACCOUNT,X,TGL_FERC_ACCT,N5581,N5582,N5584,N5585 | B106: 10.1 | C106: Solar Generation – Operation (558.1-558.5) | D106: o | F106: 249.48 | G106: 0 | K106: 719.55 | L106: 0 | Q106: 571.19 | R106: 0 | V106: 719.55 | W106: 0
A107: %,V5587000 | B107: 5587000 | C107: Maint Solar Pnl Strct & Eq-Mjr | F107: -0.53 | G107: 0 | K107: 0 | L107: 0 | Q107: -3.51 | R107: 0 | V107: 0 | W107: 0
A108: %,FACCOUNT,X,TGL_FERC_ACCT,N5586,N5587,N5588,N5589,N55810,N55811,N55812 | B108: 10.2 | C108: Solar Generation – Maintenance (558.6-558.12) | D108: m | F108: -0.53 | G108: 0 | K108: 0 | L108: 0 | Q108: -3.51 | R108: 0 | V108: 0 | W108: 0
B109: 10.3 | C109: Total Power Production Expenses – Solar | F109: =F106+F108 -> 248.95
A110: %,V5581300 | B110: 5581300 | C110: Oper Supervision & Engineering | F110: 616.48 | G110: 0 | K110: 5363.59 | L110: 0 | Q110: 3028.54 | R110: 0 | V110: 5363.59 | W110: 0
A111: %,V5581400 | B111: 5581400 | C111: Wind Turb Gen&Oth Plnt Op-Mjr | F111: 171.49 | G111: 0 | K111: 767.51 | L111: 0 | Q111: 356.73 | R111: 0 | V111: 767.51 | W111: 0
A112: %,V5581601 | B112: 5581601 | C112: Wind - Variable Production Exp | F112: -9.42 | G112: 0 | K112: 97.26 | L112: 0 | Q112: 97.26 | R112: 0 | V112: 97.26 | W112: 0
A113: %,FACCOUNT,X,TGL_FERC_ACCT,N55813,N55814,N55816,N55817 | B113: 10.4 | C113: Wind Generation – Operation (558.13-558.17) | D113: o | F113: 778.55 | G113: 0 | K113: 6228.36 | L113: 0 | Q113: 3482.53 | R113: 0 | V113: 6228.36 | W113: 0
A114: %,V5581900 | B114: 5581900 | C114: Maint Wind Turb Struct&Eq-Mjr | F114: 0 | G114: 0 | K114: 0 | L114: 0 | Q114: 0 | R114: 0 | V114: 0 | W114: 0
A115: %,FACCOUNT,X,TGL_FERC_ACCT,N55818,N55819,N55820,N55821,N55822,N55823,N55824 | B115: 10.5 | C115: Wind Generation – Maintenance (558.18-558.24) | D115: m | F115: 0 | G115: 0 | K115: 0 | L115: 0 | Q115: 0 | R115: 0 | V115: 0 | W115: 0
B116: 10.6 | C116: Total Power Production Expenses – Wind | F116: =F113+F115 -> 778.55
A117: %,FACCOUNT,X,TGL_FERC_ACCT,N5590 | B117: 10.7 | C117: Other Renewable Generation – Operation (559.1-559.5) | D117: o | F117: 0 | G117: 0 | K117: 0 | L117: 0 | Q117: 0 | R117: 0 | V117: 0 | W117: 0
A118: %,FACCOUNT,X,TGL_FERC_ACCT,N559 | B118: 10.8 | C118: Other Renewable Generation – Maintenance (559.6-559.16) | D118: m | F118: 0 | G118: 0 | K118: 0 | L118: 0 | Q118: 0 | R118: 0 | V118: 0 | W118: 0
B119: 10.9 | C119: Total Power Production Expenses – Other Renewable | F119: =F117+F118 -> 0
A120: %,V5490000 | B120: 5490000 | C120: Misc Other Pwer Generation Exp | F120: 0 | G120: 0 | H120: =+F120-G120 -> 0 | I120: =IF(AND(F120=0,G120=0),"",IF(OR(F120=0,G120=0),100%,(+H120/G120))) ->  | K120: 0 | L120: 0 | M120: =+K120-L120 -> 0 | N120: =IF(AND(K120=0,L120=0),"",IF(OR(K120=0,L120=0),100%,(+M120/L120))) ->  | Q120: 0 | R120: 0 | S120: =+Q120-R120 -> 0 | T120: =IF(AND(Q120=0,R120=0),"",IF(OR(Q120=0,R120=0),100%,(+S120/R120))) ->  | V120: 0 | W120: -420846.12 | X120: =+V120-W120 -> 420846.12 | Y120: =IF(AND(V120=0,W120=0),"",IF(OR(V120=0,W120=0),100%,(+X120/W120))) -> 1
A121: %,V8140000 | B121: 8140000 | C121: Underground Storage Expenses | F121: 0 | G121: 0 | H121: 0 | K121: 0 | L121: 1637.46 | M121: -1637.46 | N121: 1 | Q121: 0 | R121: 1637.46 | S121: -1637.46 | T121: 1 | V121: -1637.46 | W121: 1637.46 | X121: -3274.92 | Y121: -2
A122: %,FACCOUNT,X,TGL_FERC_ACCT,N546-550 | B122: 11 | C122: Other Power Generation - Operation (546-550.1) | D122: o | F122: 0 | G122: 0 | H122: 0 | K122: 0 | L122: 1637.46 | M122: -1637.46 | N122: 1 | Q122: 0 | R122: 1637.46 | S122: -1637.46 | T122: 1 | V122: -1637.46 | W122: -419208.66 | X122: 417571.2 | Y122: -0.9960939261
A123: %,FACCOUNT,X,TGL_FERC_ACCT,N551-554 | B123: 12 | C123: Other Power Generation - Maintenance (551-554.1) | D123: m | F123: 0 | G123: 0 | H123: 0 | K123: 0 | L123: 0 | M123: 0 | Q123: 0 | R123: 0 | S123: 0 | V123: 0 | W123: 0 | X123: 0
A124: %,V5490000 | B124: 5490000 | C124: Misc Other Pwer Generation Exp | F124: 0 | G124: 0 | H124: 0 | K124: 0 | L124: 0 | M124: 0 | Q124: 0 | R124: 0 | S124: 0 | V124: 0 | W124: -420846.12 | X124: 420846.12 | Y124: 1
A125: %,V8140000 | B125: 8140000 | C125: Underground Storage Expenses | F125: 0 | G125: 0 | H125: 0 | K125: 0 | L125: 1637.46 | M125: -1637.46 | N125: 1 | Q125: 0 | R125: 1637.46 | S125: -1637.46 | T125: 1 | V125: -1637.46 | W125: 1637.46 | X125: -3274.92 | Y125: -2
A126: %,FACCOUNT,X,TGL_FERC_ACCT,N546-554 | B126: 13 | C126: Total Power Production Expenses - Other Power | F126: 0 | G126: 0 | H126: 0 | K126: 0 | L126: 1637.46 | M126: -1637.46 | N126: 1 | Q126: 0 | R126: 1637.46 | S126: -1637.46 | T126: 1 | V126: -1637.46 | W126: -419208.66 | X126: 417571.2 | Y126: -0.9960939261
B127: 14 | C127: Other Power Supply Expenses | H127: 0 | M127: 0 | S127: 0 | X127: 0
A128: %,V5550001 | B128: 5550001 | C128: Purch Pwr-NonTrading-Nonassoc | F128: 3967199.65 | G128: 4704623.14 | H128: -737423.49 | I128: -0.1567444337 | K128: 80363043.57 | L128: 53425038.87 | M128: 26938004.7 | N128: 0.5042205915 | Q128: 18400605.23 | R128: 11294277.07 | S128: 7106328.16 | T128: 0.6291972577 | V128: 115945720.6 | W128: 90885341.92 | X128: 25060378.64 | Y128: 0.2757361981
A129: %,V5550004 | B129: 5550004 | C129: Purchased Power-Pool Capacity | F129: 32587.75 | G129: 0 | H129: 32587.75 | I129: 1 | K129: 96712.04 | L129: 373078.23 | M129: -276366.19 | N129: -0.7407727596 | Q129: 96712.04 | R129: 0 | S129: 96712.04 | T129: 1 | V129: 96712.04 | W129: 672522.59 | X129: -575810.55 | Y129: -0.8561951057
A130: %,V5550023 | B130: 5550023 | C130: Purch Power Capacity -NA | F130: -448262.49 | G130: 201548.44 | H130: -649810.93 | I130: -3.224093077 | K130: 1884279.51 | L130: 613063.13 | M130: 1271216.38 | N130: 2.073548902 | Q130: 34756.06 | R130: 613063.13 | S130: -578307.07 | T130: -0.9433075351 | V130: 2690473.27 | W130: 613063.13 | X130: 2077410.14 | Y130: 3.388574583
A131: %,V5550029 | B131: 5550029 | C131: Purch Power-Assoc-Trnsfr Price | F131: 0 | G131: 0 | H131: 0 | K131: 0 | L131: 0 | M131: 0 | Q131: 0 | R131: 0 | S131: 0 | V131: 0 | W131: 0 | X131: 0
A132: %,V5550039 | B132: 5550039 | C132: PJM Inadvertent Mtr Res-OSS | F132: 666.12 | G132: 835.77 | H132: -169.65 | I132: -0.2029864676 | K132: -940.59 | L132: 5183.15 | M132: -6123.74 | N132: -1.181470727 | Q132: 1482.15 | R132: 4970.1 | S132: -3487.95 | T132: -0.7017866844 | V132: -1211.45 | W132: 5644.69 | X132: -6856.14 | Y132: -1.214617632
A133: %,V5550040 | B133: 5550040 | C133: PJM Inadvertent Mtr Res-LSE | F133: 3370.29 | G133: 9290.45 | H133: -5920.16 | I133: -0.6372307046 | K133: -37332.61 | L133: 52983.15 | M133: -90315.76 | N133: -1.704612882 | Q133: -3081.62 | R133: 38773.07 | S133: -41854.69 | T133: -1.07947836 | V133: -34249.76 | W133: 66111.76 | X133: -100361.52 | Y133: -1.518058512
A134: %,V5550074 | B134: 5550074 | C134: PJM Reactive-Charge | F134: 268149.33 | G134: 290583.41 | H134: -22434.08 | I134: -0.07720358158 | K134: 2184055.26 | L134: 2416213.24 | M134: -232157.98 | N134: -0.09608339867 | Q134: 805853.6 | R134: 869901.78 | S134: -64048.18 | T134: -0.07362690993 | V134: 3355313.5 | W134: 3364240.97 | X134: -8927.47 | Y134: -0.002653635717
A135: %,V5550075 | B135: 5550075 | C135: PJM Reactive-Credit | F135: -119573 | G135: -119573 | H135: 0 | I135: 0 | K135: -956584 | L135: -956584 | M135: 0 | N135: 0 | Q135: -358719 | R135: -358719 | S135: 0 | T135: 0 | V135: -1434876 | W135: -1434876 | X135: 0 | Y135: 0
A136: %,V5550076 | B136: 5550076 | C136: PJM Black Start-Charge | F136: 58868.57 | G136: 95302.24 | H136: -36433.67 | I136: -0.382296051 | K136: 294367.3 | L136: 715549.99 | M136: -421182.69 | N136: -0.5886139276 | Q136: 112594.88 | R136: 285401.17 | S136: -172806.29 | T136: -0.6054855697 | V136: 677632.58 | W136: 1004567.52 | X136: -326934.94 | Y136: -0.3254484477
A137: %,V5550078 | B137: 5550078 | C137: PJM Regulation-Charge | F137: 49743.75 | G137: 41150.63 | H137: 8593.12 | I137: 0.2088211043 | K137: 629736.81 | L137: 410010.88 | M137: 219725.93 | N137: 0.5359026814 | Q137: 232471.85 | R137: 142089.74 | S137: 90382.11 | T137: 0.6360917403 | V137: 818249.02 | W137: 650266.65 | X137: 167982.37 | Y137: 0.2583284411
A138: %,V5550079 | B138: 5550079 | C138: PJM Regulation-Credit | F138: -2761.37 | G138: -915.66 | H138: -1845.71 | I138: 2.01571544 | K138: 205138.48 | L138: -11759.71 | M138: 216898.19 | N138: -18.44417847 | Q138: -6919.15 | R138: -2713.29 | S138: -4205.86 | T138: 1.550096009 | V138: -22740.81 | W138: -14116.13 | X138: -8624.68 | Y138: 0.6109804883
A139: %,V5550080 | B139: 5550080 | C139: PJM Hourly Net Purch.-FERC | F139: 1322426.52 | G139: 1355816.86 | H139: -33390.34 | I139: -0.0246274707 | K139: 9659905.4 | L139: 5709106.46 | M139: 3950798.94 | N139: 0.6920170376 | Q139: 6780961.44 | R139: 5096345.39 | S139: 1684616.05 | T139: 0.3305537441 | V139: 12563246.01 | W139: 8330214.31 | X139: 4233031.7 | Y139: 0.5081539973
A140: %,V5550083 | B140: 5550083 | C140: PJM Sync & Non Sync-Charge | F140: 107907.97 | G140: 39734.11 | H140: 68173.86 | I140: 1.715751529 | K140: 793226 | L140: 308992.78 | M140: 484233.22 | N140: 1.567134417 | Q140: 344065.99 | R140: 143531.81 | S140: 200534.18 | T140: 1.397141024 | V140: 954209.25 | W140: 563256.31 | X140: 390952.94 | Y140: 0.6940942038
A141: %,V5550084 | B141: 5550084 | C141: PJM Sync & Non Sync-Credit | F141: -9614.59 | G141: 1800.21 | H141: -11414.8 | I141: -6.340815794 | K141: -121529.75 | L141: -25729.01 | M141: -95800.74 | N141: 3.723452243 | Q141: -28140.36 | R141: -37014.55 | S141: 8874.19 | T141: -0.2397486934 | V141: -131685.9 | W141: -25698.74 | X141: -105987.16 | Y141: 4.124216207
A142: %,V5550094 | B142: 5550094 | C142: Purchased Power - Fuel | F142: 0 | G142: 0 | H142: 0 | K142: 0 | L142: 0 | M142: 0 | Q142: 0 | R142: 0 | S142: 0 | V142: 0 | W142: 0 | X142: 0
A143: %,V5550123 | B143: 5550123 | C143: PJM OpRes-LSE-Charge | F143: 79512.82 | G143: 79936.1 | H143: -423.28 | I143: -0.005295229565 | K143: 3999807.3 | L143: 972923.31 | M143: 3026883.99 | N143: 3.1111229 | Q143: 360314.56 | R143: 317171.35 | S143: 43143.21 | T143: 0.1360249279 | V143: 4317281.38 | W143: 1252833.62 | X143: 3064447.76 | Y143: 2.44601335
A144: %,V5550124 | B144: 5550124 | C144: PJM Implicit Congestion-LSE | F144: 176273.08 | G144: 403971.15 | H144: -227698.07 | I144: -0.5636493349 | K144: 2936441.91 | L144: 4546457.87 | M144: -1610015.96 | N144: -0.3541253446 | Q144: 189517.1 | R144: 2885598.08 | S144: -2696080.98 | T144: -0.9343231127 | V144: 5333727.4 | W144: 6981772.97 | X144: -1648045.57 | Y144: -0.2360497222
A145: %,V5550132 | B145: 5550132 | C145: PJM FTR Revenue-LSE | F145: 96096.39 | G145: -379914.83 | H145: 476011.22 | I145: -1.252941929 | K145: -6253075.78 | L145: -4888442.32 | M145: -1364633.46 | N145: 0.2791550704 | Q145: -210460.66 | R145: -1473833.59 | S145: 1263372.93 | T145: -0.857201884 | V145: -8919759.78 | W145: -5576640.76 | X145: -3343119.02 | Y145: 0.5994861717
A146: %,V5550137 | B146: 5550137 | C146: PJM OpRes-LSE-Credit | F146: -9779.79 | G146: -13543.07 | H146: 3763.28 | I146: -0.2778749575 | K146: -59636.32 | L146: -49612.11 | M146: -10024.21 | N146: 0.2020516765 | Q146: -22865.58 | R146: -21635.01 | S146: -1230.57 | T146: 0.05687864253 | V146: -74298.53 | W146: -52495.77 | X146: -21802.76 | Y146: 0.4153241299
A147: %,V5550139 | B147: 5550139 | C147: Generation Deactivation expens | F147: 0 | G147: 0 | H147: 0 | K147: -285.27 | L147: 0 | M147: -285.27 | N147: 1 | Q147: -285.27 | R147: 0 | S147: -285.27 | T147: 1 | V147: -285.27 | W147: 0 | X147: -285.27 | Y147: 1
A148: %,V5550153 | B148: 5550153 | C148: PurchPower-Rockport Def-NonAff | F148: 0 | G148: 0 | H148: 0 | K148: 0 | L148: 152679.92 | M148: -152679.92 | N148: 1 | Q148: 0 | R148: 0 | S148: 0 | V148: 0 | W148: 3094705.26 | X148: -3094705.26 | Y148: 1
A149: %,V5550326 | B149: 5550326 | C149: PJM Transm Loss Charges - LSE | F149: 794704.73 | G149: 495765.16 | H149: 298939.57 | I149: 0.6029862405 | K149: 5425605.7 | L149: 3948228.54 | M149: 1477377.16 | N149: 0.3741873463 | Q149: 2449589.42 | R149: 1698450.07 | S149: 751139.35 | T149: 0.4422498861 | V149: 7128818.81 | W149: 5618206.5 | X149: 1510612.31 | Y149: 0.2688780325
A150: %,V5550327 | B150: 5550327 | C150: PJM Transm Loss Credits-LSE | F150: -239304.5 | G150: -252490.44 | H150: 13185.94 | I150: -0.05222352181 | K150: -2554302.45 | L150: -1616654.88 | M150: -937647.57 | N150: 0.5799924162 | Q150: -944339.74 | R150: -756230.9 | S150: -188108.84 | T150: 0.2487452443 | V150: -3272222.33 | W150: -2270707.97 | X150: -1001514.36 | Y150: 0.4410581956
A151: %,V5550328 | B151: 5550328 | C151: PJM FC Penalty Credit | F151: 0 | G151: -395.26 | H151: 395.26 | I151: 1 | K151: -2256.95 | L151: -2848.35 | M151: 591.4 | N151: -0.2076289782 | Q151: -288.03 | R151: -377.41 | S151: 89.38 | T151: -0.2368246734 | V151: -2326.38 | W151: -3531.09 | X151: 1204.71 | Y151: -0.3411722726
A152: %,FACCOUNT,X,TGL_FERC_ACCT,N5550 | B152: 15 | C152: Purchased Power (555) | F152: 6128211.23 | G152: 6953525.41 | H152: -825314.18 | I152: -0.1186900358 | K152: 98486375.56 | L152: 66097879.14 | M152: 32388496.42 | N152: 0.4900081038 | Q152: 28233824.91 | R152: 20739049.01 | S152: 7494775.9 | T152: 0.3613847432 | V152: 139987727.6 | W152: 113724681.7 | X152: 26263045.87 | Y152: 0.2309353209
B153: 15.1 | C153: Power Purchased for Storage Operations (555.1)
A154: %,FACCOUNT,X,TGL_FERC_ACCT,N5552 | B154: 15.2 | C154: Bundled Environmental Credits (555.2) | F154: 0 | G154: 0 | K154: 0 | L154: 0 | Q154: 0 | R154: 0 | V154: 0 | W154: 0
A155: %,FACCOUNT,X,TGL_FERC_ACCT,N5553 | B155: 15.3 | C155: Unbundled Environmental Credits (555.3) | F155: 0 | G155: 0 | K155: 0 | L155: 0 | Q155: 0 | R155: 0 | V155: 0 | W155: 0
A156: %,V5560000 | B156: 5560000 | C156: Sys Control & Load Dispatching | F156: 3313.8 | G156: 6203.04 | H156: =+F156-G156 -> -2889.24 | I156: =IF(AND(F156=0,G156=0),"",IF(OR(F156=0,G156=0),100%,(+H156/G156))) -> -0.4657780701 | K156: 32633.68 | L156: 42874.56 | M156: =+K156-L156 -> -10240.88 | N156: =IF(AND(K156=0,L156=0),"",IF(OR(K156=0,L156=0),100%,(+M156/L156))) -> -0.2388567953 | Q156: 12655.16 | R156: 16281.87 | S156: =+Q156-R156 -> -3626.71 | T156: =IF(AND(Q156=0,R156=0),"",IF(OR(Q156=0,R156=0),100%,(+S156/R156))) -> -0.2227452989 | V156: 59634.39 | W156: 69752.54 | X156: =+V156-W156 -> -10118.15 | Y156: =IF(AND(V156=0,W156=0),"",IF(OR(V156=0,W156=0),100%,(+X156/W156))) -> -0.1450578
A157: %,FACCOUNT,X,TGL_FERC_ACCT,N5560 | B157: 16 | C157: System Control and Load Dispatching (556) | F157: 3313.8 | G157: 6203.04 | H157: -2889.24 | I157: -0.4657780701 | K157: 32633.68 | L157: 42874.56 | M157: -10240.88 | N157: -0.2388567953 | Q157: 12655.16 | R157: 16281.87 | S157: -3626.71 | T157: -0.2227452989 | V157: 59634.39 | W157: 69752.54 | X157: -10118.15 | Y157: -0.1450578
A158: %,V5570000 | B158: 5570000 | C158: Other Expenses | F158: 64405.17 | G158: 63735.52 | H158: 669.65 | I158: 0.01050670019 | K158: 523692.75 | L158: 577415.66 | M158: -53722.91 | N158: -0.09304027189 | Q158: 208366.61 | R158: 257140.07 | S158: -48773.46 | T158: -0.1896766226 | V158: 744586.64 | W158: 805106.72 | X158: -60520.08 | Y158: -0.07517025817
A159: %,V5570007 | B159: 5570007 | C159: Other Pwr Exp - Wholesale RECs | F159: 0 | G159: 0 | H159: 0 | K159: 243.15 | L159: 245.05 | M159: -1.9 | N159: -0.00775351969 | Q159: 0 | R159: 0 | S159: 0 | V159: 243.15 | W159: 245.05 | X159: -1.9 | Y159: -0.00775351969
A160: %,V5570009 | B160: 5570009 | C160: Other Pwr Exp- REC's - RETAIL | F160: 0 | G160: 0 | H160: 0 | K160: 0 | L160: 446.4 | M160: -446.4 | N160: 1 | Q160: 0 | R160: 0 | S160: 0 | V160: 0 | W160: 446.4 | X160: -446.4 | Y160: 1
A161: %,V5570010 | B161: 5570010 | C161: OH Auction Exp - Incremental | F161: 0 | G161: 0 | H161: 0 | K161: 0 | L161: 5.79 | M161: -5.79 | N161: 1 | Q161: 0 | R161: 5.68 | S161: -5.68 | T161: 1 | V161: 0 | W161: 5.94 | X161: -5.94 | Y161: 1
A162: %,V5570025 | B162: 5570025 | C162: MATL-SAFETY | F162: 0 | G162: 0 | H162: 0 | K162: 0.93 | L162: 0 | M162: 0.93 | N162: 1 | Q162: 0 | R162: 0 | S162: 0 | V162: 0.93 | W162: 0 | X162: 0.93 | Y162: 1
A163: %,FACCOUNT,X,TGL_FERC_ACCT,N5570 | B163: 17 | C163: Other Expenses (557) | F163: 64405.17 | G163: 63735.52 | H163: 669.65 | I163: 0.01050670019 | K163: 523936.83 | L163: 578112.9 | M163: -54176.07 | N163: -0.09371192028 | Q163: 208366.61 | R163: 257145.75 | S163: -48779.14 | T163: -0.1896945215 | V163: 744830.72 | W163: 805804.11 | X163: -60973.39 | Y163: -0.07566775751
A164: %,V5550001 | B164: 5550001 | C164: Purch Pwr-NonTrading-Nonassoc | F164: 3967199.65 | G164: 4704623.14 | H164: -737423.49 | I164: -0.1567444337 | K164: 80363043.57 | L164: 53425038.87 | M164: 26938004.7 | N164: 0.5042205915 | Q164: 18400605.23 | R164: 11294277.07 | S164: 7106328.16 | T164: 0.6291972577 | V164: 115945720.6 | W164: 90885341.92 | X164: 25060378.64 | Y164: 0.2757361981
A165: %,V5550004 | B165: 5550004 | C165: Purchased Power-Pool Capacity | F165: 32587.75 | G165: 0 | H165: 32587.75 | I165: 1 | K165: 96712.04 | L165: 373078.23 | M165: -276366.19 | N165: -0.7407727596 | Q165: 96712.04 | R165: 0 | S165: 96712.04 | T165: 1 | V165: 96712.04 | W165: 672522.59 | X165: -575810.55 | Y165: -0.8561951057
A166: %,V5550023 | B166: 5550023 | C166: Purch Power Capacity -NA | F166: -448262.49 | G166: 201548.44 | H166: -649810.93 | I166: -3.224093077 | K166: 1884279.51 | L166: 613063.13 | M166: 1271216.38 | N166: 2.073548902 | Q166: 34756.06 | R166: 613063.13 | S166: -578307.07 | T166: -0.9433075351 | V166: 2690473.27 | W166: 613063.13 | X166: 2077410.14 | Y166: 3.388574583
A167: %,V5550029 | B167: 5550029 | C167: Purch Power-Assoc-Trnsfr Price | F167: 0 | G167: 0 | H167: 0 | K167: 0 | L167: 0 | M167: 0 | Q167: 0 | R167: 0 | S167: 0 | V167: 0 | W167: 0 | X167: 0
A168: %,V5550039 | B168: 5550039 | C168: PJM Inadvertent Mtr Res-OSS | F168: 666.12 | G168: 835.77 | H168: -169.65 | I168: -0.2029864676 | K168: -940.59 | L168: 5183.15 | M168: -6123.74 | N168: -1.181470727 | Q168: 1482.15 | R168: 4970.1 | S168: -3487.95 | T168: -0.7017866844 | V168: -1211.45 | W168: 5644.69 | X168: -6856.14 | Y168: -1.214617632
A169: %,V5550040 | B169: 5550040 | C169: PJM Inadvertent Mtr Res-LSE | F169: 3370.29 | G169: 9290.45 | H169: -5920.16 | I169: -0.6372307046 | K169: -37332.61 | L169: 52983.15 | M169: -90315.76 | N169: -1.704612882 | Q169: -3081.62 | R169: 38773.07 | S169: -41854.69 | T169: -1.07947836 | V169: -34249.76 | W169: 66111.76 | X169: -100361.52 | Y169: -1.518058512
A170: %,V5550074 | B170: 5550074 | C170: PJM Reactive-Charge | F170: 268149.33 | G170: 290583.41 | H170: -22434.08 | I170: -0.07720358158 | K170: 2184055.26 | L170: 2416213.24 | M170: -232157.98 | N170: -0.09608339867 | Q170: 805853.6 | R170: 869901.78 | S170: -64048.18 | T170: -0.07362690993 | V170: 3355313.5 | W170: 3364240.97 | X170: -8927.47 | Y170: -0.002653635717
A171: %,V5550075 | B171: 5550075 | C171: PJM Reactive-Credit | F171: -119573 | G171: -119573 | H171: 0 | I171: 0 | K171: -956584 | L171: -956584 | M171: 0 | N171: 0 | Q171: -358719 | R171: -358719 | S171: 0 | T171: 0 | V171: -1434876 | W171: -1434876 | X171: 0 | Y171: 0
A172: %,V5550076 | B172: 5550076 | C172: PJM Black Start-Charge | F172: 58868.57 | G172: 95302.24 | H172: -36433.67 | I172: -0.382296051 | K172: 294367.3 | L172: 715549.99 | M172: -421182.69 | N172: -0.5886139276 | Q172: 112594.88 | R172: 285401.17 | S172: -172806.29 | T172: -0.6054855697 | V172: 677632.58 | W172: 1004567.52 | X172: -326934.94 | Y172: -0.3254484477
A173: %,V5550078 | B173: 5550078 | C173: PJM Regulation-Charge | F173: 49743.75 | G173: 41150.63 | H173: 8593.12 | I173: 0.2088211043 | K173: 629736.81 | L173: 410010.88 | M173: 219725.93 | N173: 0.5359026814 | Q173: 232471.85 | R173: 142089.74 | S173: 90382.11 | T173: 0.6360917403 | V173: 818249.02 | W173: 650266.65 | X173: 167982.37 | Y173: 0.2583284411
A174: %,V5550079 | B174: 5550079 | C174: PJM Regulation-Credit | F174: -2761.37 | G174: -915.66 | H174: -1845.71 | I174: 2.01571544 | K174: 205138.48 | L174: -11759.71 | M174: 216898.19 | N174: -18.44417847 | Q174: -6919.15 | R174: -2713.29 | S174: -4205.86 | T174: 1.550096009 | V174: -22740.81 | W174: -14116.13 | X174: -8624.68 | Y174: 0.6109804883
A175: %,V5550080 | B175: 5550080 | C175: PJM Hourly Net Purch.-FERC | F175: 1322426.52 | G175: 1355816.86 | H175: -33390.34 | I175: -0.0246274707 | K175: 9659905.4 | L175: 5709106.46 | M175: 3950798.94 | N175: 0.6920170376 | Q175: 6780961.44 | R175: 5096345.39 | S175: 1684616.05 | T175: 0.3305537441 | V175: 12563246.01 | W175: 8330214.31 | X175: 4233031.7 | Y175: 0.5081539973
A176: %,V5550083 | B176: 5550083 | C176: PJM Sync & Non Sync-Charge | F176: 107907.97 | G176: 39734.11 | H176: 68173.86 | I176: 1.715751529 | K176: 793226 | L176: 308992.78 | M176: 484233.22 | N176: 1.567134417 | Q176: 344065.99 | R176: 143531.81 | S176: 200534.18 | T176: 1.397141024 | V176: 954209.25 | W176: 563256.31 | X176: 390952.94 | Y176: 0.6940942038
A177: %,V5550084 | B177: 5550084 | C177: PJM Sync & Non Sync-Credit | F177: -9614.59 | G177: 1800.21 | H177: -11414.8 | I177: -6.340815794 | K177: -121529.75 | L177: -25729.01 | M177: -95800.74 | N177: 3.723452243 | Q177: -28140.36 | R177: -37014.55 | S177: 8874.19 | T177: -0.2397486934 | V177: -131685.9 | W177: -25698.74 | X177: -105987.16 | Y177: 4.124216207
A178: %,V5550094 | B178: 5550094 | C178: Purchased Power - Fuel | F178: 0 | G178: 0 | H178: 0 | K178: 0 | L178: 0 | M178: 0 | Q178: 0 | R178: 0 | S178: 0 | V178: 0 | W178: 0 | X178: 0
A179: %,V5550123 | B179: 5550123 | C179: PJM OpRes-LSE-Charge | F179: 79512.82 | G179: 79936.1 | H179: -423.28 | I179: -0.005295229565 | K179: 3999807.3 | L179: 972923.31 | M179: 3026883.99 | N179: 3.1111229 | Q179: 360314.56 | R179: 317171.35 | S179: 43143.21 | T179: 0.1360249279 | V179: 4317281.38 | W179: 1252833.62 | X179: 3064447.76 | Y179: 2.44601335
A180: %,V5550124 | B180: 5550124 | C180: PJM Implicit Congestion-LSE | F180: 176273.08 | G180: 403971.15 | H180: -227698.07 | I180: -0.5636493349 | K180: 2936441.91 | L180: 4546457.87 | M180: -1610015.96 | N180: -0.3541253446 | Q180: 189517.1 | R180: 2885598.08 | S180: -2696080.98 | T180: -0.9343231127 | V180: 5333727.4 | W180: 6981772.97 | X180: -1648045.57 | Y180: -0.2360497222
A181: %,V5550132 | B181: 5550132 | C181: PJM FTR Revenue-LSE | F181: 96096.39 | G181: -379914.83 | H181: 476011.22 | I181: -1.252941929 | K181: -6253075.78 | L181: -4888442.32 | M181: -1364633.46 | N181: 0.2791550704 | Q181: -210460.66 | R181: -1473833.59 | S181: 1263372.93 | T181: -0.857201884 | V181: -8919759.78 | W181: -5576640.76 | X181: -3343119.02 | Y181: 0.5994861717
A182: %,V5550137 | B182: 5550137 | C182: PJM OpRes-LSE-Credit | F182: -9779.79 | G182: -13543.07 | H182: 3763.28 | I182: -0.2778749575 | K182: -59636.32 | L182: -49612.11 | M182: -10024.21 | N182: 0.2020516765 | Q182: -22865.58 | R182: -21635.01 | S182: -1230.57 | T182: 0.05687864253 | V182: -74298.53 | W182: -52495.77 | X182: -21802.76 | Y182: 0.4153241299
A183: %,V5550139 | B183: 5550139 | C183: Generation Deactivation expens | F183: 0 | G183: 0 | H183: 0 | K183: -285.27 | L183: 0 | M183: -285.27 | N183: 1 | Q183: -285.27 | R183: 0 | S183: -285.27 | T183: 1 | V183: -285.27 | W183: 0 | X183: -285.27 | Y183: 1
A184: %,V5550153 | B184: 5550153 | C184: PurchPower-Rockport Def-NonAff | F184: 0 | G184: 0 | H184: 0 | K184: 0 | L184: 152679.92 | M184: -152679.92 | N184: 1 | Q184: 0 | R184: 0 | S184: 0 | V184: 0 | W184: 3094705.26 | X184: -3094705.26 | Y184: 1
A185: %,V5550326 | B185: 5550326 | C185: PJM Transm Loss Charges - LSE | F185: 794704.73 | G185: 495765.16 | H185: 298939.57 | I185: 0.6029862405 | K185: 5425605.7 | L185: 3948228.54 | M185: 1477377.16 | N185: 0.3741873463 | Q185: 2449589.42 | R185: 1698450.07 | S185: 751139.35 | T185: 0.4422498861 | V185: 7128818.81 | W185: 5618206.5 | X185: 1510612.31 | Y185: 0.2688780325
A186: %,V5550327 | B186: 5550327 | C186: PJM Transm Loss Credits-LSE | F186: -239304.5 | G186: -252490.44 | H186: 13185.94 | I186: -0.05222352181 | K186: -2554302.45 | L186: -1616654.88 | M186: -937647.57 | N186: 0.5799924162 | Q186: -944339.74 | R186: -756230.9 | S186: -188108.84 | T186: 0.2487452443 | V186: -3272222.33 | W186: -2270707.97 | X186: -1001514.36 | Y186: 0.4410581956
A187: %,V5550328 | B187: 5550328 | C187: PJM FC Penalty Credit | F187: 0 | G187: -395.26 | H187: 395.26 | I187: 1 | K187: -2256.95 | L187: -2848.35 | M187: 591.4 | N187: -0.2076289782 | Q187: -288.03 | R187: -377.41 | S187: 89.38 | T187: -0.2368246734 | V187: -2326.38 | W187: -3531.09 | X187: 1204.71 | Y187: -0.3411722726
A188: %,V5560000 | B188: 5560000 | C188: Sys Control & Load Dispatching | F188: 3313.8 | G188: 6203.04 | H188: =+F188-G188 -> -2889.24 | I188: =IF(AND(F188=0,G188=0),"",IF(OR(F188=0,G188=0),100%,(+H188/G188))) -> -0.4657780701 | K188: 32633.68 | L188: 42874.56 | M188: =+K188-L188 -> -10240.88 | N188: =IF(AND(K188=0,L188=0),"",IF(OR(K188=0,L188=0),100%,(+M188/L188))) -> -0.2388567953 | Q188: 12655.16 | R188: 16281.87 | S188: =+Q188-R188 -> -3626.71 | T188: =IF(AND(Q188=0,R188=0),"",IF(OR(Q188=0,R188=0),100%,(+S188/R188))) -> -0.2227452989 | V188: 59634.39 | W188: 69752.54 | X188: =+V188-W188 -> -10118.15 | Y188: =IF(AND(V188=0,W188=0),"",IF(OR(V188=0,W188=0),100%,(+X188/W188))) -> -0.1450578
A189: %,V5570000 | B189: 5570000 | C189: Other Expenses | F189: 64405.17 | G189: 63735.52 | H189: 669.65 | I189: 0.01050670019 | K189: 523692.75 | L189: 577415.66 | M189: -53722.91 | N189: -0.09304027189 | Q189: 208366.61 | R189: 257140.07 | S189: -48773.46 | T189: -0.1896766226 | V189: 744586.64 | W189: 805106.72 | X189: -60520.08 | Y189: -0.07517025817
A190: %,V5570007 | B190: 5570007 | C190: Other Pwr Exp - Wholesale RECs | F190: 0 | G190: 0 | H190: 0 | K190: 243.15 | L190: 245.05 | M190: -1.9 | N190: -0.00775351969 | Q190: 0 | R190: 0 | S190: 0 | V190: 243.15 | W190: 245.05 | X190: -1.9 | Y190: -0.00775351969
A191: %,V5570009 | B191: 5570009 | C191: Other Pwr Exp- REC's - RETAIL | F191: 0 | G191: 0 | H191: 0 | K191: 0 | L191: 446.4 | M191: -446.4 | N191: 1 | Q191: 0 | R191: 0 | S191: 0 | V191: 0 | W191: 446.4 | X191: -446.4 | Y191: 1
A192: %,V5570010 | B192: 5570010 | C192: OH Auction Exp - Incremental | F192: 0 | G192: 0 | H192: 0 | K192: 0 | L192: 5.79 | M192: -5.79 | N192: 1 | Q192: 0 | R192: 5.68 | S192: -5.68 | T192: 1 | V192: 0 | W192: 5.94 | X192: -5.94 | Y192: 1
A193: %,V5570025 | B193: 5570025 | C193: MATL-SAFETY | F193: 0 | G193: 0 | H193: 0 | K193: 0.93 | L193: 0 | M193: 0.93 | N193: 1 | Q193: 0 | R193: 0 | S193: 0 | V193: 0.93 | W193: 0 | X193: 0.93 | Y193: 1
A194: %,FACCOUNT,X,TGL_FERC_ACCT,N555-557 | B194: 18 | C194: Total Other Power Supply Expenses (line 15-17) | D194: o | F194: 6195930.2 | G194: 7023463.97 | H194: -827533.77 | I194: -0.1178241639 | K194: 99042946.07 | L194: 66718866.6 | M194: 32324079.47 | N194: 0.4844818433 | Q194: 28454846.68 | R194: 21012476.63 | S194: 7442370.05 | T194: 0.3541881417 | V194: 140792192.7 | W194: 114600238.4 | X194: 26191954.33 | Y194: 0.2285506095
A195: %,V5000000 | B195: 5000000 | C195: Oper Supervision & Engineering | F195: 405316.32 | G195: 427027.19 | H195: -21710.87 | I195: -0.05084189136 | K195: 2798103.73 | L195: 3168229.93 | M195: -370126.2 | N195: -0.1168242862 | Q195: 1186864.84 | R195: 1205315.73 | S195: -18450.89 | T195: -0.01530793098 | V195: 4056798.52 | W195: 4931057.16 | X195: -874258.64 | Y195: -0.1772963913
A196: %,V5000003 | B196: 5000003 | C196: Cnstr Srchrge Op Sup & Eng Exp | F196: 64.34 | G196: 0 | H196: 64.34 | I196: 1 | K196: 64.34 | L196: 0 | M196: 64.34 | N196: 1 | Q196: 64.34 | R196: 0 | S196: 64.34 | T196: 1 | V196: 64.34 | W196: 0 | X196: 64.34 | Y196: 1
A197: %,V5000005 | B197: 5000005 | C197: Deferred OM - 20% Non FMR | F197: 0 | G197: 0 | H197: 0 | K197: 0 | L197: 0 | M197: 0 | Q197: 0 | R197: 0 | S197: 0 | V197: 0 | W197: 0 | X197: 0
A198: %,V5010000 | B198: 5010000 | C198: Fuel | F198: 615530.47 | G198: 941381.32 | H198: -325850.85 | I198: -0.3461411896 | K198: 5386334.68 | L198: 4490594.37 | M198: 895740.31 | N198: 0.1994703231 | Q198: 1725491.37 | R198: 1877015.23 | S198: -151523.86 | T198: -0.08072596193 | V198: 7244580.32 | W198: 7572756.71 | X198: -328176.39 | Y198: -0.04333644967
A199: %,V5010001 | B199: 5010001 | C199: Fuel Consumed | F199: 7211243.8 | G199: 8665987.11 | H199: -1454743.31 | I199: -0.1678681599 | K199: 45839900.71 | L199: 57352208.02 | M199: -11512307.31 | N199: -0.2007299755 | Q199: 22316113.86 | R199: 29668020.19 | S199: -7351906.33 | T199: -0.2478057613 | V199: 70684616.99 | W199: 68355431.7 | X199: 2329185.29 | Y199: 0.03407461897
A200: %,V5010003 | B200: 5010003 | C200: Fuel - Procure Unload & Handle | F200: 387404.5 | G200: 395660.87 | H200: -8256.37 | I200: -0.02086728971 | K200: 2656521.99 | L200: 2339355.55 | M200: 317166.44 | N200: 0.1355785528 | Q200: 1408240.41 | R200: 1312417.17 | S200: 95823.24 | T200: 0.07301279059 | V200: 3867956.52 | W200: 2712359.66 | X200: 1155596.86 | Y200: 0.4260485352
A201: %,V5010005 | B201: 5010005 | C201: Fuel - Deferred | F201: 6623129 | G201: 1180481 | H201: 5442648 | I201: 4.610534181 | K201: 6862548.24 | L201: 1655699.31 | M201: 5206848.93 | N201: 3.144803467 | Q201: 1966611.02 | R201: -6359877 | S201: 8326488.02 | T201: -1.309221549 | V201: 7260073 | W201: -1652975 | X201: 8913048 | Y201: -5.392125108
... 649 more rows

Sheet KWH
A1: %,LACTUALS,SBAL | B1: %,ATF,FACCOUNT | C1: %,ATT,FDESCR,UDESCR | F1: %,LACTUALS,SPER,R | G1: %,LACTUALS,SPER-1YR,R | H1: %,C | I1: %,C | K1: %,LACTUALS,SPER,R,FCURRENCY_CD,V,FSTATISTICS_CODE,VKWH | L1: %,LACTUALS,SPER-1YR,R,FCURRENCY_CD,V,FSTATISTICS_CODE,VKWH | M1: %,C | N1: %,C | P1: %,LACTUALS,SPER,FCURRENCY_CD,V,FSTATISTICS_CODE,VCUS | Q1: %,LACTUALS,SPER-1YR,FCURRENCY_CD,V,FSTATISTICS_CODE,VCUS | R1: %,C | S1: %,C | T1: %,LACTUALS,SYTD,R | U1: %,LACTUALS,SYTD-1YR,R | V1: %,C | W1: %,C | Y1: %,LACTUALS,SYTD,R,FCURRENCY_CD,V,FSTATISTICS_CODE,VKWH | Z1: %,LACTUALS,SYTD-1YR,R,FCURRENCY_CD,V,FSTATISTICS_CODE,VKWH | AA1: %,C | AB1: %,C | AD1: %,C | AE1: %,LACTUALS,SYTD,FCURRENCY_CD,V,FSTATISTICS_CODE,VCUS | AF1: %,C | AG1: %,LACTUALS,SYTD-1YR,FCURRENCY_CD,V,FSTATISTICS_CODE,VCUS | AH1: %,C | AJ1: %,LACTUALS,SQTR,R | AK1: %,LACTUALS,SQTR-1YR,R | AL1: %,C | AM1: %,C | AO1: %,LACTUALS,SQTR,R,FCURRENCY_CD,V,FSTATISTICS_CODE,VKWH | AP1: %,LACTUALS,SQTR-1YR,R,FCURRENCY_CD,V,FSTATISTICS_CODE,VKWH | AQ1: %,C | AR1: %,C | AT1: %,C | AU1: %,LACTUALS,SQTR,FCURRENCY_CD,V,FSTATISTICS_CODE,VCUS | AV1: %,C | AW1: %,LACTUALS,SQTR-1YR,FCURRENCY_CD,V,FSTATISTICS_CODE,VCUS | AX1: %,C | AZ1: %,LACTUALS,SROLLING12,R | BA1: %,LACTUALS,SROLNG12-1Y,R | BB1: %,C | BC1: %,C | BE1: %,LACTUALS,SROLLING12,R,FCURRENCY_CD,V,FSTATISTICS_CODE,VKWH | BF1: %,LACTUALS,SROLNG12-1Y,R,FCURRENCY_CD,V,FSTATISTICS_CODE,VKWH | BG1: %,C | BH1: %,C | BJ1: %,C | BK1: %,LACTUALS,SROLLING12,FCURRENCY_CD,V,FSTATISTICS_CODE,VCUS | BL1: %,C | BM1: %,LACTUALS,SROLNG12-1Y,FCURRENCY_CD,V,FSTATISTICS_CODE,VCUS | BN1: %,C
C2: Kentucky Power Corp Consol
C3: August 2025 | F3: OPERATING REVENUES | K3: KILOWATT-HOUR SALES | P3: CUSTOMERS | T3: OPERATING REVENUES | Y3: KILOWATT-HOUR SALES | AD3: CUSTOMERS | AJ3: OPERATING REVENUES | AO3: KILOWATT-HOUR SALES | AT3: CUSTOMERS | AZ3: OPERATING REVENUES | BE3: KILOWATT-HOUR SALES | BJ3: CUSTOMERS
B4: Run Date: 09/09/2025 05:35 AM | F4: ONE MONTH ENDED | K4: ONE MONTH ENDED | P4: ONE MONTH ENDED | T4: YEAR TO DATE | Y4: YEAR TO DATE | AD4: YEAR TO DATE | AJ4: 3 Month Ending | AO4: 3 Month Ending | AT4: 3 Month Ending | AZ4: 12 Month Rolling | BE4: 12 Month Rolling | BJ4: 12 Month Rolling
B5: GLR6283P | C5: Rpt ID: FERC_IS1 Layout: FERC_IS1
B6: KYP_CORP_CONSOL | C6: V2099-01-01 Acct: GL_FERC_ACCT BU: GL_PRPT_CONS | F6: 2025 | G6: 2024 | H6: Variance | I6: % | K6: 2025 | L6: 2024 | M6: Variance | N6: % | P6: 2025 | Q6: 2024 | R6: Variance | T6: 2025 | U6: 2024 | V6: Variance | W6: % | Y6: 2025 | Z6: 2024 | AA6: Variance | AB6: % | AD6: 2025 | AF6: 2024 | AH6: Variance | AJ6: 2025 | AK6: 2024 | AL6: Variance | AM6: % | AO6: 2025 | AP6: 2024 | AQ6: Variance | AR6: % | AT6: 2025 | AV6: 2024 | AX6: Variance | AZ6: 2025 | BA6: 2024 | BB6: Variance | BC6: % | BE6: 2025 | BF6: 2024 | BG6: Variance | BH6: % | BJ6: 2025 | BL6: 2024 | BN6: Variance
B8: Page 300 | C8: SALES OF ELECTRICITY
A9: %,V4400001 | B9: 4400001 | C9: Residential Sales-W/Space Htg | F9: 11599370.53 | G9: 12112246.53 | H9: =+F9-G9 -> -512875.996 | I9: =IF(AND(F9=0,G9=0),"",IF(OR(F9=0,G9=0),100%,(+H9/G9))) -> -0.04234358958 | K9: 99720011 | L9: 105498068 | M9: =+K9-L9 -> -5778057 | N9: =IF(AND(K9=0,L9=0),"",IF(OR(K9=0,L9=0),100%,(+M9/L9))) -> -0.05476931578 | P9: 82236 | Q9: 82858 | R9: =+P9-Q9 -> -622 | T9: 106728220.4 | U9: 96698166.09 | V9: =+T9-U9 -> 10030054.29 | W9: =IF(AND(T9=0,U9=0),"",IF(OR(T9=0,U9=0),100%,(+V9/U9))) -> 0.1037253828 | Y9: 945101778 | Z9: 897143065 | AA9: =+Y9-Z9 -> 47958713 | AB9: =IF(AND(Y9=0,Z9=0),"",IF(OR(Y9=0,Z9=0),100%,(+AA9/Z9))) -> 0.05345715179 | AD9: =ROUND(ABS(AE9)/MONTH(FERC_IS1!$C$700),0) -> 82566 | AE9: 660526 | AF9: =ROUND(ABS(AG9)/MONTH(FERC_IS1!$C$700),0) -> 82926 | AG9: 663411 | AH9: =+AD9-AF9 -> -360 | AJ9: 35023325.89 | AK9: 34497330.07 | AL9: =+AJ9-AK9 -> 525995.824 | AM9: =IF(AND(AJ9=0,AK9=0),"",IF(OR(AJ9=0,AK9=0),100%,(+AL9/AK9))) -> 0.01524743576 | AO9: 324636723 | AP9: 300103305 | AQ9: =+AO9-AP9 -> 24533418 | AR9: =IF(AND(AO9=0,AP9=0),"",IF(OR(AO9=0,AP9=0),100%,(+AQ9/AP9))) -> 0.08174990942 | AT9: =ROUND(ABS(AU9)/3,0) -> 82265 | AU9: 246794 | AV9: =ROUND(ABS(AW9)/3,0) -> 82812 | AW9: 248436 | AX9: =+AT9-AV9 -> -547 | AZ9: 153783077.3 | BA9: 136069196.3 | BB9: =+AZ9-BA9 -> 17713881.02 | BC9: =IF(AND(AZ9=0,BA9=0),"",IF(OR(AZ9=0,BA9=0),100%,(+BB9/BA9))) -> 0.1301828886 | BE9: 1338357580 | BF9: 1295811739 | BG9: =+BE9-BF9 -> 42545841 | BH9: =IF(AND(BE9=0,BF9=0),"",IF(OR(BE9=0,BF9=0),100%,(+BG9/BF9))) -> 0.03283335049 | BJ9: =ROUND(ABS(BK9)/12,0) -> 82681 | BK9: 992169 | BL9: =ROUND(ABS(BM9)/12,0) -> 82922 | BM9: 995065 | BN9: =+BJ9-BL9 -> -241
A10: %,V4400002 | B10: 4400002 | C10: Residential Sales-W/O Space Ht | F10: 6607786.695 | G10: 6771128.45 | H10: -163341.755 | I10: -0.02412326929 | K10: 56600177 | L10: 59122714 | M10: -2522537 | N10: -0.04266612321 | P10: 47849 | Q10: 47901 | R10: -52 | T10: 48688886.22 | U10: 44594401.99 | V10: 4094484.225 | W10: 0.09181610342 | Y10: 411822032 | Z10: 397838138 | AA10: 13983894 | AB10: 0.03514970704 | AD10: =ROUND(ABS(AE10)/MONTH(FERC_IS1!$C$700),0) -> 47917 | AE10: 383332 | AF10: =ROUND(ABS(AG10)/MONTH(FERC_IS1!$C$700),0) -> 47922 | AG10: 383375 | AH10: -5 | AJ10: 20386867.5 | AK10: 19036881.52 | AL10: 1349985.985 | AM10: 0.07091424 | AO10: 179362811 | AP10: 167144471 | AQ10: 12218340 | AR10: 0.07310047366 | AT10: 47836 | AU10: 143507 | AV10: 47873 | AW10: 143620 | AX10: -37 | AZ10: 68784180.44 | BA10: 63357166.26 | BB10: 5427014.175 | BC10: 0.08565746379 | BE10: 581744550 | BF10: 567657279 | BG10: 14087271 | BH10: 0.02481650729 | BJ10: 47927 | BK10: 575121 | BL10: 47945 | BM10: 575339 | BN10: -18
A11: %,V4400005 | B11: 4400005 | C11: Residential Fuel Rev | F11: 7131606.14 | G11: 6610214.41 | H11: 521391.73 | I11: 0.07887667444 | K11: 0 | L11: 0 | M11: 0 | P11: 0 | Q11: 0 | R11: 0 | T11: 58329633.57 | U11: 49602016.02 | V11: 8727617.55 | W11: 0.1759528795 | Y11: 0 | Z11: 0 | AA11: 0 | AD11: =ROUND(ABS(AE11)/MONTH(FERC_IS1!$C$700),0) -> 0 | AE11: 0 | AF11: =ROUND(ABS(AG11)/MONTH(FERC_IS1!$C$700),0) -> 0 | AG11: 0 | AH11: 0 | AJ11: 27343128.61 | AK11: 16554617.48 | AL11: 10788511.13 | AM11: 0.6516919611 | AO11: 0 | AP11: 0 | AQ11: 0 | AT11: 0 | AU11: 0 | AV11: 0 | AW11: 0 | AX11: 0 | AZ11: 80282855.11 | BA11: 69684971.54 | BB11: 10597883.57 | BC11: 0.152082771 | BE11: 0 | BF11: 0 | BG11: 0 | BJ11: 0 | BK11: 0 | BL11: 0 | BM11: 0 | BN11: 0
A12: %,FACCOUNT,X,TGL_FERC_ACCT,N4400 | B12: Line 1 | C12: (440) Residential Sales | F12: 25338763.37 | G12: 25493589.39 | H12: -154826.021 | I12: -0.006073135431 | K12: 156320188 | L12: 164620782 | M12: -8300594 | N12: -0.05042251591 | P12: 130085 | Q12: 130759 | R12: -674 | T12: 213746740.2 | U12: 190894584.1 | V12: 22852156.07 | W12: 0.1197108665 | Y12: 1356923810 | Z12: 1294981203 | AA12: 61942607 | AB12: 0.04783282325 | AD12: =ROUND(ABS(AE12)/MONTH(FERC_IS1!$C$700),0) -> 130482 | AE12: 1043858 | AF12: =ROUND(ABS(AG12)/MONTH(FERC_IS1!$C$700),0) -> 130848 | AG12: 1046786 | AH12: -366 | AJ12: 82753322.01 | AK12: 70088829.07 | AL12: 12664492.94 | AM12: 0.1806920319 | AO12: 503999534 | AP12: 467247776 | AQ12: 36751758 | AR12: 0.07865582222 | AT12: 130100 | AU12: 390301 | AV12: 130685 | AW12: 392056 | AX12: -585 | AZ12: 302850112.9 | BA12: 269111334.1 | BB12: 33738778.77 | BC12: 0.1253710806 | BE12: 1920102130 | BF12: 1863469018 | BG12: 56633112 | BH12: 0.03039122811 | BJ12: 130608 | BK12: 1567290 | BL12: 130867 | BM12: 1570404 | BN12: -259
B13: Line 3 | C13: (442) Commercial and Industrial Sales | H13: 0 | M13: 0 | R13: 0 | V13: 0 | AA13: 0 | AD13: =ROUND(ABS(AE13)/MONTH(FERC_IS1!$C$700),0) -> 0 | AF13: =ROUND(ABS(AG13)/MONTH(FERC_IS1!$C$700),0) -> 0 | AH13: 0 | AL13: 0 | AQ13: 0 | AT13: 0 | AV13: 0 | AX13: 0 | BB13: 0 | BG13: 0 | BJ13: 0 | BL13: 0 | BN13: 0
A14: %,V4420001 | B14: 4420001 | C14: Commercial Sales | F14: 8200358.925 | G14: 9172600.06 | H14: -972241.135 | I14: -0.1059940615 | K14: 91626444 | L14: 101021818 | M14: -9395374 | N14: -0.09300341437 | P14: 26375 | Q14: 26402 | R14: -27 | T14: 66833950.42 | U14: 66592654 | V14: 241296.425 | W14: 0.003623469114 | Y14: 752047727 | Z14: 756835043 | AA14: -4787316 | AB14: -0.006325441778 | AD14: =ROUND(ABS(AE14)/MONTH(FERC_IS1!$C$700),0) -> 26348 | AE14: 210780 | AF14: =ROUND(ABS(AG14)/MONTH(FERC_IS1!$C$700),0) -> 26362 | AG14: 210894 | AH14: -14 | AJ14: 25718712.23 | AK14: 26359422.87 | AL14: -640710.645 | AM14: -0.02430670232 | AO14: 310542037 | AP14: 292385437 | AQ14: 18156600 | AR14: 0.06209816804 | AT14: 26353 | AU14: 79060 | AV14: 26400 | AW14: 79199 | AX14: -47 | AZ14: 100171794.1 | BA14: 93750865.62 | BB14: 6420928.495 | BC14: 0.06848927157 | BE14: 1118756514 | BF14: 1111608552 | BG14: 7147962 | BH14: 0.006430286981 | BJ14: 26375 | BK14: 316498 | BL14: 26375 | BM14: 316501 | BN14: 0
A15: %,V4420006 | B15: 4420006 | C15: Sales to Pub Auth - Schools | F15: 1264744.116 | G15: 1379601.12 | H15: -114857.004 | I15: -0.083253777 | K15: 10957082 | L15: 11626229 | M15: -669147 | N15: -0.05755494752 | P15: 692 | Q15: 691 | R15: 1 | T15: 10739817.61 | U15: 10432771.81 | V15: 307045.796 | W15: 0.0294308935 | Y15: 90904130 | Z15: 88837534 | AA15: 2066596 | AB15: 0.02326264482 | AD15: =ROUND(ABS(AE15)/MONTH(FERC_IS1!$C$700),0) -> 695 | AE15: 5560 | AF15: =ROUND(ABS(AG15)/MONTH(FERC_IS1!$C$700),0) -> 696 | AG15: 5567 | AH15: -1 | AJ15: 3780893.556 | AK15: 3693233.36 | AL15: 87660.196 | AM15: 0.02373535259 | AO15: 35003475 | AP15: 31162059 | AQ15: 3841416 | AR15: 0.1232722138 | AT15: 692 | AU15: 2077 | AV15: 694 | AW15: 2082 | AX15: -2 | AZ15: 16203941.13 | BA15: 15069880.21 | BB15: 1134060.916 | BC15: 0.07525347914 | BE15: 136233085 | BF15: 134612559 | BG15: 1620526 | BH15: 0.01203844583 | BJ15: 694 | BK15: 8329 | BL15: 696 | BM15: 8354 | BN15: -2
A16: %,V4420007 | B16: 4420007 | C16: Sales to Pub Auth - Ex Schools | F16: 1545420.074 | G16: 1742768.85 | H16: -197348.776 | I16: -0.1132386409 | K16: 15047262 | L16: 16127101 | M16: -1079839 | N16: -0.06695803542 | P16: 3327 | Q16: 3303 | R16: 24 | T16: 13185730.57 | U16: 13170772.95 | V16: 14957.624 | W16: 0.001135667896 | Y16: 123603338 | Z16: 121965349 | AA16: 1637989 | AB16: 0.01342995378 | AD16: =ROUND(ABS(AE16)/MONTH(FERC_IS1!$C$700),0) -> 3329 | AE16: 26633 | AF16: =ROUND(ABS(AG16)/MONTH(FERC_IS1!$C$700),0) -> 3306 | AG16: 26445 | AH16: 23 | AJ16: 5034489.934 | AK16: 5145373.33 | AL16: -110883.396 | AM16: -0.02155011675 | AO16: 51672069 | AP16: 47657519 | AQ16: 4014550 | AR16: 0.08423749461 | AT16: 3327 | AU16: 9981 | AV16: 3295 | AW16: 9885 | AX16: 32 | AZ16: 19984434.96 | BA16: 18546767.59 | BB16: 1437667.374 | BC16: 0.07751579174 | BE16: 182068516 | BF16: 178747381 | BG16: 3321135 | BH16: 0.01858004845 | BJ16: 3327 | BK16: 39929 | BL16: 3306 | BM16: 39669 | BN16: 21
A17: %,V4420013 | B17: 4420013 | C17: Commercial Fuel Rev | F17: 5382681.54 | G17: 5163497.42 | H17: 219184.12 | I17: 0.04244877109 | K17: 0 | L17: 0 | M17: 0 | P17: 0 | Q17: 0 | R17: 0 | T17: 41827475.18 | U17: 36816518.16 | V17: 5010957.02 | W17: 0.1361062173 | Y17: 0 | Z17: 0 | AA17: 0 | AD17: =ROUND(ABS(AE17)/MONTH(FERC_IS1!$C$700),0) -> 0 | AE17: 0 | AF17: =ROUND(ABS(AG17)/MONTH(FERC_IS1!$C$700),0) -> 0 | AG17: 0 | AH17: 0 | AJ17: 20921188.31 | AK17: 13139426.51 | AL17: 7781761.8 | AM17: 0.5922451634 | AO17: 0 | AP17: 0 | AQ17: 0 | AT17: 0 | AU17: 0 | AV17: 0 | AW17: 0 | AX17: 0 | AZ17: 60146987.13 | BA17: 53022078.9 | BB17: 7124908.23 | BC17: 0.1343762519 | BE17: 0 | BF17: 0 | BG17: 0 | BJ17: 0 | BK17: 0 | BL17: 0 | BM17: 0 | BN17: 0
A18: %,FACCOUNT,X,TGL_FERC_ACCT,N442_COMMERCIAL | B18: Line 4 | C18: (442) Small (or Commercial) | F18: 16393204.65 | G18: 17458467.45 | H18: -1065262.795 | I18: -0.06101697059 | K18: 117630788 | L18: 128775148 | M18: -11144360 | N18: -0.08654123232 | P18: 30394 | Q18: 30396 | R18: -2 | T18: 132586973.8 | U18: 127012716.9 | V18: 5574256.865 | W18: 0.04388739175 | Y18: 966555195 | Z18: 967637926 | AA18: -1082731 | AB18: -0.001118942293 | AD18: =ROUND(ABS(AE18)/MONTH(FERC_IS1!$C$700),0) -> 30372 | AE18: 242973 | AF18: =ROUND(ABS(AG18)/MONTH(FERC_IS1!$C$700),0) -> 30363 | AG18: 242906 | AH18: 9 | AJ18: 55455284.03 | AK18: 48337456.07 | AL18: 7117827.955 | AM18: 0.1472528456 | AO18: 397217581 | AP18: 371205015 | AQ18: 26012566 | AR18: 0.07007600908 | AT18: 30373 | AU18: 91118 | AV18: 30389 | AW18: 91166 | AX18: -16 | AZ18: 196507157.3 | BA18: 180389592.3 | BB18: 16117565.02 | BC18: 0.0893486415 | BE18: 1437058115 | BF18: 1424968492 | BG18: 12089623 | BH18: 0.008484133557 | BJ18: 30396 | BK18: 364756 | BL18: 30377 | BM18: 364524 | BN18: 19
A19: %,V4420002 | B19: 4420002 | C19: Industrial Sales (Excl Mines) | F19: 5372986.274 | G19: 6382355.83 | H19: -1009369.556 | I19: -0.1581499971 | K19: 143269624 | L19: 159194329 | M19: -15924705 | N19: -0.1000331174 | P19: 768 | Q19: 780 | R19: -12 | T19: 46491332.27 | U19: 48144298.63 | V19: -1652966.356 | W19: -0.03433358472 | Y19: 1198951496 | Z19: 1219715115 | AA19: -20763619 | AB19: -0.01702333499 | AD19: =ROUND(ABS(AE19)/MONTH(FERC_IS1!$C$700),0) -> 766 | AE19: 6126 | AF19: =ROUND(ABS(AG19)/MONTH(FERC_IS1!$C$700),0) -> 784 | AG19: 6272 | AH19: -18 | AJ19: 13880952.05 | AK19: 20537403.6 | AL19: -6656451.546 | AM19: -0.3241135869 | AO19: 460617095 | AP19: 477306195 | AQ19: -16689100 | AR19: -0.03496518624 | AT19: 766 | AU19: 2298 | AV19: 781 | AW19: 2343 | AX19: -15 | AZ19: 72278312.94 | BA19: 67548066.94 | BB19: 4730246.004 | BC19: 0.07002785155 | BE19: 1800606551 | BF19: 1819122259 | BG19: -18515708 | BH19: -0.01017837471 | BJ19: 768 | BK19: 9217 | BL19: 791 | BM19: 9487 | BN19: -23
A20: %,V4420004 | B20: 4420004 | C20: Ind Sales-NonAffil(Incl Mines) | F20: 1160625.513 | G20: 1489306.86 | H20: -328681.347 | I20: -0.2206941738 | K20: 10184958 | L20: 15025141 | M20: -4840183 | N20: -0.3221389403 | P20: 162 | Q20: 174 | R20: -12 | T20: 10270398.92 | U20: 12155773.73 | V20: -1885374.807 | W20: -0.1551011765 | Y20: 106093398 | Z20: 133799913 | AA20: -27706515 | AB20: -0.2070742378 | AD20: =ROUND(ABS(AE20)/MONTH(FERC_IS1!$C$700),0) -> 167 | AE20: 1332 | AF20: =ROUND(ABS(AG20)/MONTH(FERC_IS1!$C$700),0) -> 180 | AG20: 1438 | AH20: -13 | AJ20: 3312009.933 | AK20: 4422563.12 | AL20: -1110553.187 | AM20: -0.2511107602 | AO20: 34438979 | AP20: 44589683 | AQ20: -10150704 | AR20: -0.22764692 | AT20: 164 | AU20: 493 | AV20: 177 | AW20: 532 | AX20: -13 | AZ20: 15719279.96 | BA20: 17949553.49 | BB20: -2230273.527 | BC20: -0.1242523124 | BE20: 167062408 | BF20: 204404558 | BG20: -37342150 | BH20: -0.1826874624 | BJ20: 169 | BK20: 2028 | BL20: 181 | BM20: 2171 | BN20: -12
A21: %,V4420016 | B21: 4420016 | C21: Industrial Fuel Rev | F21: 6975137.68 | G21: 6822963.93 | H21: 152173.75 | I21: 0.02230317375 | K21: 0 | L21: 0 | M21: 0 | P21: 0 | Q21: 0 | R21: 0 | T21: 55709803.59 | U21: 50499195.14 | V21: 5210608.45 | W21: 0.1031820098 | Y21: 0 | Z21: 0 | AA21: 0 | AD21: =ROUND(ABS(AE21)/MONTH(FERC_IS1!$C$700),0) -> 0 | AE21: 0 | AF21: =ROUND(ABS(AG21)/MONTH(FERC_IS1!$C$700),0) -> 0 | AG21: 0 | AH21: 0 | AJ21: 26203252.42 | AK21: 18058008.6 | AL21: 8145243.82 | AM21: 0.4510599148 | AO21: 0 | AP21: 0 | AQ21: 0 | AT21: 0 | AU21: 0 | AV21: 0 | AW21: 0 | AX21: 0 | AZ21: 81319261.38 | BA21: 73984567.13 | BB21: 7334694.25 | BC21: 0.09913816536 | BE21: 0 | BF21: 0 | BG21: 0 | BJ21: 0 | BK21: 0 | BL21: 0 | BM21: 0 | BN21: 0
A22: %,FACCOUNT,X,TGL_FERC_ACCT,N442_INDUSTRIAL | B22: Line 5 | C22: (442) Large (or Industrial) | F22: 13508749.47 | G22: 14694626.62 | H22: -1185877.153 | I22: -0.08070141445 | K22: 153454582 | L22: 174219470 | M22: -20764888 | N22: -0.1191881022 | P22: 930 | Q22: 954 | R22: -24 | T22: 112471534.8 | U22: 110799267.5 | V22: 1672267.287 | W22: 0.01509276482 | Y22: 1305044894 | Z22: 1353515028 | AA22: -48470134 | AB22: -0.03581056213 | AD22: =ROUND(ABS(AE22)/MONTH(FERC_IS1!$C$700),0) -> 932 | AE22: 7458 | AF22: =ROUND(ABS(AG22)/MONTH(FERC_IS1!$C$700),0) -> 964 | AG22: 7710 | AH22: -32 | AJ22: 43396214.41 | AK22: 43017975.32 | AL22: 378239.087 | AM22: 0.008792582268 | AO22: 495056074 | AP22: 521895878 | AQ22: -26839804 | AR22: -0.05142750715 | AT22: 930 | AU22: 2791 | AV22: 958 | AW22: 2875 | AX22: -28 | AZ22: 169316854.3 | BA22: 159482187.6 | BB22: 9834666.727 | BC22: 0.0616662392 | BE22: 1967668959 | BF22: 2023526817 | BG22: -55857858 | BH22: -0.02760420941 | BJ22: 937 | BK22: 11245 | BL22: 972 | BM22: 11658 | BN22: -35
A23: %,V4440000 | B23: 4440000 | C23: Public Street/Highway Lighting | F23: 151856.169 | G23: 150985.3 | H23: 870.869 | I23: 0.005767905882 | K23: 612180 | L23: 643030 | M23: -30850 | N23: -0.04797598868 | P23: 298 | Q23: 303 | R23: -5 | T23: 1226008.999 | U23: 1197371.42 | V23: 28637.579 | W23: 0.02391703904 | Y23: 5326899 | Z23: 5557632 | AA23: -230733 | AB23: -0.04151642282 | AD23: =ROUND(ABS(AE23)/MONTH(FERC_IS1!$C$700),0) -> 299 | AE23: 2393 | AF23: =ROUND(ABS(AG23)/MONTH(FERC_IS1!$C$700),0) -> 308 | AG23: 2460 | AH23: -9 | AJ23: 447156.959 | AK23: 451278.86 | AL23: -4121.901 | AM23: -0.009133822488 | AO23: 1700548 | AP23: 1752236 | AQ23: -51688 | AR23: -0.02949830959 | AT23: 299 | AU23: 897 | AV23: 305 | AW23: 914 | AX23: -6 | AZ23: 1829400.659 | BA23: 1738092.43 | BB23: 91308.229 | BC23: 0.05253358649 | BE23: 8606820 | BF23: 9020483 | BG23: -413663 | BH23: -0.04585818742 | BJ23: 300 | BK23: 3603 | BL23: 309 | BM23: 3704 | BN23: -9
A24: %,V4440002 | B24: 4440002 | C24: Public St & Hwy Light Fuel Rev | F24: 28446.05 | G24: 25369.7 | H24: 3076.35 | I24: 0.1212607954 | K24: 0 | L24: 0 | M24: 0 | P24: 0 | Q24: 0 | R24: 0 | T24: 225114.68 | U24: 211378.78 | V24: 13735.9 | W24: 0.06498239795 | Y24: 0 | Z24: 0 | AA24: 0 | AD24: =ROUND(ABS(AE24)/MONTH(FERC_IS1!$C$700),0) -> 0 | AE24: 0 | AF24: =ROUND(ABS(AG24)/MONTH(FERC_IS1!$C$700),0) -> 0 | AG24: 0 | AH24: 0 | AJ24: 95399.5 | AK24: 60869.97 | AL24: 34529.53 | AM24: 0.5672670777 | AO24: 0 | AP24: 0 | AQ24: 0 | AT24: 0 | AU24: 0 | AV24: 0 | AW24: 0 | AX24: 0 | AZ24: 353786.4 | BA24: 333958.86 | BB24: 19827.54 | BC24: 0.05937120518 | BE24: 0 | BF24: 0 | BG24: 0 | BJ24: 0 | BK24: 0 | BL24: 0 | BM24: 0 | BN24: 0
A25: %,FACCOUNT,X,TGL_FERC_ACCT,N4440 | B25: Line 6 | C25: (444) Public Street and Highway Lighting | F25: 180302.219 | G25: 176355 | H25: 3947.219 | I25: 0.0223822347 | K25: 612180 | L25: 643030 | M25: -30850 | N25: -0.04797598868 | P25: 298 | Q25: 303 | R25: -5 | T25: 1451123.679 | U25: 1408750.2 | V25: 42373.479 | W25: 0.03007877408 | Y25: 5326899 | Z25: 5557632 | AA25: -230733 | AB25: -0.04151642282 | AD25: =ROUND(ABS(AE25)/MONTH(FERC_IS1!$C$700),0) -> 299 | AE25: 2393 | AF25: =ROUND(ABS(AG25)/MONTH(FERC_IS1!$C$700),0) -> 308 | AG25: 2460 | AH25: -9 | AJ25: 542556.459 | AK25: 512148.83 | AL25: 30407.629 | AM25: 0.05937264174 | AO25: 1700548 | AP25: 1752236 | AQ25: -51688 | AR25: -0.02949830959 | AT25: 299 | AU25: 897 | AV25: 305 | AW25: 914 | AX25: -6 | AZ25: 2183187.059 | BA25: 2072051.29 | BB25: 111135.769 | BC25: 0.05363562646 | BE25: 8606820 | BF25: 9020483 | BG25: -413663 | BH25: -0.04585818742 | BJ25: 300 | BK25: 3603 | BL25: 309 | BM25: 3704 | BN25: -9
A26: %,FACCOUNT,X,TGL_FERC_ACCT,N4450 | B26: Line 7 | C26: (445) Other Sales to Public Authorities | F26: 0 | G26: 0 | H26: 0 | K26: 0 | L26: 0 | M26: 0 | P26: 0 | Q26: 0 | R26: 0 | T26: 0 | U26: 0 | V26: 0 | Y26: 0 | Z26: 0 | AA26: 0 | AD26: =ROUND(ABS(AE26)/MONTH(FERC_IS1!$C$700),0) -> 0 | AE26: 0 | AF26: =ROUND(ABS(AG26)/MONTH(FERC_IS1!$C$700),0) -> 0 | AG26: 0 | AH26: 0 | AJ26: 0 | AK26: 0 | AL26: 0 | AO26: 0 | AP26: 0 | AQ26: 0 | AT26: 0 | AU26: 0 | AV26: 0 | AW26: 0 | AX26: 0 | AZ26: 0 | BA26: 0 | BB26: 0 | BE26: 0 | BF26: 0 | BG26: 0 | BJ26: 0 | BK26: 0 | BL26: 0 | BM26: 0 | BN26: 0
A27: %,FACCOUNT,X,TGL_FERC_ACCT,N4460 | B27: Line 8 | C27: (446) Sales to Railroads and Railways | F27: 0 | G27: 0 | H27: 0 | K27: 0 | L27: 0 | M27: 0 | P27: 0 | Q27: 0 | R27: 0 | T27: 0 | U27: 0 | V27: 0 | Y27: 0 | Z27: 0 | AA27: 0 | AD27: =ROUND(ABS(AE27)/MONTH(FERC_IS1!$C$700),0) -> 0 | AE27: 0 | AF27: =ROUND(ABS(AG27)/MONTH(FERC_IS1!$C$700),0) -> 0 | AG27: 0 | AH27: 0 | AJ27: 0 | AK27: 0 | AL27: 0 | AO27: 0 | AP27: 0 | AQ27: 0 | AT27: 0 | AU27: 0 | AV27: 0 | AW27: 0 | AX27: 0 | AZ27: 0 | BA27: 0 | BB27: 0 | BE27: 0 | BF27: 0 | BG27: 0 | BJ27: 0 | BK27: 0 | BL27: 0 | BM27: 0 | BN27: 0
A28: %,FACCOUNT,X,TGL_FERC_ACCT,N4480 | B28: Line 9 | C28: (448) Interdepartmental Sales | F28: 0 | G28: 0 | H28: 0 | K28: 0 | L28: 0 | M28: 0 | P28: 0 | Q28: 0 | R28: 0 | T28: 0 | U28: 0 | V28: 0 | Y28: 0 | Z28: 0 | AA28: 0 | AD28: =ROUND(ABS(AE28)/MONTH(FERC_IS1!$C$700),0) -> 0 | AE28: 0 | AF28: =ROUND(ABS(AG28)/MONTH(FERC_IS1!$C$700),0) -> 0 | AG28: 0 | AH28: 0 | AJ28: 0 | AK28: 0 | AL28: 0 | AO28: 0 | AP28: 0 | AQ28: 0 | AT28: 0 | AU28: 0 | AV28: 0 | AW28: 0 | AX28: 0 | AZ28: 0 | BA28: 0 | BB28: 0 | BE28: 0 | BF28: 0 | BG28: 0 | BJ28: 0 | BK28: 0 | BL28: 0 | BM28: 0 | BN28: 0
A29: %,FACCOUNT,TGL_FERC_ACCT,NELEC_SALES_ULT_CUST | B29: Line 10 | C29: TOTAL Sales to Ultimate Customers | F29: 55421019.71 | G29: 57823038.46 | H29: -2402018.75 | I29: -0.04154086008 | K29: 428017738 | L29: 468258430 | M29: -40240692 | N29: -0.08593693017 | P29: 161707 | Q29: 162412 | R29: -705 | T29: 460256372.4 | U29: 430115318.7 | V29: 30141053.7 | W29: 0.07007668034 | Y29: 3633850798 | Z29: 3621691789 | AA29: 12159009 | AB29: 0.00335727326 | AD29: =ROUND(ABS(AE29)/MONTH(FERC_IS1!$C$700),0) -> 162085 | AE29: 1296682 | AF29: =ROUND(ABS(AG29)/MONTH(FERC_IS1!$C$700),0) -> 162483 | AG29: 1299862 | AH29: -398 | AJ29: 182147376.9 | AK29: 161956409.3 | AL29: 20190967.61 | AM29: 0.1246691483 | AO29: 1397973737 | AP29: 1362100905 | AQ29: 35872832 | AR29: 0.02633639833 | AT29: 161702 | AU29: 485107 | AV29: 162337 | AW29: 487011 | AX29: -635 | AZ29: 670857311.6 | BA29: 611055165.3 | BB29: 59802146.28 | BC29: 0.09786701705 | BE29: 5333436024 | BF29: 5320984810 | BG29: 12451214 | BH29: 0.002340020587 | BJ29: 162241 | BK29: 1946894 | BL29: 162524 | BM29: 1950290 | BN29: -283
A30: %,V4470010 | B30: 4470010 | C30: Sales for Resale-Bookout Purch | F30: 0 | G30: 0 | H30: 0 | K30: 0 | L30: 0 | M30: 0 | P30: 0 | Q30: 0 | R30: 0 | T30: 0 | U30: -18.93 | V30: 18.93 | W30: 1 | Y30: 0 | Z30: 0 | AA30: 0 | AD30: =ROUND(ABS(AE30)/MONTH(FERC_IS1!$C$700),0) -> 0 | AE30: 0 | AF30: =ROUND(ABS(AG30)/MONTH(FERC_IS1!$C$700),0) -> 0 | AG30: 0 | AH30: 0 | AJ30: 0 | AK30: 0 | AL30: 0 | AO30: 0 | AP30: 0 | AQ30: 0 | AT30: 0 | AU30: 0 | AV30: 0 | AW30: 0 | AX30: 0 | AZ30: 0 | BA30: -311.05 | BB30: 311.05 | BC30: 1 | BE30: 0 | BF30: 0 | BG30: 0 | BJ30: 0 | BK30: 0 | BL30: 0 | BM30: 0 | BN30: 0
A31: %,V4470027 | B31: 4470027 | C31: Whsal/Muni/Pb Ath Fuel Rev | F31: 0 | G31: 200685.45 | H31: -200685.45 | I31: 1 | K31: 0 | L31: 6747814 | M31: -6747814 | N31: 1 | P31: 0 | Q31: 0 | R31: 0 | T31: 1561568.66 | U31: 1708664.27 | V31: -147095.61 | W31: -0.08608807042 | Y31: 32141242 | Z31: 51322869 | AA31: -19181627 | AB31: -0.3737442464 | AD31: =ROUND(ABS(AE31)/MONTH(FERC_IS1!$C$700),0) -> 0 | AE31: 0 | AF31: =ROUND(ABS(AG31)/MONTH(FERC_IS1!$C$700),0) -> 0 | AG31: 0 | AH31: 0 | AJ31: 46457.23 | AK31: 554538.19 | AL31: -508080.96 | AM31: -0.9162235697 | AO31: 24073 | AP31: 20213471 | AQ31: -20189398 | AR31: -0.9988090615 | AT31: 0 | AU31: 0 | AV31: 0 | AW31: 0 | AX31: 0 | AZ31: 2448115.4 | BA31: 2526280.53 | BB31: -78165.13 | BC31: -0.0309407958 | BE31: 55242343 | BF31: 74735153 | BG31: -19492810 | BH31: -0.2608251836 | BJ31: 0 | BK31: 0 | BL31: 0 | BM31: 0 | BN31: 0
